Workbook

Sheet Table of Contents
A1: Table of Contents
A3: Sheet | B3: Comment
A4: ImpactProfileExpl | B4: Graph demonstrating the concept of a deviant impact profile
A5: Parameters | B5: Area where some of the model parameters are set. Others directly in the macro module.
A6: CorrMatrix | B6: Correlation matrix of the random variates; matrix graph of the beta variates.
A7: VarsRealityLayer | B7: Variables used in the sheet that simulated the "real" state of the affected communities [as different from the assessment team estimates]
A8: RealityLayer | B8: The simulated state of 290 flood-affected communities.
A9: AssessTeamEstimates | B9: The estimates that the assessment team makes on site. See callout in the sheet.
A10: StatsCollectArea | B10: A utility sheet that automatically collects summary statistics on each of the 50 itineraries simulated in the most recent run.
A11: SimResults | B11: A static copy of those summary statistics for each model. Pasted manually [no automatic appending]
A12: ModelSummaries | B12: The transposed table of some of those statistics, as the basis for the dot chart.
A13: SampleItineraries | B13: Example of a simulated itinerary. Holds data needed to map it in the GIS.
A14: RandomStartComm | B14: Table from which the macro draws the first community to be visited in a simulated itinerary.
A15: RunTime | B15: Holds a self-report of the macro how long it took to execute a run.
A16: Itineraries | B16: Table that holds, for each itinerary simulated in the latest run: Sequential number of visited community in the itinerary
A17: Distances | B17: Table that holds, for each itinerary simulated in the latest run: Distance from preceding community in the itinerary
A18: Simul_b1 | B18: Table that holds, for each itinerary simulated in the latest run: Assessment team estimate on site of indicator 1
A19: Simul_b2 | B19: Table that holds, for each itinerary simulated in the latest run: Assessment team estimate on site of indicator 2
A20: Simul_b3 | B20: Table that holds, for each itinerary simulated in the latest run: Assessment team estimate on site of indicator 3
A21: Simul_b4 | B21: Table that holds, for each itinerary simulated in the latest run: Assessment team estimate on site of indicator 4
A22: QuantOfInterest | B22: Table that holds, for each itinerary simulated in the latest run: Quantity of interest. In this case: 1 if community has deviant impact profile; else 0.
A23: Transfer | B23: An auxiliary sheet that the macro needs in case distances are to be calculated from unprojected coordinates (latlong)
A24: DistanceCalcTest | B24: Result of a test of whether distance calculations from unprojected and projected coordinates produce sufficiently similar results.
A25: StartAnywhereVsTop50 | B25: Demonstration why selection of starting points restricted to 50 most impacted communities.
A26: QuickDemoOnly | B26: Quick demonstration of just how one itinerary is calculated. Model without measurement error. Didactic purpose only.
B29: Access to the macros:
B30: Typing Alt + F11 brings up the VBA editor.
B31: The macro driving the simulation is called "MakeSeveralItineraries" and is stored in Module2.
B32: The macro providing a small demonstration is called "MakeItinerary" and is stored in Module1.
B34: To re-run the simulations, the built-in Analysis ToolPak-VBA has to be active (go to Excel Options - Add-Ins - Manage Excel Add-ins: Go, and make sure Analysis ToolPak-VBA is checked). Also macro security has to be set in the menu Devoloper - Code - Macro Security, to allow all macros.

Sheet ImpactProfileExpl
B1: Crops destroyed | C1: Houses destroyed | D1: Mal- nourished | E1: Diarrhea
A2: Simulated population mean (290 affected communities) [indicator means set identical] | B2: 0.33 | C2: 0.33 | D2: 0.33 | E2: 0.33
A3: Purposive sample mean (30 communities visited) [biased to more severe physical destruction] | B3: 0.7657329708 | C3: 0.5874128072 | D3: 0.4901273492 | E3: 0.5149200875
A4: Example deviant profile (health problems more acute) [See exact deviance definition in text] | B4: 0.62 | C4: 0.85 | D4: 0.96 | E4: 0.98
C8: Note: [for data audit]
C9: Profile example taken from
C10: Model 12
C11: Intinerary 1
C12: Union Council RecNo 178

Sheet Parameters
A1: Paraname | B1: Value | C1: Comment
A2: errorX | B2: 0.5 | C2: Mulitplier of of a normally distributed random variable (mean = 0; sd = 1). This term is added to the "reality" variable, in order to generate measurement error. If 0, the impact indicators during community visits are measured without error.
A3: errorHH | B3: 0 | C3: Analogous. Term added to log10 of "reality" number of households in Union Council area [not yet experimented with]
C6: Other parameters are set in the macro.

Sheet CorrMatrix
A1: Mechanisms and correlation matrix
A2: Basic impact-producing mechanism | B2: Observables (indicators) | C2: Simulated random variables | D2: Crops destroyed | E2: Houses destroyed | F2: Children under- nourished | G2: Persons with diarrhea
D3: x1 | E3: x2 | F3: x3 | G3: x4
A4: Physical destruction by flood | B4: Crops destroyed | C4: x1 | D4: 1 | E4: 0.8 | F4: 0.5 | G4: 0.5 | I4: See paper.
A5: Physical destruction by flood | B5: Houses destroyed | C5: x2 | D5: 0.8 | E5: 1 | F5: 0.5 | G5: 0.5
A6: Stress on human organism | B6: Children undernourished | C6: x3 | D6: 0.5 | E6: 0.5 | F6: 1 | G6: 0.8
A7: Stress on human organism | B7: Persons with diarrhea | C7: x4 | D7: 0.5 | E7: 0.5 | F7: 0.8 | G7: 1
A10: Correlation matrix of the beta variates:

Sheet VarsRealityLayer
A1: ColNo | B1: VarName | C1: VarLabel | D1: Comment | E1: Mean | F1: Comment2
A2: 1 | B2: RecNo | D2: Sort order in which random variate table was taken in
A3: 2 | B3: ID | D3: Unique identifier in GIS
A4: 3 | B4: UC_C | D4: Union Council code [not unique!]
A5: 4 | B5: UC_NAME
A6: 5 | B6: TotScore | D6: The UNOCHA total score | E6: =AVERAGE(INDIRECT(B6)) -> 23.75172414
A7: 6 | B7: Lat
A8: 7 | B8: Lon
A9: 8 | B9: Easting
A10: 9 | B10: Northing
A11: 10 | B11: NoHH | C11: Number of households in UC area | D11: From survey; else simulated off lognormal dist
A12: 11 | B12: x1 | D12: Correlated normal variates | E12: =AVERAGE(INDIRECT(CONCATENATE(B12,"_"))) -> 8.275862065e-09
A13: 12 | B13: x2 | D13: Correlated normal variates | E13: =AVERAGE(INDIRECT(CONCATENATE(B13,"_"))) -> 7.241379314e-09
A14: 13 | B14: x3 | D14: Correlated normal variates | E14: -1.896551716e-08
A15: 14 | B15: x4 | D15: Correlated normal variates | E15: -2.482758617e-08
A16: 15 | B16: u1 | D16: Uniform random variates, u = normal(x,0,1) | E16: 0.49953944
A17: 16 | B17: u2 | D17: Uniform random variates, u = normal(x,0,1) | E17: 0.5007414234
A18: 17 | B18: u3 | D18: Uniform random variates, u = normal(x,0,1) | E18: 0.5049481669
A19: 18 | B19: u4 | D19: Uniform random variates, u = normal(x,0,1) | E19: 0.4996393286
A20: 19 | B20: b1 | C20: Fraction crops destroyed | D20: Beta random variates, b = betadist(u, a=2, b= 1) | E20: 0.3350331671 | F20: The mean works out as b / (a + b)
A21: 20 | B21: b2 | C21: Fraction houses destroyed | D21: Beta random variates, b = betadist(u, a=2, b= 1) | E21: 0.3347940264
A22: 21 | B22: b3 | C22: Fraction children malnurished | D22: Beta random variates, b = betadist(u, a=2, b= 1) | E22: 0.3374397978
A23: 22 | B23: b4 | C23: Fraction persons with diarrhea | D23: Beta random variates, b = betadist(u, a=2, b= 1) | E23: 0.3314091193
A24: 23 | B24: kmed2 | C24: k-median cluster analysis membership var, 2-cluster solution (0 if community not affected)
A25: 24 | B25: kmed4 | C25: k-median cluster analysis membership var, 4-cluster solution (0 if community not affected)
A26: 25 | B26: kmed6 | C26: k-median cluster analysis membership var, 6-cluster solution (0 if community not affected)
A27: 26 | B27: KI_impest | C27: Estimate of impact by key informants | D27: Mean of the two physical destruction indicators (b1, b2) | E27: 0.3349135968

Sheet RealityLayer
A1: RecNo | B1: ID | C1: UC_C | D1: UC_NAME | E1: TotScore | F1: Lat | G1: Lon | H1: Easting | I1: Northing | J1: NoHH | K1: x1 | L1: x2 | M1: x3 | N1: x4 | O1: u1 | P1: u2 | Q1: u3 | R1: u4 | S1: b1 | T1: b2 | U1: b3 | V1: b4 | W1: kmed2 | X1: kmed4 | Y1: kmed6 | Z1: KI_impest
A2: 1 | B2: 411 | C2: 600162 | D2: Shadan Lund | E2: 4 | F2: 30.46021346 | G2: 70.66049305 | H2: -32587.10915 | I2: 605453.2857 | J2: 1253 | K2: -2.030073 | L2: -1.227885 | M2: -1.36325 | N2: -2.612711 | O2: 0.0211746 | P2: 0.1097451 | Q2: 0.0864019 | R2: 0.0044914 | S2: 0.0004484 | T2: 0.012044 | U2: 0.0074653 | V2: 2.02e-05 | W2: 2 | X2: 3 | Y2: 3 | Z2: =(S2+T2)/2 -> 0.0062462
A3: 2 | B3: 208 | C3: 600592 | D3: Jhoran | E3: 4 | F3: 28.84230104 | G3: 70.62991172 | H3: -36101.69084 | I3: 426221.8033 | J3: 3233 | K3: -1.292365 | L3: -1.416157 | M3: -1.613512 | N3: -1.36963 | O3: 0.0981154 | P3: 0.0783648 | Q3: 0.0533167 | R3: 0.0854012 | S3: 0.0096266 | T3: 0.006141 | U3: 0.0028427 | V3: 0.0072934 | W3: 2 | X3: 3 | Y3: 3 | Z3: =(S3+T3)/2 -> 0.0078838
A4: 3 | B4: 414 | C4: 600559 | D4: Shah Jamal | E4: 18 | F4: 29.99690054 | G4: 70.9771532 | H4: -2202.966553 | I4: 554075.0608 | J4: 2838 | K4: 0.1968808 | L4: -0.0976428 | M4: -0.724319 | N4: -0.1467872 | O4: 0.5780396 | P4: 0.4611079 | Q4: 0.2344349 | R4: 0.44165 | S4: 0.3341298 | T4: 0.2126205 | U4: 0.0549597 | V4: 0.1950547 | W4: 2 | X4: 3 | Y4: 6 | Z4: =(S4+T4)/2 -> 0.27337515
A5: 4 | B5: 183 | C5: 600209 | D5: Husan Khan | E5: 7 | F5: 31.36963296 | G5: 72.253189 | H5: 119178.9255 | I5: 706833.5943 | J5: 3232 | K5: -0.6124316 | L5: -0.7004747 | M5: -1.691742 | N5: -1.980975 | O5: 0.2701261 | P5: 0.2418154 | Q5: 0.0453476 | R5: 0.023797 | S5: 0.0729681 | T5: 0.0584747 | U5: 0.0020564 | V5: 0.0005663 | W5: 2 | X5: 3 | Y5: 3 | Z5: =(S5+T5)/2 -> 0.0657214
A6: 5 | B6: 177 | C6: 600245 | D6: Haveli Bahadar Shah | E6: 9 | F6: 31.0367536 | G6: 72.20361614 | H6: 114853.4584 | I6: 669892.9096 | J6: 2988 | K6: -1.167559 | L6: -1.508253 | M6: -1.036465 | N6: -0.1590714 | O6: 0.1214924 | P6: 0.0657449 | Q6: 0.1499926 | R6: 0.4368063 | S6: 0.0147604 | T6: 0.0043224 | U6: 0.0224978 | V6: 0.1907997 | W6: 2 | X6: 3 | Y6: 3 | Z6: =(S6+T6)/2 -> 0.0095414
A7: 6 | B7: 468 | C7: 600577 | D7: Utra Sandaila | E7: 33 | F7: 29.83483703 | G7: 70.89725225 | H7: -9924.699728 | I7: 536125.1816 | J7: 2410 | K7: 0.9581341 | L7: 0.971234 | M7: 0.0605962 | N7: -0.1082951 | O7: 0.8310024 | P7: 0.8342841 | Q7: 0.5241596 | R7: 0.4568808 | S7: 0.690565 | T7: 0.69603 | U7: 0.2747433 | V7: 0.2087401 | W7: 1 | X7: 1 | Y7: 4 | Z7: =(S7+T7)/2 -> 0.6932975
A8: 7 | B8: 482 | C8: 600234 | D8: Wasu Aastana | E8: 11 | F8: 31.18103175 | G8: 72.05889847 | H8: 100895.6851 | I8: 685745.1525 | J8: 3531 | K8: -0.5938835 | L8: -0.2174995 | M8: -0.7173917 | N8: -1.677453 | O8: 0.276295 | P8: 0.4139096 | Q8: 0.2365662 | R8: 0.0467269 | S8: 0.0763389 | T8: 0.1713211 | U8: 0.0559636 | V8: 0.0021834 | W8: 2 | X8: 3 | Y8: 3 | Z8: =(S8+T8)/2 -> 0.12383
A9: 8 | B9: 163 | C9: 600256 | D9: Girot | E9: 18 | F9: 32.03000503 | G9: 72.24259389 | H9: 117377.2193 | I9: 780031.5287 | J9: 13009 | K9: -0.2486878 | L9: 0.5059765 | M9: -0.9629204 | N9: -0.1682219 | O9: 0.4018011 | P9: 0.6935634 | Q9: 0.1677938 | R9: 0.4332044 | S9: 0.1614442 | T9: 0.4810302 | U9: 0.0281547 | V9: 0.187666 | W9: 2 | X9: 3 | Y9: 6 | Z9: =(S9+T9)/2 -> 0.3212372
A10: 9 | B10: 270 | C10: 600471 | D10: Langar Wah | E10: 34 | F10: 29.29813604 | G10: 70.71388056 | H10: -27783.81719 | I10: 476699.5184 | J10: 9740 | K10: 1.489894 | L10: 0.5136141 | M10: 0.073991 | N10: 0.4615134 | O10: 0.931874 | P10: 0.6962391 | Q10: 0.5294912 | R10: 0.6777849 | S10: 0.8683891 | T10: 0.4847489 | U10: 0.280361 | V10: 0.4593923 | W10: 1 | X10: 1 | Y10: 4 | Z10: =(S10+T10)/2 -> 0.676569
A11: 10 | B11: 277 | C11: 600684 | D11: Machka | E11: 47 | F11: 28.19751585 | G11: 69.52288596 | H11: -145004.3596 | I11: 355657.2685 | J11: 4700 | K11: 2.546576 | L11: 2.406138 | M11: 1.592497 | N11: 1.123621 | O11: 0.9945607 | P11: 0.9919389 | Q11: 0.9443635 | R11: 0.8694132 | S11: 0.989151 | T11: 0.9839427 | U11: 0.8918224 | V11: 0.7558793 | W11: 1 | X11: 4 | Y11: 2 | Z11: =(S11+T11)/2 -> 0.98654685
A12: 11 | B12: 392 | C12: 600724 | D12: Rojhan | E12: 34 | F12: 28.80635586 | G12: 70.13011965 | H12: -84883.88131 | I12: 422504.2091 | J12: 4346 | K12: 0.6436374 | L12: 0.7478533 | M12: 0.237478 | N12: 0.4893321 | O12: 0.7400947 | P12: 0.7727257 | Q12: 0.593857 | R12: 0.6876967 | S12: 0.5477401 | T12: 0.597105 | U12: 0.3526662 | V12: 0.4729267 | W12: 1 | X12: 1 | Y12: 4 | Z12: =(S12+T12)/2 -> 0.57242255
A13: 12 | B13: 471 | C13: 600166 | D13: Wadoor | E13: 16 | F13: 30.17467773 | G13: 70.53685189 | H13: -44582.46581 | I13: 573859.9512 | J13: 4015 | K13: 0.2379882 | L13: -0.2694122 | M13: -0.9733319 | N13: -0.4194402 | O13: 0.5940549 | P13: 0.3938062 | Q13: 0.1651942 | R13: 0.3374472 | S13: 0.3529012 | T13: 0.1550834 | U13: 0.0272891 | V13: 0.1138706 | W13: 2 | X13: 3 | Y13: 6 | Z13: =(S13+T13)/2 -> 0.2539923
A14: 13 | B14: 187 | C14: 600709 | D14: Jahanpur | E14: 36 | F14: 29.1225392 | G14: 70.05197146 | H14: -92213.8347 | I14: 457590.5122 | J14: 2454 | K14: 0.8667467 | L14: 1.55801 | M14: 0.1432375 | N14: 0.7080295 | O14: 0.8069596 | P14: 0.9403846 | Q14: 0.5569487 | R14: 0.7605366 | S14: 0.6511837 | T14: 0.8843232 | U14: 0.3101918 | V14: 0.5784159 | W14: 1 | X14: 4 | Y14: 2 | Z14: =(S14+T14)/2 -> 0.76775345
A15: 14 | B15: 252 | C15: 600214 | D15: Kot Shakir | E15: 16 | F15: 31.59443702 | G15: 72.16188428 | H15: 110244.1211 | I15: 731660.9715 | J15: 3393 | K15: -0.4892997 | L15: 0.4818552 | M15: -1.045992 | N15: -0.533007 | O15: 0.3123148 | P15: 0.6850456 | Q15: 0.1477824 | R15: 0.2970144 | S15: 0.0975405 | T15: 0.4692875 | U15: 0.0218396 | V15: 0.0882175 | W15: 2 | X15: 3 | Y15: 6 | Z15: =(S15+T15)/2 -> 0.283414
A16: 15 | B16: 429 | C16: 600719 | D16: Sikhani Wala | E16: 43 | F16: 29.35790769 | G16: 70.56359699 | H16: -42352.26359 | I16: 483366.1508 | J16: 3460 | K16: 1.780395 | L16: 1.419999 | M16: 1.246112 | N16: 0.1516242 | O16: 0.9624943 | P16: 0.922196 | Q16: 0.8936384 | R16: 0.5602583 | S16: 0.9263953 | T16: 0.8504454 | U16: 0.7985895 | V16: 0.3138894 | W16: 1 | X16: 4 | Y16: 2 | Z16: =(S16+T16)/2 -> 0.88842035
A17: 16 | B17: 218 | C17: 600546 | D17: Karimdad Qureshi | E17: 24 | F17: 30.02176037 | G17: 70.90569714 | H17: -9091.452025 | I17: 556832.4023 | J17: 3095 | K17: 0.0405194 | L17: 0.0977317 | M17: 0.1353748 | N17: 0.4194151 | O17: 0.5161605 | P17: 0.5389274 | Q17: 0.5538422 | R17: 0.6625436 | S17: 0.2664216 | T17: 0.2904427 | U17: 0.3067412 | V17: 0.438964 | W17: 2 | X17: 2 | Y17: 5 | Z17: =(S17+T17)/2 -> 0.27843215
A18: 17 | B18: 430 | C18: 600514 | D18: Sinawan | E18: 33 | F18: 30.34839247 | G18: 71.00778743 | H18: 748.265557 | I18: 593015.5936 | J18: 1599 | K18: 0.3450373 | L18: 0.6635227 | M18: 0.3156994 | N18: 0.6237124 | O18: 0.6349668 | P18: 0.7465021 | Q18: 0.6238846 | R18: 0.7335918 | S18: 0.4031828 | T18: 0.5572654 | U18: 0.389232 | V18: 0.5381569 | W18: 1 | X18: 1 | Y18: 1 | Z18: =(S18+T18)/2 -> 0.4802241
A19: 18 | B19: 212 | C19: 600335 | D19: Kala Bagh | E19: 26 | F19: 32.97120815 | G19: 71.57146719 | H19: 53462.03607 | I19: 883940.1608 | J19: 3072 | K19: -0.6129686 | L19: 0.2575892 | M19: -0.0652586 | N19: 1.029281 | O19: 0.2699485 | P19: 0.601638 | Q19: 0.4739841 | R19: 0.8483262 | S19: 0.0728722 | T19: 0.3619683 | U19: 0.2246609 | V19: 0.7196574 | W19: 1 | X19: 2 | Y19: 1 | Z19: =(S19+T19)/2 -> 0.21742025
A20: 19 | B20: 384 | C20: 600224 | D20: Rashidpur | E20: 8 | F20: 31.13238598 | G20: 72.11717331 | H20: 106500.9715 | I20: 680407.9624 | J20: 2655 | K20: -0.5249781 | L20: -0.6732795 | M20: -1.573015 | N20: -1.390318 | O20: 0.2997992 | P20: 0.2503847 | Q20: 0.0578576 | R20: 0.0822162 | S20: 0.0898796 | T20: 0.0626925 | U20: 0.0033475 | V20: 0.0067595 | W20: 2 | X20: 3 | Y20: 3 | Z20: =(S20+T20)/2 -> 0.07628605
A21: 20 | B21: 19 | C21: 600371 | D21: Allu Wali | E21: 13 | F21: 32.30124099 | G21: 71.47209957 | H21: 44471.83569 | I21: 809566.5607 | J21: 1624 | K21: -0.3504851 | L21: -0.8445919 | M21: -0.4770709 | N21: 0.1140875 | O21: 0.3629873 | P21: 0.1991694 | Q21: 0.3166558 | R21: 0.5454158 | S21: 0.1317598 | T21: 0.0396684 | U21: 0.1002709 | V21: 0.2974784 | W21: 2 | X21: 3 | Y21: 5 | Z21: =(S21+T21)/2 -> 0.0857141
A22: 21 | B22: 268 | C22: 600172 | D22: Lakhani | E22: 8 | F22: 31.24506832 | G22: 70.5053591 | H22: -47104.30154 | I22: 692478.0536 | J22: 4496 | K22: -0.35408 | L22: -1.317734 | M22: -1.498486 | N22: -0.9364591 | O22: 0.3616395 | P22: 0.0937964 | Q22: 0.0670036 | R22: 0.1745184 | S22: 0.1307831 | T22: 0.0087978 | U22: 0.0044895 | V22: 0.0304567 | W22: 2 | X22: 3 | Y22: 3 | Z22: =(S22+T22)/2 -> 0.06979045
A23: 22 | B23: 41 | C23: 600316 | D23: Bait Wasawa Shumali | E23: 35 | F23: 30.7748362 | G23: 70.90618386 | H23: -8976.180869 | I23: 640269.6606 | J23: 9667 | K23: 0.2979907 | L23: 0.9221351 | M23: 0.7385218 | N23: 0.7182636 | O23: 0.6171449 | P23: 0.8217709 | Q23: 0.7699013 | R23: 0.7637026 | S23: 0.3808678 | T23: 0.6753074 | U23: 0.592748 | V23: 0.5832417 | W23: 1 | X23: 4 | Y23: 1 | Z23: =(S23+T23)/2 -> 0.5280876
A24: 23 | B24: 147 | C24: 600143 | D24: Gadai | E24: 7 | F24: 30.09369171 | G24: 70.55614854 | H24: -42758.89284 | I24: 564880.5292 | J24: 4638 | K24: -1.407646 | L24: -0.7553086 | M24: -0.6717328 | N24: -1.073132 | O24: 0.079618 | P24: 0.2250319 | Q24: 0.2508769 | R24: 0.1416059 | S24: 0.006339 | T24: 0.0506394 | U24: 0.0629392 | V24: 0.0200522 | W24: 2 | X24: 3 | Y24: 3 | Z24: =(S24+T24)/2 -> 0.0284892
A25: 24 | B25: 492 | C25: 600733 | D25: Chanab Rasoolpur | E25: 7 | F25: 29.3870527 | G25: 71.04340126 | H25: 4208.898411 | I25: 486514.4558 | J25: 2780 | K25: -1.436363 | L25: -0.7469736 | M25: -0.8239299 | N25: -0.9188193 | O25: 0.0754495 | P25: 0.2275397 | Q25: 0.2049897 | R25: 0.179095 | S25: 0.0056926 | T25: 0.0517743 | U25: 0.0420208 | V25: 0.032075 | W25: 2 | X25: 3 | Y25: 3 | Z25: =(S25+T25)/2 -> 0.02873345
A26: 25 | B26: 368 | C26: 600248 | D26: Qaim Bharwana | E26: 8 | F26: 31.00308018 | G26: 72.17023859 | H26: 111708.0786 | I26: 666127.6921 | J26: 3100 | K26: -0.6644595 | L26: -1.142405 | M26: -1.263564 | N26: -0.5830761 | O26: 0.2531981 | P26: 0.1266428 | Q26: 0.1031932 | R26: 0.279921 | S26: 0.0641093 | T26: 0.0160384 | U26: 0.0106488 | V26: 0.0783558 | W26: 2 | X26: 3 | Y26: 3 | Z26: =(S26+T26)/2 -> 0.04007385
A27: 26 | B27: 221 | C27: 600307 | D27: Karor Thal Jandi | E27: 17 | F27: 31.31041717 | G27: 71.11155949 | H27: 10616.15027 | I27: 699625.0476 | J27: 3633 | K27: -0.1145278 | L27: 0.4277425 | M27: -1.332169 | N27: -0.4945478 | O27: 0.4544097 | P27: 0.6655807 | Q27: 0.0914024 | R27: 0.3104597 | S27: 0.2064882 | T27: 0.4429977 | U27: 0.0083544 | V27: 0.0963852 | W27: 2 | X27: 3 | Y27: 6 | Z27: =(S27+T27)/2 -> 0.32474295
A28: 27 | B28: 299 | C28: 600506 | D28: Mehmood Kot | E28: 36 | F28: 30.19428075 | G28: 70.99646774 | H28: -339.1234643 | I28: 575941.6268 | J28: 6458 | K28: 1.669205 | L28: 1.929064 | M28: -0.2724791 | N28: 0.318958 | O28: 0.9524617 | P28: 0.9731385 | Q28: 0.3926268 | R28: 0.6251208 | S28: 0.9071832 | T28: 0.9469985 | U28: 0.1541558 | V28: 0.390776 | W28: 1 | X28: 1 | Y28: 4 | Z28: =(S28+T28)/2 -> 0.92709085
A29: 28 | B29: 54 | C29: 600317 | D29: Basti Shadoo Khan | E29: 42 | F29: 31.05453025 | G29: 70.86064116 | H29: -13295.90784 | I29: 671268.8999 | J29: 5398 | K29: 1.15591 | L29: 0.225816 | M29: 1.565671 | N29: 1.314215 | O29: 0.876141 | P29: 0.5893278 | Q29: 0.9412872 | R29: 0.905613 | S29: 0.7676231 | T29: 0.3473072 | U29: 0.8860215 | V29: 0.8201349 | W29: 1 | X29: 4 | Y29: 2 | Z29: =(S29+T29)/2 -> 0.55746515
A30: 29 | B30: 241 | C30: 600188 | D30: Kot Mapal | E30: 11 | F30: 30.93091269 | G30: 72.05124733 | H30: 100421.7284 | I30: 658021.9254 | J30: 3732 | K30: -0.5593094 | L30: 0.0344688 | M30: -2.093743 | N30: -1.212651 | O30: 0.2879753 | P30: 0.5137483 | Q30: 0.0181414 | R30: 0.1126317 | S30: 0.0829298 | T30: 0.2639374 | U30: 0.0003291 | V30: 0.0126859 | W30: 2 | X30: 3 | Y30: 6 | Z30: =(S30+T30)/2 -> 0.1734336
A31: 30 | B31: 426 | C31: 600661 | D31: Sherin | E31: 38 | F31: 28.5956782 | G31: 70.11514801 | H31: -86525.46273 | I31: 399172.9989 | J31: 2500 | K31: 0.2819365 | L31: 1.1745 | M31: 0.941364 | N31: 0.8722278 | O31: 0.6110039 | P31: 0.8799025 | Q31: 0.8267409 | R31: 0.8084579 | S31: 0.3733258 | T31: 0.7742285 | U31: 0.6835005 | V31: 0.6536042 | W31: 1 | X31: 4 | Y31: 1 | Z31: =(S31+T31)/2 -> 0.57377715
A32: 31 | B32: 150 | C32: 600542 | D32: Garewahan | E32: 29 | F32: 29.91382964 | G32: 71.1302496 | H32: 12570.57983 | I32: 544878.7356 | J32: 3074 | K32: 0.5309036 | L32: 0.4624208 | M32: 0.1899695 | N32: 0.2364569 | O32: 0.7022572 | P32: 0.6781102 | Q32: 0.5753335 | R32: 0.5934609 | S32: 0.4931652 | T32: 0.4598334 | U32: 0.3310086 | V32: 0.3521959 | W32: 1 | X32: 1 | Y32: 4 | Z32: =(S32+T32)/2 -> 0.4764993
A33: 32 | B33: 315 | C33: 600473 | D33: Murad Pur Janubi | E33: 28 | F33: 29.38287004 | G33: 70.66770048 | H33: -32242.1487 | I33: 486097.0206 | J33: 2361 | K33: 0.3520939 | L33: 0.5961132 | M33: 0.3889841 | N33: -0.2322116 | O33: 0.6376161 | P33: 0.7244502 | Q33: 0.651356 | R33: 0.4081869 | S33: 0.4065543 | T33: 0.5248281 | U33: 0.4242647 | V33: 0.1666165 | W33: 1 | X33: 1 | Y33: 4 | Z33: =(S33+T33)/2 -> 0.4656912
A34: 33 | B34: 155 | C34: 600587 | D34: Ghana Lar | E34: 4 | F34: 28.6325087 | G34: 70.55491971 | H34: -43508.22082 | I34: 403004.9407 | J34: 5724 | K34: -1.758518 | L34: -1.408393 | M34: -1.604057 | N34: -1.0807 | O34: 0.0393297 | P34: 0.0795073 | Q34: 0.0543508 | R34: 0.1399153 | S34: 0.0015468 | T34: 0.0063214 | U34: 0.002954 | V34: 0.0195763 | W34: 2 | X34: 3 | Y34: 3 | Z34: =(S34+T34)/2 -> 0.0039341
A35: 34 | B35: 416 | C35: 600163 | D35: Shah Sadar Din | E35: 13 | F35: 30.31779342 | G35: 70.77117188 | H35: -21995.27824 | I35: 589646.3087 | J35: 5031 | K35: -1.536317 | L35: -1.353634 | M35: 0.2434815 | N35: -0.5511784 | O35: 0.0622303 | P35: 0.0879266 | Q35: 0.5961838 | R35: 0.2907557 | S35: 0.0038726 | T35: 0.0077311 | U35: 0.3554351 | V35: 0.0845389 | W35: 2 | X35: 3 | Y35: 5 | Z35: =(S35+T35)/2 -> 0.00580185
A36: 35 | B36: 364 | C36: 600715 | D36: Pir Bux Sharqi | E36: 45 | F36: 29.43109122 | G36: 70.57441963 | H36: -41272.44971 | I36: 491469.4517 | J36: 2080 | K36: 1.274667 | L36: 1.338172 | M36: 1.164754 | N36: 1.100845 | O36: 0.8987864 | P36: 0.9095799 | Q36: 0.8779407 | R36: 0.864518 | S36: 0.8078169 | T36: 0.8273355 | U36: 0.7707799 | V36: 0.7473913 | W36: 1 | X36: 4 | Y36: 2 | Z36: =(S36+T36)/2 -> 0.8175762
A37: 36 | B37: 104 | C37: 600202 | D37: Chhatta | E37: 13 | F37: 31.59499084 | G37: 72.2130384 | H37: 115096.8604 | I37: 731772.4396 | J37: 3031 | K37: -0.9781014 | L37: -0.6528635 | M37: -0.291806 | N37: 0.1605204 | O37: 0.1640121 | P37: 0.2569221 | Q37: 0.3852175 | R37: 0.5637645 | S37: 0.0269 | T37: 0.066009 | U37: 0.1483925 | V37: 0.3178304 | W37: 2 | X37: 3 | Y37: 5 | Z37: =(S37+T37)/2 -> 0.0464545
A38: 37 | B38: 304 | C38: 600507 | D38: Mirpur Bhagal | E38: 17 | F38: 30.60027187 | G38: 71.05597873 | H38: 5365.35774 | I38: 620924.3464 | J38: 2245 | K38: 0.2228012 | L38: 0.0077664 | M38: -1.100486 | N38: -0.4802953 | O38: 0.5881549 | P38: 0.5030983 | Q38: 0.1355602 | R38: 0.3155087 | S38: 0.3459262 | T38: 0.2531079 | U38: 0.0183766 | V38: 0.0995457 | W38: 2 | X38: 3 | Y38: 6 | Z38: =(S38+T38)/2 -> 0.29951705
A39: 38 | B39: 466 | C39: 600576 | D39: Usman Koria | E39: 35 | F39: 29.90963564 | G39: 70.97162738 | H39: -2738.763735 | I39: 544405.952 | J39: 2678 | K39: 1.207666 | L39: 1.097639 | M39: 0.3749516 | N39: -0.2002455 | O39: 0.8864121 | P39: 0.8638189 | Q39: 0.6461518 | R39: 0.4206443 | S39: 0.7857265 | T39: 0.7461832 | U39: 0.4175121 | V39: 0.1769416 | W39: 1 | X39: 1 | Y39: 4 | Z39: =(S39+T39)/2 -> 0.76595485
A40: 39 | B40: 63 | C40: 600238 | D40: Bodh Rajbana | E40: 11 | F40: 30.81178008 | G40: 72.04656719 | H40: 100095.1094 | I40: 644816.7247 | J40: 2867 | K40: -0.829897 | L40: 0.0388178 | M40: -0.9308467 | N40: -0.6342619 | O40: 0.2032985 | P40: 0.5154822 | Q40: 0.1759664 | R40: 0.262955 | S40: 0.0413303 | T40: 0.2657219 | U40: 0.0309642 | V40: 0.0691453 | W40: 2 | X40: 3 | Y40: 6 | Z40: =(S40+T40)/2 -> 0.1535261
A41: 40 | B41: 378 | C41: 600716 | D41: Rakh Fazil Pur | E41: 44 | F41: 29.33988528 | G41: 70.42950382 | H41: -55376.53008 | I41: 481425.7465 | J41: 2995 | K41: 1.320365 | L41: 0.8364189 | M41: 1.00345 | N41: 1.243383 | O41: 0.9066433 | P41: 0.7985404 | Q41: 0.8421782 | R41: 0.8931366 | S41: 0.8220021 | T41: 0.6376667 | U41: 0.709264 | V41: 0.797693 | W41: 1 | X41: 4 | Y41: 2 | Z41: =(S41+T41)/2 -> 0.7298344
A42: 41 | B42: 56 | C42: 600480 | D42: Beelay Wala | E42: 25 | F42: 29.65740429 | G42: 70.86313035 | H42: -13244.97089 | I42: 516471.3307 | J42: 100 | K42: -0.3860255 | L42: 0.0034234 | M42: 0.6231808 | N42: 0.4391603 | O42: 0.3497389 | P42: 0.5013657 | Q42: 0.7334172 | R42: 0.6697273 | S42: 0.1223173 | T42: 0.2513676 | U42: 0.5379007 | V42: 0.4485347 | W42: 1 | X42: 2 | Y42: 1 | Z42: =(S42+T42)/2 -> 0.18684245
A43: 42 | B43: 124 | C43: 600679 | D43: Dhandi | E43: 42 | F43: 28.1469623 | G43: 69.92407391 | H43: -105676.2066 | I43: 349617.003 | J43: 2000 | K43: 0.5782596 | L43: 1.191537 | M43: 0.9719493 | N43: 1.335776 | O43: 0.7184556 | P43: 0.8832787 | Q43: 0.8344621 | R43: 0.9091887 | S43: 0.5161784 | T43: 0.7801812 | U43: 0.696327 | V43: 0.8266241 | W43: 1 | X43: 4 | Y43: 2 | Z43: =(S43+T43)/2 -> 0.6481798
A44: 43 | B44: 68 | C44: 600498 | D44: Budh | E44: 16 | F44: 30.23228452 | G44: 70.97263992 | H44: -2632.086816 | I44: 580152.4257 | J44: 4445 | K44: -0.3023454 | L44: -0.0762438 | M44: 0.0347668 | N44: -0.7295979 | O44: 0.3811944 | P44: 0.4696126 | Q44: 0.5138671 | R44: 0.232818 | S44: 0.1453092 | T44: 0.220536 | U44: 0.2640594 | V44: 0.0542042 | W44: 2 | X44: 3 | Y44: 6 | Z44: =(S44+T44)/2 -> 0.1829226
A45: 44 | B45: 412 | C45: 600512 | D45: Shadi Khan Munda | E45: 39 | F45: 30.4508788 | G45: 71.07141872 | H45: 6856.511717 | I45: 604371.6517 | J45: 4440 | K45: 0.6470761 | L45: 1.375533 | M45: 0.4703667 | N45: 0.9741256 | O45: 0.7412087 | P45: 0.9155169 | Q45: 0.6809535 | R45: 0.8350029 | S45: 0.5493903 | T45: 0.8381712 | U45: 0.4636977 | V45: 0.6972299 | W45: 1 | X45: 4 | Y45: 2 | Z45: =(S45+T45)/2 -> 0.69378075
A46: 45 | B46: 257 | C46: 600323 | D46: Kotla Haji Shah | E46: 33 | F46: 30.98601163 | G46: 70.87081296 | H46: -12334.5154 | I46: 663674.646 | J46: 4737 | K46: 1.508372 | L46: 1.662358 | M46: -0.3088416 | N46: -1.199516 | O46: 0.9342704 | P46: 0.9517795 | Q46: 0.378721 | R46: 0.1151637 | S46: 0.8728611 | T46: 0.9058842 | U46: 0.1434296 | V46: 0.0132627 | W46: 1 | X46: 1 | Y46: 4 | Z46: =(S46+T46)/2 -> 0.88937265
A47: 46 | B47: 437 | C47: 600341 | D47: Sultan Khel | E47: 18 | F47: 32.82140072 | G47: 71.17582467 | H47: 16473.67391 | I47: 867193.6613 | J47: 2472 | K47: -0.2956279 | L47: 0.7736101 | M47: -0.9118115 | N47: -1.511627 | O47: 0.3837571 | P47: 0.7804193 | Q47: 0.180934 | R47: 0.0653144 | S47: 0.1472695 | T47: 0.6090543 | U47: 0.0327371 | V47: 0.004266 | W47: 2 | X47: 3 | Y47: 6 | Z47: =(S47+T47)/2 -> 0.3781619
A48: 47 | B48: 134 | C48: 600142 | D48: Drahma | E48: 22 | F48: 30.19234135 | G48: 70.72385337 | H48: -26576.97199 | I48: 575758.7609 | J48: 5180 | K48: -0.5645218 | L48: -0.2906954 | M48: 0.9803083 | N48: -0.1278237 | O48: 0.2861995 | P48: 0.3856422 | Q48: 0.836533 | R48: 0.4491442 | S48: 0.0819102 | T48: 0.1487199 | U48: 0.6997875 | V48: 0.2017305 | W48: 2 | X48: 2 | Y48: 5 | Z48: =(S48+T48)/2 -> 0.11531505
A49: 48 | B49: 390 | C49: 600724 | D49: Rojhan | E49: 34 | F49: 28.73590417 | G49: 70.12978317 | H49: -84976.17887 | I49: 414699.4013 | J49: 4346 | K49: 0.5669736 | L49: 0.4117636 | M49: 0.9968887 | N49: 0.3179874 | O49: 0.7146339 | P49: 0.6597437 | Q49: 0.8405907 | R49: 0.6247528 | S49: 0.5107017 | T49: 0.4352617 | U49: 0.7065927 | V49: 0.390316 | W49: 1 | X49: 4 | Y49: 1 | Z49: =(S49+T49)/2 -> 0.4729817
A50: 49 | B50: 170 | C50: 600169 | D50: Hairosharqi | E50: 20 | F50: 30.78194192 | G50: 70.68830736 | H50: -29819.79416 | I50: 641092.5729 | J50: 3019 | K50: -0.4134292 | L50: -0.1815192 | M50: 0.6753803 | N50: -0.2857404 | O50: 0.3396461 | P50: 0.42798 | Q50: 0.7502829 | R50: 0.3875385 | S50: 0.1153595 | T50: 0.1831669 | U50: 0.5629244 | V50: 0.1501861 | W50: 2 | X50: 2 | Y50: 5 | Z50: =(S50+T50)/2 -> 0.1492632
A51: 50 | B51: 108 | C51: 600140 | D51: Choti Zareen | E51: 6 | F51: 29.85481472 | G51: 70.38093085 | H51: -59787.08829 | I51: 538490.7435 | J51: 5079 | K51: -1.413269 | L51: -1.075802 | M51: -1.544055 | N51: -0.535126 | O51: 0.0787884 | P51: 0.1410079 | Q51: 0.0612875 | R51: 0.2962814 | S51: 0.0062076 | T51: 0.0198832 | U51: 0.0037562 | V51: 0.0877827 | W51: 2 | X51: 3 | Y51: 3 | Z51: =(S51+T51)/2 -> 0.0130454
A52: 51 | B52: 209 | C52: 600485 | D52: Jhuggi Wala | E52: 32 | F52: 29.4542266 | G52: 70.71826088 | H52: -27316.82136 | I52: 493989.0399 | J52: 540 | K52: -0.0461783 | L52: -0.6061825 | M52: 1.486176 | N52: 0.9481015 | O52: 0.4815841 | P52: 0.2721968 | Q52: 0.9313837 | R52: 0.8284611 | S52: 0.2319232 | T52: 0.0740911 | U52: 0.8674756 | V52: 0.6863478 | W52: 1 | X52: 2 | Y52: 1 | Z52: =(S52+T52)/2 -> 0.15300715
A53: 52 | B53: 182 | C53: 600504 | D53: Hinjraee | E53: 29 | F53: 30.61445581 | G53: 70.90952989 | H53: -8669.681548 | I53: 622498.3792 | J53: 3105 | K53: 0.6447016 | L53: 0.8966215 | M53: -0.5879288 | N53: 0.1866272 | O53: 0.7404397 | P53: 0.8150395 | Q53: 0.2782901 | R53: 0.5740235 | S53: 0.548251 | T53: 0.6642894 | U53: 0.0774454 | V53: 0.329503 | W53: 1 | X53: 1 | Y53: 4 | Z53: =(S53+T53)/2 -> 0.6062702
A54: 53 | B54: 139 | C54: 600168 | D54: Fateh Khan | E54: 19 | F54: 31.14451441 | G54: 70.71109241 | H54: -27539.03988 | I54: 681266.5481 | J54: 4873 | K54: 0.2679447 | L54: 0.6714423 | M54: -1.200214 | N54: -1.324451 | O54: 0.605629 | P54: 0.7490306 | Q54: 0.1150281 | R54: 0.0926766 | S54: 0.3667865 | T54: 0.5610468 | U54: 0.0132315 | V54: 0.008589 | W54: 2 | X54: 1 | Y54: 6 | Z54: =(S54+T54)/2 -> 0.46391665
A55: 54 | B55: 421 | C55: 600560 | D55: Sharif Chhajrah | E55: 36 | F55: 30.04360581 | G55: 70.9281545 | H55: -6924.326083 | I55: 559251.0466 | J55: 2618 | K55: -0.0600313 | L55: -0.2291609 | M55: 2.142402 | N55: 2.465576 | O55: 0.4760653 | P55: 0.4093719 | Q55: 0.9839194 | R55: 0.9931604 | S55: 0.2266382 | T55: 0.1675854 | U55: 0.9680974 | V55: 0.9863675 | W55: 1 | X55: 2 | Y55: 1 | Z55: =(S55+T55)/2 -> 0.1971118
A56: 55 | B56: 126 | C56: 600204 | D56: Dhoriwala | E56: 8 | F56: 31.68806558 | G56: 72.28030473 | H56: 121363.2687 | I56: 742159.5878 | J56: 3060 | K56: -1.861893 | L56: -2.377018 | M56: -0.5161824 | N56: -0.5112301 | O56: 0.0313091 | P56: 0.0087266 | Q56: 0.3028635 | R56: 0.304595 | S56: 0.0009803 | T56: 7.62e-05 | U56: 0.0917263 | V56: 0.0927781 | W56: 2 | X56: 3 | Y56: 3 | Z56: =(S56+T56)/2 -> 0.00052825
A57: 56 | B57: 3 | C57: 600193 | D57: 18-hazari | E57: 18 | F57: 31.19105809 | G57: 72.14494176 | H57: 109085.3061 | I57: 686934.568 | J57: 3285 | K57: -0.058238 | L57: 0.264965 | M57: -0.8885856 | N57: 0.02465 | O57: 0.4767795 | P57: 0.6044818 | Q57: 0.1871129 | R57: 0.5098329 | S57: 0.2273187 | T57: 0.3653983 | U57: 0.0350112 | V57: 0.2599296 | W57: 2 | X57: 3 | Y57: 6 | Z57: =(S57+T57)/2 -> 0.2963585
A58: 57 | B58: 440 | C58: 600312 | D58: Sumita | E58: 23 | F58: 31.29543229 | G58: 70.9642429 | H58: -3404.052839 | I58: 697959.1277 | J58: 6533 | K58: 0.7066045 | L58: -0.0932539 | M58: -0.1964666 | N58: -0.1696025 | O58: 0.7600939 | P58: 0.4628509 | Q58: 0.4221225 | R58: 0.4326614 | S58: 0.5777427 | T58: 0.214231 | U58: 0.1781874 | V58: 0.1871959 | W58: 2 | X58: 1 | Y58: 4 | Z58: =(S58+T58)/2 -> 0.39598685
A59: 58 | B59: 166 | C59: 600375 | D59: Gujrat | E59: 24 | F59: 32.26817452 | G59: 71.25690166 | H59: 24207.08592 | I59: 805833.5293 | J59: 2970 | K59: 0.9507328 | L59: 0.6590143 | M59: -0.7143893 | N59: -0.978172 | O59: 0.82913 | P59: 0.7450567 | Q59: 0.2374932 | R59: 0.1639946 | S59: 0.6874565 | T59: 0.5551094 | U59: 0.056403 | V59: 0.0268942 | W59: 1 | X59: 1 | Y59: 4 | Z59: =(S59+T59)/2 -> 0.62128295
A60: 59 | B60: 238 | C60: 600340 | D60: Kot Chanda | E60: 22 | F60: 32.89421586 | G60: 71.46845086 | H60: 43859.31605 | I60: 875350.3128 | J60: 2550 | K60: -0.0217192 | L60: -0.8070838 | M60: -0.146282 | N60: 0.8106159 | O60: 0.491336 | P60: 0.2098091 | Q60: 0.4418494 | R60: 0.7912068 | S60: 0.2414111 | T60: 0.0440199 | U60: 0.1952309 | V60: 0.6260083 | W60: 2 | X60: 2 | Y60: 5 | Z60: =(S60+T60)/2 -> 0.1427155
A61: 60 | B61: 123 | C61: 600089 | D61: Dhandala | E61: 13 | F61: 31.46344939 | G61: 70.91058135 | H61: -8496.303305 | I61: 716584.2476 | J61: 3586 | K61: 0.1942732 | L61: -0.4409612 | M61: -0.8070115 | N61: -0.6627686 | O61: 0.577019 | P61: 0.3296205 | Q61: 0.2098299 | R61: 0.2537394 | S61: 0.332951 | T61: 0.1086497 | U61: 0.0440286 | V61: 0.0643837 | W61: 2 | X61: 3 | Y61: 6 | Z61: =(S61+T61)/2 -> 0.22080035
A62: 61 | B62: 222 | C62: 600258 | D62: Katha Sagral | E62: 8 | F62: 32.5112302 | G62: 72.44856742 | H62: 136159.6677 | I62: 833628.2477 | J62: 14935 | K62: -0.485394 | L62: -0.9263672 | M62: -1.060292 | N62: -0.9706918 | O62: 0.3136984 | P62: 0.1771276 | Q62: 0.144506 | R62: 0.1658509 | S62: 0.0984067 | T62: 0.0313742 | U62: 0.020882 | V62: 0.0275065 | W62: 2 | X62: 3 | Y62: 3 | Z62: =(S62+T62)/2 -> 0.06489045
A63: 62 | B63: 393 | C63: 600724 | D63: Rojhan | E63: 34 | F63: 28.85951701 | G63: 70.18990971 | H63: -79008.13576 | I63: 428351.0225 | J63: 4346 | K63: 0.3383071 | L63: 0.4278324 | M63: 0.8264092 | N63: 0.5114651 | O63: 0.6324341 | P63: 0.6656134 | Q63: 0.795714 | R63: 0.6954873 | S63: 0.3999729 | T63: 0.4430412 | U63: 0.6331608 | V63: 0.4837025 | W63: 1 | X63: 2 | Y63: 1 | Z63: =(S63+T63)/2 -> 0.42150705
A64: 63 | B64: 286 | C64: 600117 | D64: Maibal | E64: 11 | F64: 32.01963132 | G64: 71.20973927 | H64: 19818.16133 | I64: 778262.5821 | J64: 973 | K64: -0.5711185 | L64: -0.0792198 | M64: -1.328971 | N64: -0.9505561 | O64: 0.2839597 | P64: 0.4684289 | Q64: 0.0919288 | R64: 0.1709149 | S64: 0.0806331 | T64: 0.2194256 | U64: 0.0084509 | V64: 0.0292119 | W64: 2 | X64: 3 | Y64: 6 | Z64: =(S64+T64)/2 -> 0.15002935
A65: 64 | B65: 245 | C65: 600152 | D65: Kot Mubarak | E65: 2 | F65: 30.26185302 | G65: 70.65314848 | H65: -33358.16282 | I65: 583478.3165 | J65: 4600 | K65: -3.243539 | L65: -3.054641 | M65: -2.569171 | N65: -1.465824 | O65: 0.0005903 | P65: 0.0011266 | Q65: 0.0050971 | R65: 0.0713481 | S65: 3.48e-07 | T65: 1.27e-06 | U65: 2.6e-05 | V65: 0.0050905 | W65: 2 | X65: 3 | Y65: 3 | Z65: =(S65+T65)/2 -> 8.09e-07
A66: 65 | B66: 486 | C66: 600370 | D66: Yaru Khel | E66: 10 | F66: 32.57135878 | G66: 71.60439046 | H66: 56777.06267 | I66: 839589.0592 | J66: 18300 | K66: -0.3986304 | L66: -1.346354 | M66: -1.812378 | N66: -0.3864851 | O66: 0.3450828 | P66: 0.0890942 | Q66: 0.0349639 | R66: 0.3495687 | S66: 0.1190821 | T66: 0.0079378 | U66: 0.0012225 | V66: 0.1221983 | W66: 2 | X66: 3 | Y66: 3 | Z66: =(S66+T66)/2 -> 0.06350995
A67: 66 | B67: 283 | C67: 600153 | D67: Mahmori | E67: 5 | F67: 30.00724914 | G67: 70.53714931 | H67: -44629.10462 | I67: 555310.6397 | J67: 4990 | K67: -2.121274 | L67: -1.864414 | M67: -0.9658361 | N67: -1.134194 | O67: 0.0169494 | P67: 0.0311318 | Q67: 0.1670631 | R67: 0.1283566 | S67: 0.0002873 | T67: 0.0009692 | U67: 0.0279101 | V67: 0.0164754 | W67: 2 | X67: 3 | Y67: 3 | Z67: =(S67+T67)/2 -> 0.00062825
A68: 67 | B68: 224 | C68: 600339 | D68: Khaglanwala | E68: 31 | F68: 32.61556512 | G68: 71.27703385 | H68: 26013.43803 | I68: 844373.3572 | J68: 2345 | K68: 0.0146704 | L68: 0.6630263 | M68: 0.5008513 | N68: 0.4747605 | O68: 0.5058524 | P68: 0.7463431 | Q68: 0.6917621 | R68: 0.6825212 | S68: 0.2558866 | T68: 0.5570281 | U68: 0.4785348 | V68: 0.4658352 | W68: 1 | X68: 2 | Y68: 1 | Z68: =(S68+T68)/2 -> 0.40645735
A69: 68 | B69: 311 | C69: 600130 | D69: Mubarki | E69: 9 | F69: 30.32732299 | G69: 70.33347613 | H69: -64069.84851 | I69: 590867.3702 | J69: 28 | K69: -0.607837 | L69: -0.9238129 | M69: -0.8519346 | N69: -0.625728 | O69: 0.2716478 | P69: 0.1777919 | Q69: 0.1971252 | R69: 0.2657467 | S69: 0.0737925 | T69: 0.03161 | U69: 0.0388583 | V69: 0.0706213 | W69: 2 | X69: 3 | Y69: 3 | Z69: =(S69+T69)/2 -> 0.05270125
A70: 69 | B70: 477 | C70: 600578 | D70: Wan Patafi | E70: 28 | F70: 30.09046338 | G70: 71.0004325 | H70: 41.74250436 | I70: 564440.0993 | J70: 3019 | K70: -0.0314402 | L70: 0.2881799 | M70: 0.6671869 | N70: 0.0705032 | O70: 0.4874593 | P70: 0.6133955 | Q70: 0.7476736 | R70: 0.5281034 | S70: 0.2376165 | T70: 0.376254 | U70: 0.5590159 | V70: 0.2788932 | W70: 1 | X70: 2 | Y70: 1 | Z70: =(S70+T70)/2 -> 0.30693525
A71: 70 | B71: 353 | C71: 600510 | D71: Pattal Munda | E71: 13 | F71: 30.60610249 | G71: 71.36929006 | H71: 35395.44545 | I71: 621623.4103 | J71: 4375 | K71: -1.023682 | L71: -0.4833414 | M71: -0.4920809 | N71: 0.0203875 | O71: 0.1529927 | P71: 0.3144267 | Q71: 0.3113311 | R71: 0.5081329 | S71: 0.0234068 | T71: 0.0988641 | U71: 0.096927 | V71: 0.258199 | W71: 2 | X71: 3 | Y71: 5 | Z71: =(S71+T71)/2 -> 0.06113545
A72: 71 | B72: 48 | C72: 600301 | D72: Basira | E72: 33 | F72: 31.16966875 | G72: 70.84606044 | H72: -14670.3759 | I72: 684031.1638 | J72: 3432 | K72: 1.203828 | L72: 1.131861 | M72: 0.314878 | N72: -1.050223 | O72: 0.8856719 | P72: 0.8711536 | Q72: 0.6235729 | R72: 0.1468077 | S72: 0.7844148 | T72: 0.7589086 | U72: 0.3888431 | V72: 0.0215525 | W72: 1 | X72: 1 | Y72: 4 | Z72: =(S72+T72)/2 -> 0.7716617
A73: 72 | B73: 244 | C73: 600710 | D73: Kot Mithan | E73: 44 | F73: 28.99604065 | G73: 70.39127412 | H73: -59288.75956 | I73: 443354.2202 | J73: 5831 | K73: 1.38494 | L73: 0.919952 | M73: 1.385172 | N73: 0.9061636 | O73: 0.9169645 | P73: 0.8212011 | Q73: 0.917 | R73: 0.8175754 | S73: 0.8408239 | T73: 0.6743712 | U73: 0.840889 | V73: 0.6684296 | W73: 1 | X73: 4 | Y73: 2 | Z73: =(S73+T73)/2 -> 0.75759755
A74: 73 | B74: 290 | C74: 600154 | D74: Mana Ahmadani | E74: 3 | F74: 29.81720639 | G74: 70.56978194 | H74: -41562.71074 | I74: 534244.2537 | J74: 5096 | K74: -2.320018 | L74: -1.773909 | M74: -2.711332 | N74: -1.549963 | O74: 0.01017 | P74: 0.0380391 | Q74: 0.0033507 | R74: 0.0605753 | S74: 0.0001034 | T74: 0.001447 | U74: 1.12e-05 | V74: 0.0036694 | W74: 2 | X74: 3 | Y74: 3 | Z74: =(S74+T74)/2 -> 0.0007752
A75: 74 | B75: 415 | C75: 600660 | D75: Shah Pur | E75: 33 | F75: 28.72727672 | G75: 70.29972388 | H75: -68386.58963 | I75: 413630.3703 | J75: 1245 | K75: 0.4345198 | L75: 0.3680978 | M75: 1.205749 | N75: -0.0153062 | O75: 0.6680445 | P75: 0.6435999 | Q75: 0.8860428 | R75: 0.493894 | S75: 0.4462835 | T75: 0.4142208 | U75: 0.7850719 | V75: 0.2439312 | W75: 1 | X75: 1 | Y75: 1 | Z75: =(S75+T75)/2 -> 0.43025215
A76: 75 | B76: 448 | C76: 600515 | D76: Thatta Gurmani | E76: 31 | F76: 30.29386821 | G76: 70.89766735 | H76: -9838.411926 | I76: 586979.8332 | J76: 4650 | K76: -0.7973297 | L76: -1.775817 | M76: 1.192347 | N76: 1.560445 | O76: 0.2126298 | P76: 0.0378816 | Q76: 0.8834373 | R76: 0.9406726 | S76: 0.0452114 | T76: 0.001435 | U76: 0.7804615 | V76: 0.884865 | W76: 1 | X76: 2 | Y76: 1 | Z76: =(S76+T76)/2 -> 0.0233232
A77: 76 | B77: 269 | C77: 600471 | D77: Langar Wah | E77: 34 | F77: 29.04998949 | G77: 70.5607728 | H77: -42757.31639 | I77: 449255.2446 | J77: 9740 | K77: 1.273398 | L77: 0.1135316 | M77: 0.6655982 | N77: 0.4033813 | O77: 0.8985615 | P77: 0.5451955 | Q77: 0.747166 | R77: 0.6566661 | S77: 0.8074127 | T77: 0.2972381 | U77: 0.558257 | V77: 0.4312104 | W77: 1 | X77: 1 | Y77: 4 | Z77: =(S77+T77)/2 -> 0.5523254
A78: 77 | B78: 293 | C78: 600174 | D78: Mangrotha | E78: 4 | F78: 30.89214254 | G78: 70.55322517 | H78: -42694.31157 | I78: 653347.5237 | J78: 2335 | K78: -2.094551 | L78: -1.10019 | M78: -1.565575 | N78: -1.994167 | O78: 0.0181055 | P78: 0.1356246 | Q78: 0.058724 | R78: 0.0230669 | S78: 0.0003278 | T78: 0.018394 | U78: 0.0034485 | V78: 0.0005321 | W78: 2 | X78: 3 | Y78: 3 | Z78: =(S78+T78)/2 -> 0.0093609
A79: 78 | B79: 408 | C79: 600474 | D79: Seetpur | E79: 31 | F79: 29.29967461 | G79: 70.88198874 | H79: -11459.43542 | I79: 476840.0891 | J79: 3377 | K79: 1.485888 | L79: 0.5221056 | M79: -0.1998518 | N79: -0.1720566 | O79: 0.9313457 | P79: 0.6992016 | Q79: 0.4207982 | R79: 0.4316965 | S79: 0.8674048 | T79: 0.4888829 | U79: 0.1770712 | V79: 0.1863619 | W79: 1 | X79: 1 | Y79: 4 | Z79: =(S79+T79)/2 -> 0.67814385
A80: 79 | B80: 291 | C80: 600551 | D80: Manak Pur | E80: 22 | F80: 29.78540809 | G80: 70.92195043 | H80: -7541.485245 | I80: 530647.258 | J80: 1738 | K80: 0.0336889 | L80: -0.796633 | M80: 0.6901101 | N80: -0.0611922 | O80: 0.5134374 | P80: 0.2128321 | Q80: 0.7549375 | R80: 0.4756031 | S80: 0.263618 | T80: 0.0452975 | U80: 0.5699307 | V80: 0.2261983 | W80: 2 | X80: 2 | Y80: 5 | Z80: =(S80+T80)/2 -> 0.15445775
A81: 80 | B81: 480 | C81: 600313 | D81: Warah Serah | E81: 43 | F81: 31.28775926 | G81: 70.83498519 | H81: -15708.51854 | I81: 697118.5687 | J81: 5058 | K81: 1.375508 | L81: 1.420748 | M81: 0.6029265 | N81: 0.7846683 | O81: 0.915513 | P81: 0.9223049 | Q81: 0.7267212 | R81: 0.783676 | S81: 0.838164 | T81: 0.8506464 | U81: 0.5281237 | V81: 0.614148 | W81: 1 | X81: 4 | Y81: 2 | Z81: =(S81+T81)/2 -> 0.8444052
A82: 81 | B82: 133 | C82: 600142 | D82: Drahma | E82: 22 | F82: 30.13719521 | G82: 70.71634723 | H82: -27314.32551 | I82: 569651.0961 | J82: 5180 | K82: -0.6339515 | L82: 0.1796935 | M82: 0.1745747 | N82: 0.4124797 | O82: 0.2630562 | P82: 0.5713034 | Q82: 0.5692931 | R82: 0.6600061 | S82: 0.0691986 | T82: 0.3263876 | U82: 0.3240946 | V82: 0.4356081 | W82: 2 | X82: 2 | Y82: 5 | Z82: =(S82+T82)/2 -> 0.1977931
A83: 82 | B83: 248 | C83: 600212 | D83: Kot Murad | E83: 13 | F83: 31.07561654 | G83: 72.08040035 | H83: 103055.6008 | I83: 674082.7194 | J83: 3660 | K83: -0.0776089 | L83: 0.1015477 | M83: -1.843953 | N83: -2.053091 | O83: 0.4690696 | P83: 0.5404422 | Q83: 0.032595 | R83: 0.0200319 | S83: 0.2200263 | T83: 0.2920777 | U83: 0.0010624 | V83: 0.0004013 | W83: 2 | X83: 3 | Y83: 6 | Z83: =(S83+T83)/2 -> 0.256052
A84: 83 | B84: 232 | C84: 600547 | D84: Khangarh | E84: 35 | F84: 29.94038641 | G84: 71.13563318 | H84: 13086.47897 | I84: 547821.4194 | J84: 26222 | K84: 0.1809177 | L84: -0.3714027 | M84: 1.290717 | N84: 1.484188 | O84: 0.5717839 | P84: 0.3551688 | Q84: 0.901599 | R84: 0.9311205 | S84: 0.3269368 | T84: 0.1261449 | U84: 0.8128809 | V84: 0.8669853 | W84: 1 | X84: 2 | Y84: 1 | Z84: =(S84+T84)/2 -> 0.22654085
A85: 84 | B85: 380 | C85: 600557 | D85: Rangpur | E85: 32 | F85: 30.4004129 | G85: 71.45335249 | H85: 43527.59858 | I85: 598860.6659 | J85: 1571 | K85: 1.035624 | L85: 0.1371094 | M85: 0.3926313 | N85: 0.2061664 | O85: 0.8498111 | P85: 0.5545278 | Q85: 0.6527041 | R85: 0.5816696 | S85: 0.722179 | T85: 0.3075011 | U85: 0.4260226 | V85: 0.3383395 | W85: 1 | X85: 1 | Y85: 4 | Z85: =(S85+T85)/2 -> 0.51484005
A86: 85 | B86: 490 | C86: 600730 | D86: Bakhtiari | E86: 10 | F86: 29.28008725 | G86: 70.94648599 | H86: -5197.941638 | I86: 474664.1318 | J86: 5202 | K86: -0.9223206 | L86: -1.112722 | M86: -0.2370302 | N86: -0.917434 | O86: 0.1781807 | P86: 0.1329139 | Q86: 0.4063167 | R86: 0.1794576 | S86: 0.0317484 | T86: 0.0176661 | U86: 0.1650933 | V86: 0.032205 | W86: 2 | X86: 3 | Y86: 3 | Z86: =(S86+T86)/2 -> 0.02470725
A87: 86 | B87: 216 | C87: 600338 | D87: Kamar Mushani | E87: 23 | F87: 32.78000124 | G87: 71.35804295 | H87: 33561.3211 | I87: 862639.9483 | J87: 3691 | K87: 0.0426666 | L87: 0.276012 | M87: -0.7199459 | N87: 0.5088493 | O87: 0.5170164 | P87: 0.6087306 | Q87: 0.2357792 | R87: 0.6945711 | S87: 0.2673059 | T87: 0.3705529 | U87: 0.0555918 | V87: 0.482429 | W87: 2 | X87: 2 | Y87: 6 | Z87: =(S87+T87)/2 -> 0.3189294
A88: 87 | B88: 314 | C88: 600508 | D88: Munhan | E88: 33 | F88: 30.4106028 | G88: 70.98661658 | H88: -1285.396321 | I88: 599908.3562 | J88: 2768 | K88: -0.0236632 | L88: -0.3807379 | M88: 0.9728531 | N88: 1.370088 | O88: 0.4905606 | P88: 0.3516989 | Q88: 0.8346869 | R88: 0.9146703 | S88: 0.2406497 | T88: 0.1236921 | U88: 0.6967022 | V88: 0.8366218 | W88: 1 | X88: 2 | Y88: 1 | Z88: =(S88+T88)/2 -> 0.1821709
A89: 88 | B89: 361 | C89: 600159 | D89: Pir Adil | E89: 13 | F89: 30.23668415 | G89: 70.76406396 | H89: -22696.87343 | I89: 580663.2226 | J89: 5038 | K89: 0.1410489 | L89: -0.3958315 | M89: -1.285294 | N89: -0.9648109 | O89: 0.5560843 | P89: 0.3461147 | Q89: 0.0993447 | R89: 0.1673198 | S89: 0.3092298 | T89: 0.1197954 | U89: 0.0098694 | V89: 0.0279959 | W89: 2 | X89: 3 | Y89: 6 | Z89: =(S89+T89)/2 -> 0.2145126
A90: 89 | B90: 428 | C90: 600097 | D90: Sial | E90: 11 | F90: 31.58911017 | G90: 70.96064322 | H90: -3735.587654 | I90: 730512.2078 | J90: 4319 | K90: -0.8112355 | L90: -1.495774 | M90: -0.1780825 | N90: -0.5938272 | O90: 0.2086152 | P90: 0.0673562 | Q90: 0.4293291 | R90: 0.2763138 | S90: 0.0435203 | T90: 0.0045369 | U90: 0.1843235 | V90: 0.0763493 | W90: 2 | X90: 3 | Y90: 3 | Z90: =(S90+T90)/2 -> 0.0240286
A91: 90 | B91: 7 | C91: 600637 | D91: Abad Pur | E91: 39 | F91: 28.68369184 | G91: 70.24966691 | H91: -73307.97295 | I91: 408831.9085 | J91: 3000 | K91: 1.401672 | L91: 0.2899725 | M91: 1.035098 | N91: 0.8969041 | O91: 0.9194934 | P91: 0.6140814 | Q91: 0.8496885 | R91: 0.815115 | S91: 0.8454682 | T91: 0.3770959 | U91: 0.7219706 | V91: 0.6644124 | W91: 1 | X91: 4 | Y91: 2 | Z91: =(S91+T91)/2 -> 0.61128205
A92: 91 | B92: 105 | C92: 600138 | D92: Chorota | E92: 8 | F92: 30.12098852 | G92: 70.68817001 | H92: -30032.74801 | I92: 567862.0528 | J92: 4828 | K92: -1.322846 | L92: -0.3509366 | M92: -0.7484452 | N92: -1.152208 | O92: 0.0929433 | P92: 0.362818 | Q92: 0.2270958 | R92: 0.1246178 | S92: 0.0086385 | T92: 0.1316369 | U92: 0.0515725 | V92: 0.0155296 | W92: 2 | X92: 3 | Y92: 3 | Z92: =(S92+T92)/2 -> 0.0701377
A93: 92 | B93: 207 | C93: 600147 | D93: Jhok Utra | E93: 23 | F93: 29.898968 | G93: 70.72909988 | H93: -26148.74199 | I93: 543255.9895 | J93: 5159 | K93: 0.1906934 | L93: 0.5518565 | M93: -0.440051 | N93: -0.0275364 | O93: 0.5756171 | P93: 0.7094766 | Q93: 0.3299501 | R93: 0.489016 | S93: 0.331335 | T93: 0.5033571 | U93: 0.108867 | V93: 0.2391366 | W93: 2 | X93: 1 | Y93: 6 | Z93: =(S93+T93)/2 -> 0.41734605
A94: 93 | B94: 259 | C94: 600702 | D94: Kotla Mughlan | E94: 48 | F94: 29.54550398 | G94: 70.5946321 | H94: -39266.21001 | I94: 504135.9961 | J94: 5400 | K94: 2.32316 | L94: 1.960277 | M94: 2.993384 | N94: 2.54333 | O94: 0.9899147 | P94: 0.9750183 | Q94: 0.9986205 | R94: 0.9945099 | S94: 0.9799311 | T94: 0.9506607 | U94: 0.9972429 | V94: 0.98905 | W94: 1 | X94: 4 | Y94: 2 | Z94: =(S94+T94)/2 -> 0.9652959
A95: 94 | B95: 359 | C95: 600189 | D95: Pir Abdul Rahman | E95: 13 | F95: 30.7327059 | G95: 71.83394796 | H95: 79824.23902 | I95: 635887.7411 | J95: 3189 | K95: 0.0717751 | L95: -0.1650348 | M95: -1.53574 | N95: -1.952103 | O95: 0.5286096 | P95: 0.4344583 | Q95: 0.0623011 | R95: 0.025463 | S95: 0.2794281 | T95: 0.188754 | U95: 0.0038814 | V95: 0.0006484 | W95: 2 | X95: 3 | Y95: 6 | Z95: =(S95+T95)/2 -> 0.23409105
A96: 95 | B96: 457 | C96: 600694 | D96: Tribal Area | E96: 40 | F96: 29.22006788 | G96: 69.76737914 | H96: -119885.45 | I96: 468488.4915 | J96: 390 | K96: 0.0048689 | L96: 0.7826344 | M96: 1.447553 | N96: 1.573217 | O96: 0.5019424 | P96: 0.7830791 | Q96: 0.926129 | R96: 0.9421657 | S96: 0.2519462 | T96: 0.6132129 | U96: 0.8577149 | V96: 0.8876762 | W96: 1 | X96: 4 | Y96: 1 | Z96: =(S96+T96)/2 -> 0.43257955
A97: 96 | B97: 355 | C97: 600511 | D97: Patti Ghulam Ali | E97: 28 | F97: 30.26290237 | G97: 71.20151143 | H97: 19379.9966 | I97: 583561.349 | J97: 3948 | K97: 1.173671 | L97: 0.5387701 | M97: -0.0827502 | N97: -0.956858 | O97: 0.8797365 | P97: 0.7049773 | Q97: 0.4670251 | R97: 0.1693195 | S97: 0.7739364 | T97: 0.4969929 | U97: 0.2181124 | V97: 0.0286691 | W97: 1 | X97: 1 | Y97: 4 | Z97: =(S97+T97)/2 -> 0.63546465
A98: 97 | B98: 487 | C98: 600167 | D98: Yaru | E98: 6 | F98: 30.22496781 | G98: 70.58274217 | H98: -40143.55044 | I98: 579415.0028 | J98: 4615 | K98: -1.555746 | L98: -1.19279 | M98: -1.226646 | N98: -0.8152862 | O98: 0.0598843 | P98: 0.1164759 | Q98: 0.1099779 | R98: 0.2074542 | S98: 0.0035861 | T98: 0.0135666 | U98: 0.0120951 | V98: 0.0430373 | W98: 2 | X98: 3 | Y98: 3 | Z98: =(S98+T98)/2 -> 0.00857635
A99: 98 | B99: 476 | C99: 600368 | D99: Wan Bhachran | E99: 8 | F99: 32.35370748 | G99: 71.70911921 | H99: 66763.22691 | I99: 815500.2043 | J99: 7044 | K99: -0.756068 | L99: -0.8321652 | M99: -0.7205461 | N99: -1.857766 | O99: 0.2248042 | P99: 0.2026579 | Q99: 0.2355944 | R99: 0.0316011 | S99: 0.0505369 | T99: 0.0410702 | U99: 0.0555047 | V99: 0.0009986 | W99: 2 | X99: 3 | Y99: 3 | Z99: =(S99+T99)/2 -> 0.04580355
A100: 99 | B100: 488 | C100: 600099 | D100: Yousaf Shah | E100: 19 | F100: 31.38760137 | G100: 70.90552059 | H100: -8984.395688 | I100: 708178.9403 | J100: 2349 | K100: 0.5444854 | L100: 0.305125 | M100: -1.524655 | N100: -1.079562 | O100: 0.7069463 | P100: 0.6198645 | Q100: 0.0636726 | R100: 0.1401686 | S100: 0.499773 | T100: 0.384232 | U100: 0.0040542 | V100: 0.0196472 | W100: 2 | X100: 1 | Y100: 6 | Z100: =(S100+T100)/2 -> 0.4420025
A101: 100 | B101: 203 | C101: 600321 | D101: Jhakhar | E101: 39 | F101: 30.85490782 | G101: 70.85328705 | H101: -14025.0831 | I101: 649147.5997 | J101: 3902 | K101: 0.2933916 | L101: 1.489648 | M101: 0.8895853 | N101: 0.866853 | O101: 0.6153886 | P101: 0.9318417 | Q101: 0.8131557 | R101: 0.8069887 | S101: 0.3787031 | T101: 0.8683289 | U101: 0.6612222 | V101: 0.6512308 | W101: 1 | X101: 4 | Y101: 2 | Z101: =(S101+T101)/2 -> 0.623516
A102: 101 | B102: 141 | C102: 600708 | D102: Fateh Pur | E102: 21 | F102: 29.2368144 | G102: 70.15462502 | H102: -82138.07078 | I102: 470171.7863 | J102: 573 | K102: 0.5681994 | L102: 0.2692019 | M102: -0.3950864 | N102: -0.8943254 | O102: 0.7150502 | P102: 0.6061128 | Q102: 0.3463896 | R102: 0.1855739 | S102: 0.5112968 | T102: 0.3673728 | U102: 0.1199857 | V102: 0.0344377 | W102: 2 | X102: 1 | Y102: 6 | Z102: =(S102+T102)/2 -> 0.4393348
A103: 102 | B103: 66 | C103: 600538 | D103: Braham Wali | E103: 36 | F103: 29.83176854 | G103: 71.1431657 | H103: 13828.6973 | I103: 535789.1769 | J103: 3354 | K103: 1.545693 | L103: 0.3702997 | M103: 0.5474031 | N103: 0.8827074 | O103: 0.9389107 | P103: 0.6444204 | Q103: 0.7079491 | R103: 0.8113028 | S103: 0.8815532 | T103: 0.4152776 | U103: 0.5011919 | V103: 0.6582123 | W103: 1 | X103: 4 | Y103: 2 | Z103: =(S103+T103)/2 -> 0.6484154
A104: 103 | B104: 445 | C104: 600343 | D104: Tani Khel | E104: 13 | F104: 32.88205936 | G104: 71.37425109 | H104: 35046.15875 | I104: 873970.0999 | J104: 1755 | K104: 0.2957587 | L104: -0.6912469 | M104: -2.477743 | N104: -2.166573 | O104: 0.6162928 | P104: 0.2447052 | Q104: 0.0066108 | R104: 0.0151337 | S104: 0.3798169 | T104: 0.0598806 | U104: 4.37e-05 | V104: 0.000229 | W104: 2 | X104: 3 | Y104: 6 | Z104: =(S104+T104)/2 -> 0.21984875
A105: 104 | B105: 287 | C105: 600173 | D105: Makwal Kalan | E105: 8 | F105: 30.54125057 | G105: 70.58419299 | H105: -39876.27533 | I105: 614454.1989 | J105: 4348 | K105: -0.8857505 | L105: -1.030634 | M105: -0.4757641 | N105: -1.174066 | O105: 0.187876 | P105: 0.1513562 | Q105: 0.3171212 | R105: 0.1201842 | S105: 0.0352974 | T105: 0.0229087 | U105: 0.1005659 | V105: 0.0144443 | W105: 2 | X105: 3 | Y105: 3 | Z105: =(S105+T105)/2 -> 0.02910305
A106: 105 | B106: 52 | C106: 600696 | D106: Basti Rindan | E106: 43 | F106: 29.70375982 | G106: 70.58524762 | H106: -40112.79406 | I106: 521671.8491 | J106: 1917 | K106: 0.9472617 | L106: 0.1040738 | M106: 2.457977 | N106: 2.516848 | O106: 0.8282472 | P106: 0.5414446 | Q106: 0.9930139 | R106: 0.9940795 | S106: 0.6859935 | T106: 0.2931623 | U106: 0.9860767 | V106: 0.988194 | W106: 1 | X106: 4 | Y106: 2 | Z106: =(S106+T106)/2 -> 0.4895779
A107: 106 | B107: 73 | C107: 600581 | D107: Chachran Sharif | E107: 47 | F107: 28.9143776 | G107: 70.49762034 | H107: -48971.97867 | I107: 434256.6658 | J107: 2410 | K107: 1.773523 | L107: 1.507083 | M107: 2.193207 | N107: 2.411531 | O107: 0.961929 | P107: 0.9341053 | Q107: 0.9858538 | R107: 0.9920571 | S107: 0.9253073 | T107: 0.8725528 | U107: 0.9719077 | V107: 0.9841774 | W107: 1 | X107: 4 | Y107: 2 | Z107: =(S107+T107)/2 -> 0.89893005
A108: 107 | B108: 132 | C108: 600205 | D108: Dosa | E108: 16 | F108: 31.31940017 | G108: 72.06806197 | H108: 101625.8365 | I108: 701087.7514 | J108: 3505 | K108: -0.7342511 | L108: 0.5854244 | M108: -1.333845 | N108: -0.4875219 | O108: 0.2313978 | P108: 0.7208688 | Q108: 0.0911273 | R108: 0.3129442 | S108: 0.053545 | T108: 0.5196518 | U108: 0.0083042 | V108: 0.0979341 | W108: 2 | X108: 3 | Y108: 6 | Z108: =(S108+T108)/2 -> 0.2865984
A109: 108 | B109: 406 | C109: 600331 | D109: Sarishtah Thal | E109: 23 | F109: 30.81230012 | G109: 70.948695 | H109: -4907.13428 | I109: 644418.0876 | J109: 10342 | K109: -0.303883 | L109: -0.3578557 | M109: 0.9130757 | N109: -0.0626242 | O109: 0.3806085 | P109: 0.3602256 | Q109: 0.8193986 | R109: 0.4750329 | S109: 0.1448628 | T109: 0.1297625 | U109: 0.6714141 | V109: 0.2256563 | W109: 2 | X109: 2 | Y109: 5 | Z109: =(S109+T109)/2 -> 0.13731265
A110: 109 | B110: 438 | C110: 600475 | D110: Sultan Pur | E110: 11 | F110: 29.3502327 | G110: 70.7864964 | H110: -20721.83274 | I110: 482455.3285 | J110: 3106 | K110: -0.7427255 | L110: -0.8350003 | M110: -0.3744915 | N110: -0.5258455 | O110: 0.2288239 | P110: 0.2018588 | Q110: 0.3540193 | R110: 0.2994978 | S110: 0.0523604 | T110: 0.040747 | U110: 0.1253297 | V110: 0.0896989 | W110: 2 | X110: 3 | Y110: 3 | Z110: =(S110+T110)/2 -> 0.0465537
A111: 110 | B111: 327 | C111: 600265 | D111: Nari | E111: 16 | F111: 32.40780573 | G111: 72.40153571 | H111: 131878.1488 | I111: 822101.5528 | J111: 510 | K111: -0.6842723 | L111: -0.6156614 | M111: 0.2259757 | N111: -0.1827891 | O111: 0.2469016 | P111: 0.269059 | Q111: 0.5893899 | R111: 0.4274817 | S111: 0.0609604 | T111: 0.0723927 | U111: 0.3473804 | V111: 0.1827406 | W111: 2 | X111: 2 | Y111: 5 | Z111: =(S111+T111)/2 -> 0.06667655
A112: 111 | B112: 67 | C112: 600498 | D112: Budh | E112: 16 | F112: 30.14585938 | G112: 70.98839222 | H112: -1117.964832 | I112: 570577.0325 | J112: 4445 | K112: -1.452546 | L112: -0.5909228 | M112: 0.0931649 | N112: 0.1681313 | O112: 0.073175 | P112: 0.2772861 | Q112: 0.5371137 | R112: 0.56676 | S112: 0.0053546 | T112: 0.0768876 | U112: 0.2884912 | V112: 0.3212169 | W112: 2 | X112: 2 | Y112: 5 | Z112: =(S112+T112)/2 -> 0.0411211
A113: 112 | B113: 243 | C113: 600710 | D113: Kot Mithan | E113: 44 | F113: 28.93074077 | G113: 70.40774846 | H113: -57722.08362 | I113: 436111.3669 | J113: 5831 | K113: 0.1957818 | L113: 1.396928 | M113: 2.664264 | N113: 1.91459 | O113: 0.5776095 | P113: 0.9187824 | Q113: 0.9961421 | R113: 0.9722276 | S113: 0.3336328 | T113: 0.8441611 | U113: 0.9922992 | V113: 0.9452264 | W113: 1 | X113: 4 | Y113: 2 | Z113: =(S113+T113)/2 -> 0.58889695
A114: 113 | B114: 47 | C114: 600128 | D114: Barthi | E114: 24 | F114: 30.55218686 | G114: 70.27808619 | H114: -69239.82571 | I114: 615805.94 | J114: 236 | K114: -0.4040712 | L114: 0.4529562 | M114: 0.1441418 | N114: 0.4423254 | O114: 0.3430802 | P114: 0.6747099 | Q114: 0.5573058 | R114: 0.6708731 | S114: 0.117704 | T114: 0.4552334 | U114: 0.3105897 | V114: 0.4500707 | W114: 1 | X114: 2 | Y114: 1 | Z114: =(S114+T114)/2 -> 0.2864687
A115: 114 | B115: 246 | C115: 600152 | D115: Kot Mubarak | E115: 2 | F115: 30.31132529 | G115: 70.72600807 | H115: -26337.85805 | I115: 588940.7945 | J115: 4600 | K115: -1.97301 | L115: -2.293856 | M115: -1.671273 | N115: -1.979555 | O115: 0.0242472 | P115: 0.0108994 | Q115: 0.0473339 | R115: 0.0238768 | S115: 0.0005879 | T115: 0.0001188 | U115: 0.0022405 | V115: 0.0005701 | W115: 2 | X115: 3 | Y115: 3 | Z115: =(S115+T115)/2 -> 0.00035335
A116: 115 | B116: 285 | C116: 600117 | D116: Maibal | E116: 11 | F116: 31.96759732 | G116: 71.38832226 | H116: 36704.742 | I116: 772535.8764 | J116: 973 | K116: -1.071353 | L116: -0.1387028 | M116: -0.4455106 | N116: -0.9031026 | O116: 0.1420055 | P116: 0.4448425 | Q116: 0.3279754 | R116: 0.1832357 | S116: 0.0201655 | T116: 0.1978849 | U116: 0.1075679 | V116: 0.0335753 | W116: 2 | X116: 3 | Y116: 3 | Z116: =(S116+T116)/2 -> 0.1090252
A117: 116 | B117: 282 | C117: 600472 | D117: Madd Wala | E117: 30 | F117: 29.47172242 | G117: 70.99502635 | H117: -481.696202 | I117: 495893.2931 | J117: 1906 | K117: -0.1096303 | L117: -0.2669912 | M117: 0.6615541 | N117: 1.151963 | O117: 0.4563513 | P117: 0.394738 | Q117: 0.7458715 | R117: 0.8753318 | S117: 0.2082565 | T117: 0.1558181 | U117: 0.5563242 | V117: 0.7662058 | W117: 1 | X117: 2 | Y117: 1 | Z117: =(S117+T117)/2 -> 0.1820373
A118: 117 | B118: 400 | C118: 600717 | D118: Sahan Wala | E118: 41 | F118: 29.26465122 | G118: 70.53889489 | H118: -44791.66815 | I118: 473043.6244 | J118: 2135 | K118: 1.322472 | L118: 0.6833994 | M118: 0.8230507 | N118: 0.9180851 | O118: 0.9069944 | P118: 0.7528228 | Q118: 0.7947604 | R118: 0.8207129 | S118: 0.8226389 | T118: 0.5667421 | U118: 0.6316441 | V118: 0.6735696 | W118: 1 | X118: 4 | Y118: 2 | Z118: =(S118+T118)/2 -> 0.6946905
A119: 118 | B119: 491 | C119: 600731 | D119: Bin Wala | E119: 4 | F119: 29.28553938 | G119: 71.05242814 | H119: 5094.131357 | I119: 475271.8905 | J119: 10104 | K119: -2.150832 | L119: -2.416095 | M119: -1.74038 | N119: -1.209377 | O119: 0.0157447 | P119: 0.007844 | Q119: 0.0408961 | R119: 0.1132591 | S119: 0.0002479 | T119: 6.15e-05 | U119: 0.0016725 | V119: 0.0128276 | W119: 2 | X119: 3 | Y119: 3 | Z119: =(S119+T119)/2 -> 0.0001547
A120: 119 | B120: 149 | C120: 600541 | D120: Ganga | E120: 25 | F120: 29.75747313 | G120: 71.13384425 | H120: 12938.37647 | I120: 527556.7869 | J120: 5488 | K120: -0.8893148 | L120: -1.046706 | M120: 0.77474 | N120: 0.9465106 | O120: 0.1869169 | P120: 0.1476176 | Q120: 0.7807534 | R120: 0.8280559 | S120: 0.0349379 | T120: 0.021791 | U120: 0.6095758 | V120: 0.6856765 | W120: 1 | X120: 2 | Y120: 1 | Z120: =(S120+T120)/2 -> 0.02836445
A121: 120 | B121: 278 | C121: 600684 | D121: Machka | E121: 47 | F121: 28.30072325 | G121: 69.6390972 | H121: -133459.8169 | I121: 366951.568 | J121: 4700 | K121: 1.080776 | L121: 1.592214 | M121: 1.612224 | N121: 2.365534 | O121: 0.8601016 | P121: 0.9443317 | Q121: 0.9465434 | R121: 0.990998 | S121: 0.7397747 | T121: 0.8917624 | U121: 0.8959444 | V121: 0.982077 | W121: 1 | X121: 4 | Y121: 2 | Z121: =(S121+T121)/2 -> 0.81576855
A122: 121 | B122: 171 | C122: 600145 | D122: Haji Ghazi Gharbi | E122: 26 | F122: 30.14889785 | G122: 70.78395535 | H122: -20802.45937 | I122: 570932.7332 | J122: 4064 | K122: 0.6976538 | L122: 0.2519432 | M122: -0.6241417 | N122: 0.3131903 | O122: 0.7573031 | P122: 0.5994575 | Q122: 0.2662673 | R122: 0.622932 | S122: 0.573508 | T122: 0.3593493 | U122: 0.0708983 | V122: 0.3880442 | W122: 1 | X122: 1 | Y122: 4 | Z122: =(S122+T122)/2 -> 0.46642865
A123: 122 | B123: 70 | C123: 600697 | D123: Burrey Wala | E123: 31 | F123: 29.59514865 | G123: 70.50356448 | H123: -48067.64506 | I123: 509670.0002 | J123: 1350 | K123: 1.106546 | L123: 0.3499539 | M123: 0.3353111 | N123: -0.0975505 | O123: 0.8657548 | P123: 0.6368133 | Q123: 0.6313048 | R123: 0.4611446 | S123: 0.7495313 | T123: 0.4055312 | U123: 0.3985457 | V123: 0.2126544 | W123: 1 | X123: 1 | Y123: 4 | Z123: =(S123+T123)/2 -> 0.57753125
A124: 123 | B124: 485 | C124: 600370 | D124: Yaru Khel | E124: 10 | F124: 32.52445522 | G124: 71.58021831 | H124: 54531.81591 | I124: 834373.003 | J124: 18300 | K124: -1.516002 | L124: -2.010174 | M124: -0.0088857 | N124: -1.324292 | O124: 0.0647594 | P124: 0.0222064 | Q124: 0.4964552 | R124: 0.092703 | S124: 0.0041938 | T124: 0.0004931 | U124: 0.2464677 | V124: 0.0085939 | W124: 2 | X124: 3 | Y124: 3 | Z124: =(S124+T124)/2 -> 0.00234345
A125: 124 | B125: 156 | C125: 600543 | D125: Ghazanfar Garh | E125: 40 | F125: 29.90686884 | G125: 71.06887922 | H125: 6648.216063 | I125: 544102.6106 | J125: 3691 | K125: 1.235867 | L125: 1.637514 | M125: -0.3506746 | N125: 1.235297 | O125: 0.891746 | P125: 0.9492384 | Q125: 0.3629162 | R125: 0.8916399 | S125: 0.7952109 | T125: 0.9010535 | U125: 0.1317082 | V125: 0.7950218 | W125: 1 | X125: 4 | Y125: 2 | Z125: =(S125+T125)/2 -> 0.8481322
A126: 125 | B126: 423 | C126: 600490 | D126: Shehar Sultan City | E126: 17 | F126: 29.62441775 | G126: 70.99677704 | H126: -311.6059734 | I126: 512809.2928 | J126: 170 | K126: -0.3246191 | L126: 0.470281 | M126: -1.248085 | N126: -0.5313561 | O126: 0.3727347 | P126: 0.6809229 | Q126: 0.1060001 | R126: 0.297586 | S126: 0.1389311 | T126: 0.4636559 | U126: 0.011236 | V126: 0.0885574 | W126: 2 | X126: 3 | Y126: 6 | Z126: =(S126+T126)/2 -> 0.3012935
A127: 126 | B127: 443 | C127: 600561 | D127: Talairi | E127: 29 | F127: 30.07287942 | G127: 71.23320686 | H127: 22470.43077 | I127: 562514.2282 | J127: 6680 | K127: 0.9939846 | L127: 1.208643 | M127: -0.6568533 | N127: -1.042069 | O127: 0.8398848 | P127: 0.8866 | Q127: 0.2556376 | R127: 0.1486898 | S127: 0.7054065 | T127: 0.7860595 | U127: 0.0653506 | V127: 0.0221087 | W127: 1 | X127: 1 | Y127: 4 | Z127: =(S127+T127)/2 -> 0.745733
A128: 127 | B128: 198 | C128: 600275 | D128: Jaura Kalan | E128: 17 | F128: 31.92560069 | G128: 72.21129446 | H128: 114543.6067 | I128: 768421.5439 | J128: 4561 | K128: -0.5535292 | L128: -1.433971 | M128: 0.3371564 | N128: 0.0910385 | O128: 0.2899505 | P128: 0.0757903 | Q128: 0.6320005 | R128: 0.536269 | S128: 0.0840713 | T128: 0.0057442 | U128: 0.3994246 | V128: 0.2875845 | W128: 2 | X128: 2 | Y128: 5 | Z128: =(S128+T128)/2 -> 0.04490775
A129: 128 | B129: 137 | C129: 600501 | D129: Ehsanpur | E129: 19 | F129: 30.60564001 | G129: 70.89801978 | H129: -9773.999549 | I129: 621522.5605 | J129: 4232 | K129: 0.408573 | L129: -0.5383742 | M129: 0.086884 | N129: -0.204272 | O129: 0.6585734 | P129: 0.2951594 | Q129: 0.5346181 | R129: 0.4190705 | S129: 0.433719 | T129: 0.0871191 | U129: 0.2858166 | V129: 0.1756201 | W129: 2 | X129: 2 | Y129: 5 | Z129: =(S129+T129)/2 -> 0.26041905
A130: 129 | B130: 469 | C130: 600346 | D130: Vanjari | E130: 15 | F130: 32.94211817 | G130: 71.22318633 | H130: 20884.19971 | I130: 880598.5318 | J130: 3636 | K130: -0.7645235 | L130: 0.3589251 | M130: -0.6442266 | N130: -0.4514467 | O130: 0.2222777 | P130: 0.6401744 | Q130: 0.2597143 | R130: 0.3258338 | S130: 0.0494074 | T130: 0.4098233 | U130: 0.0674515 | V130: 0.1061677 | W130: 2 | X130: 3 | Y130: 6 | Z130: =(S130+T130)/2 -> 0.22961535
A131: 130 | B131: 220 | C131: 600307 | D131: Karor Thal Jandi | E131: 17 | F131: 31.22324994 | G131: 70.97016401 | H131: -2842.387127 | I131: 689959.9464 | J131: 2519 | K131: 0.1771 | L131: -0.48865 | M131: -0.148492 | N131: -0.3187383 | O131: 0.5702851 | P131: 0.3125448 | Q131: 0.4409772 | R131: 0.3749625 | S131: 0.3252251 | T131: 0.0976842 | U131: 0.1944609 | V131: 0.1405969 | W131: 2 | X131: 3 | Y131: 6 | Z131: =(S131+T131)/2 -> 0.21145465
A132: 131 | B132: 294 | C132: 600552 | D132: Manka Bhatta | E132: 31 | F132: 29.84903849 | G132: 71.05933668 | H132: 5730.391247 | I132: 537695.1187 | J132: 4413 | K132: -0.0371755 | L132: 0.3616082 | M132: 0.2160462 | N132: 1.064785 | O132: 0.4851725 | P132: 0.6411776 | Q132: 0.5855241 | R132: 0.8565133 | S132: 0.2353924 | T132: 0.4111087 | U132: 0.3428385 | V132: 0.733615 | W132: 1 | X132: 2 | Y132: 1 | Z132: =(S132+T132)/2 -> 0.32325055
A133: 132 | B133: 306 | C133: 600356 | D133: Mochh | E133: 28 | F133: 32.73586332 | G133: 71.51420866 | H133: 48223.96917 | I133: 857798.41 | J133: 4145 | K133: 0.0413367 | L133: 0.5941755 | M133: 0.553699 | N133: -0.0095932 | O133: 0.5164863 | P133: 0.7238026 | Q133: 0.7101076 | R133: 0.4961729 | S133: 0.2667581 | T133: 0.5238903 | U133: 0.5042527 | V133: 0.2461876 | W133: 1 | X133: 1 | Y133: 1 | Z133: =(S133+T133)/2 -> 0.3953242
A134: 133 | B134: 43 | C134: 600478 | D134: Bakaeni | E134: 29 | F134: 29.74778707 | G134: 70.85273344 | H134: -14236.11076 | I134: 526486.9484 | J134: 4615 | K134: 0.9001392 | L134: 0.4258627 | M134: -0.4158567 | N134: 0.3765492 | O134: 0.8159769 | P134: 0.6648961 | Q134: 0.3387574 | R134: 0.6467457 | S134: 0.6658183 | T134: 0.4420868 | U134: 0.1147566 | V134: 0.41828 | W134: 1 | X134: 1 | Y134: 4 | Z134: =(S134+T134)/2 -> 0.55395255
A135: 134 | B135: 302 | C135: 600722 | D135: Miranpur | E135: 38 | F135: 28.72213244 | G135: 70.02435073 | H135: -95285.15821 | I135: 413254.3327 | J135: 7992 | K135: 1.28117 | L135: 0.6844647 | M135: 0.4876894 | N135: 0.8914053 | O135: 0.899933 | P135: 0.7531591 | Q135: 0.6871151 | R135: 0.8136441 | S135: 0.8098794 | T135: 0.5672486 | U135: 0.4721271 | V135: 0.6620167 | W135: 1 | X135: 4 | Y135: 2 | Z135: =(S135+T135)/2 -> 0.688564
A136: 135 | B136: 260 | C136: 600712 | D136: Kotla Nasir | E136: 17 | F136: 29.04202401 | G136: 70.26401012 | H136: -71652.76725 | I136: 448520.7144 | J136: 3929 | K136: -0.2502215 | L136: 0.6479888 | M136: -1.093709 | N136: -1.815339 | O136: 0.401208 | P136: 0.7415039 | Q136: 0.1370413 | R136: 0.0347359 | S136: 0.1609679 | T136: 0.5498281 | U136: 0.0187803 | V136: 0.0012066 | W136: 2 | X136: 3 | Y136: 6 | Z136: =(S136+T136)/2 -> 0.355398
A137: 136 | B137: 317 | C137: 600713 | D137: Murghai | E137: 42 | F137: 28.89758698 | G137: 70.31062984 | H137: -67206.22102 | I137: 432490.0145 | J137: 8428 | K137: 2.329724 | L137: 2.39213 | M137: 0.8183973 | N137: -0.1454556 | O137: 0.9900896 | P137: 0.9916245 | Q137: 0.7934348 | R137: 0.4421756 | S137: 0.9802774 | T137: 0.9833192 | U137: 0.6295388 | V137: 0.1955193 | W137: 1 | X137: 4 | Y137: 2 | Z137: =(S137+T137)/2 -> 0.9817983
A138: 137 | B138: 64 | C138: 600318 | D138: Bokhari Ahmed Khan | E138: 44 | F138: 30.75783698 | G138: 70.82041634 | H138: -17184.01838 | I138: 638393.7668 | J138: 9216 | K138: 1.833185 | L138: 1.602522 | M138: 0.970287 | N138: 0.7587754 | O138: 0.9666125 | P138: 0.9454798 | Q138: 0.8340483 | R138: 0.7760065 | S138: 0.9343396 | T138: 0.893932 | U138: 0.6956365 | V138: 0.6021861 | W138: 1 | X138: 4 | Y138: 2 | Z138: =(S138+T138)/2 -> 0.9141358
A139: 138 | B139: 192 | C139: 600170 | D139: Jallowali | E139: 21 | F139: 31.23084101 | G139: 70.64942697 | H139: -33390.78137 | I139: 690850.1337 | J139: 4125 | K139: 0.5734436 | L139: -0.9937721 | M139: 0.2295345 | N139: -0.3410672 | O139: 0.7168278 | P139: 0.1601669 | Q139: 0.5907732 | R139: 0.3665265 | S139: 0.5138421 | T139: 0.0256534 | U139: 0.349013 | V139: 0.1343417 | W139: 2 | X139: 1 | Y139: 5 | Z139: =(S139+T139)/2 -> 0.26974775
A140: 139 | B140: 385 | C140: 600690 | D140: Rasool Pur | E140: 11 | F140: 28.46665725 | G140: 70.11545481 | H140: -86605.10824 | I140: 384879.174 | J140: 2993 | K140: -1.603847 | L140: -1.683128 | M140: -0.0222072 | N140: -0.6744758 | O140: 0.0543738 | P140: 0.0461752 | Q140: 0.4911413 | R140: 0.2500044 | S140: 0.0029565 | T140: 0.0021321 | U140: 0.2412198 | V140: 0.0625022 | W140: 2 | X140: 3 | Y140: 5 | Z140: =(S140+T140)/2 -> 0.0025443
A141: 140 | B141: 493 | C141: 600739 | D141: Khair Pur Dhaha | E141: 4 | F141: 29.43813545 | G141: 71.17209217 | H141: 16687.46717 | I141: 492185.7433 | J141: 1192 | K141: -1.407418 | L141: -1.363734 | M141: -2.226785 | N141: -2.491415 | O141: 0.0796517 | P141: 0.0863257 | Q141: 0.0129808 | R141: 0.0063618 | S141: 0.0063444 | T141: 0.0074521 | U141: 0.0001685 | V141: 4.05e-05 | W141: 2 | X141: 3 | Y141: 3 | Z141: =(S141+T141)/2 -> 0.00689825
A142: 141 | B142: 206 | C142: 600626 | D142: Jhok Gulab Shah | E142: 41 | F142: 29.139381 | G142: 70.75796522 | H142: -23540.87752 | I142: 459100.899 | J142: 4500 | K142: 0.7077613 | L142: 0.7209973 | M142: 0.8795164 | N142: 1.676418 | O142: 0.7604532 | P142: 0.7645444 | Q142: 0.8104393 | R142: 0.9531718 | S142: 0.5782891 | T142: 0.5845282 | U142: 0.656812 | V142: 0.9085366 | W142: 1 | X142: 4 | Y142: 2 | Z142: =(S142+T142)/2 -> 0.58140865
A143: 142 | B143: 181 | C143: 600185 | D143: Hazrat Sultan Bahu | E143: 9 | F143: 30.7852252 | G143: 71.86947049 | H143: 83180.73623 | I143: 641733.0213 | J143: 1170 | K143: -0.7920454 | L143: -0.7998637 | M143: -0.4403144 | N143: -1.08961 | O143: 0.2141671 | P143: 0.2118949 | Q143: 0.3298547 | R143: 0.1379425 | S143: 0.0458675 | T143: 0.0448994 | U143: 0.1088041 | V143: 0.0190281 | W143: 2 | X143: 3 | Y143: 3 | Z143: =(S143+T143)/2 -> 0.04538345
A144: 143 | B144: 36 | C144: 600477 | D144: Bair Bund | E144: 7 | F144: 29.65814738 | G144: 71.02475087 | H144: 2395.514113 | I144: 516546.1283 | J144: 80 | K144: -1.02111 | L144: -0.518373 | M144: -1.621173 | N144: -1.026366 | O144: 0.1536011 | P144: 0.302099 | Q144: 0.0524903 | R144: 0.1523596 | S144: 0.0235933 | T144: 0.0912638 | U144: 0.0027552 | V144: 0.0232134 | W144: 2 | X144: 3 | Y144: 3 | Z144: =(S144+T144)/2 -> 0.05742855
A145: 144 | B145: 398 | C145: 600725 | D145: Sabzani | E145: 43 | F145: 28.82191556 | G145: 70.20052955 | H145: -78001.75073 | I145: 424176.5805 | J145: 3502 | K145: 1.778527 | L145: 1.781996 | M145: 0.357601 | N145: 0.815469 | O145: 0.9623414 | P145: 0.962625 | Q145: 0.639679 | R145: 0.7925981 | S145: 0.9261009 | T145: 0.9266469 | U145: 0.4091893 | V145: 0.6282117 | W145: 1 | X145: 4 | Y145: 2 | Z145: =(S145+T145)/2 -> 0.9263739
A146: 145 | B146: 46 | C146: 600128 | D146: Barthi | E146: 24 | F146: 30.78180443 | G146: 70.27887789 | H146: -68990.57521 | I146: 641255.247 | J146: 236 | K146: 0.028842 | L146: -0.7562289 | M146: 0.8970883 | N146: 0.2642865 | O146: 0.5115047 | P146: 0.224756 | Q146: 0.8151641 | R146: 0.6042204 | S146: 0.2616371 | T146: 0.0505153 | U146: 0.6644925 | V146: 0.3650823 | W146: 1 | X146: 2 | Y146: 5 | Z146: =(S146+T146)/2 -> 0.1560762
A147: 146 | B147: 354 | C147: 600511 | D147: Patti Ghulam Ali | E147: 28 | F147: 30.27168245 | G147: 71.26954831 | H147: 25921.15156 | I147: 584547.5468 | J147: 2905 | K147: 0.357302 | L147: 0.4415812 | M147: 0.4402967 | N147: -0.1013613 | O147: 0.6395671 | P147: 0.6706039 | Q147: 0.6701389 | R147: 0.4596318 | S147: 0.4090461 | T147: 0.4497096 | U147: 0.4490861 | V147: 0.2112614 | W147: 1 | X147: 1 | Y147: 4 | Z147: =(S147+T147)/2 -> 0.42937785
A148: 147 | B148: 352 | C148: 600509 | D148: Pattal Kot Addu | E148: 29 | F148: 30.52761638 | G148: 70.96255043 | H148: -3592.33786 | I148: 612873.4318 | J148: 4064 | K148: 0.4315018 | L148: 0.3812426 | M148: 0.600298 | N148: -0.1701966 | O148: 0.6669482 | P148: 0.6484884 | Q148: 0.7258462 | R148: 0.4324278 | S148: 0.4448199 | T148: 0.4205372 | U148: 0.5268527 | V148: 0.1869938 | W148: 1 | X148: 1 | Y148: 4 | Z148: =(S148+T148)/2 -> 0.43267855
A149: 148 | B149: 184 | C149: 600334 | D149: Isakhel | E149: 36 | F149: 32.66516948 | G149: 71.22369282 | H149: 20993.30272 | I149: 849866.3568 | J149: 3937 | K149: 0.3836267 | L149: 0.6969831 | M149: 0.684193 | N149: 1.486246 | O149: 0.6493724 | P149: 0.7570933 | Q149: 0.7530733 | R149: 0.931393 | S149: 0.4216845 | T149: 0.5731903 | U149: 0.5671194 | V149: 0.867493 | W149: 1 | X149: 4 | Y149: 1 | Z149: =(S149+T149)/2 -> 0.4974374
A150: 149 | B150: 431 | C150: 600164 | D150: Smena | E150: 13 | F150: 30.05822394 | G150: 70.81140695 | H150: -18176.04938 | I150: 560882.5889 | J150: 4372 | K150: -0.8882586 | L150: -1.699287 | M150: 0.0486558 | N150: -0.3323016 | O150: 0.1872008 | P150: 0.0446326 | Q150: 0.5194032 | R150: 0.3698308 | S150: 0.0350442 | T150: 0.0019921 | U150: 0.2697797 | V150: 0.1367748 | W150: 2 | X150: 3 | Y150: 5 | Z150: =(S150+T150)/2 -> 0.01851815
A151: 150 | B151: 454 | C151: 600706 | D151: Tibbi Lundan | E151: 43 | F151: 29.66047625 | G151: 70.18955736 | H151: -78414.92631 | I151: 517081.5217 | J151: 2899 | K151: 1.553283 | L151: 0.838841 | M151: 0.6477081 | N151: 1.204257 | O151: 0.9398222 | P151: 0.7992207 | Q151: 0.7414131 | R151: 0.8857549 | S151: 0.8832657 | T151: 0.6387538 | U151: 0.5496934 | V151: 0.7845617 | W151: 1 | X151: 4 | Y151: 2 | Z151: =(S151+T151)/2 -> 0.76100975
A152: 151 | B152: 38 | C152: 600496 | D152: Bait Qaim Wala | E152: 36 | F152: 30.50728391 | G152: 70.94140085 | H152: -5621.85634 | I152: 610621.838 | J152: 3962 | K152: 0.2041874 | L152: 1.33832 | M152: 1.623069 | N152: 0.3509133 | O152: 0.5808964 | P152: 0.9096039 | Q152: 0.9477127 | R152: 0.6371733 | S152: 0.3374407 | T152: 0.8273792 | U152: 0.8981593 | V152: 0.4059898 | W152: 1 | X152: 4 | Y152: 1 | Z152: =(S152+T152)/2 -> 0.58240995
A153: 152 | B153: 178 | C153: 600208 | D153: Haveli Sheikh Raju | E153: 15 | F153: 31.36298407 | G153: 72.1671213 | H153: 111000.884 | I153: 706011.2194 | J153: 3383 | K153: -0.9437874 | L153: -0.580278 | M153: 0.2162465 | N153: -0.1443723 | O153: 0.1726391 | P153: 0.2808636 | Q153: 0.5856022 | R153: 0.4426033 | S153: 0.0298043 | T153: 0.0788844 | U153: 0.34293 | V153: 0.1958976 | W153: 2 | X153: 2 | Y153: 5 | Z153: =(S153+T153)/2 -> 0.05434435
A154: 153 | B154: 130 | C154: 600374 | D154: Doaba | E154: 13 | F154: 32.31216655 | G154: 71.36686136 | H154: 34555.02379 | I154: 810742.5778 | J154: 3144 | K154: -1.030396 | L154: -0.3378261 | M154: -0.1354129 | N154: -0.1860695 | O154: 0.1514121 | P154: 0.3677471 | Q154: 0.4461427 | R154: 0.4261951 | S154: 0.0229256 | T154: 0.1352379 | U154: 0.1990433 | V154: 0.1816423 | W154: 2 | X154: 3 | Y154: 5 | Z154: =(S154+T154)/2 -> 0.07908175
A155: 154 | B155: 113 | C155: 600244 | D155: Dab Kalan | E155: 14 | F155: 30.70269312 | G155: 71.94456861 | H155: 90439.68094 | I155: 632645.6525 | J155: 2895 | K155: -0.9413525 | L155: -0.839659 | M155: 0.4159304 | N155: -0.4580869 | O155: 0.1732621 | P155: 0.2005498 | Q155: 0.6612695 | R155: 0.323445 | S155: 0.0300198 | T155: 0.0402202 | U155: 0.4372774 | V155: 0.1046167 | W155: 2 | X155: 2 | Y155: 5 | Z155: =(S155+T155)/2 -> 0.03512
A156: 155 | B156: 92 | C156: 600678 | D156: Chak No 264/p | E156: 41 | F156: 28.057899 | G156: 69.97892108 | H156: -100377.1564 | I156: 339698.08 | J156: 1200 | K156: 0.7321889 | L156: 1.219526 | M156: 0.4533605 | N156: 1.727513 | O156: 0.7679734 | P156: 0.8886777 | Q156: 0.6748554 | R156: 0.9579622 | S156: 0.5897831 | T156: 0.7897481 | U156: 0.4554298 | V156: 0.9176916 | W156: 1 | X156: 4 | Y156: 2 | Z156: =(S156+T156)/2 -> 0.6897656
A157: 156 | B157: 136 | C157: 600621 | D157: Dufli Kabir Khan | E157: 38 | F157: 29.06685335 | G157: 70.70968423 | H157: -28256.03684 | I157: 451077.1829 | J157: 3000 | K157: 1.105919 | L157: 1.307394 | M157: 0.2360413 | N157: 0.7827365 | O157: 0.8656192 | P157: 0.9044605 | Q157: 0.5932997 | R157: 0.7831091 | S157: 0.7492967 | T157: 0.8180488 | U157: 0.3520045 | V157: 0.6132598 | W157: 1 | X157: 4 | Y157: 2 | Z157: =(S157+T157)/2 -> 0.78367275
A158: 157 | B158: 217 | C158: 600116 | D158: Kanjan | E158: 13 | F158: 31.96899718 | G158: 71.17742424 | H158: 16773.38534 | I158: 772643.9737 | J158: 1469 | K158: -0.0501631 | L158: -0.1820934 | M158: -1.025734 | N158: -0.5707356 | O158: 0.4799962 | P158: 0.4277547 | Q158: 0.1525084 | R158: 0.2840894 | S158: 0.2303964 | T158: 0.1829741 | U158: 0.0232588 | V158: 0.0807068 | W158: 2 | X158: 3 | Y158: 6 | Z158: =(S158+T158)/2 -> 0.20668525
A159: 158 | B159: 424 | C159: 600513 | D159: Sheikh Umar | E159: 30 | F159: 30.41745066 | G159: 70.88065957 | H159: -11459.70092 | I159: 600672.9024 | J159: 2039 | K159: -0.0810439 | L159: 0.6215922 | M159: 0.6579421 | N159: 0.2869652 | O159: 0.4677035 | P159: 0.732895 | Q159: 0.7447123 | R159: 0.6129305 | S159: 0.2187466 | T159: 0.537135 | U159: 0.5545964 | V159: 0.3756838 | W159: 1 | X159: 2 | Y159: 1 | Z159: =(S159+T159)/2 -> 0.3779408
A160: 159 | B160: 441 | C160: 600342 | D160: Tabisar | E160: 33 | F160: 33.03043787 | G160: 71.57666906 | H160: 53916.58428 | I160: 890516.7265 | J160: 2321 | K160: -0.0991525 | L160: 0.9722238 | M160: 0.2721011 | N160: 0.7764446 | O160: 0.4605086 | P160: 0.8345304 | Q160: 0.6072279 | R160: 0.7812567 | S160: 0.2120682 | T160: 0.696441 | U160: 0.3687257 | V160: 0.6103621 | W160: 1 | X160: 2 | Y160: 1 | Z160: =(S160+T160)/2 -> 0.4542546
A161: 160 | B161: 129 | C161: 600374 | D161: Doaba | E161: 13 | F161: 32.28606136 | G161: 71.45575888 | H161: 42939.56829 | I161: 807876.6885 | J161: 3144 | K161: -1.282731 | L161: -1.717363 | M161: -0.4027409 | N161: 0.3580972 | O161: 0.0997931 | P161: 0.0429565 | Q161: 0.3435694 | R161: 0.6398647 | S161: 0.0099587 | T161: 0.0018453 | U161: 0.11804 | V161: 0.4094269 | W161: 2 | X161: 2 | Y161: 5 | Z161: =(S161+T161)/2 -> 0.005902
A162: 161 | B162: 251 | C162: 600214 | D162: Kot Shakir | E162: 16 | F162: 31.45965567 | G162: 72.08464215 | H162: 103055.8751 | I162: 716649.0292 | J162: 3393 | K162: 0.4823608 | L162: -0.4312276 | M162: -0.5478014 | N162: -1.194996 | O162: 0.6852252 | P162: 0.3331515 | Q162: 0.2919141 | R162: 0.1160443 | S162: 0.4695336 | T162: 0.1109899 | U162: 0.0852139 | V162: 0.0134663 | W162: 2 | X162: 3 | Y162: 6 | Z162: =(S162+T162)/2 -> 0.29026175
A163: 162 | B163: 213 | C163: 600148 | D163: Kala | E163: 18 | F163: 30.43886348 | G163: 70.75992854 | H163: -23047.74573 | I163: 603063.7125 | J163: 4833 | K163: -1.207007 | L163: -0.4232593 | M163: 0.7699182 | N163: -0.4172475 | O163: 0.1137146 | P163: 0.336053 | Q163: 0.7793258 | R163: 0.3382487 | S163: 0.012931 | T163: 0.1129316 | U163: 0.6073487 | V163: 0.1144122 | W163: 2 | X163: 2 | Y163: 5 | Z163: =(S163+T163)/2 -> 0.0629313
A164: 163 | B164: 57 | C164: 600481 | D164: Bet Mir Hazar Khan | E164: 32 | F164: 29.66159009 | G164: 70.77736521 | H164: -21543.02516 | I164: 516947.321 | J164: 1810 | K164: 1.273681 | L164: 0.7521721 | M164: -0.0898579 | N164: -0.0073222 | O164: 0.8986118 | P164: 0.7740262 | Q164: 0.4642001 | R164: 0.4970789 | S164: 0.8075032 | T164: 0.5991166 | U164: 0.2154817 | V164: 0.2470874 | W164: 1 | X164: 1 | Y164: 4 | Z164: =(S164+T164)/2 -> 0.7033099
A165: 164 | B165: 37 | C165: 600465 | D165: Bait Mullan Wali | E165: 29 | F165: 29.39639992 | G165: 70.98299256 | H165: -1650.320082 | I165: 487549.8782 | J165: 1570 | K165: 0.8545287 | L165: 0.2546307 | M165: 0.2359722 | N165: 0.1585987 | O165: 0.8035939 | P165: 0.6004958 | Q165: 0.5932729 | R165: 0.5630075 | S165: 0.6457632 | T165: 0.3605952 | U165: 0.3519727 | V165: 0.3169774 | W165: 1 | X165: 1 | Y165: 4 | Z165: =(S165+T165)/2 -> 0.5031792
A166: 165 | B166: 111 | C166: 600203 | D166: Civil Station | E166: 9 | F166: 31.25756811 | G166: 72.34846185 | H166: 128386.3425 | I166: 694517.7085 | J166: 2668 | K166: -0.7443129 | L166: -0.9962885 | M166: -0.7214932 | N166: -0.4347027 | O166: 0.2283436 | P166: 0.159555 | Q166: 0.2353031 | R166: 0.3318891 | S166: 0.0521408 | T166: 0.0254578 | U166: 0.0553675 | V166: 0.1101504 | W166: 2 | X166: 3 | Y166: 3 | Z166: =(S166+T166)/2 -> 0.0387993
A167: 166 | B167: 292 | C167: 600328 | D167: Mandi Town | E167: 12 | F167: 30.98701159 | G167: 71.02336487 | H167: 2230.310987 | I167: 663778.1803 | J167: 5056 | K167: -1.51963 | L167: -1.772293 | M167: 0.3110312 | N167: -0.878445 | O167: 0.0643019 | P167: 0.0381729 | Q167: 0.6221116 | R167: 0.1898511 | S167: 0.0041347 | T167: 0.0014572 | U167: 0.3870228 | V167: 0.0360435 | W167: 2 | X167: 3 | Y167: 5 | Z167: =(S167+T167)/2 -> 0.00279595
A168: 167 | B168: 391 | C168: 600724 | D168: Rojhan | E168: 34 | F168: 28.792397 | G168: 70.18429954 | H168: -79608.11481 | I168: 420918.8302 | J168: 4346 | K168: -0.6005836 | L168: 0.6306872 | M168: 0.6935535 | N168: 1.3526 | O168: 0.2740587 | P168: 0.7358775 | Q168: 0.7560189 | R168: 0.9119083 | S168: 0.0751082 | T168: 0.5415156 | U168: 0.5715646 | V168: 0.8315767 | W168: 1 | X168: 2 | Y168: 1 | Z168: =(S168+T168)/2 -> 0.3083119
A169: 168 | B169: 397 | C169: 600725 | D169: Sabzani | E169: 43 | F169: 28.61690323 | G169: 69.99473277 | H169: -98279.00943 | I169: 401623.3377 | J169: 3502 | K169: 0.5214885 | L169: 1.439542 | M169: 1.464557 | N169: 0.9479523 | O169: 0.6989868 | P169: 0.9250015 | Q169: 0.9284791 | R169: 0.8284231 | S169: 0.4885825 | T169: 0.8556278 | U169: 0.8620734 | V169: 0.6862849 | W169: 1 | X169: 4 | Y169: 2 | Z169: =(S169+T169)/2 -> 0.67210515
A170: 169 | B170: 240 | C170: 600151 | D170: Kot Haibat | E170: 5 | F170: 30.13319761 | G170: 70.63992514 | H170: -34675.01151 | I170: 569228.1524 | J170: 4225 | K170: -1.115005 | L170: -1.347131 | M170: -1.127192 | N170: -1.562566 | O170: 0.1324242 | P170: 0.088969 | Q170: 0.1298306 | R170: 0.0590774 | S170: 0.0175362 | T170: 0.0079155 | U170: 0.016856 | V170: 0.0034901 | W170: 2 | X170: 3 | Y170: 3 | Z170: =(S170+T170)/2 -> 0.01272585
A171: 170 | B171: 157 | C171: 600543 | D171: Ghazanfar Garh | E171: 40 | F171: 29.97873592 | G171: 71.0696363 | H171: 6716.349497 | I171: 552064.259 | J171: 3881 | K171: 1.089753 | L171: 0.4096144 | M171: 0.9167457 | N171: 1.164966 | O171: 0.8620889 | P171: 0.6589556 | Q171: 0.820362 | R171: 0.8779837 | S171: 0.7431973 | T171: 0.4342225 | U171: 0.6729938 | V171: 0.7708554 | W171: 1 | X171: 4 | Y171: 2 | Z171: =(S171+T171)/2 -> 0.5887099
A172: 171 | B172: 236 | C172: 600106 | D172: Kohawar Kalan | E172: 11 | F172: 31.74272408 | G172: 71.10857242 | H172: 10287.03947 | I172: 747547.3638 | J172: 7076 | K172: 0.0867554 | L172: -1.371799 | M172: -1.252616 | N172: -0.5560911 | O172: 0.5345671 | P172: 0.085063 | Q172: 0.1051727 | R172: 0.2890743 | S172: 0.285762 | T172: 0.0072357 | U172: 0.0110613 | V172: 0.0835639 | W172: 2 | X172: 3 | Y172: 6 | Z172: =(S172+T172)/2 -> 0.14649885
A173: 172 | B173: 328 | C173: 600176 | D173: Narri Shumali | E173: 29 | F173: 30.93668525 | G173: 70.68822535 | H173: -29781.11429 | I173: 658241.4008 | J173: 4046 | K173: 1.238295 | L173: 0.066043 | M173: -0.3892879 | N173: 0.367558 | O173: 0.8921967 | P173: 0.5263282 | Q173: 0.3485316 | R173: 0.6433986 | S173: 0.796015 | T173: 0.2770214 | U173: 0.1214743 | V173: 0.4139617 | W173: 1 | X173: 1 | Y173: 4 | Z173: =(S173+T173)/2 -> 0.5365182
A174: 173 | B174: 455 | C174: 600178 | D174: Tibi Qaisarani | E174: 24 | F174: 31.06478226 | G174: 70.65710233 | H174: -32711.38993 | I174: 672446.1243 | J174: 3985 | K174: -0.0452243 | L174: 0.0799099 | M174: -0.036515 | N174: 0.5211914 | O174: 0.4819643 | P174: 0.5318456 | Q174: 0.4854359 | R174: 0.6988832 | S174: 0.2322896 | T174: 0.2828597 | U174: 0.235648 | V174: 0.4884378 | W174: 2 | X174: 2 | Y174: 5 | Z174: =(S174+T174)/2 -> 0.25757465
A175: 174 | B175: 388 | C175: 600723 | D175: Rojhan Sharqi (tower Chowk)uc | E175: 44 | F175: 28.74886792 | G175: 69.85274299 | H175: -112016.5139 | I175: 416366.6752 | J175: 7846 | K175: 1.8124 | L175: 1.714328 | M175: 0.7355341 | N175: 0.5909665 | O175: 0.9650378 | P175: 0.9567658 | Q175: 0.7689928 | R175: 0.7227286 | S175: 0.931298 | T175: 0.9154007 | U175: 0.59135 | V175: 0.5223365 | W175: 1 | X175: 4 | Y175: 2 | Z175: =(S175+T175)/2 -> 0.92334935
A176: 175 | B176: 479 | C176: 600720 | D176: Wang | E176: 46 | F176: 28.99813672 | G176: 70.36286915 | H176: -62054.6154 | I176: 443600.9754 | J176: 3175 | K176: 1.757651 | L176: 0.859407 | M176: 1.749321 | N176: 1.113358 | O176: 0.9605966 | P176: 0.804942 | Q176: 0.9598822 | R176: 0.8672227 | S176: 0.9227458 | T176: 0.6479316 | U176: 0.9213738 | V176: 0.7520751 | W176: 1 | X176: 4 | Y176: 2 | Z176: =(S176+T176)/2 -> 0.7853387
A177: 176 | B177: 189 | C177: 600186 | D177: Jaiwain | E177: 11 | F177: 30.85580048 | G177: 71.98327608 | H177: 94000.03231 | I177: 649639.8445 | J177: 3024 | K177: -0.7619765 | L177: -0.5298694 | M177: -0.6656477 | N177: -0.1639059 | O177: 0.223037 | P177: 0.2981012 | Q177: 0.2528181 | R177: 0.4349026 | S177: 0.0497455 | T177: 0.0888644 | U177: 0.063917 | V177: 0.1891403 | W177: 2 | X177: 3 | Y177: 3 | Z177: =(S177+T177)/2 -> 0.06930495
A178: 177 | B178: 59 | C178: 600674 | D178: Bhong | E178: 43 | F178: 28.42071087 | G178: 69.9108107 | H178: -106691.3414 | I178: 379961.5424 | J178: 4600 | K178: 0.7526312 | L178: 1.437599 | M178: 1.150579 | N178: 0.9687781 | O178: 0.7741643 | P178: 0.9247261 | Q178: 0.8750473 | R178: 0.833672 | S178: 0.5993303 | T178: 0.8551183 | U178: 0.7657077 | V178: 0.6950091 | W178: 1 | X178: 4 | Y178: 2 | Z178: =(S178+T178)/2 -> 0.7272243
A179: 178 | B179: 53 | C179: 600696 | D179: Basti Rindan | E179: 43 | F179: 29.71224303 | G179: 70.67427431 | H179: -31499.73294 | I179: 522583.957 | J179: 1917 | K179: 0.5312483 | L179: 1.075037 | M179: 1.6639 | N179: 1.217152 | O179: 0.7023767 | P179: 0.8588209 | Q179: 0.9519337 | R179: 0.8882269 | S179: 0.493333 | T179: 0.7375733 | U179: 0.9061778 | V179: 0.788947 | W179: 1 | X179: 4 | Y179: 2 | Z179: =(S179+T179)/2 -> 0.61545315
A180: 179 | B180: 169 | C180: 600544 | D180: Gul Wala | E180: 28 | F180: 30.16573835 | G180: 71.07036453 | H180: 6773.694791 | I180: 572779.7553 | J180: 3604 | K180: 0.3068152 | L180: 0.349691 | M180: 0.907353 | N180: -0.5124707 | O180: 0.620508 | P180: 0.6367147 | Q180: 0.8178899 | R180: 0.3041608 | S180: 0.3850302 | T180: 0.4054056 | U180: 0.6689439 | V180: 0.0925138 | W180: 1 | X180: 1 | Y180: 4 | Z180: =(S180+T180)/2 -> 0.3952179
A181: 180 | B181: 337 | C181: 600687 | D181: Nawazabad | E181: 32 | F181: 28.34885399 | G181: 69.84648867 | H181: -113069.634 | I181: 372061.1332 | J181: 3000 | K181: 0.8528912 | L181: 1.081982 | M181: -0.3141977 | N181: 0.0845263 | O181: 0.8031402 | P181: 0.8603698 | Q181: 0.3766854 | R181: 0.533681 | S181: 0.6450341 | T181: 0.7402362 | U181: 0.1418919 | V181: 0.2848155 | W181: 1 | X181: 1 | Y181: 4 | Z181: =(S181+T181)/2 -> 0.69263515
A182: 181 | B182: 316 | C182: 600553 | D182: Muradabad | E182: 34 | F182: 30.2088655 | G182: 71.27571879 | H182: 26530.98331 | I182: 577588.635 | J182: 4043 | K182: 0.267396 | L182: 1.044085 | M182: 0.7626835 | N182: 0.2783025 | O182: 0.6054178 | P182: 0.8517768 | Q182: 0.7771739 | R182: 0.6096099 | S182: 0.3665308 | T182: 0.7255238 | U182: 0.6039993 | V182: 0.3716242 | W182: 1 | X182: 4 | Y182: 1 | Z182: =(S182+T182)/2 -> 0.5460273
A183: 182 | B183: 103 | C183: 600333 | D183: Chapri | E183: 18 | F183: 32.96812254 | G183: 71.39805428 | H183: 37239.92525 | I183: 883529.4298 | J183: 1165 | K183: -0.1128402 | L183: 0.0208297 | M183: 0.2336317 | N183: -0.6652494 | O183: 0.4550786 | P183: 0.5083092 | Q183: 0.5923645 | R183: 0.2529455 | S183: 0.2070966 | T183: 0.2583783 | U183: 0.3508958 | V183: 0.0639814 | W183: 2 | X183: 3 | Y183: 5 | Z183: =(S183+T183)/2 -> 0.23273745
A184: 183 | B184: 296 | C184: 600217 | D184: Mari Shah Sakhira | E184: 13 | F184: 31.60797983 | G184: 72.09897825 | H184: 104257.6283 | I184: 733100.8355 | J184: 3388 | K184: -1.066949 | L184: -0.2218041 | M184: -0.0308985 | N184: -0.676965 | O184: 0.1429975 | P184: 0.4122332 | Q184: 0.4876752 | R184: 0.2492141 | S184: 0.0204483 | T184: 0.1699362 | U184: 0.2378272 | V184: 0.0621077 | W184: 2 | X184: 3 | Y184: 5 | Z184: =(S184+T184)/2 -> 0.09519225
A185: 184 | B185: 427 | C185: 600718 | D185: Shikar Pur | E185: 33 | F185: 29.16866357 | G185: 70.51013296 | H185: -47629.08567 | I185: 462422.1439 | J185: 1529 | K185: 0.952344 | L185: 1.252886 | M185: 0.0425414 | N185: -0.3460366 | O185: 0.8295387 | P185: 0.8948764 | Q185: 0.5169665 | R185: 0.3646576 | S185: 0.6881344 | T185: 0.8008037 | U185: 0.2672543 | V185: 0.1329752 | W185: 1 | X185: 1 | Y185: 4 | Z185: =(S185+T185)/2 -> 0.74446905
A186: 185 | B186: 253 | C186: 600322 | D186: Kot Sultan | E186: 17 | F186: 30.75677284 | G186: 70.96668947 | H186: -3187.563184 | I186: 638265.0596 | J186: 2863 | K186: -0.5644827 | L186: -0.2302776 | M186: 0.0677945 | N186: -0.1014834 | O186: 0.2862128 | P186: 0.408938 | Q186: 0.5270254 | R186: 0.4595834 | S186: 0.0819178 | T186: 0.1672303 | U186: 0.2777558 | V186: 0.2112169 | W186: 2 | X186: 2 | Y186: 5 | Z186: =(S186+T186)/2 -> 0.12457405
A187: 186 | B187: 258 | C187: 600711 | D187: Kotla Isan | E187: 24 | F187: 29.19419351 | G187: 70.41852095 | H187: -56524.38764 | I187: 465290.7971 | J187: 4159 | K187: 1.17861 | L187: 0.4515942 | M187: -1.552272 | N187: -1.003972 | O187: 0.8807232 | P187: 0.6742193 | Q187: 0.0602986 | R187: 0.157696 | S187: 0.7756734 | T187: 0.4545717 | U187: 0.0036359 | V187: 0.024868 | W187: 2 | X187: 1 | Y187: 4 | Z187: =(S187+T187)/2 -> 0.61512255
A188: 187 | B188: 237 | C188: 600505 | D188: Kot Addu 01 | E188: 24 | F188: 30.47290531 | G188: 70.94371792 | H188: -5401.369997 | I188: 606812.5835 | J188: 4789 | K188: -1.02415 | L188: -0.6413544 | M188: 1.00904 | N188: 0.4972472 | O188: 0.1528822 | P188: 0.2606462 | Q188: 0.8435224 | R188: 0.6904926 | S188: 0.023373 | T188: 0.0679365 | U188: 0.71153 | V188: 0.4767801 | W188: 2 | X188: 2 | Y188: 1 | Z188: =(S188+T188)/2 -> 0.04565475
A189: 188 | B189: 20 | C189: 600371 | D189: Allu Wali | E189: 13 | F189: 32.34637556 | G189: 71.39314642 | H189: 37018.06209 | I189: 814544.9347 | J189: 1624 | K189: -0.5353178 | L189: -0.9394612 | M189: -0.0769992 | N189: -0.068046 | O189: 0.2962151 | P189: 0.173747 | Q189: 0.4693121 | R189: 0.4728745 | S189: 0.0877434 | T189: 0.030188 | U189: 0.2202539 | V189: 0.2236103 | W189: 2 | X189: 3 | Y189: 5 | Z189: =(S189+T189)/2 -> 0.0589657
A190: 189 | B190: 138 | C190: 600501 | D190: Ehsanpur | E190: 19 | F190: 30.64844733 | G190: 70.95161929 | H190: -4634.859569 | I190: 626262.518 | J190: 4232 | K190: -0.6655651 | L190: -0.1244391 | M190: 0.1356466 | N190: 0.3425562 | O190: 0.2528446 | P190: 0.4504838 | Q190: 0.5539497 | R190: 0.6340338 | S190: 0.0639304 | T190: 0.2029357 | U190: 0.3068602 | V190: 0.4019988 | W190: 2 | X190: 2 | Y190: 5 | Z190: =(S190+T190)/2 -> 0.13343305
A191: 190 | B191: 250 | C191: 600683 | D191: Kot Sanjar Khan | E191: 27 | F191: 28.27905872 | G191: 69.91602982 | H191: -106327.3882 | I191: 364261.0188 | J191: 1300 | K191: 1.053392 | L191: 0.3370401 | M191: 0.0841176 | N191: -1.228018 | O191: 0.8539193 | P191: 0.6319566 | Q191: 0.5335186 | R191: 0.1097202 | S191: 0.7291781 | T191: 0.3993692 | U191: 0.284642 | V191: 0.0120385 | W191: 1 | X191: 1 | Y191: 4 | Z191: =(S191+T191)/2 -> 0.56427365
A192: 191 | B192: 347 | C192: 600361 | D192: Pai Khel | E192: 19 | F192: 32.77187338 | G192: 71.61627596 | H192: 57773.59272 | I192: 861841.6232 | J192: 9748 | K192: -0.1154574 | L192: -0.7198157 | M192: 0.0714611 | N192: 0.3154826 | O192: 0.4540413 | P192: 0.2358193 | Q192: 0.5284846 | R192: 0.6238024 | S192: 0.2061535 | T192: 0.0556107 | U192: 0.279296 | V192: 0.3891294 | W192: 2 | X192: 2 | Y192: 5 | Z192: =(S192+T192)/2 -> 0.1308821
A193: 192 | B193: 174 | C193: 600206 | D193: Hasnanah | E193: 11 | F193: 31.23239161 | G193: 72.26828048 | H193: 120781.8934 | I193: 691640.0725 | J193: 3349 | K193: -0.964388 | L193: -1.171726 | M193: -0.0787354 | N193: -0.3351902 | O193: 0.1674257 | P193: 0.1206535 | Q193: 0.4686216 | R193: 0.3687408 | S193: 0.0280314 | T193: 0.0145573 | U193: 0.2196062 | V193: 0.1359698 | W193: 2 | X193: 3 | Y193: 5 | Z193: =(S193+T193)/2 -> 0.02129435
A194: 193 | B194: 379 | C194: 600487 | D194: Ram Pur | E194: 17 | F194: 29.52286777 | G194: 70.73426902 | H194: -25748.79581 | I194: 501588.7554 | J194: 100 | K194: -0.4705421 | L194: 0.1365181 | M194: -0.8299692 | N194: 0.0255405 | O194: 0.3189839 | P194: 0.5542942 | Q194: 0.2032781 | R194: 0.5101881 | S194: 0.1017507 | T194: 0.307242 | U194: 0.041322 | V194: 0.2602919 | W194: 2 | X194: 3 | Y194: 6 | Z194: =(S194+T194)/2 -> 0.20449635
A195: 194 | B195: 115 | C195: 600499 | D195: Daira Din Panah | E195: 30 | F195: 30.57323177 | G195: 70.99396623 | H195: -577.8989769 | I195: 617927.1234 | J195: 5405 | K195: -0.3401059 | L195: 0.7895593 | M195: 0.8038062 | N195: 0.1572924 | O195: 0.3668884 | P195: 0.7851074 | Q195: 0.7892455 | R195: 0.5624928 | S195: 0.1346071 | T195: 0.6163937 | U195: 0.6229085 | V195: 0.3163981 | W195: 1 | X195: 2 | Y195: 1 | Z195: =(S195+T195)/2 -> 0.3755004
A196: 195 | B196: 284 | C196: 600550 | D196: Mahra Sharqi | E196: 27 | F196: 29.83028143 | G196: 70.99484341 | H196: -498.0355688 | I196: 535615.6925 | J196: 4588 | K196: 0.6602028 | L196: 0.3704147 | M196: 0.0040136 | N196: -0.2238464 | O196: 0.7454382 | P196: 0.6444632 | Q196: 0.5016012 | R196: 0.4114384 | S196: 0.5556781 | T196: 0.4153329 | U196: 0.2516038 | V196: 0.1692816 | W196: 1 | X196: 1 | Y196: 4 | Z196: =(S196+T196)/2 -> 0.4855055
A197: 196 | B197: 72 | C197: 600137 | D197: Chabri | E197: 19 | F197: 30.21250557 | G197: 70.67191007 | H197: -31569.76322 | I197: 578006.0093 | J197: 3855 | K197: -0.0791655 | L197: -1.20588 | M197: 0.4810103 | N197: 0.0918236 | O197: 0.4684505 | P197: 0.1139318 | Q197: 0.6847454 | R197: 0.5365809 | S197: 0.2194459 | T197: 0.0129805 | U197: 0.4688763 | V197: 0.2879191 | W197: 2 | X197: 2 | Y197: 5 | Z197: =(S197+T197)/2 -> 0.1162132
A198: 197 | B198: 319 | C198: 600357 | D198: Musa Khel | E198: 10 | F198: 32.61943654 | G198: 71.71563777 | H198: 67193.842 | I198: 844981.4547 | J198: 11141 | K198: -0.2233208 | L198: -1.386589 | M198: -1.070372 | N198: -0.4847107 | O198: 0.4116429 | P198: 0.0827836 | Q198: 0.1422259 | R198: 0.3139408 | S198: 0.1694499 | T198: 0.0068531 | U198: 0.0202282 | V198: 0.0985588 | W198: 2 | X198: 3 | Y198: 3 | Z198: =(S198+T198)/2 -> 0.0881515
A199: 198 | B199: 308 | C199: 600703 | D199: Mohammad Pur | E199: 41 | F199: 29.38501922 | G199: 70.15025853 | H199: -82442.0973 | I199: 486594.118 | J199: 3975 | K199: 1.671728 | L199: 0.8847641 | M199: 0.8238466 | N199: 0.5697881 | O199: 0.952711 | P199: 0.8118581 | Q199: 0.7949866 | R199: 0.7155893 | S199: 0.9076583 | T199: 0.6591135 | U199: 0.6320037 | V199: 0.512068 | W199: 1 | X199: 4 | Y199: 2 | Z199: =(S199+T199)/2 -> 0.7833859
A200: 199 | B200: 470 | C200: 600179 | D200: Veho Wa | E200: 10 | F200: 31.13116097 | G200: 70.51678672 | H200: -46067.54174 | I200: 679851.1307 | J200: 4713 | K200: -1.748866 | L200: -0.8831654 | M200: -0.2909005 | N200: -0.5956956 | O200: 0.0401571 | P200: 0.1885735 | Q200: 0.3855637 | R200: 0.2756893 | S200: 0.0016126 | T200: 0.03556 | U200: 0.1486594 | V200: 0.0760046 | W200: 2 | X200: 3 | Y200: 3 | Z200: =(S200+T200)/2 -> 0.0185863
... 91 more rows

Sheet AssessTeamEstimates
A1: RecNo | B1: ID | C1: UC_C | D1: UC_NAME | E1: NoHHError | F1: x1Error | G1: x2Error | H1: x3Error | I1: x4Error | J1: NoHH | K1: x1 | L1: x2 | M1: x3 | N1: x4 | O1: u1 | P1: u2 | Q1: u3 | R1: u4 | S1: b1 | T1: b2 | U1: b3 | V1: b4
A2: 1 | B2: 411 | C2: 600162 | D2: Shadan Lund | E2: -1.130542842 | F2: -0.2345745997 | G2: 0.38000735 | H2: 2.169690561 | I2: -0.1448961484 | K2: =RealityLayer!K2 + F2*errorX -> -2.1473603 | L2: =RealityLayer!L2 + G2*errorX -> -1.037881325 | M2: =RealityLayer!M2 + H2*errorX -> -0.2784047197 | N2: =RealityLayer!N2 + I2*errorX -> -2.685159074 | O2: =NORMDIST(K2,0,1,TRUE) -> 0.01588230433 | P2: =NORMDIST(L2,0,1,TRUE) -> 0.1496626544 | Q2: 0.3903508484 | R2: 0.003624764656 | S2: =BETADIST(O2,2,1) -> 0.000252247591 | T2: =BETADIST(P2,2,1) -> 0.02239891013 | U2: 0.1523737849 | V2: 1.313891881e-05
A3: 2 | B3: 208 | C3: 600592 | D3: Jhoran | E3: -0.7479638953 | F3: -0.7880339581 | G3: -0.5791071089 | H3: -0.4719220215 | I3: -1.963198883 | K3: =RealityLayer!K3 + F3*errorX -> -1.686381979 | L3: =RealityLayer!L3 + G3*errorX -> -1.705710554 | M3: =RealityLayer!M3 + H3*errorX -> -1.849473011 | N3: =RealityLayer!N3 + I3*errorX -> -2.351229442 | O3: =NORMDIST(K3,0,1,TRUE) -> 0.04586112509 | P3: =NORMDIST(L3,0,1,TRUE) -> 0.0440309918 | Q3: =NORMDIST(M3,0,1,TRUE) -> 0.03219477073 | R3: =NORMDIST(N3,0,1,TRUE) -> 0.009355745956 | S3: =BETADIST(O3,2,1) -> 0.002103242794 | T3: =BETADIST(P3,2,1) -> 0.001938728239 | U3: =BETADIST(Q3,2,1) -> 0.001036503262 | V3: =BETADIST(R3,2,1) -> 8.75299824e-05
A4: 3 | B4: 414 | C4: 600559 | D4: Shah Jamal | E4: -0.2975923508 | F4: 0.2108913577 | G4: 0.0934255695 | H4: -0.3337777343 | I4: -0.7819949133 | K4: =RealityLayer!K4 + F4*errorX -> 0.3023264789 | L4: =RealityLayer!L4 + G4*errorX -> -0.05093001525 | M4: =RealityLayer!M4 + H4*errorX -> -0.8912078672 | N4: =RealityLayer!N4 + I4*errorX -> -0.5377846566 | O4: 0.6187984025 | P4: 0.4796906439 | Q4: 0.1864088323 | R4: 0.295362863 | S4: 0.3829114629 | T4: 0.2301031139 | U4: 0.03474825277 | V4: 0.08723922082
A5: 4 | B5: 183 | C5: 600209 | D5: Husan Khan | E5: 1.133591923 | F5: -1.152707227 | G5: 0.7948347047 | H5: 0.9440100257 | I5: -0.6679488251 | K5: =RealityLayer!K5 + F5*errorX -> -1.188785214 | L5: =RealityLayer!L5 + G5*errorX -> -0.3030573476 | M5: =RealityLayer!M5 + H5*errorX -> -1.219736987 | N5: =RealityLayer!N5 + I5*errorX -> -2.314949413 | O5: 0.117262099 | P5: 0.3809230791 | Q5: 0.1112822977 | R5: 0.01030785036 | S5: 0.01375039986 | T5: 0.1451023922 | U5: 0.01238374979 | V5: 0.000106251779
A6: 5 | B6: 177 | C6: 600245 | D6: Haveli Bahadar Shah | E6: 1.662674549 | F6: 0.2202091309 | G6: -2.311353455 | H6: 0.3977470442 | I6: 0.7539483704 | K6: =RealityLayer!K6 + F6*errorX -> -1.057454435 | L6: =RealityLayer!L6 + G6*errorX -> -2.663929728 | M6: =RealityLayer!M6 + H6*errorX -> -0.8375914779 | N6: =RealityLayer!N6 + I6*errorX -> 0.2179027852 | O6: 0.1451521198 | P6: 0.003861684745 | Q6: 0.2011300904 | R6: 0.5862475715 | S6: 0.02106913788 | T6: 1.491260907e-05 | U6: 0.04045331325 | V6: 0.3436862151
A7: 6 | B7: 468 | C7: 600577 | D7: Utra Sandaila | E7: -0.3213472155 | F7: 1.026542122 | G7: 0.4151957 | H7: 1.111188794 | I7: 0.7228004506 | K7: =RealityLayer!K7 + F7*errorX -> 1.471405161 | L7: =RealityLayer!L7 + G7*errorX -> 1.17883185 | M7: =RealityLayer!M7 + H7*errorX -> 0.6161905972 | N7: =RealityLayer!N7 + I7*errorX -> 0.2531051253 | O7: 0.9294092108 | P7: 0.8807674305 | Q7: 0.7311156332 | R7: 0.5999065108 | S7: 0.8638014811 | T7: 0.7757512666 | U7: 0.5345300691 | V7: 0.3598878217
A8: 7 | B8: 482 | C8: 600234 | D8: Wasu Aastana | E8: 0.4272328624 | F8: -0.6674713404 | G8: 1.323851393 | H8: -0.360427066 | I8: -0.6386881068 | K8: =RealityLayer!K8 + F8*errorX -> -0.9276191702 | L8: =RealityLayer!L8 + G8*errorX -> 0.4444261965 | M8: =RealityLayer!M8 + H8*errorX -> -0.897605233 | N8: =RealityLayer!N8 + I8*errorX -> -1.996797053 | O8: 0.176802575 | P8: 0.6716327614 | Q8: 0.1846980241 | R8: 0.0229236169 | S8: 0.03125915054 | T8: 0.4510905662 | U8: 0.03411336011 | V8: 0.0005254922119
A9: 8 | B9: 163 | C9: 600256 | D9: Girot | E9: 0.6796608432 | F9: -0.600224439 | G9: -0.05683091331 | H9: 0.8665642781 | I9: 0.6646064321 | K9: =RealityLayer!K9 + F9*errorX -> -0.5488000195 | L9: =RealityLayer!L9 + G9*errorX -> 0.4775610433 | M9: =RealityLayer!M9 + H9*errorX -> -0.5296382609 | N9: =RealityLayer!N9 + I9*errorX -> 0.1640813161 | O9: 0.2915713485 | P9: 0.6835186681 | Q9: 0.2981813807 | R9: 0.565166435 | S9: 0.08501385124 | T9: 0.4671977697 | U9: 0.08891213578 | V9: 0.3194130992
A10: 9 | B10: 270 | C10: 600471 | D10: Langar Wah | E10: -0.242130227 | F10: 0.5539573067 | G10: -0.4504818207 | H10: -0.6077516446 | I10: -0.3252159786 | K10: =RealityLayer!K10 + F10*errorX -> 1.766872653 | L10: =RealityLayer!L10 + G10*errorX -> 0.2883731896 | M10: =RealityLayer!M10 + H10*errorX -> -0.2298848223 | N10: =RealityLayer!N10 + I10*errorX -> 0.2989054107 | O10: 0.9613752211 | P10: 0.613469456 | Q10: 0.4090906353 | R10: 0.6174938907 | S10: 0.9242423158 | T10: 0.3763447734 | U10: 0.1673551479 | V10: 0.381298705
A11: 10 | B11: 277 | C11: 600684 | D11: Machka | E11: 0.8582424016 | F11: -0.9724612937 | G11: -1.896733011 | H11: -0.3901413947 | I11: 1.394346327 | K11: =RealityLayer!K11 + F11*errorX -> 2.060345353 | L11: =RealityLayer!L11 + G11*errorX -> 1.457771495 | M11: =RealityLayer!M11 + H11*errorX -> 1.397426303 | N11: =RealityLayer!N11 + I11*errorX -> 1.820794164 | O11: 0.9803172315 | P11: 0.9275482311 | Q11: 0.9188572929 | R11: 0.9656809241 | S11: 0.9610218743 | T11: 0.860345721 | U11: 0.8442987248 | V11: 0.9325396471
A12: 11 | B12: 392 | C12: 600724 | D12: Rojhan | E12: -0.3803370419 | F12: 1.516477823 | G12: -1.36755034 | H12: 0.7572043614 | I12: -0.6655614015 | K12: =RealityLayer!K12 + F12*errorX -> 1.401876312 | L12: =RealityLayer!L12 + G12*errorX -> 0.06407813018 | M12: =RealityLayer!M12 + H12*errorX -> 0.6160801807 | N12: =RealityLayer!N12 + I12*errorX -> 0.1565513992 | O12: 0.9195239073 | P12: 0.5255459922 | Q12: 0.731079199 | R12: 0.562200796 | S12: 0.8455242161 | T12: 0.2761985899 | U12: 0.5344767952 | V12: 0.3160697351
A13: 12 | B13: 471 | C13: 600166 | D13: Wadoor | E13: 0.7387870937 | F13: -1.262942533 | G13: 0.6855520951 | H13: -0.1514706582 | I13: -0.8130109563 | K13: =RealityLayer!K13 + F13*errorX -> -0.3934830664 | L13: =RealityLayer!L13 + G13*errorX -> 0.07336384755 | M13: =RealityLayer!M13 + H13*errorX -> -1.049067229 | N13: =RealityLayer!N13 + I13*errorX -> -0.8259456782 | O13: 0.3469813643 | P13: 0.5292417072 | Q13: 0.1470735888 | R13: 0.2044174537 | S13: 0.1203960671 | T13: 0.2800967847 | U13: 0.02163064051 | V13: 0.04178649537
A14: 13 | B14: 187 | C14: 600709 | D14: Jahanpur | E14: 0.5480819709 | F14: -0.1688272278 | G14: -0.9814630175 | H14: -2.054594006 | I14: 0.05920583135 | K14: =RealityLayer!K14 + F14*errorX -> 0.7823330861 | L14: =RealityLayer!L14 + G14*errorX -> 1.067278491 | M14: =RealityLayer!M14 + H14*errorX -> -0.884059503 | N14: =RealityLayer!N14 + I14*errorX -> 0.7376324157 | O14: 0.7829905764 | P14: 0.8570769511 | Q14: 0.1883320464 | R14: 0.7696310742 | S14: 0.6130742427 | T14: 0.7345809002 | U14: 0.03546895969 | V14: 0.5923319904
A15: 14 | B15: 252 | C15: 600214 | D15: Kot Shakir | E15: 0.3638581347 | F15: -0.3970012585 | G15: 0.5758533916 | H15: 0.4508194706 | I15: 0.06395794117 | K15: =RealityLayer!K15 + F15*errorX -> -0.6878003293 | L15: =RealityLayer!L15 + G15*errorX -> 0.7697818958 | M15: =RealityLayer!M15 + H15*errorX -> -0.8205822647 | N15: =RealityLayer!N15 + I15*errorX -> -0.5010280294 | O15: 0.2457892644 | P15: 0.7792853597 | Q15: 0.2059421266 | R15: 0.3081756983 | S15: 0.06041236248 | T15: 0.6072856718 | U15: 0.04241215951 | V15: 0.09497226101
A16: 15 | B16: 429 | C16: 600719 | D16: Sikhani Wala | E16: -0.004015419108 | F16: -0.1761259227 | G16: -0.5698143468 | H16: 0.4432115475 | I16: -0.08052438716 | K16: =RealityLayer!K16 + F16*errorX -> 1.692332039 | L16: =RealityLayer!L16 + G16*errorX -> 1.135091827 | M16: =RealityLayer!M16 + H16*errorX -> 1.467717774 | N16: =RealityLayer!N16 + I16*errorX -> 0.1113620064 | O16: 0.9547086588 | P16: 0.8718315771 | Q16: 0.9289095496 | R16: 0.5443353565 | S16: 0.9114686232 | T16: 0.7600902988 | U16: 0.8628729514 | V16: 0.2963009803
A17: 16 | B17: 218 | C17: 600546 | D17: Karimdad Qureshi | E17: -0.5587799023 | F17: -0.1222815627 | G17: 0.9297718861 | H17: -0.204169055 | I17: -1.279415756 | K17: =RealityLayer!K17 + F17*errorX -> -0.02062138133 | L17: =RealityLayer!L17 + G17*errorX -> 0.5626176431 | M17: =RealityLayer!M17 + H17*errorX -> 0.0332902725 | N17: =RealityLayer!N17 + I17*errorX -> -0.2202927778 | O17: 0.4917738421 | P17: 0.7131523623 | Q17: 0.5132784446 | R17: 0.4128215723 | S17: 0.2418415118 | T17: 0.5085862918 | U17: 0.2634547617 | V17: 0.1704216505
A18: 17 | B18: 430 | C18: 600514 | D18: Sinawan | E18: -0.4137780252 | F18: -0.7792982615 | G18: 1.760936357 | H18: 0.2563342605 | I18: 0.1576643172 | K18: =RealityLayer!K18 + F18*errorX -> -0.04461183074 | L18: =RealityLayer!L18 + G18*errorX -> 1.543990878 | M18: =RealityLayer!M18 + H18*errorX -> 0.4438665302 | N18: =RealityLayer!N18 + I18*errorX -> 0.7025445586 | O18: 0.4822083562 | P18: 0.9387047288 | Q18: 0.6714304579 | R18: 0.7588301881 | S18: 0.2325248988 | T18: 0.8811665679 | U18: 0.4508188598 | V18: 0.5758232544
A19: 18 | B19: 212 | C19: 600335 | D19: Kala Bagh | E19: -1.538837751 | F19: 0.9172345017 | G19: -1.622011041 | H19: 0.00807062861 | I19: -0.8318943401 | K19: =RealityLayer!K19 + F19*errorX -> -0.1543513492 | L19: =RealityLayer!L19 + G19*errorX -> -0.5534163205 | M19: =RealityLayer!M19 + H19*errorX -> -0.0612232857 | N19: =RealityLayer!N19 + I19*errorX -> 0.61333383 | O19: 0.4386663558 | P19: 0.289989183 | Q19: 0.4755906926 | R19: 0.7301721856 | S19: 0.1924281717 | T19: 0.08409372623 | U19: 0.2261865069 | V19: 0.5331514206
A20: 19 | B20: 384 | C20: 600224 | D20: Rashidpur | E20: 1.930129656 | F20: -0.04978232937 | G20: 0.6079358172 | H20: 0.01021248863 | I20: 0.3398486115 | K20: =RealityLayer!K20 + F20*errorX -> -0.5498692647 | L20: =RealityLayer!L20 + G20*errorX -> -0.3693115914 | M20: =RealityLayer!M20 + H20*errorX -> -1.567908756 | N20: =RealityLayer!N20 + I20*errorX -> -1.220393694 | O20: 0.2912045233 | P20: 0.3559477433 | Q20: 0.05845121406 | R20: 0.1111578333 | S20: 0.08480007438 | T20: 0.126698796 | U20: 0.003416544426 | V20: 0.01235606391
A21: 20 | B21: 19 | C21: 600371 | D21: Allu Wali | E21: -0.4486196303 | F21: -1.005776085 | G21: 1.861417331 | H21: -2.287670213 | I21: 0.8459232959 | K21: =RealityLayer!K21 + F21*errorX -> -0.8533731423 | L21: =RealityLayer!L21 + G21*errorX -> 0.08611676569 | M21: =RealityLayer!M21 + H21*errorX -> -1.620906007 | N21: =RealityLayer!N21 + I21*errorX -> 0.5370491479 | O21: 0.1967262053 | P21: 0.534313202 | Q21: 0.05251889923 | R21: 0.7043831672 | S21: 0.03870119984 | T21: 0.2854905978 | U21: 0.002758234776 | V21: 0.4961556463
A22: 21 | B22: 268 | C22: 600172 | D22: Lakhani | E22: -1.093908395 | F22: -1.100331701 | G22: -0.6804316399 | H22: 0.5425772542 | I22: -1.38570158 | K22: =RealityLayer!K22 + F22*errorX -> -0.9042458507 | L22: =RealityLayer!L22 + G22*errorX -> -1.65794982 | M22: =RealityLayer!M22 + H22*errorX -> -1.227197373 | N22: =RealityLayer!N22 + I22*errorX -> -1.62930989 | O22: 0.1829325263 | P22: 0.0486637976 | Q22: 0.1098742083 | R22: 0.05162371677 | S22: 0.03346430918 | T22: 0.002368165197 | U22: 0.01207234165 | V22: 0.002665008133
A23: 22 | B23: 41 | C23: 600316 | D23: Bait Wasawa Shumali | E23: 0.7891821951 | F23: -0.1852242804 | G23: -1.915077519 | H23: 0.9921677702 | I23: -0.05108518053 | K23: =RealityLayer!K23 + F23*errorX -> 0.2053785598 | L23: =RealityLayer!L23 + G23*errorX -> -0.03540365939 | M23: =RealityLayer!M23 + H23*errorX -> 1.234605685 | N23: =RealityLayer!N23 + I23*errorX -> 0.6927210097 | O23: 0.581361815 | P23: 0.4858789334 | Q23: 0.8915113539 | R23: 0.7557576742 | S23: 0.3379815599 | T23: 0.2360783379 | U23: 0.7947924942 | V23: 0.5711696621
A24: 23 | B24: 147 | C24: 600143 | D24: Gadai | E24: -1.481885192 | F24: -1.532616807 | G24: -0.2068259164 | H24: 1.986309144 | I24: -1.871458153 | K24: =RealityLayer!K24 + F24*errorX -> -2.173954403 | L24: =RealityLayer!L24 + G24*errorX -> -0.8587215582 | M24: =RealityLayer!M24 + H24*errorX -> 0.3214217719 | N24: =RealityLayer!N24 + I24*errorX -> -2.008861076 | O24: 0.01485427985 | P24: 0.1952470768 | Q24: 0.6260546069 | R24: 0.02227593441 | S24: 0.0002206496298 | T24: 0.03812142101 | U24: 0.3919443709 | V24: 0.0004962172539
A25: 24 | B25: 492 | C25: 600733 | D25: Chanab Rasoolpur | E25: -0.3291711437 | F25: -0.6172581379 | G25: -1.770386007 | H25: -0.8883739611 | I25: -0.4392484243 | K25: =RealityLayer!K25 + F25*errorX -> -1.744992069 | L25: =RealityLayer!L25 + G25*errorX -> -1.632166603 | M25: =RealityLayer!M25 + H25*errorX -> -1.268116881 | N25: =RealityLayer!N25 + I25*errorX -> -1.138443512 | O25: 0.04049312476 | P25: 0.05132219704 | Q25: 0.1023781071 | R25: 0.1274676668 | S25: 0.001639693153 | T25: 0.002633967909 | U25: 0.0104812768 | V25: 0.01624800608
A26: 25 | B26: 368 | C26: 600248 | D26: Qaim Bharwana | E26: 0.6409402431 | F26: 0.4593039193 | G26: 0.9619589036 | H26: 0.1891942247 | I26: 1.193188837 | K26: =RealityLayer!K26 + F26*errorX -> -0.4348075403 | L26: =RealityLayer!L26 + G26*errorX -> -0.6614255482 | M26: =RealityLayer!M26 + H26*errorX -> -1.168966888 | N26: =RealityLayer!N26 + I26*errorX -> 0.01351831831 | O26: 0.3318510656 | P26: 0.2541697231 | Q26: 0.1212084863 | R26: 0.5053928645 | S26: 0.1101251298 | T26: 0.06460224815 | U26: 0.01469149714 | V26: 0.2554219475
A27: 26 | B27: 221 | C27: 600307 | D27: Karor Thal Jandi | E27: -0.3597745035 | F27: -0.9099198905 | G27: -1.265493665 | H27: -0.6176276202 | I27: -0.8116285244 | K27: =RealityLayer!K27 + F27*errorX -> -0.5694877453 | L27: =RealityLayer!L27 + G27*errorX -> -0.2050043327 | M27: =RealityLayer!M27 + H27*errorX -> -1.64098281 | N27: =RealityLayer!N27 + I27*errorX -> -0.9003620622 | O27: 0.2845125924 | P27: 0.41878437 | Q27: 0.05040049178 | R27: 0.1839638016 | S27: 0.08094741525 | T27: 0.1753803485 | U27: 0.002540209571 | V27: 0.03384268031
A28: 27 | B28: 299 | C28: 600506 | D28: Mehmood Kot | E28: 1.279242952 | F28: -0.4487878869 | G28: 1.555035851 | H28: 0.6064647096 | I28: -1.689795681 | K28: =RealityLayer!K28 + F28*errorX -> 1.444811057 | L28: =RealityLayer!L28 + G28*errorX -> 2.706581926 | M28: =RealityLayer!M28 + H28*errorX -> 0.03075325478 | N28: =RealityLayer!N28 + I28*errorX -> -0.5259398406 | O28: 0.9257445177 | P28: 0.9966010097 | Q28: 0.51226684 | R28: 0.2994650032 | S28: 0.8570029121 | T28: 0.9932135725 | U28: 0.2624173153 | V28: 0.08967928817
A29: 28 | B29: 54 | C29: 600317 | D29: Basti Shadoo Khan | E29: 1.066623554 | F29: -0.822523134 | G29: -1.371849976 | H29: -0.3807474513 | I29: -0.5491483535 | K29: =RealityLayer!K29 + F29*errorX -> 0.744648433 | L29: =RealityLayer!L29 + G29*errorX -> -0.4601089879 | M29: =RealityLayer!M29 + H29*errorX -> 1.375297274 | N29: =RealityLayer!N29 + I29*errorX -> 1.039640823 | O29: 0.7717578597 | P29: 0.3227189965 | Q29: 0.9154803494 | R29: 0.8507465984 | S29: 0.595610194 | T29: 0.1041475507 | U29: 0.8381042701 | V29: 0.7237697747
A30: 29 | B30: 241 | C30: 600188 | D30: Kot Mapal | E30: -0.2957540346 | F30: -0.04648882168 | G30: -0.7128051038 | H30: 0.8377469385 | I30: -0.8977190191 | K30: =RealityLayer!K30 + F30*errorX -> -0.5825538108 | L30: =RealityLayer!L30 + G30*errorX -> -0.3219337519 | M30: =RealityLayer!M30 + H30*errorX -> -1.674869531 | N30: =RealityLayer!N30 + I30*errorX -> -1.66151051 | O30: 0.2800968535 | P30: 0.3737514415 | Q30: 0.04697991648 | R30: 0.04830547998 | S30: 0.07845424732 | T30: 0.13969014 | U30: 0.002207112552 | V30: 0.002333419396
A31: 30 | B31: 426 | C31: 600661 | D31: Sherin | E31: 0.3627133083 | F31: -0.07860649021 | G31: 0.747154445 | H31: 1.129383236 | I31: 1.675302883 | K31: =RealityLayer!K31 + F31*errorX -> 0.2426332549 | L31: =RealityLayer!L31 + G31*errorX -> 1.548077222 | M31: =RealityLayer!M31 + H31*errorX -> 1.506055618 | N31: =RealityLayer!N31 + I31*errorX -> 1.709879242 | O31: 0.5958552414 | P31: 0.9391981473 | Q31: 0.9339735517 | R31: 0.9563558971 | S31: 0.3550434687 | T31: 0.88209316 | U31: 0.8723065953 | V31: 0.9146166019
A32: 31 | B32: 150 | C32: 600542 | D32: Garewahan | E32: 1.071637143 | F32: -0.4176979473 | G32: 1.068788151 | H32: -0.5596746178 | I32: 1.485564098 | K32: =RealityLayer!K32 + F32*errorX -> 0.3220546263 | L32: =RealityLayer!L32 + G32*errorX -> 0.9968148757 | M32: =RealityLayer!M32 + H32*errorX -> -0.08986780888 | N32: =RealityLayer!N32 + I32*errorX -> 0.9792389492 | O32: 0.6262943443 | P32: 0.8405728118 | Q32: 0.4641961312 | R32: 0.8362690361 | S32: 0.3922446057 | T32: 0.706562652 | U32: 0.2154780482 | V32: 0.6993459007
A33: 32 | B33: 315 | C33: 600473 | D33: Murad Pur Janubi | E33: 2.735650924 | F33: 1.349646936 | G33: -1.791304385 | H33: 1.611833795 | I33: -0.8997812984 | K33: =RealityLayer!K33 + F33*errorX -> 1.026917368 | L33: =RealityLayer!L33 + G33*errorX -> -0.2995389924 | M33: =RealityLayer!M33 + H33*errorX -> 1.194900998 | N33: =RealityLayer!N33 + I33*errorX -> -0.6821022492 | O33: 0.8477703124 | P33: 0.3822644126 | Q33: 0.8839371435 | R33: 0.2475871493 | S33: 0.7187145026 | T33: 0.1461260812 | U33: 0.7813448736 | V33: 0.06129939648
A34: 33 | B34: 155 | C34: 600587 | D34: Ghana Lar | E34: 0.249463028 | F34: -0.286336217 | G34: -0.8990946299 | H34: -1.958487701 | I34: -1.076675744 | K34: =RealityLayer!K34 + F34*errorX -> -1.901686108 | L34: =RealityLayer!L34 + G34*errorX -> -1.857940315 | M34: =RealityLayer!M34 + H34*errorX -> -2.58330085 | N34: =RealityLayer!N34 + I34*errorX -> -1.619037872 | O34: 0.02860610151 | P34: 0.03158874526 | Q34: 0.004892997311 | R34: 0.0527195574 | S34: 0.0008183090438 | T34: 0.0009978488272 | U34: 2.394142269e-05 | V34: 0.002779351732
A35: 34 | B35: 416 | C35: 600163 | D35: Shah Sadar Din | E35: -0.3088860012 | F35: 1.349835657 | G35: -1.477997102 | H35: -0.4161961442 | I35: 0.7100447874 | K35: =RealityLayer!K35 + F35*errorX -> -0.8613991717 | L35: =RealityLayer!L35 + G35*errorX -> -2.092632551 | M35: =RealityLayer!M35 + H35*errorX -> 0.03538342789 | N35: =RealityLayer!N35 + I35*errorX -> -0.1961560063 | O35: 0.194509116 | P35: 0.01819098423 | Q35: 0.5141130005 | R35: 0.4222440305 | S35: 0.03783379623 | T35: 0.0003309119074 | U35: 0.2643121773 | V35: 0.1782900213
A36: 35 | B36: 364 | C36: 600715 | D36: Pir Bux Sharqi | E36: 1.435346348 | F36: -0.5635263278 | G36: 0.560121407 | H36: -0.8605661606 | I36: -1.411331141 | K36: =RealityLayer!K36 + F36*errorX -> 0.9929038361 | L36: =RealityLayer!L36 + G36*errorX -> 1.618232704 | M36: =RealityLayer!M36 + H36*errorX -> 0.7344709197 | N36: =RealityLayer!N36 + I36*errorX -> 0.3951794296 | O36: 0.8396215899 | P36: 0.9471937713 | Q36: 0.7686691113 | R36: 0.6536447637 | S36: 0.7049644142 | T36: 0.8971760403 | U36: 0.5908522027 | V36: 0.4272514771
A37: 36 | B37: 104 | C37: 600202 | D37: Chhatta | E37: -1.291123226 | F37: 0.05368974598 | G37: 0.9041468729 | H37: 0.5640640666 | I37: 0.6415984899 | K37: =RealityLayer!K37 + F37*errorX -> -0.951256527 | L37: =RealityLayer!L37 + G37*errorX -> -0.2007900635 | M37: =RealityLayer!M37 + H37*errorX -> -0.009773966717 | N37: =RealityLayer!N37 + I37*errorX -> 0.4813196449 | O37: 0.1707370848 | P37: 0.4204313664 | Q37: 0.4961008135 | R37: 0.6848553315 | S37: 0.02915115212 | T37: 0.1767625339 | U37: 0.2461160172 | V37: 0.4690268251
A38: 37 | B38: 304 | C38: 600507 | D38: Mirpur Bhagal | E38: 0.9056452654 | F38: 0.5552965376 | G38: -0.3332115739 | H38: 0.5735068953 | I38: -0.8957749742 | K38: =RealityLayer!K38 + F38*errorX -> 0.5004494688 | L38: =RealityLayer!L38 + G38*errorX -> -0.1588393869 | M38: =RealityLayer!M38 + H38*errorX -> -0.8137325523 | N38: =RealityLayer!N38 + I38*errorX -> -0.9281827871 | O38: 0.6916206859 | P38: 0.4368977082 | Q38: 0.2078990907 | R38: 0.1766563808 | S38: 0.4783391731 | T38: 0.1908796074 | U38: 0.04322203193 | V38: 0.03120747688
A39: 38 | B39: 466 | C39: 600576 | D39: Usman Koria | E39: -0.5154765859 | F39: 0.576394541 | G39: 0.4018068012 | H39: -0.4381536201 | I39: -0.742006705 | K39: =RealityLayer!K39 + F39*errorX -> 1.49586327 | L39: =RealityLayer!L39 + G39*errorX -> 1.298542401 | M39: =RealityLayer!M39 + H39*errorX -> 0.15587479 | N39: =RealityLayer!N39 + I39*errorX -> -0.5712488525 | O39: 0.9326553553 | P39: 0.9029494919 | Q39: 0.5619341415 | R39: 0.2839154836 | S39: 0.8698460117 | T39: 0.815317785 | U39: 0.3157699793 | V39: 0.08060800184
A40: 39 | B40: 63 | C40: 600238 | D40: Bodh Rajbana | E40: -1.296953087 | F40: -0.4871117198 | G40: -0.9533687262 | H40: 0.4870253179 | I40: 0.1751936907 | K40: =RealityLayer!K40 + F40*errorX -> -1.07345286 | L40: =RealityLayer!L40 + G40*errorX -> -0.4378665631 | M40: =RealityLayer!M40 + H40*errorX -> -0.6873340411 | N40: =RealityLayer!N40 + I40*errorX -> -0.5466650547 | O40: 0.1415339892 | P40: 0.3307415077 | Q40: 0.245936126 | R40: 0.2923044332 | S40: 0.0200318701 | T40: 0.1093899449 | U40: 0.06048457809 | V40: 0.08544188168
A41: 40 | B41: 378 | C41: 600716 | D41: Rakh Fazil Pur | E41: -1.836897354 | F41: 0.1981584319 | G41: 0.9182826943 | H41: 1.269249879 | I41: -0.1543344297 | K41: =RealityLayer!K41 + F41*errorX -> 1.419444216 | L41: =RealityLayer!L41 + G41*errorX -> 1.295560247 | M41: =RealityLayer!M41 + H41*errorX -> 1.638074939 | N41: =RealityLayer!N41 + I41*errorX -> 1.166215785 | O41: 0.9221152253 | P41: 0.9024364839 | Q41: 0.949296969 | R41: 0.878236394 | S41: 0.8502964888 | T41: 0.8143916074 | U41: 0.9011647353 | V41: 0.7712991637
A42: 41 | B42: 56 | C42: 600480 | D42: Beelay Wala | E42: -0.1240539405 | F42: -0.9981931726 | G42: -0.3673744686 | H42: 0.322716005 | I42: -0.7236963029 | K42: =RealityLayer!K42 + F42*errorX -> -0.8851220863 | L42: =RealityLayer!L42 + G42*errorX -> -0.1802638343 | M42: =RealityLayer!M42 + H42*errorX -> 0.7845388025 | N42: =RealityLayer!N42 + I42*errorX -> 0.07731214856 | O42: 0.1880453943 | P42: 0.4284727233 | Q42: 0.7836379885 | R42: 0.5308123867 | S42: 0.03536107031 | T42: 0.1835888746 | U42: 0.614088497 | V42: 0.2817617898
A43: 42 | B43: 124 | C43: 600679 | D43: Dhandi | E43: 0.3617333277 | F43: 0.7631274457 | G43: 0.4029675438 | H43: 0.2317449344 | I43: -0.6348454917 | K43: =RealityLayer!K43 + F43*errorX -> 0.9598233228 | L43: =RealityLayer!L43 + G43*errorX -> 1.393020772 | M43: =RealityLayer!M43 + H43*errorX -> 1.087821767 | N43: =RealityLayer!N43 + I43*errorX -> 1.018353254 | O43: 0.831427929 | P43: 0.9181932453 | Q43: 0.8616631009 | R43: 0.8457449456 | S43: 0.691272401 | T43: 0.8430788357 | U43: 0.7424632995 | V43: 0.715284513
A44: 43 | B44: 68 | C44: 600498 | D44: Budh | E44: 0.6297068467 | F44: 0.284185262 | G44: -0.416112016 | H44: 1.135485945 | I44: -0.556010491 | K44: =RealityLayer!K44 + F44*errorX -> -0.160252769 | L44: =RealityLayer!L44 + G44*errorX -> -0.284299808 | M44: =RealityLayer!M44 + H44*errorX -> 0.6025097726 | N44: =RealityLayer!N44 + I44*errorX -> -1.007603145 | O44: 0.4363409814 | P44: 0.3880903166 | Q44: 0.72658257 | R44: 0.1568225091 | S44: 0.1903934521 | T44: 0.1506140939 | U44: 0.527922231 | V44: 0.02459329937
A45: 44 | B45: 412 | C45: 600512 | D45: Shadi Khan Munda | E45: -2.210072125 | F45: -0.4365540462 | G45: -1.050150331 | H45: -0.9571112969 | I45: 1.123326001 | K45: =RealityLayer!K45 + F45*errorX -> 0.4287990769 | L45: =RealityLayer!L45 + G45*errorX -> 0.8504578344 | M45: =RealityLayer!M45 + H45*errorX -> -0.008188948442 | N45: =RealityLayer!N45 + I45*errorX -> 1.535788601 | O45: 0.6659652746 | P45: 0.8024647032 | Q45: 0.4967331187 | R45: 0.9377048818 | S45: 0.443509747 | T45: 0.6439495998 | U45: 0.2467437913 | V45: 0.8792904453
A46: 45 | B46: 257 | C46: 600323 | D46: Kotla Haji Shah | E46: -0.1477576461 | F46: -0.5634365152 | G46: 0.9718496585 | H46: -1.087391865 | I46: -0.5606591458 | K46: =RealityLayer!K46 + F46*errorX -> 1.226653742 | L46: =RealityLayer!L46 + G46*errorX -> 2.148282829 | M46: =RealityLayer!M46 + H46*errorX -> -0.8525375327 | N46: =RealityLayer!N46 + I46*errorX -> -1.479845573 | O46: 0.8900236197 | P46: 0.9841543529 | Q46: 0.1969579083 | R46: 0.06945723172 | S46: 0.7921420435 | T46: 0.9685597904 | U46: 0.03879241765 | V46: 0.004824307038
A47: 46 | B47: 437 | C47: 600341 | D47: Sultan Khel | E47: -0.1374019121 | F47: -0.5506603884 | G47: 1.248636181 | H47: 1.143391728 | I47: -0.1435046215 | K47: =RealityLayer!K47 + F47*errorX -> -0.5709580942 | L47: =RealityLayer!L47 + G47*errorX -> 1.397928191 | M47: =RealityLayer!M47 + H47*errorX -> -0.340115636 | N47: =RealityLayer!N47 + I47*errorX -> -1.583379311 | O47: 0.2840140248 | P47: 0.9189326839 | Q47: 0.3668847236 | R47: 0.05666751785 | S47: 0.08066396626 | T47: 0.8444372775 | U47: 0.1346044004 | V47: 0.003211207579
A48: 47 | B48: 134 | C48: 600142 | D48: Drahma | E48: -1.353841981 | F48: 1.799739948 | G48: 0.8087602055 | H48: 0.7762946552 | I48: -0.2740034688 | K48: =RealityLayer!K48 + F48*errorX -> 0.3353481741 | L48: =RealityLayer!L48 + G48*errorX -> 0.1136847027 | M48: =RealityLayer!M48 + H48*errorX -> 1.368455628 | N48: =RealityLayer!N48 + I48*errorX -> -0.2648254344 | O48: 0.6313187711 | P48: 0.5452561303 | Q48: 0.9144152489 | R48: 0.3955719712 | S48: 0.3985633908 | T48: 0.2973042477 | U48: 0.8361552475 | V48: 0.1564771844
A49: 48 | B49: 390 | C49: 600724 | D49: Rojhan | E49: -0.436469918 | F49: -1.074085958 | G49: -0.002868318916 | H49: 0.1222815627 | I49: -1.437492756 | K49: =RealityLayer!K49 + F49*errorX -> 0.02993062102 | L49: =RealityLayer!L49 + G49*errorX -> 0.4103294405 | M49: =RealityLayer!M49 + H49*errorX -> 1.058029481 | N49: =RealityLayer!N49 + I49*errorX -> -0.400758978 | O49: 0.5119388076 | P49: 0.6592178508 | Q49: 0.854978999 | R49: 0.3442987919 | S49: 0.2620813428 | T49: 0.4345681748 | U49: 0.7309890888 | V49: 0.1185416581
A50: 49 | B50: 170 | C50: 600169 | D50: Hairosharqi | E50: 0.9939208212 | F50: 1.254159088 | G50: -1.804010026 | H50: -1.097673703 | I50: -0.1375565262 | K50: =RealityLayer!K50 + F50*errorX -> 0.2136503438 | L50: =RealityLayer!L50 + G50*errorX -> -1.083524213 | M50: =RealityLayer!M50 + H50*errorX -> 0.1265434485 | N50: =RealityLayer!N50 + I50*errorX -> -0.3545186631 | O50: 0.5845901315 | P50: 0.1392879048 | Q50: 0.5503491207 | R50: 0.36147511 | S50: 0.3417456218 | T50: 0.01940112042 | U50: 0.3028841547 | V50: 0.1306642551
A51: 50 | B51: 108 | C51: 600140 | D51: Choti Zareen | E51: 0.3956779437 | F51: -0.7864696272 | G51: 0.4725211511 | H51: -0.8950905794 | I51: -0.2549109013 | K51: =RealityLayer!K51 + F51*errorX -> -1.806503814 | L51: =RealityLayer!L51 + G51*errorX -> -0.8395414245 | M51: =RealityLayer!M51 + H51*errorX -> -1.99160029 | N51: =RealityLayer!N51 + I51*errorX -> -0.6625814506 | O51: 0.0354198395 | P51: 0.2005827768 | Q51: 0.02320746579 | R51: 0.2537993267 | S51: 0.00125456503 | T51: 0.04023345036 | U51: 0.0005385864682 | V51: 0.06441409825
A52: 51 | B52: 209 | C52: 600485 | D52: Jhuggi Wala | E52: 0.8227380022 | F52: -0.3597745035 | G52: -0.4547177923 | H52: -0.7880339581 | I52: -0.280920176 | K52: =RealityLayer!K52 + F52*errorX -> -0.2260655518 | L52: =RealityLayer!L52 + G52*errorX -> -0.8335413962 | M52: =RealityLayer!M52 + H52*errorX -> 1.092159021 | N52: =RealityLayer!N52 + I52*errorX -> 0.807641412 | O52: 0.4105752184 | P52: 0.2022697307 | Q52: 0.8626183945 | R52: 0.7903514801 | S52: 0.16857201 | T52: 0.04091304395 | U52: 0.7441104946 | V52: 0.6246554621
A53: 52 | B53: 182 | C53: 600504 | D53: Hinjraee | E53: -0.7887638276 | F53: 0.08943061403 | G53: -1.006283128 | H53: -1.198820883 | I53: 0.1444323061 | K53: =RealityLayer!K53 + F53*errorX -> 0.689416907 | L53: =RealityLayer!L53 + G53*errorX -> 0.393479936 | M53: =RealityLayer!M53 + H53*errorX -> -1.187339241 | N53: =RealityLayer!N53 + I53*errorX -> 0.2588433531 | O53: 0.7547195266 | P53: 0.6530174799 | Q53: 0.1175469177 | R53: 0.6021219467 | S53: 0.5696015638 | T53: 0.4264318291 | U53: 0.01381727787 | V53: 0.3625508387
A54: 53 | B54: 139 | C54: 600168 | D54: Fateh Khan | E54: -0.1829675966 | F54: -0.5521746971 | G54: 0.2436263458 | H54: 0.1315356712 | I54: 1.222540504 | K54: =RealityLayer!K54 + F54*errorX -> -0.008142648539 | L54: =RealityLayer!L54 + G54*errorX -> 0.7932554729 | M54: =RealityLayer!M54 + H54*errorX -> -1.134446164 | N54: =RealityLayer!N54 + I54*errorX -> -0.7131807478 | O54: 0.4967515891 | P54: 0.7861855032 | Q54: 0.128303722 | R54: 0.237866959 | S54: 0.2467621413 | T54: 0.6180876454 | U54: 0.01646184507 | V54: 0.05658069016
A55: 54 | B55: 421 | C55: 600560 | D55: Sharif Chhajrah | E55: -0.5654999313 | F55: -0.5098934253 | G55: 0.9411473911 | H55: -0.2416572897 | I55: -1.270964276 | K55: =RealityLayer!K55 + F55*errorX -> -0.3149780126 | L55: =RealityLayer!L55 + G55*errorX -> 0.2414127956 | M55: =RealityLayer!M55 + H55*errorX -> 2.021573355 | N55: =RealityLayer!N55 + I55*errorX -> 1.830093862 | O55: 0.3763891741 | P55: 0.5953824017 | Q55: 0.9783897765 | R55: 0.9663820477 | S55: 0.1416688104 | T55: 0.3544802043 | U55: 0.9572465547 | V55: 0.9338942621
A56: 55 | B56: 126 | C56: 600204 | D56: Dhoriwala | E56: 0.3597745035 | F56: 1.092516868 | G56: 2.407723514 | H56: 0.7944140634 | I56: 0.3754075806 | K56: =RealityLayer!K56 + F56*errorX -> -1.315634566 | L56: =RealityLayer!L56 + G56*errorX -> -1.173156243 | M56: =RealityLayer!M56 + H56*errorX -> -0.1189753683 | N56: =RealityLayer!N56 + I56*errorX -> -0.3235263097 | O56: 0.09414836302 | P56: 0.1203665778 | Q56: 0.4526474352 | R56: 0.3731483428 | S56: 0.00886391426 | T56: 0.01448811305 | U56: 0.2048897006 | V56: 0.1392396858
A57: 56 | B57: 3 | C57: 600193 | D57: 18-hazari | E57: -0.0879720119 | F57: 1.472999429 | G57: 1.473904376 | H57: 0.7711355465 | I57: -1.399625944 | K57: =RealityLayer!K57 + F57*errorX -> 0.6782617145 | L57: =RealityLayer!L57 + G57*errorX -> 1.001917188 | M57: =RealityLayer!M57 + H57*errorX -> -0.5030178267 | N57: =RealityLayer!N57 + I57*errorX -> -0.675162972 | O57: 0.7511971156 | P57: 0.8418082048 | Q57: 0.3074758694 | R57: 0.2497861145 | S57: 0.5642971065 | T57: 0.7086410536 | U57: 0.09454141024 | V57: 0.06239310298
A58: 57 | B58: 440 | C58: 600312 | D58: Sumita | E58: 1.397183951 | F58: 0.8322172107 | G58: 0.3433365237 | H58: -0.6565187505 | I58: 1.008315849 | K58: =RealityLayer!K58 + F58*errorX -> 1.122713105 | L58: =RealityLayer!L58 + G58*errorX -> 0.07841436183 | M58: =RealityLayer!M58 + H58*errorX -> -0.5247259752 | N58: =RealityLayer!N58 + I58*errorX -> 0.3345554243 | O58: 0.8692203199 | P58: 0.5312507752 | Q58: 0.2998868487 | R58: 0.6310197624 | S58: 0.7555439645 | T58: 0.2822273861 | U58: 0.08993212205 | V58: 0.3981859405
A59: 58 | B59: 166 | C59: 600375 | D59: Gujrat | E59: 0.4613457349 | F59: -1.955895641 | G59: -2.627311915 | H59: 0.7755716069 | I59: -0.06802110875 | K59: =RealityLayer!K59 + F59*errorX -> -0.0272150205 | L59: =RealityLayer!L59 + G59*errorX -> -0.6546416573 | M59: =RealityLayer!M59 + H59*errorX -> -0.3266034965 | N59: =RealityLayer!N59 + I59*errorX -> -1.012182554 | O59: 0.4891441178 | P59: 0.2563492484 | Q59: 0.3719838993 | R59: 0.155725388 | S59: 0.2392619679 | T59: 0.06571493714 | U59: 0.1383720213 | V59: 0.02425039646
A60: 59 | B60: 238 | C60: 600340 | D60: Kot Chanda | E60: -0.4104470008 | F60: -0.3085654043 | G60: -0.1941816663 | H60: -1.516959856 | I60: 0.1726311893 | K60: =RealityLayer!K60 + F60*errorX -> -0.1760019022 | L60: =RealityLayer!L60 + G60*errorX -> -0.9041746332 | M60: =RealityLayer!M60 + H60*errorX -> -0.9047619278 | N60: =RealityLayer!N60 + I60*errorX -> 0.8969314947 | O60: 0.430146224 | P60: 0.1829514044 | Q60: 0.1827957627 | R60: 0.8151222635 | S60: 0.185025774 | T60: 0.03347121637 | U60: 0.03341429086 | V60: 0.6644243044
A61: 60 | B61: 123 | C61: 600089 | D61: Dhandala | E61: -2.138549462 | F61: 0.1462103683 | G61: -0.03064201337 | H61: 1.291650733 | I61: 1.599341886 | K61: =RealityLayer!K61 + F61*errorX -> 0.2673783841 | L61: =RealityLayer!L61 + G61*errorX -> -0.4562822067 | M61: =RealityLayer!M61 + H61*errorX -> -0.1611861335 | N61: =RealityLayer!N61 + I61*errorX -> 0.1369023428 | O61: 0.6054110796 | P61: 0.3240935287 | Q61: 0.4359734011 | R61: 0.5544460065 | S61: 0.3665225753 | T61: 0.1050366153 | U61: 0.1900728065 | V61: 0.3074103741
A62: 61 | B62: 222 | C62: 600258 | D62: Katha Sagral | E62: 0.7628204912 | F62: -0.149071866 | G62: -0.4360492767 | H62: -0.1686726137 | I62: -1.598245944 | K62: =RealityLayer!K62 + F62*errorX -> -0.559929933 | L62: =RealityLayer!L62 + G62*errorX -> -1.144391838 | M62: =RealityLayer!M62 + H62*errorX -> -1.144628307 | N62: =RealityLayer!N62 + I62*errorX -> -1.769814772 | O62: 0.2877636154 | P62: 0.1262305857 | Q62: 0.1261815806 | R62: 0.0383790011 | S62: 0.08280789834 | T62: 0.01593416077 | U62: 0.01592179129 | V62: 0.001472947726
A63: 62 | B63: 393 | C63: 600724 | D63: Rojhan | E63: -0.9711129678 | F63: -1.120024535 | G63: -1.0069175 | H63: -0.3449599717 | I63: -0.7416042536 | K63: =RealityLayer!K63 + F63*errorX -> -0.2217051677 | L63: =RealityLayer!L63 + G63*errorX -> -0.07562635025 | M63: =RealityLayer!M63 + H63*errorX -> 0.6539292142 | N63: =RealityLayer!N63 + I63*errorX -> 0.1406629732 | O63: 0.4122717035 | P63: 0.469858186 | Q63: 0.7434212943 | R63: 0.5559319014 | S63: 0.1699679575 | T63: 0.220766715 | U63: 0.5526752209 | V63: 0.3090602789
A64: 63 | B64: 286 | C64: 600117 | D64: Maibal | E64: 0.364184416 | F64: -0.0581326276 | G64: 2.14233296 | H64: -0.7274775271 | I64: -0.6440427569 | K64: =RealityLayer!K64 + F64*errorX -> -0.6001848138 | L64: =RealityLayer!L64 + G64*errorX -> 0.99194668 | M64: =RealityLayer!M64 + H64*errorX -> -1.692709764 | N64: =RealityLayer!N64 + I64*errorX -> -1.272577478 | O64: 0.2741915367 | P64: 0.8393882318 | Q64: 0.04525536295 | R64: 0.1015840073 | S64: 0.07518099878 | T64: 0.7045726038 | U64: 0.002048047876 | V64: 0.01031931054
A65: 64 | B65: 245 | C65: 600152 | D65: Kot Mubarak | E65: -1.319635885 | F65: 0.3614070465 | G65: 2.423275873 | H65: -1.797425284 | I65: 1.14280283 | K65: =RealityLayer!K65 + F65*errorX -> -3.062835477 | L65: =RealityLayer!L65 + G65*errorX -> -1.843003063 | M65: =RealityLayer!M65 + H65*errorX -> -3.467883642 | N65: =RealityLayer!N65 + I65*errorX -> -0.8944225849 | O65: 0.001096252829 | P65: 0.03266428161 | Q65: 0.0002622871868 | R65: 0.1855479165 | S65: 1.201770264e-06 | T65: 0.001066955293 | U65: 6.879456837e-08 | V65: 0.03442802932
A66: 65 | B66: 486 | C66: 600370 | D66: Yaru Khel | E66: -0.9489190234 | F66: -0.8437382348 | G66: 0.8296251508 | H66: -1.173621058 | I66: 0.9327231965 | K66: =RealityLayer!K66 + F66*errorX -> -0.8204995174 | L66: =RealityLayer!L66 + G66*errorX -> -0.9315414246 | M66: =RealityLayer!M66 + H66*errorX -> -2.399188529 | N66: =RealityLayer!N66 + I66*errorX -> 0.07987649823 | O66: 0.2059657021 | P66: 0.1757867834 | Q66: 0.00821572614 | R66: 0.5318322591 | S66: 0.04242187045 | T66: 0.03090099323 | U66: 6.749815602e-05 | V66: 0.2828455518
A67: 66 | B67: 283 | C67: 600153 | D67: Mahmori | E67: -1.158973646 | F67: -0.9085306374 | G67: -1.44072601 | H67: 1.228377187 | I67: -0.3641025614 | K67: =RealityLayer!K67 + F67*errorX -> -2.575539319 | L67: =RealityLayer!L67 + G67*errorX -> -2.584777005 | M67: =RealityLayer!M67 + H67*errorX -> -0.3516475067 | N67: =RealityLayer!N67 + I67*errorX -> -1.316245281 | O67: =NORMDIST(K67,0,1,TRUE) -> 0.005004194673 | P67: =NORMDIST(L67,0,1,TRUE) -> 0.004872099823 | Q67: =NORMDIST(M67,0,1,TRUE) -> 0.3625513163 | R67: =NORMDIST(N67,0,1,TRUE) -> 0.0940458651 | S67: =BETADIST(O67,2,1) -> 2.504196432e-05 | T67: =BETADIST(P67,2,1) -> 2.373735669e-05 | U67: =BETADIST(Q67,2,1) -> 0.131443457 | V67: =BETADIST(R67,2,1) -> 0.008844624743
A68: 67 | B68: 224 | C68: 600339 | D68: Khaglanwala | E68: 0.04809749043 | F68: 1.43986199 | G68: 0.8197366697 | H68: -0.9854329619 | I68: 1.484640961 | K68: =RealityLayer!K68 + F68*errorX -> 0.7346013948 | L68: =RealityLayer!L68 + G68*errorX -> 1.072894635 | M68: =RealityLayer!M68 + H68*errorX -> 0.008134819051 | N68: =RealityLayer!N68 + I68*errorX -> 1.217080981 | O68: 0.7687088559 | P68: 0.8583408032 | Q68: 0.5032452875 | R68: 0.8882132968 | S68: 0.5909133051 | T68: 0.7367489345 | U68: 0.2532558194 | V68: 0.7889228607
A69: 68 | B69: 311 | C69: 600130 | D69: Mubarki | E69: -1.24348162 | F69: -0.4750881999 | G69: -0.2072943062 | H69: 0.2165256774 | I69: -0.9253039934 | K69: =RealityLayer!K69 + F69*errorX -> -0.8453810999 | L69: =RealityLayer!L69 + G69*errorX -> -1.027460053 | M69: =RealityLayer!M69 + H69*errorX -> -0.7436717613 | N69: =RealityLayer!N69 + I69*errorX -> -1.088379997 | O69: 0.1989490468 | P69: 0.1521019431 | Q69: 0.2285375387 | R69: 0.1382136941 | S69: 0.0395807232 | T69: 0.02313500111 | U69: 0.05222940657 | V69: 0.01910302522
A70: 69 | B70: 477 | C70: 600578 | D70: Wan Patafi | E70: -1.245971362 | F70: 0.6369054972 | G70: -0.01059561328 | H70: -1.730395525 | I70: -1.204016371 | K70: =RealityLayer!K70 + F70*errorX -> 0.2870125486 | L70: =RealityLayer!L70 + G70*errorX -> 0.2828820934 | M70: =RealityLayer!M70 + H70*errorX -> -0.1980108623 | N70: =RealityLayer!N70 + I70*errorX -> -0.5315049855 | O70: 0.6129486441 | P70: 0.6113663892 | Q70: 0.4215182825 | R70: 0.2975344437 | S70: 0.3757060402 | T70: 0.3737688618 | U70: 0.1776776625 | V70: 0.0885267452
A71: 70 | B71: 353 | C71: 600510 | D71: Pattal Munda | E71: 0.696331881 | F71: 0.7514086064 | G71: 0.8939491636 | H71: -1.067030553 | I71: -1.108073775 | K71: =RealityLayer!K71 + F71*errorX -> -0.6479776968 | L71: =RealityLayer!L71 + G71*errorX -> -0.03636681821 | M71: =RealityLayer!M71 + H71*errorX -> -1.025596176 | N71: =RealityLayer!N71 + I71*errorX -> -0.5336493875 | O71: 0.2584996879 | P71: 0.485494936 | Q71: 0.1525409853 | R71: 0.2967920661 | S71: 0.06682208863 | T71: 0.2357053328 | U71: 0.02326875218 | V71: 0.08808553047
A72: 71 | B72: 48 | C72: 600301 | D72: Basira | E72: 0.6668028618 | F72: -1.303724275 | G72: -1.100472673 | H72: -0.5246727142 | I72: 1.009079824 | K72: =RealityLayer!K72 + F72*errorX -> 0.5519658624 | L72: =RealityLayer!L72 + G72*errorX -> 0.5816246635 | M72: =RealityLayer!M72 + H72*errorX -> 0.05254164292 | N72: =RealityLayer!N72 + I72*errorX -> -0.5456830879 | O72: 0.7095141289 | P72: 0.7195902368 | Q72: 0.5209514426 | R72: 0.2926418996 | S72: 0.5034102991 | T72: 0.5178101089 | U72: 0.2713904055 | V72: 0.08563928138
A73: 72 | B73: 244 | C73: 600710 | D73: Kot Mithan | E73: 1.645253178 | F73: -0.3129002835 | G73: -0.04978232937 | H73: 0.3699949502 | I73: -0.3763921086 | K73: =RealityLayer!K73 + F73*errorX -> 1.228489858 | L73: =RealityLayer!L73 + G73*errorX -> 0.8950608353 | M73: =RealityLayer!M73 + H73*errorX -> 1.570169475 | N73: =RealityLayer!N73 + I73*errorX -> 0.7179675457 | O73: 0.8903684329 | P73: 0.8146227158 | Q73: 0.9418121555 | R73: 0.763611351 | S73: 0.7927559463 | T73: 0.663610169 | U73: 0.8870101363 | V73: 0.5831022954
A74: 73 | B74: 290 | C74: 600154 | D74: Mana Ahmadani | E74: -0.6429149835 | F74: -1.987964424 | G74: -1.947164492 | H74: -0.2242859409 | I74: 0.7390895007 | K74: =RealityLayer!K74 + F74*errorX -> -3.314000212 | L74: =RealityLayer!L74 + G74*errorX -> -2.747491246 | M74: =RealityLayer!M74 + H74*errorX -> -2.82347497 | N74: =RealityLayer!N74 + I74*errorX -> -1.18041825 | O74: 0.0004598571873 | P74: 0.0030026556 | Q74: 0.002375306756 | R74: 0.1189169536 | S74: 2.114686328e-07 | T74: 9.015940654e-06 | U74: 5.642082185e-06 | V74: 0.01414124184
A75: 74 | B75: 415 | C75: 600660 | D75: Shah Pur | E75: 0.1744956535 | F75: 0.7750554687 | G75: -1.221410457 | H75: -0.3892330369 | I75: -1.377952685 | K75: =RealityLayer!K75 + F75*errorX -> 0.8220475343 | L75: =RealityLayer!L75 + G75*errorX -> -0.2426074286 | M75: =RealityLayer!M75 + H75*errorX -> 1.011132482 | N75: =RealityLayer!N75 + I75*errorX -> -0.7042825426 | O75: 0.7944750781 | P75: 0.404154763 | Q75: 0.844023487 | R75: 0.2406284179 | S75: 0.6311906497 | T75: 0.1633410724 | U75: 0.7123756467 | V75: 0.0579020355
A76: 75 | B76: 448 | C76: 600515 | D76: Thatta Gurmani | E76: 0.3467471288 | F76: 1.267881089 | G76: -0.5545825843 | H76: -0.530123998 | I76: -1.518169483 | K76: =RealityLayer!K76 + F76*errorX -> -0.1633891555 | L76: =RealityLayer!L76 + G76*errorX -> -2.053108292 | M76: =RealityLayer!M76 + H76*errorX -> 0.927285001 | N76: =RealityLayer!N76 + I76*errorX -> 0.8013602583 | O76: 0.4351060204 | P76: 0.02003103796 | Q76: 0.8231107101 | R76: 0.7885384423 | S76: 0.189317249 | T76: 0.0004012424819 | U76: 0.6775112411 | V76: 0.621792875
A77: 76 | B77: 269 | C77: 600471 | D77: Langar Wah | E77: 1.05440904 | F77: -0.4540402188 | G77: 0.1837452146 | H77: 0.8794404494 | I77: 0.7264816304 | K77: =RealityLayer!K77 + F77*errorX -> 1.046377891 | L77: =RealityLayer!L77 + G77*errorX -> 0.2054042073 | M77: =RealityLayer!M77 + H77*errorX -> 1.105318425 | N77: =RealityLayer!N77 + I77*errorX -> 0.7666221152 | O77: 0.8523067018 | P77: 0.5813718333 | Q77: 0.8654891815 | R77: 0.7783468886 | S77: 0.7264267139 | T77: 0.3379932086 | U77: 0.7490715232 | V77: 0.605823879
A78: 77 | B78: 293 | C78: 600174 | D78: Mangrotha | E78: 0.1391003934 | F78: 0.6240281891 | G78: 0.04036337486 | H78: 1.04710125 | I78: -0.2951139777 | K78: =RealityLayer!K78 + F78*errorX -> -1.782536905 | L78: =RealityLayer!L78 + G78*errorX -> -1.080008313 | M78: =RealityLayer!M78 + H78*errorX -> -1.042024375 | N78: =RealityLayer!N78 + I78*errorX -> -2.141723989 | O78: 0.03733085924 | P78: 0.1400692393 | Q78: 0.1487001891 | R78: 0.01610784958 | S78: 0.001393593052 | T78: 0.01961939179 | U78: 0.02211174624 | V78: 0.0002594628181
A79: 78 | B79: 408 | C79: 600474 | D79: Seetpur | E79: 1.246969532 | F79: -0.323200311 | G79: -0.1446642273 | H79: 0.2733690962 | I79: 0.8615620573 | K79: =RealityLayer!K79 + F79*errorX -> 1.324287845 | L79: =RealityLayer!L79 + G79*errorX -> 0.4497734864 | M79: =RealityLayer!M79 + H79*errorX -> -0.06316725188 | N79: =RealityLayer!N79 + I79*errorX -> 0.2587244286 | O79: 0.907296267 | P79: 0.6735631113 | Q79: 0.4748166609 | R79: 0.6020760651 | S79: 0.8231865161 | T79: 0.4536872649 | U79: 0.2254508615 | V79: 0.3624955881
A80: 79 | B80: 291 | C80: 600551 | D80: Manak Pur | E80: -0.8576898836 | F80: -0.2971921731 | G80: -0.4590492608 | H80: 0.7316702977 | I80: 0.9200334716 | K80: =RealityLayer!K80 + F80*errorX -> -0.1149071865 | L80: =RealityLayer!L80 + G80*errorX -> -1.02615763 | M80: =RealityLayer!M80 + H80*errorX -> 1.055945249 | N80: =RealityLayer!N80 + I80*errorX -> 0.3988245358 | O80: 0.4542593444 | P80: 0.1524086446 | Q80: 0.8545033852 | R80: 0.6549887516 | S80: 0.206351552 | T80: 0.02322839494 | U80: 0.7301760353 | V80: 0.4290102647
A81: 80 | B81: 480 | C81: 600313 | D81: Warah Serah | E81: -0.1134219474 | F81: 0.8518463801 | G81: 0.3084051059 | H81: -0.6658478924 | I81: 0.198001544 | K81: =RealityLayer!K81 + F81*errorX -> 1.80143119 | L81: =RealityLayer!L81 + G81*errorX -> 1.574950553 | M81: =RealityLayer!M81 + H81*errorX -> 0.2700025538 | N81: =RealityLayer!N81 + I81*errorX -> 0.883669072 | O81: 0.9641825281 | P81: 0.9423660707 | Q81: 0.6064208556 | R81: 0.8115625597 | S81: 0.9296479475 | T81: 0.8880538113 | U81: 0.367746254 | V81: 0.6586337884
A82: 81 | B82: 133 | C82: 600142 | D82: Drahma | E82: 3.280001692 | F82: 1.089329089 | G82: -0.154798272 | H82: -1.31055458 | I82: 0.9617178875 | K82: =RealityLayer!K82 + F82*errorX -> -0.08928695542 | L82: =RealityLayer!L82 + G82*errorX -> 0.102294364 | M82: =RealityLayer!M82 + H82*errorX -> -0.4807025902 | N82: =RealityLayer!N82 + I82*errorX -> 0.8933386438 | O82: 0.4644269304 | P82: 0.5407384856 | Q82: 0.315363945 | R82: 0.8141620753 | S82: 0.2156923736 | T82: 0.2923981099 | U82: 0.09945441779 | V82: 0.6628598849
A83: 82 | B83: 248 | C83: 600212 | D83: Kot Murad | E83: -0.2333172233 | F83: -1.262262685 | G83: 1.272683221 | H83: 1.35231403 | I83: -1.716211955 | K83: =RealityLayer!K83 + F83*errorX -> -0.7087402427 | L83: =RealityLayer!L83 + G83*errorX -> 0.7378893105 | M83: =RealityLayer!M83 + H83*errorX -> -1.167795985 | N83: =RealityLayer!N83 + I83*errorX -> -2.911196977 | O83: 0.2392428434 | P83: 0.7697091424 | Q83: 0.121444534 | R83: 0.001800234781 | S83: 0.05723713813 | T83: 0.5924521639 | U83: 0.01474877483 | V83: 3.240845265e-06
A84: 83 | B84: 232 | C84: 600547 | D84: Khangarh | E84: 0.08758775039 | F84: 0.5338245046 | G84: 1.105954652 | H84: -1.412158781 | I84: 0.6120831131 | K84: =RealityLayer!K84 + F84*errorX -> 0.4478299523 | L84: =RealityLayer!L84 + G84*errorX -> 0.1815746262 | M84: =RealityLayer!M84 + H84*errorX -> 0.5846376095 | N84: =RealityLayer!N84 + I84*errorX -> 1.790229557 | O84: 0.6728620375 | P84: 0.5720417184 | Q84: 0.7206042933 | R84: 0.9632914923 | S84: 0.4527433215 | T84: 0.3272317276 | U84: 0.5192705475 | V84: 0.9279304991
A85: 84 | B85: 380 | C85: 600557 | D85: Rangpur | E85: -0.7439234651 | F85: 1.327903192 | G85: -0.6539585229 | H85: 0.8742722457 | I85: 0.197768486 | K85: =RealityLayer!K85 + F85*errorX -> 1.699575596 | L85: =RealityLayer!L85 + G85*errorX -> -0.1898698614 | M85: =RealityLayer!M85 + H85*errorX -> 0.8297674229 | N85: =RealityLayer!N85 + I85*errorX -> 0.305050643 | O85: 0.955394608 | P85: 0.424705555 | Q85: 0.7966648536 | R85: 0.6198362091 | S85: 0.912778857 | T85: 0.1803748084 | U85: 0.6346748889 | V85: 0.3841969261
A86: 85 | B86: 490 | C86: 600730 | D86: Bakhtiari | E86: 0.9303630577 | F86: -0.1870921551 | G86: -1.246803549 | H86: 0.2588649295 | I86: -2.146916813 | K86: =RealityLayer!K86 + F86*errorX -> -1.015866678 | L86: =RealityLayer!L86 + G86*errorX -> -1.736123775 | M86: =RealityLayer!M86 + H86*errorX -> -0.1075977353 | N86: =RealityLayer!N86 + I86*errorX -> -1.990892407 | O86: 0.1548464394 | P86: 0.04127097572 | Q86: 0.4571573968 | R86: 0.0232463586 | S86: 0.02397741981 | T86: 0.001703293437 | U86: 0.2089928854 | V86: 0.0005403931881
A87: 86 | B87: 216 | C87: 600338 | D87: Kamar Mushani | E87: -1.870139386 | F87: 0.9798532119 | G87: 0.03255536285 | H87: 0.7400944924 | I87: 1.500488906 | K87: =RealityLayer!K87 + F87*errorX -> 0.532593206 | L87: =RealityLayer!L87 + G87*errorX -> 0.2922896814 | M87: =RealityLayer!M87 + H87*errorX -> -0.3498986538 | N87: =RealityLayer!N87 + I87*errorX -> 1.259093753 | O87: 0.7028423969 | P87: 0.6149674262 | Q87: 0.3632073787 | R87: 0.8960017648 | S87: 0.4939874349 | T87: 0.3781849353 | U87: 0.1319195999 | V87: 0.8028191624
A88: 87 | B88: 314 | C88: 600508 | D88: Munhan | E88: 0.6760024007 | F88: 0.1222042556 | G88: -0.2478850547 | H88: 0.2669423793 | I88: 0.4764592632 | K88: =RealityLayer!K88 + F88*errorX -> 0.0374389278 | L88: =RealityLayer!L88 + G88*errorX -> -0.5046804274 | M88: =RealityLayer!M88 + H88*errorX -> 1.10632429 | N88: =RealityLayer!N88 + I88*errorX -> 1.608317632 | O88: 0.5149324827 | P88: 0.3068916552 | Q88: 0.8657069089 | R88: 0.9461171845 | S88: 0.2651554618 | T88: 0.09418248801 | U88: 0.7494484522 | V88: 0.8951377268
A89: 88 | B89: 361 | C89: 600159 | D89: Pir Adil | E89: 1.681246431 | F89: -0.1718547082 | G89: -0.766510766 | H89: -0.2560977919 | I89: -1.509747563 | K89: =RealityLayer!K89 + F89*errorX -> 0.05512154588 | L89: =RealityLayer!L89 + G89*errorX -> -0.779086883 | M89: =RealityLayer!M89 + H89*errorX -> -1.413342896 | N89: =RealityLayer!N89 + I89*errorX -> -1.719684681 | O89: 0.5219791844 | P89: 0.2179642682 | Q89: 0.07877746354 | R89: 0.04274488693 | S89: 0.272462269 | T89: 0.04750842221 | U89: 0.006205888761 | V89: 0.001827125359
A90: 89 | B90: 428 | C90: 600097 | D90: Sial | E90: -0.1191983756 | F90: 0.4823800737 | G90: 0.368684141 | H90: 0.792318815 | I90: 1.005648755 | K90: =RealityLayer!K90 + F90*errorX -> -0.5700454632 | L90: =RealityLayer!L90 + G90*errorX -> -1.31143193 | M90: =RealityLayer!M90 + H90*errorX -> 0.2180769075 | N90: =RealityLayer!N90 + I90*errorX -> -0.09100282231 | O90: 0.2843234316 | P90: 0.09485593867 | Q90: 0.5863154052 | R90: 0.4637451742 | S90: 0.08083981375 | T90: 0.008997649101 | U90: 0.3437657544 | V90: 0.2150595866
A91: 90 | B91: 7 | C91: 600637 | D91: Abad Pur | E91: -1.208925369 | F91: 0.8696861187 | G91: -0.7835546967 | H91: 2.05649485 | I91: 0.9164182302 | K91: =RealityLayer!K91 + F91*errorX -> 1.836515059 | L91: =RealityLayer!L91 + G91*errorX -> -0.1018048483 | M91: =RealityLayer!M91 + H91*errorX -> 2.063345425 | N91: =RealityLayer!N91 + I91*errorX -> 1.355113215 | O91: 0.9668592415 | P91: 0.4594557886 | Q91: 0.9804600894 | R91: 0.9123092555 | S91: 0.9348167929 | T91: 0.2110996217 | U91: 0.961301987 | V91: 0.8323081777
A92: 91 | B92: 105 | C92: 600138 | D92: Chorota | E92: -1.253488335 | F92: 0.6579421097 | G92: -1.200862698 | H92: -0.4576895662 | I92: 0.4633875506 | K92: =RealityLayer!K92 + F92*errorX -> -0.9938749452 | L92: =RealityLayer!L92 + G92*errorX -> -0.9513679491 | M92: =RealityLayer!M92 + H92*errorX -> -0.9772899831 | N92: =RealityLayer!N92 + I92*errorX -> -0.9205142247 | O92: 0.1601418768 | P92: 0.1707088123 | Q92: 0.1642128054 | R92: 0.1786520515 | S92: 0.0256454207 | T92: 0.02914149859 | U92: 0.02696584544 | V92: 0.03191655551
A93: 92 | B93: 207 | C93: 600147 | D93: Jhok Utra | E93: -0.3739296517 | F93: 0.1424223228 | G93: -0.2322951786 | H93: 0.08405550034 | I93: -0.1275236627 | K93: =RealityLayer!K93 + F93*errorX -> 0.2619045614 | L93: =RealityLayer!L93 + G93*errorX -> 0.4357089107 | M93: =RealityLayer!M93 + H93*errorX -> -0.3980232498 | N93: =RealityLayer!N93 + I93*errorX -> -0.09129823137 | O93: 0.6033024886 | P93: 0.6684760301 | Q93: 0.3453065239 | R93: 0.4636278116 | S93: 0.3639738927 | T93: 0.4468602028 | U93: 0.1192365954 | V93: 0.2149507477
A94: 93 | B94: 259 | C94: 600702 | D94: Kotla Mughlan | E94: -0.4343678484 | F94: 0.763332082 | G94: 0.5499487088 | H94: 1.838552635 | I94: 1.879452611 | K94: =RealityLayer!K94 + F94*errorX -> 2.704826041 | L94: =RealityLayer!L94 + G94*errorX -> 2.235251354 | M94: =RealityLayer!M94 + H94*errorX -> 3.912660317 | N94: =RealityLayer!N94 + I94*errorX -> 3.483056306 | O94: 0.9965829916 | P94: 0.9872995741 | Q94: 0.9999543576 | R94: 0.999752138 | S94: 0.9931776592 | T94: 0.9747604491 | U94: 0.9999087172 | V94: 0.9995043373
A95: 94 | B95: 359 | C95: 600189 | D95: Pir Abdul Rahman | E95: -0.4569255907 | F95: 0.226168595 | G95: -1.526459528 | H95: 0.1737953426 | I95: 0.1272155714 | K95: =RealityLayer!K95 + F95*errorX -> 0.1848593975 | L95: =RealityLayer!L95 + G95*errorX -> -0.9282645638 | M95: =RealityLayer!M95 + H95*errorX -> -1.448842329 | N95: =RealityLayer!N95 + I95*errorX -> -1.888495214 | O95: 0.5733303409 | P95: 0.1766351754 | Q95: 0.07369080989 | R95: 0.02947974989 | S95: 0.3287076798 | T95: 0.0311999852 | U95: 0.005430335462 | V95: 0.0008690556537
A96: 95 | B96: 457 | C96: 600694 | D96: Tribal Area | E96: 0.7344726782 | F96: -1.02498916 | G96: 0.8618962966 | H96: -0.9406721801 | I96: -0.3452851161 | K96: =RealityLayer!K96 + F96*errorX -> -0.5076256801 | L96: =RealityLayer!L96 + G96*errorX -> 1.213582548 | M96: =RealityLayer!M96 + H96*errorX -> 0.9772169099 | N96: =RealityLayer!N96 + I96*errorX -> 1.400574442 | O96: 0.3058579389 | P96: 0.8875464127 | Q96: 0.8357691109 | R96: 0.9193293159 | S96: 0.09354907876 | T96: 0.7877386347 | U96: 0.6985100068 | V96: 0.8451663911
A97: 96 | B97: 355 | C97: 600511 | D97: Patti Ghulam Ali | E97: 0.2038564162 | F97: -1.791686373 | G97: -0.1592911758 | H97: -0.8399217677 | I97: 0.5700837846 | K97: =RealityLayer!K97 + F97*errorX -> 0.2778278137 | L97: =RealityLayer!L97 + G97*errorX -> 0.4591245121 | M97: =RealityLayer!M97 + H97*errorX -> -0.5027110838 | N97: =RealityLayer!N97 + I97*errorX -> -0.6718161077 | O97: 0.6094277304 | P97: 0.6769276224 | Q97: 0.3075837079 | R97: 0.2508503865 | S97: 0.3714021586 | T97: 0.458231006 | U97: 0.09460773737 | V97: 0.0629259164
A98: 97 | B98: 487 | C98: 600167 | D98: Yaru | E98: -1.017131126 | F98: -0.9425775715 | G98: 0.6649884199 | H98: 0.6269124242 | I98: -0.3823924999 | K98: =RealityLayer!K98 + F98*errorX -> -2.027034786 | L98: =RealityLayer!L98 + G98*errorX -> -0.8602957901 | M98: =RealityLayer!M98 + H98*errorX -> -0.9131897879 | N98: =RealityLayer!N98 + I98*errorX -> -1.00648245 | O98: 0.02132942766 | P98: 0.1948130065 | Q98: 0.180571367 | R98: 0.1570917749 | S98: 0.0004549444843 | T98: 0.0379521075 | U98: 0.03260601856 | V98: 0.02467782573
A99: 98 | B99: 476 | C99: 600368 | D99: Wan Bhachran | E99: -1.089881607 | F99: -0.6891355042 | G99: 1.224966582 | H99: -0.1394869287 | I99: 0.3914624358 | K99: =RealityLayer!K99 + F99*errorX -> -1.100635752 | L99: =RealityLayer!L99 + G99*errorX -> -0.2196819092 | M99: =RealityLayer!M99 + H99*errorX -> -0.7902895643 | N99: =RealityLayer!N99 + I99*errorX -> -1.662034782 | O99: 0.1355276094 | P99: 0.4130594474 | Q99: 0.21467934 | R99: 0.04825290034 | S99: 0.01836773291 | T99: 0.1706181071 | U99: 0.046087219 | V99: 0.002328342391
A100: 99 | B100: 488 | C100: 600099 | D100: Yousaf Shah | E100: 1.315991085 | F100: 0.08390202311 | G100: 1.464900379 | H100: -1.395155778 | I100: 0.2374849828 | K100: =RealityLayer!K100 + F100*errorX -> 0.5864364116 | L100: =RealityLayer!L100 + G100*errorX -> 1.037575189 | M100: =RealityLayer!M100 + H100*errorX -> -2.222232889 | N100: =RealityLayer!N100 + I100*errorX -> -0.9608195086 | O100: 0.7212088592 | P100: 0.8502660631 | Q100: 0.01313378545 | R100: 0.1683214639 | S100: 0.5201422186 | T100: 0.7229523781 | U100: 0.0001724963202 | V100: 0.02833211521
A101: 100 | B101: 203 | C101: 600321 | D101: Jhakhar | E101: 0.4828962119 | F101: -0.2602882887 | G101: -0.8995516509 | H101: 1.33290996 | I101: -0.1997182153 | K101: =RealityLayer!K101 + F101*errorX -> 0.1632474556 | L101: =RealityLayer!L101 + G101*errorX -> 1.039872175 | M101: =RealityLayer!M101 + H101*errorX -> 1.55604028 | N101: =RealityLayer!N101 + I101*errorX -> 0.7669938924 | O101: 0.5648381984 | P101: 0.8508003542 | Q101: 0.9401507428 | R101: 0.7784574266 | S101: 0.3190421904 | T101: 0.7238612427 | U101: 0.8838834192 | V101: 0.605995965
A102: 101 | B102: 141 | C102: 600708 | D102: Fateh Pur | E102: 0.01135958883 | F102: 1.087391865 | G102: -1.542848622 | H102: 1.09446546 | I102: -1.221571893 | K102: =RealityLayer!K102 + F102*errorX -> 1.111895333 | L102: =RealityLayer!L102 + G102*errorX -> -0.5022224111 | M102: =RealityLayer!M102 + H102*errorX -> 0.1521463302 | N102: =RealityLayer!N102 + I102*errorX -> -1.505111346 | O102: 0.8669084222 | P102: 0.30775554 | Q102: 0.5604642384 | R102: 0.0661477262 | S102: 0.7515302124 | T102: 0.09471347243 | U102: 0.3141201625 | V102: 0.004375521682
A103: 102 | B103: 66 | C103: 600538 | D103: Braham Wali | E103: -0.4176979473 | F103: -0.1072646683 | G103: -1.548660293 | H103: 0.7676385394 | I103: -0.5096319455 | K103: =RealityLayer!K103 + F103*errorX -> 1.492060666 | L103: =RealityLayer!L103 + G103*errorX -> -0.4040304467 | M103: =RealityLayer!M103 + H103*errorX -> 0.9312223697 | N103: =RealityLayer!N103 + I103*errorX -> 0.6278914272 | O103: 0.9321583789 | P103: 0.3430951651 | Q103: 0.8241307256 | R103: 0.7349624664 | S103: 0.8689192433 | T103: 0.1177142923 | U103: 0.6791914529 | V103: 0.5401698269
A104: 103 | B104: 445 | C104: 600343 | D104: Tani Khel | E104: -0.2802835297 | F104: 0.07645780897 | G104: -0.62356321 | H104: -1.563289516 | I104: 0.6796608432 | K104: =RealityLayer!K104 + F104*errorX -> 0.3339876045 | L104: =RealityLayer!L104 + G104*errorX -> -1.003028505 | M104: =RealityLayer!M104 + H104*errorX -> -3.259387758 | N104: =RealityLayer!N104 + I104*errorX -> -1.826742578 | O104: 0.6308055438 | P104: 0.157923554 | Q104: 0.0005582647538 | R104: 0.03386924156 | S104: 0.3979156341 | T104: 0.02493984892 | U104: 3.116595353e-07 | V104: 0.001147125524
A105: 104 | B105: 287 | C105: 600173 | D105: Makwal Kalan | E105: 0.6670893526 | F105: -0.9002405932 | G105: -0.9789891919 | H105: -0.9479595064 | I105: -0.345121407 | K105: =RealityLayer!K105 + F105*errorX -> -1.335870797 | L105: =RealityLayer!L105 + G105*errorX -> -1.520128596 | M105: =RealityLayer!M105 + H105*errorX -> -0.9497438532 | N105: =RealityLayer!N105 + I105*errorX -> -1.346626704 | O105: 0.09079575385 | P105: 0.06423932943 | Q105: 0.1711212106 | R105: 0.08905024469 | S105: 0.008243868917 | T105: 0.004126691446 | U105: 0.02928246873 | V105: 0.007929946079
A106: 105 | B106: 52 | C106: 600696 | D106: Basti Rindan | E106: -0.1001887995 | F106: 0.4442244972 | G106: -0.05453216545 | H106: -0.1470607458 | I106: 0.7781579825 | K106: =RealityLayer!K106 + F106*errorX -> 1.169373949 | L106: =RealityLayer!L106 + G106*errorX -> 0.07680771728 | M106: =RealityLayer!M106 + H106*errorX -> 2.384446627 | N106: =RealityLayer!N106 + I106*errorX -> 2.905926991 | O106: 0.8788734994 | P106: 0.5306117443 | Q106: 0.9914475855 | R106: 0.9981691656 | S106: 0.772418628 | T106: 0.2815488232 | U106: 0.9829683148 | V106: 0.9963416832
A107: 106 | B107: 73 | C107: 600581 | D107: Chachran Sharif | E107: -0.1768262337 | F107: 1.298196821 | G107: -0.09565383152 | H107: 0.4132778031 | I107: 0.0216891749 | K107: =RealityLayer!K107 + F107*errorX -> 2.422621411 | L107: =RealityLayer!L107 + G107*errorX -> 1.459256084 | M107: =RealityLayer!M107 + H107*errorX -> 2.399845902 | N107: =RealityLayer!N107 + I107*errorX -> 2.422375587 | O107: 0.9922955121 | P107: 0.9277526812 | Q107: 0.9917990125 | R107: 0.9922902977 | S107: 0.9846503833 | T107: 0.8607250374 | U107: 0.9836652811 | V107: 0.9846400349
A108: 107 | B108: 132 | C108: 600205 | D108: Dosa | E108: 1.428097676 | F108: -0.1804789918 | G108: -0.5810977655 | H108: -0.589359388 | I108: -1.005014383 | K108: =RealityLayer!K108 + F108*errorX -> -0.8244905959 | L108: =RealityLayer!L108 + G108*errorX -> 0.2948755173 | M108: =RealityLayer!M108 + H108*errorX -> -1.628524694 | N108: =RealityLayer!N108 + I108*errorX -> -0.9900290914 | O108: 0.2048304285 | P108: 0.6159555124 | Q108: 0.05170683875 | R108: 0.16107995 | S108: 0.04195550445 | T108: 0.3794011933 | U108: 0.002673597174 | V108: 0.02594675028
A109: 108 | B109: 406 | C109: 600331 | D109: Sarishtah Thal | E109: 0.8651159078 | F109: 0.8054757927 | G109: -0.9714813132 | H109: -0.8025165243 | I109: 0.2663875875 | K109: =RealityLayer!K109 + F109*errorX -> 0.09885489637 | L109: =RealityLayer!L109 + G109*errorX -> -0.8435963566 | M109: =RealityLayer!M109 + H109*errorX -> 0.5118174378 | N109: =RealityLayer!N109 + I109*errorX -> 0.07056959377 | O109: 0.5393732595 | P109: 0.1994475005 | Q109: 0.6956106075 | R109: 0.5281298446 | S109: 0.2909235131 | T109: 0.03977930544 | U109: 0.4838741173 | V109: 0.2789211328
A110: 109 | B110: 438 | C110: 600475 | D110: Sultan Pur | E110: -0.910149538 | F110: 0.3345860478 | G110: 1.216908458 | H110: -0.3259424375 | I110: -0.1706121111 | K110: =RealityLayer!K110 + F110*errorX -> -0.5754324761 | L110: =RealityLayer!L110 + G110*errorX -> -0.2265460708 | M110: =RealityLayer!M110 + H110*errorX -> -0.5374627187 | N110: =RealityLayer!N110 + I110*errorX -> -0.6111515556 | O110: 0.2824994227 | P110: 0.4103883656 | Q110: 0.2954740152 | R110: 0.2705496257 | S110: 0.07980592385 | T110: 0.1684186106 | U110: 0.08730489364 | V110: 0.07319709996
A111: 110 | B111: 327 | C111: 600265 | D111: Nari | E111: -0.3079230737 | F111: 0.4320986591 | G111: -0.2808405952 | H111: -1.679050001 | I111: -0.3778700375 | K111: =RealityLayer!K111 + F111*errorX -> -0.4682229705 | L111: =RealityLayer!L111 + G111*errorX -> -0.7560816976 | M111: =RealityLayer!M111 + H111*errorX -> -0.6135493006 | N111: =RealityLayer!N111 + I111*errorX -> -0.3717241187 | O111: 0.3198125736 | P111: 0.2248001073 | Q111: 0.2697565975 | R111: 0.3550491328 | S111: 0.1022800822 | T111: 0.05053508824 | U111: 0.07276862188 | V111: 0.1260598867
A112: 111 | B112: 67 | C112: 600498 | D112: Budh | E112: 1.048292688 | F112: 1.006662842 | G112: 0.4265621101 | H112: 0.07684093362 | I112: -0.5058029728 | K112: =RealityLayer!K112 + F112*errorX -> -0.949214579 | L112: =RealityLayer!L112 + G112*errorX -> -0.377641745 | M112: =RealityLayer!M112 + H112*errorX -> 0.1315853668 | N112: =RealityLayer!N112 + I112*errorX -> -0.08477018642 | O112: 0.1712557441 | P112: 0.3528483746 | Q112: 0.5523438698 | R112: 0.466222048 | S112: 0.02932852988 | T112: 0.1245019754 | U112: 0.3050837505 | V112: 0.217362998
A113: 112 | B113: 243 | C113: 600710 | D113: Kot Mithan | E113: -0.6562345334 | F113: 1.253151822 | G113: -1.531379894 | H113: -0.9762743503 | I113: 1.759854058 | K113: =RealityLayer!K113 + F113*errorX -> 0.8223577112 | L113: =RealityLayer!L113 + G113*errorX -> 0.631238053 | M113: =RealityLayer!M113 + H113*errorX -> 2.176126825 | N113: =RealityLayer!N113 + I113*errorX -> 2.794517029 | O113: 0.79456333 | P113: 0.7360575578 | Q113: 0.9852271107 | R113: 0.9974011348 | S113: 0.6313308854 | T113: 0.5417807284 | U113: 0.9706724596 | V113: 0.9948090238
A114: 113 | B114: 47 | C114: 600128 | D114: Barthi | E114: -2.148444764 | F114: 0.7589369488 | G114: -0.1330010946 | H114: 1.253320079 | I114: 0.5849062745 | K114: =RealityLayer!K114 + F114*errorX -> -0.02460272558 | L114: =RealityLayer!L114 + G114*errorX -> 0.3864556527 | M114: =RealityLayer!M114 + H114*errorX -> 0.7708018394 | N114: =RealityLayer!N114 + I114*errorX -> 0.7347785373 | O114: 0.4901859226 | P114: 0.6504203798 | Q114: 0.7795878016 | R114: 0.7687628098 | S114: 0.2402822387 | T114: 0.4230466705 | U114: 0.6077571404 | V114: 0.5909962577
A115: 114 | B115: 246 | C115: 600152 | D115: Kot Mubarak | E115: 0.1990952114 | F115: 1.852836249 | G115: -0.003174136509 | H115: 0.1111902748 | I115: 0.8380720828 | K115: =RealityLayer!K115 + F115*errorX -> -1.046591876 | L115: =RealityLayer!L115 + G115*errorX -> -2.295443068 | M115: =RealityLayer!M115 + H115*errorX -> -1.615677863 | N115: =RealityLayer!N115 + I115*errorX -> -1.560518959 | O115: 0.1476439253 | P115: 0.01085387278 | Q115: 0.05308198983 | R115: 0.05931864667 | S115: 0.02179872868 | T115: 0.0001178065544 | U115: 0.002817697644 | V115: 0.003518701843
A116: 115 | B116: 285 | C116: 600117 | D116: Maibal | E116: -0.1305318165 | F116: 3.08820745 | G116: -1.086839347 | H116: 2.117931217 | I116: -0.7054268281 | K116: =RealityLayer!K116 + F116*errorX -> 0.4727507249 | L116: =RealityLayer!L116 + G116*errorX -> -0.6821224737 | M116: =RealityLayer!M116 + H116*errorX -> 0.6134550085 | N116: =RealityLayer!N116 + I116*errorX -> -1.255816014 | O116: 0.6818044837 | P116: 0.2475807555 | Q116: 0.7302122384 | R116: 0.1045913421 | S116: 0.4648573539 | T116: 0.0612962305 | U116: 0.5332099132 | V116: 0.01093934884
A117: 116 | B117: 282 | C117: 600472 | D117: Madd Wala | E117: 1.073133262 | F117: -1.648222678 | G117: -0.8777533367 | H117: 0.1837452146 | I117: 0.4454068403 | K117: =RealityLayer!K117 + F117*errorX -> -0.9337416392 | L117: =RealityLayer!L117 + G117*errorX -> -0.7058678683 | M117: =RealityLayer!M117 + H117*errorX -> 0.7534267073 | N117: =RealityLayer!N117 + I117*errorX -> 1.37466642 | O117: 0.1752185902 | P117: 0.2401351556 | Q117: 0.7744032306 | R117: 0.9153825568 | S117: 0.03070155437 | T117: 0.05766489296 | U117: 0.5997003635 | V117: 0.8379252253
A118: 117 | B118: 400 | C118: 600717 | D118: Sahan Wala | E118: -1.024084213 | F118: -0.4889216143 | G118: 0.5707136097 | H118: -0.546215233 | I118: -0.24654355 | K118: =RealityLayer!K118 + F118*errorX -> 1.078011193 | L118: =RealityLayer!L118 + G118*errorX -> 0.9687562049 | M118: =RealityLayer!M118 + H118*errorX -> 0.5499430835 | N118: =RealityLayer!N118 + I118*errorX -> 0.794813325 | O118: 0.8594856194 | P118: 0.8336665788 | Q118: 0.7088207937 | R118: 0.7866389507 | S118: 0.73871553 | T118: 0.6949999646 | U118: 0.5024269176 | V118: 0.6188008387
A119: 118 | B119: 491 | C119: 600731 | D119: Bin Wala | E119: -0.1243620318 | F119: 2.009965101 | G119: -0.08820279618 | H119: -1.622011041 | I119: 1.161522505 | K119: =RealityLayer!K119 + F119*errorX -> -1.145849449 | L119: =RealityLayer!L119 + G119*errorX -> -2.460196398 | M119: =RealityLayer!M119 + H119*errorX -> -2.551385521 | N119: =RealityLayer!N119 + I119*errorX -> -0.6286157476 | O119: 0.1259287252 | P119: 0.006943050171 | Q119: 0.005364778342 | R119: 0.2648003241 | S119: 0.01585804384 | T119: 4.820594568e-05 | U119: 2.878084666e-05 | V119: 0.07011921164
A120: 119 | B120: 149 | C120: 600541 | D120: Ganga | E120: 1.541843631 | F120: 0.682650807 | G120: -2.831075108 | H120: 0.3091270173 | I120: 0.9343784768 | K120: =RealityLayer!K120 + F120*errorX -> -0.5479893965 | L120: =RealityLayer!L120 + G120*errorX -> -2.462243554 | M120: =RealityLayer!M120 + H120*errorX -> 0.9293035087 | N120: =RealityLayer!N120 + I120*errorX -> 1.413699838 | O120: 0.2918495918 | P120: 0.006903543595 | Q120: 0.8236340913 | R120: 0.9212749736 | S120: 0.08517618425 | T120: 4.765891417e-05 | U120: 0.6783731164 | V120: 0.848747577
A121: 120 | B121: 278 | C121: 600684 | D121: Machka | E121: -1.804783096 | F121: -0.1774469638 | G121: -0.8393772077 | H121: -0.1615376277 | I121: -0.3534978532 | K121: =RealityLayer!K121 + F121*errorX -> 0.9920525181 | L121: =RealityLayer!L121 + G121*errorX -> 1.172525396 | M121: =RealityLayer!M121 + H121*errorX -> 1.531455186 | N121: =RealityLayer!N121 + I121*errorX -> 2.188785073 | O121: 0.8394140465 | P121: 0.879506909 | Q121: 0.937171533 | R121: 0.9856937674 | S121: 0.7046159414 | T121: 0.7735324029 | U121: 0.8782904823 | V121: 0.9715922031
A122: 121 | B122: 171 | C122: 600145 | D122: Haji Ghazi Gharbi | E122: -0.3630407264 | F122: 0.0934255695 | G122: 0.05215724741 | H122: -0.165568963 | I122: -0.4529374564 | K122: =RealityLayer!K122 + F122*errorX -> 0.7443665848 | L122: =RealityLayer!L122 + G122*errorX -> 0.2780218237 | M122: =RealityLayer!M122 + H122*errorX -> -0.7069261815 | N122: =RealityLayer!N122 + I122*errorX -> 0.08672157179 | O122: 0.7716726356 | P122: 0.609502197 | Q122: 0.2398061764 | R122: 0.5345535854 | S122: 0.5954786565 | T122: 0.3714929281 | U122: 0.05750700223 | V122: 0.2857475357
A123: 122 | B123: 70 | C123: 600697 | D123: Burrey Wala | E123: 0.2163699264 | F123: -2.026372385 | G123: 0.03156060302 | H123: 0.8331926438 | I123: 0.5390370461 | K123: =RealityLayer!K123 + F123*errorX -> 0.09335980728 | L123: =RealityLayer!L123 + G123*errorX -> 0.3657342015 | M123: =RealityLayer!M123 + H123*errorX -> 0.7519074219 | N123: =RealityLayer!N123 + I123*errorX -> 0.1719680231 | O123: 0.5371911399 | P123: 0.6427182887 | Q123: 0.7739466327 | R123: 0.5682686658 | S123: 0.2885743208 | T123: 0.4130867987 | U123: 0.5989933903 | V123: 0.3229292766
A124: 123 | B124: 485 | C124: 600370 | D124: Yaru Khel | E124: -1.40926204 | F124: -2.211836545 | G124: -0.004168896339 | H124: -0.5051083463 | I124: -0.7745393305 | K124: =RealityLayer!K124 + F124*errorX -> -2.621920273 | L124: =RealityLayer!L124 + G124*errorX -> -2.012258448 | M124: =RealityLayer!M124 + H124*errorX -> -0.2614398731 | N124: =RealityLayer!N124 + I124*errorX -> -1.711561665 | O124: 0.00437179414 | P124: 0.02209635006 | Q124: 0.3968766558 | R124: 0.04348873899 | S124: 1.9112584e-05 | T124: 0.0004882486858 | U124: 0.1575110799 | V124: 0.001891270419
A125: 124 | B125: 156 | C125: 600543 | D125: Ghazanfar Garh | E125: 0.2245212727 | F125: -0.5333833997 | G125: 0.872032615 | H125: 0.2806018529 | I125: 1.791686373 | K125: =RealityLayer!K125 + F125*errorX -> 0.9691753002 | L125: =RealityLayer!L125 + G125*errorX -> 2.073530308 | M125: =RealityLayer!M125 + H125*errorX -> -0.2103736736 | N125: =RealityLayer!N125 + I125*errorX -> 2.131140186 | O125: 0.8337711337 | P125: 0.9809385232 | Q125: 0.4166880192 | R125: 0.9834612026 | S125: 0.6951743034 | T125: 0.9622403863 | U125: 0.1736289053 | V125: 0.9671959369
A126: 125 | B126: 423 | C126: 600490 | D126: Shehar Sultan City | E126: 0.9151403901 | F126: -0.1862360932 | G126: 0.8996676115 | H126: -0.4840990186 | I126: -0.1527087079 | K126: =RealityLayer!K126 + F126*errorX -> -0.4177371466 | L126: =RealityLayer!L126 + G126*errorX -> 0.9201148058 | M126: =RealityLayer!M126 + H126*errorX -> -1.490134509 | N126: =RealityLayer!N126 + I126*errorX -> -0.607710454 | O126: 0.3380696549 | P126: 0.821243616 | Q126: 0.06809443601 | R126: 0.2716897642 | S126: 0.1142910916 | T126: 0.6744410768 | U126: 0.004636852215 | V126: 0.07381532796
A127: 126 | B127: 443 | C127: 600561 | D127: Talairi | E127: 0.9778773347 | F127: 1.499074642 | G127: -0.07124185686 | H127: 0.8175970834 | I127: -0.722304776 | K127: =RealityLayer!K127 + F127*errorX -> 1.743521921 | L127: =RealityLayer!L127 + G127*errorX -> 1.173022072 | M127: =RealityLayer!M127 + H127*errorX -> -0.2480547583 | N127: =RealityLayer!N127 + I127*errorX -> -1.403221388 | O127: 0.9593787557 | P127: 0.8796065226 | Q127: 0.4020460197 | R127: 0.08027541581 | S127: 0.9204075969 | T127: 0.7737076346 | U127: 0.161641002 | V127: 0.006444142384
A128: 127 | B128: 198 | C128: 600275 | D128: Jaura Kalan | E128: 0.08720348887 | F128: 0.595741767 | G128: -0.008376446203 | H128: 0.9765199138 | I128: -0.4861658454 | K128: =RealityLayer!K128 + F128*errorX -> -0.2556583165 | L128: =RealityLayer!L128 + G128*errorX -> -1.438159223 | M128: =RealityLayer!M128 + H128*errorX -> 0.8254163569 | N128: =RealityLayer!N128 + I128*errorX -> -0.1520444227 | O128: 0.3991073421 | P128: 0.07519444105 | Q128: 0.7954323742 | R128: 0.4395759493 | S128: 0.1592866706 | T128: 0.005654203964 | U128: 0.6327126618 | V128: 0.1932270152
A129: 128 | B129: 137 | C129: 600501 | D129: Ehsanpur | E129: 0.02199499249 | F129: -0.8494293979 | G129: -0.4666276254 | H129: 0.9869245332 | I129: 0.7218079645 | K129: =RealityLayer!K129 + F129*errorX -> -0.01614169897 | L129: =RealityLayer!L129 + G129*errorX -> -0.7716880127 | M129: =RealityLayer!M129 + H129*errorX -> 0.5803462666 | N129: =RealityLayer!N129 + I129*errorX -> 0.1566319823 | O129: 0.4935606734 | P129: 0.2201496161 | Q129: 0.7191594335 | R129: 0.5622325523 | S129: 0.2436021384 | T129: 0.04846585347 | U129: 0.5171902908 | V129: 0.3161054428
A130: 129 | B130: 469 | C130: 600346 | D130: Vanjari | E130: 0.3486968581 | F130: -0.5431979844 | G130: -0.4439709755 | H130: -0.7112271305 | I130: 1.07804226 | K130: =RealityLayer!K130 + F130*errorX -> -1.036122492 | L130: =RealityLayer!L130 + G130*errorX -> 0.1369396122 | M130: =RealityLayer!M130 + H130*errorX -> -0.9998401653 | N130: =RealityLayer!N130 + I130*errorX -> 0.08757442995 | O130: 0.1500725001 | P130: 0.5544607361 | Q130: 0.1586939323 | R130: 0.534892537 | S130: 0.02252175529 | T130: 0.3074267079 | U130: 0.02518376416 | V130: 0.2861100261
A131: 130 | B131: 220 | C131: 600307 | D131: Karor Thal Jandi | E131: -0.6561390364 | F131: 1.04710125 | G131: 0.03393324732 | H131: -0.6638435934 | I131: -1.090852493 | K131: =RealityLayer!K131 + F131*errorX -> 0.7006506251 | L131: =RealityLayer!L131 + G131*errorX -> -0.4716833763 | M131: =RealityLayer!M131 + H131*errorX -> -0.4804137967 | N131: =RealityLayer!N131 + I131*errorX -> -0.8641645464 | O131: =NORMDIST(K131,0,1,TRUE) -> 0.7582394617 | P131: =NORMDIST(L131,0,1,TRUE) -> 0.3185764022 | Q131: =NORMDIST(M131,0,1,TRUE) -> 0.3154665929 | R131: =NORMDIST(N131,0,1,TRUE) -> 0.1937487526 | S131: =BETADIST(O131,2,1) -> 0.5749270813 | T131: =BETADIST(P131,2,1) -> 0.1014909241 | U131: =BETADIST(Q131,2,1) -> 0.09951917126 | V131: =BETADIST(R131,2,1) -> 0.03753857914
A132: 131 | B132: 294 | C132: 600552 | D132: Manka Bhatta | E132: 1.055209395 | F132: -1.622011041 | G132: 0.1114972292 | H132: 1.395765139 | I132: -0.2044032499 | K132: =RealityLayer!K132 + F132*errorX -> -0.8481810205 | L132: =RealityLayer!L132 + G132*errorX -> 0.4173568146 | M132: =RealityLayer!M132 + H132*errorX -> 0.9139287695 | N132: =RealityLayer!N132 + I132*errorX -> 0.9625833751 | O132: 0.1981685827 | P132: 0.6617912812 | Q132: 0.8196228623 | R132: 0.8321216781 | S132: 0.03927078719 | T132: 0.4379676999 | U132: 0.6717816364 | V132: 0.6924264871
A133: 132 | B133: 306 | C133: 600356 | D133: Mochh | E133: -1.902772055 | F133: -0.1824230367 | G133: -0.3394438863 | H133: -0.9193331607 | I133: -0.7366793398 | K133: =RealityLayer!K133 + F133*errorX -> -0.04987481834 | L133: =RealityLayer!L133 + G133*errorX -> 0.4244535568 | M133: =RealityLayer!M133 + H133*errorX -> 0.09403241965 | N133: =RealityLayer!N133 + I133*errorX -> -0.3779328699 | O133: 0.4801110722 | P133: 0.6643824654 | Q133: 0.5374582982 | R133: 0.3527402318 | S133: 0.2305066416 | T133: 0.4414040604 | U133: 0.2888614223 | V133: 0.1244256711
A134: 133 | B134: 43 | C134: 600478 | D134: Bakaeni | E134: 2.030574251 | F134: -0.1751936907 | G134: -0.6132825092 | H134: 0.9181667338 | I134: 0.01380840331 | K134: =RealityLayer!K134 + F134*errorX -> 0.8125423547 | L134: =RealityLayer!L134 + G134*errorX -> 0.1192214454 | M134: =RealityLayer!M134 + H134*errorX -> 0.04322666688 | N134: =RealityLayer!N134 + I134*errorX -> 0.3834534017 | O134: 0.7917597533 | P134: 0.5474500416 | Q134: 0.5172395761 | R134: 0.6493081927 | S134: 0.6268835069 | T134: 0.299701548 | U134: 0.2675367791 | V134: 0.421601129
A135: 134 | B135: 302 | C135: 600722 | D135: Miranpur | E135: -0.507977802 | F135: -0.7025846571 | G135: -0.7498874766 | H135: 2.499073162 | I135: 0.5961987881 | K135: =RealityLayer!K135 + F135*errorX -> 0.9298776714 | L135: =RealityLayer!L135 + G135*errorX -> 0.3095209617 | M135: =RealityLayer!M135 + H135*errorX -> 1.737225981 | N135: =RealityLayer!N135 + I135*errorX -> 1.189504694 | O135: 0.8237827875 | P135: 0.6215373653 | Q135: 0.9588263546 | R135: 0.8828794375 | S135: 0.6786180809 | T135: 0.3863086965 | U135: 0.9193479783 | V135: 0.7794761012
A136: 135 | B136: 260 | C136: 600712 | D136: Kotla Nasir | E136: -0.4438868473 | F136: 1.656608219 | G136: 0.8679012353 | H136: -0.04771436579 | I136: 2.47877324 | K136: =RealityLayer!K136 + F136*errorX -> 0.5780826097 | L136: =RealityLayer!L136 + G136*errorX -> 1.081939418 | M136: =RealityLayer!M136 + H136*errorX -> -1.117566183 | N136: =RealityLayer!N136 + I136*errorX -> -0.57595238 | O136: 0.7183958263 | P136: 0.8603602758 | Q136: 0.1318761593 | R136: 0.2823236847 | S136: 0.5160925633 | T136: 0.7402198043 | U136: 0.01739132139 | V136: 0.07970666294
A137: 136 | B137: 317 | C137: 600713 | D137: Murghai | E137: 0.1957403128 | F137: 0.8211281965 | G137: 0.6316668077 | H137: -1.097953373 | I137: 0.6881668924 | K137: =RealityLayer!K137 + F137*errorX -> 2.740288098 | L137: =RealityLayer!L137 + G137*errorX -> 2.707963404 | M137: =RealityLayer!M137 + H137*errorX -> 0.2694206137 | N137: =RealityLayer!N137 + I137*errorX -> 0.1986278462 | O137: 0.9969307325 | P137: 0.9966151257 | Q137: 0.6061969875 | R137: 0.5787230652 | S137: 0.9938708853 | T137: 0.9932417087 | U137: 0.3674747876 | V137: 0.3349203863
A138: 137 | B138: 64 | C138: 600318 | D138: Bokhari Ahmed Khan | E138: -0.1031878583 | F138: -1.135485945 | G138: 1.22739948 | H138: -0.152863322 | I138: -0.3746686161 | K138: =RealityLayer!K138 + F138*errorX -> 1.265442027 | L138: =RealityLayer!L138 + G138*errorX -> 2.21622174 | M138: =RealityLayer!M138 + H138*errorX -> 0.893855339 | N138: =RealityLayer!N138 + I138*errorX -> 0.5714410919 | O138: 0.8971435412 | P138: 0.9866618402 | Q138: 0.814300352 | R138: 0.7161496594 | S138: 0.8048665335 | T138: 0.9735015868 | U138: 0.6630850633 | V138: 0.5128703347
A139: 138 | B139: 192 | C139: 600170 | D139: Jallowali | E139: -0.7716516848 | F139: -0.249463028 | G139: -0.8962319953 | H139: -0.3870877663 | I139: -0.4709818313 | K139: =RealityLayer!K139 + F139*errorX -> 0.448712086 | L139: =RealityLayer!L139 + G139*errorX -> -1.441888098 | M139: =RealityLayer!M139 + H139*errorX -> 0.03599061686 | N139: =RealityLayer!N139 + I139*errorX -> -0.5765581157 | O139: 0.6731803175 | P139: 0.07466697223 | Q139: 0.5143550796 | R139: 0.2821190001 | S139: 0.4531717399 | T139: 0.005575156742 | U139: 0.2645611479 | V139: 0.07959113023
A140: 139 | B140: 385 | C140: 600690 | D140: Rasool Pur | E140: 0.003481090971 | F140: 0.6637480965 | G140: 1.51358563 | H140: -0.8729284673 | I140: 0.4609205462 | K140: =RealityLayer!K140 + F140*errorX -> -1.271972952 | L140: =RealityLayer!L140 + G140*errorX -> -0.9263351849 | M140: =RealityLayer!M140 + H140*errorX -> -0.4586714336 | N140: =RealityLayer!N140 + I140*errorX -> -0.4440155269 | O140: 0.1016913649 | P140: 0.1771359081 | Q140: 0.3232350654 | R140: 0.3285156791 | S140: 0.01034113369 | T140: 0.03137712993 | U140: 0.1044809075 | V140: 0.1079225514
A141: 140 | B141: 493 | C141: 600739 | D141: Khair Pur Dhaha | E141: 0.8130109563 | F141: -0.7988273865 | G141: 0.5693641469 | H141: -0.6725463209 | I141: 2.93875928 | K141: =RealityLayer!K141 + F141*errorX -> -1.806831693 | L141: =RealityLayer!L141 + G141*errorX -> -1.079051927 | M141: =RealityLayer!M141 + H141*errorX -> -2.56305816 | N141: =RealityLayer!N141 + I141*errorX -> -1.02203536 | O141: 0.03539426274 | P141: 0.14028229 | Q141: 0.005187733321 | R141: 0.1533820825 | S141: 0.001252753835 | T141: 0.0196791209 | U141: 2.691257701e-05 | V141: 0.02352606324
A142: 141 | B142: 206 | C142: 600626 | D142: Jhok Gulab Shah | E142: 0.6183677215 | F142: 2.38607754 | G142: -0.9870495887 | H142: -0.4840137535 | I142: 0.9665882317 | K142: =RealityLayer!K142 + F142*errorX -> 1.90080007 | L142: =RealityLayer!L142 + G142*errorX -> 0.2274725056 | M142: =RealityLayer!M142 + H142*errorX -> 0.6375095232 | N142: =RealityLayer!N142 + I142*errorX -> 2.159712116 | O142: 0.9713358975 | P142: 0.5899718269 | Q142: 0.7381034956 | R142: 0.9846025187 | S142: 0.9434934259 | T142: 0.3480667565 | U142: 0.5447967702 | V142: 0.9694421198
A143: 142 | B143: 181 | C143: 600185 | D143: Hazrat Sultan Bahu | E143: 1.639064067 | F143: -0.587813247 | G143: 0.4338630788 | H143: 0.3627951628 | I143: 2.062224667 | K143: =RealityLayer!K143 + F143*errorX -> -1.085952023 | L143: =RealityLayer!L143 + G143*errorX -> -0.5829321606 | M143: =RealityLayer!M143 + H143*errorX -> -0.2589168186 | N143: =RealityLayer!N143 + I143*errorX -> -0.05849766671 | O143: 0.1387501094 | P143: 0.2799694848 | Q143: 0.3978497106 | R143: 0.4766761105 | S143: 0.01925159285 | T143: 0.07838291241 | U143: 0.1582843922 | V143: 0.2272201143
A144: 143 | B144: 36 | C144: 600477 | D144: Bair Bund | E144: 0.3115349045 | F144: 1.311639153 | G144: -0.3015929906 | H144: 0.3202194421 | I144: -0.1759713086 | K144: =RealityLayer!K144 + F144*errorX -> -0.3652904236 | L144: =RealityLayer!L144 + G144*errorX -> -0.6691694953 | M144: =RealityLayer!M144 + H144*errorX -> -1.461063279 | N144: =RealityLayer!N144 + I144*errorX -> -1.114351654 | O144: 0.3574473131 | P144: 0.2516936814 | Q144: 0.07199903823 | R144: 0.1325641776 | S144: 0.1277685816 | T144: 0.06334970927 | U144: 0.005183861506 | V144: 0.01757326117
A145: 144 | B145: 398 | C145: 600725 | D145: Sabzani | E145: -0.7145808922 | F145: -1.00248144 | G145: 1.047631031 | H145: -0.1304545094 | I145: 2.039059837 | K145: =RealityLayer!K145 + F145*errorX -> 1.27728628 | L145: =RealityLayer!L145 + G145*errorX -> 2.305811515 | M145: =RealityLayer!M145 + H145*errorX -> 0.2923737453 | N145: =RealityLayer!N145 + I145*errorX -> 1.834998918 | O145: 0.8992494022 | P145: 0.9894394167 | Q145: 0.6149995601 | R145: 0.9667470751 | S145: 0.8086494873 | T145: 0.9789903594 | U145: 0.3782244589 | V145: 0.9345999073
A146: 145 | B146: 46 | C146: 600128 | D146: Barthi | E146: 1.116166004 | F146: 1.655103006 | G146: -0.3311902219 | H146: 1.077632987 | I146: -0.2760702955 | K146: =RealityLayer!K146 + F146*errorX -> 0.8563935029 | L146: =RealityLayer!L146 + G146*errorX -> -0.921824011 | M146: =RealityLayer!M146 + H146*errorX -> 1.435904794 | N146: =RealityLayer!N146 + I146*errorX -> 0.1262513522 | O146: 0.8041099214 | P146: 0.1783101905 | Q146: 0.9244852829 | R146: 0.5502335183 | S146: 0.6465927657 | T146: 0.03179452402 | U146: 0.8546730382 | V146: 0.3027569247
A147: 146 | B147: 354 | C147: 600511 | D147: Patti Ghulam Ali | E147: 0.1983141829 | F147: 0.9365112419 | G147: 0.4816934052 | H147: 0.5991250873 | I147: 2.282467904 | K147: =RealityLayer!K147 + F147*errorX -> 0.8255576209 | L147: =RealityLayer!L147 + G147*errorX -> 0.6824279026 | M147: =RealityLayer!M147 + H147*errorX -> 0.7398592437 | N147: =RealityLayer!N147 + I147*errorX -> 1.039872652 | O147: 0.7954724582 | P147: 0.7525157914 | Q147: 0.7703072966 | R147: 0.8508004651 | S147: 0.6327764317 | T147: 0.5662800162 | U147: 0.5933733313 | V147: 0.7238614314
A148: 147 | B148: 352 | C148: 600509 | D148: Pattal Kot Addu | E148: 0.9136283552 | F148: 0.359692649 | G148: -0.799038844 | H148: 1.900443749 | I148: -1.770386007 | K148: =RealityLayer!K148 + F148*errorX -> 0.6113481245 | L148: =RealityLayer!L148 + G148*errorX -> -0.01827682199 | M148: =RealityLayer!M148 + H148*errorX -> 1.550519875 | N148: =RealityLayer!N148 + I148*errorX -> -1.055389603 | O148: 0.7295154312 | P148: 0.4927090089 | Q148: 0.9394916065 | R148: 0.1456235879 | S148: 0.5321927643 | T148: 0.2427621674 | U148: 0.8826444787 | V148: 0.02120622936
A149: 148 | B149: 184 | C149: 600334 | D149: Isakhel | E149: -2.80670065 | F149: 0.04472781256 | G149: 0.09257973943 | H149: 1.397997949 | I149: 0.1315356712 | K149: =RealityLayer!K149 + F149*errorX -> 0.4059906063 | L149: =RealityLayer!L149 + G149*errorX -> 0.7432729697 | M149: =RealityLayer!M149 + H149*errorX -> 1.383191974 | N149: =RealityLayer!N149 + I149*errorX -> 1.552013836 | O149: 0.6576252487 | P149: 0.7713417835 | Q149: 0.916696995 | R149: 0.9396705434 | S149: 0.4324709677 | T149: 0.5949681469 | U149: 0.8403333807 | V149: 0.8829807302
A150: 149 | B150: 431 | C150: 600164 | D150: Smena | E150: 0.05545189197 | F150: 1.162122771 | G150: 1.24930466 | H150: -0.0845170689 | I150: 0.7400944924 | K150: =RealityLayer!K150 + F150*errorX -> -0.3071972143 | L150: =RealityLayer!L150 + G150*errorX -> -1.07463467 | M150: =RealityLayer!M150 + H150*errorX -> 0.00639726555 | N150: =RealityLayer!N150 + I150*errorX -> 0.03774564618 | O150: 0.3793466329 | P150: 0.1412691616 | Q150: 0.5025521223 | R150: 0.5150547592 | S150: 0.1439038679 | T150: 0.01995697602 | U150: 0.2525586356 | V150: 0.265281405
A151: 150 | B151: 454 | C151: 600706 | D151: Tibbi Lundan | E151: 0.3381478564 | F151: 0.5761239663 | G151: 1.834832801 | H151: 0.3782815838 | I151: 2.502565621 | K151: =RealityLayer!K151 + F151*errorX -> 1.841344983 | L151: =RealityLayer!L151 + G151*errorX -> 1.756257401 | M151: =RealityLayer!M151 + H151*errorX -> 0.8368488919 | N151: =RealityLayer!N151 + I151*errorX -> 2.455539811 | O151: 0.9672144902 | P151: 0.9604777662 | Q151: 0.7986612444 | R151: 0.9929663415 | S151: 0.93550387 | T151: 0.9225175394 | U151: 0.6378597833 | V151: 0.9859821553
A152: 151 | B152: 38 | C152: 600496 | D152: Bait Qaim Wala | E152: -0.5980268725 | F152: 0.03240302249 | G152: 1.45822014 | H152: 0.4675655418 | I152: 0.7954645298 | K152: =RealityLayer!K152 + F152*errorX -> 0.2203889112 | L152: =RealityLayer!L152 + G152*errorX -> 2.06743007 | M152: =RealityLayer!M152 + H152*errorX -> 1.856851771 | N152: =RealityLayer!N152 + I152*errorX -> 0.7486455649 | O152: 0.5872158597 | P152: 0.9806531764 | Q152: 0.9683338771 | R152: 0.7729645694 | S152: 0.3448224658 | T152: 0.9616806523 | U152: 0.9376704975 | V152: 0.5974742256
A153: 152 | B153: 178 | C153: 600208 | D153: Haveli Sheikh Raju | E153: 0.8984056876 | F153: 1.074902229 | G153: -0.4982541668 | H153: 0.8871256796 | I153: -0.1171952135 | K153: =RealityLayer!K153 + F153*errorX -> -0.4063362853 | L153: =RealityLayer!L153 + G153*errorX -> -0.8294050834 | M153: =RealityLayer!M153 + H153*errorX -> 0.6598093398 | N153: =RealityLayer!N153 + I153*errorX -> -0.2029699068 | O153: 0.3422477639 | P153: 0.203437613 | Q153: 0.7453119055 | R153: 0.4195792768 | S153: 0.1171335319 | T153: 0.04138686238 | U153: 0.5554898365 | V153: 0.1760467695
A154: 153 | B154: 130 | C154: 600374 | D154: Doaba | E154: -0.1633986813 | F154: -0.8201641322 | G154: 1.716211955 | H154: -0.3162767825 | I154: -2.145379767 | K154: =RealityLayer!K154 + F154*errorX -> -1.440478066 | L154: =RealityLayer!L154 + G154*errorX -> 0.5202798774 | M154: =RealityLayer!M154 + H154*errorX -> -0.2935512913 | N154: =RealityLayer!N154 + I154*errorX -> -1.258759384 | O154: 0.0748660956 | P154: 0.6985657405 | Q154: 0.3845504003 | R154: 0.1040586275 | S154: 0.00560493227 | T154: 0.4879940938 | U154: 0.1478790103 | V154: 0.01082819795
A155: 154 | B155: 113 | C155: 600244 | D155: Dab Kalan | E155: -0.9542122825 | F155: 0.4953108146 | G155: -1.468038135 | H155: 1.613238965 | I155: -0.7132985047 | K155: =RealityLayer!K155 + F155*errorX -> -0.6936970927 | L155: =RealityLayer!L155 + G155*errorX -> -1.573678068 | M155: =RealityLayer!M155 + H155*errorX -> 1.222549882 | N155: =RealityLayer!N155 + I155*errorX -> -0.8147361524 | O155: 0.2439360948 | P155: 0.05778094739 | Q155: 0.8892501238 | R155: 0.2076116774 | S155: 0.05950481835 | T155: 0.003338637881 | U155: 0.7907657827 | V155: 0.04310260858
A156: 155 | B156: 92 | C156: 600678 | D156: Chak No 264/p | E156: -0.9076075003 | F156: 0.4695289135 | G156: -0.4200364856 | H156: 1.91651452 | I156: 0.1671207883 | K156: =RealityLayer!K156 + F156*errorX -> 0.9669533568 | L156: =RealityLayer!L156 + G156*errorX -> 1.009507757 | M156: =RealityLayer!M156 + H156*errorX -> 1.41161776 | N156: =RealityLayer!N156 + I156*errorX -> 1.811073394 | O156: 0.8332163243 | P156: 0.8436344084 | Q156: 0.9209687299 | R156: 0.9649352543 | S156: 0.6942494431 | T156: 0.711719015 | U156: 0.8481834015 | V156: 0.931100045
A157: 156 | B157: 136 | C157: 600621 | D157: Dufli Kabir Khan | E157: 1.012394932 | F157: 0.4018068012 | G157: -0.5048468665 | H157: 0.06909431249 | I157: 0.1335411071 | K157: =RealityLayer!K157 + F157*errorX -> 1.306822401 | L157: =RealityLayer!L157 + G157*errorX -> 1.054970567 | M157: =RealityLayer!M157 + H157*errorX -> 0.2705884562 | N157: =RealityLayer!N157 + I157*errorX -> 0.8495070535 | O157: 0.9043634822 | P157: 0.8542806069 | Q157: 0.6066462123 | R157: 0.8022003965 | S157: 0.817873308 | T157: 0.7297953552 | U157: 0.368019627 | V157: 0.6435254761
A158: 157 | B158: 217 | C158: 600116 | D158: Kanjan | E158: -0.5421350124 | F158: -0.05491529009 | G158: 0.3298976026 | H158: 0.8208075997 | I158: 0.6888444659 | K158: =RealityLayer!K158 + F158*errorX -> -0.07762074505 | L158: =RealityLayer!L158 + G158*errorX -> -0.01714459872 | M158: =RealityLayer!M158 + H158*errorX -> -0.6153302002 | N158: =RealityLayer!N158 + I158*errorX -> -0.226313367 | O158: 0.46906487 | P158: 0.4931606298 | Q158: 0.2691683386 | R158: 0.4104788513 | S158: 0.2200218523 | T158: 0.2432074067 | U158: 0.07245159449 | V158: 0.1684928874
A159: 158 | B159: 424 | C159: 600513 | D159: Sheikh Umar | E159: -1.418197826 | F159: -0.5724245966 | G159: -0.6205937098 | H159: 0.3311902219 | I159: 0.6946754638 | K159: =RealityLayer!K159 + F159*errorX -> -0.3672561983 | L159: =RealityLayer!L159 + G159*errorX -> 0.3112953451 | M159: =RealityLayer!M159 + H159*errorX -> 0.823537211 | N159: =RealityLayer!N159 + I159*errorX -> 0.6343029319 | O159: 0.3567139617 | P159: 0.6222119472 | Q159: 0.7948987173 | R159: 0.7370584283 | S159: 0.1272448505 | T159: 0.3871477072 | U159: 0.6318639707 | V159: 0.5432551267
A160: 159 | B160: 441 | C160: 600342 | D160: Tabisar | E160: 0.7347739484 | F160: 1.71321517 | G160: -2.247652446 | H160: 0.2635351848 | I160: -0.8305960364 | K160: =RealityLayer!K160 + F160*errorX -> 0.7574550849 | L160: =RealityLayer!L160 + G160*errorX -> -0.1516024232 | M160: =RealityLayer!M160 + H160*errorX -> 0.4038686924 | N160: =RealityLayer!N160 + I160*errorX -> 0.3611465818 | O160: 0.7756113674 | P160: 0.439750261 | Q160: 0.6568453602 | R160: 0.6410050638 | S160: 0.6015729933 | T160: 0.1933802921 | U160: 0.4314458272 | V160: 0.4108874918
A161: 160 | B161: 129 | C161: 600374 | D161: Doaba | E161: 0.9693985703 | F161: 0.01472699296 | G161: 0.6743698577 | H161: 1.170733412 | I161: -0.04763819561 | K161: =RealityLayer!K161 + F161*errorX -> -1.275367504 | L161: =RealityLayer!L161 + G161*errorX -> -1.380178071 | M161: =RealityLayer!M161 + H161*errorX -> 0.1826258062 | N161: =RealityLayer!N161 + I161*errorX -> 0.3342781022 | O161: 0.1010895976 | P161: 0.08376591204 | Q161: 0.5724541828 | R161: 0.6309151436 | S161: 0.01021910674 | T161: 0.007016728019 | U161: 0.3277037914 | V161: 0.3980539184
A162: 161 | B162: 251 | C162: 600214 | D162: Kot Shakir | E162: -0.03515879143 | F162: -0.8313531907 | G162: 1.106659511 | H162: 1.331422936 | I162: 0.7384858236 | K162: =RealityLayer!K162 + F162*errorX -> 0.06668420463 | L162: =RealityLayer!L162 + G162*errorX -> 0.1221021553 | M162: =RealityLayer!M162 + H162*errorX -> 0.1179100682 | N162: =RealityLayer!N162 + I162*errorX -> -0.8257530882 | O162: 0.5265834454 | P162: 0.5485909425 | Q162: 0.5469305422 | R162: 0.2044720852 | S162: 0.277290125 | T162: 0.3009520222 | U162: 0.299133018 | V162: 0.04180883363
A163: 162 | B163: 213 | C163: 600148 | D163: Kala | E163: -0.08359506865 | F163: -0.5694539595 | G163: -0.3803370419 | H163: -0.3842865226 | I163: 1.796270226 | K163: =RealityLayer!K163 + F163*errorX -> -1.49173398 | L163: =RealityLayer!L163 + G163*errorX -> -0.6134278209 | M163: =RealityLayer!M163 + H163*errorX -> 0.5777749387 | N163: =RealityLayer!N163 + I163*errorX -> 0.4808876129 | O163: 0.06788444872 | P163: 0.2697967475 | Q163: 0.7182919614 | R163: 0.6847018115 | S163: 0.004608298378 | T163: 0.07279028499 | U163: 0.5159433417 | V163: 0.4688165707
A164: 163 | B164: 57 | C164: 600481 | D164: Bet Mir Hazar Khan | E164: -0.9722157301 | F164: -0.4429580258 | G164: -0.3836282758 | H164: 0.8270376384 | I164: -0.554404096 | K164: =RealityLayer!K164 + F164*errorX -> 1.052201987 | L164: =RealityLayer!L164 + G164*errorX -> 0.5603579621 | M164: =RealityLayer!M164 + H164*errorX -> 0.3236609192 | N164: =RealityLayer!N164 + I164*errorX -> -0.284524248 | O164: 0.853646556 | P164: 0.7123823504 | Q164: 0.6269026193 | R164: 0.3880043272 | S164: 0.7287124425 | T164: 0.5074886131 | U164: 0.3930068941 | V164: 0.1505473579
A165: 164 | B165: 37 | C165: 600465 | D165: Bait Mullan Wali | E165: 0.6346590453 | F165: 1.061368948 | G165: 1.146779596 | H165: 1.43341822 | I165: -0.6004074748 | K165: =RealityLayer!K165 + F165*errorX -> 1.385213174 | L165: =RealityLayer!L165 + G165*errorX -> 0.8280204979 | M165: =RealityLayer!M165 + H165*errorX -> 0.9526813098 | N165: =RealityLayer!N165 + I165*errorX -> -0.1416050374 | O165: 0.9170063532 | P165: 0.7961705543 | Q165: 0.8296242171 | R165: 0.4436959939 | S165: 0.8409006519 | T165: 0.6338875515 | U165: 0.6882763415 | V165: 0.196866135
A166: 165 | B166: 111 | C166: 600203 | D166: Civil Station | E166: 0.7642540822 | F166: 1.642592906 | G166: 1.060832346 | H166: 1.758771759 | I166: -0.2289175427 | K166: =RealityLayer!K166 + F166*errorX -> 0.07698355307 | L166: =RealityLayer!L166 + G166*errorX -> -0.4658723268 | M166: =RealityLayer!M166 + H166*errorX -> 0.1578926797 | N166: =RealityLayer!N166 + I166*errorX -> -0.5491614713 | O166: 0.5306816856 | P166: 0.3206534452 | Q166: 0.5627293168 | R166: 0.2914473213 | S166: 0.2816230514 | T166: 0.1028186319 | U166: 0.3166642839 | V166: 0.08494154111
A167: 166 | B167: 292 | C167: 600328 | D167: Mandi Town | E167: 0.1894272827 | F167: 0.3308673513 | G167: -1.648518264 | H167: 0.9371046872 | I167: 0.07469338925 | K167: =RealityLayer!K167 + F167*errorX -> -1.354196324 | L167: =RealityLayer!L167 + G167*errorX -> -2.596552132 | M167: =RealityLayer!M167 + H167*errorX -> 0.7795835436 | N167: =RealityLayer!N167 + I167*errorX -> -0.8410983054 | O167: 0.08783687569 | P167: 0.004708230756 | Q167: 0.7821819773 | R167: 0.2001464322 | S167: 0.007715316731 | T167: 2.216743685e-05 | U167: 0.6118086456 | V167: 0.04005859432
A168: 167 | B168: 391 | C168: 600724 | D168: Rojhan | E168: -0.2519095688 | F168: -1.282892299 | G168: 0.7843868843 | H168: 0.6400011898 | I168: -0.5259903446 | K168: =RealityLayer!K168 + F168*errorX -> -1.24202975 | L168: =RealityLayer!L168 + G168*errorX -> 1.022880642 | M168: =RealityLayer!M168 + H168*errorX -> 1.013554095 | N168: =RealityLayer!N168 + I168*errorX -> 1.089604828 | O168: 0.107112793 | P168: 0.8468178584 | Q168: 0.8446022143 | R168: 0.8620563722 | S168: 0.01147315042 | T168: 0.7171004853 | U168: 0.7133529003 | V168: 0.7431411889
A169: 168 | B169: 397 | C169: 600725 | D169: Sabzani | E169: -0.005699121175 | F169: -0.5704441719 | G169: -0.7787798495 | H169: 0.5999504538 | I169: -0.8135430107 | K169: =RealityLayer!K169 + F169*errorX -> 0.2362664141 | L169: =RealityLayer!L169 + G169*errorX -> 1.050152075 | M169: =RealityLayer!M169 + H169*errorX -> 1.764532227 | N169: =RealityLayer!N169 + I169*errorX -> 0.5411807946 | O169: 0.5933870265 | P169: 0.8531759002 | Q169: 0.9611787927 | R169: 0.7058085132 | S169: 0.3521081633 | T169: 0.7279091167 | U169: 0.9238646716 | V169: 0.4981656572
A170: 169 | B170: 240 | C170: 600151 | D170: Kot Haibat | E170: -0.1350076673 | F170: -1.446578608 | G170: -0.07845301297 | H170: -1.843550308 | I170: 1.045646059 | K170: =RealityLayer!K170 + F170*errorX -> -1.838294304 | L170: =RealityLayer!L170 + G170*errorX -> -1.386357506 | M170: =RealityLayer!M170 + H170*errorX -> -2.048967154 | N170: =RealityLayer!N170 + I170*errorX -> -1.039742971 | O170: 0.03300952499 | P170: 0.08281888257 | Q170: 0.02023266343 | R170: 0.1492296655 | S170: 0.00108962874 | T170: 0.00685896731 | U170: 0.0004093606694 | V170: 0.02226949305
A171: 170 | B171: 157 | C171: 600543 | D171: Ghazanfar Garh | E171: -1.317084752 | F171: -1.506646186 | G171: -0.9838186088 | H171: -2.065444278 | I171: 1.679050001 | K171: =RealityLayer!K171 + F171*errorX -> 0.3364299072 | L171: =RealityLayer!L171 + G171*errorX -> -0.0822949044 | M171: =RealityLayer!M171 + H171*errorX -> -0.1159764389 | N171: =RealityLayer!N171 + I171*errorX -> 2.004491001 | O171: 0.6317266501 | P171: 0.4672061032 | Q171: 0.4538356074 | R171: 0.977491255 | S171: 0.3990785604 | T171: 0.2182815429 | U171: 0.2059667585 | V171: 0.9554891536
A172: 171 | B172: 236 | C172: 600106 | D172: Kohawar Kalan | E172: -0.5142544524 | F172: -0.5228298505 | G172: -1.006155799 | H172: 0.1894272827 | I172: -0.6259801921 | K172: =RealityLayer!K172 + F172*errorX -> -0.1746595253 | L172: =RealityLayer!L172 + G172*errorX -> -1.874876899 | M172: =RealityLayer!M172 + H172*errorX -> -1.157902359 | N172: =RealityLayer!N172 + I172*errorX -> -0.8690811961 | O172: 0.4306735865 | P172: 0.03040483038 | Q172: 0.1234519425 | R172: 0.1924013605 | S172: 0.1854797381 | T172: 0.0009244537104 | U172: 0.0152403821 | V172: 0.03701828352
A173: 172 | B173: 328 | C173: 600176 | D173: Narri Shumali | E173: -1.090991191 | F173: 1.081332357 | G173: 0.436469918 | H173: 0.9912923815 | I173: -0.08789470485 | K173: =RealityLayer!K173 + F173*errorX -> 1.778961178 | L173: =RealityLayer!L173 + G173*errorX -> 0.284277959 | M173: =RealityLayer!M173 + H173*errorX -> 0.1063582908 | N173: =RealityLayer!N173 + I173*errorX -> 0.3236106476 | O173: 0.9623769366 | P173: 0.6119013121 | Q173: 0.5423509578 | R173: 0.6268835871 | S173: 0.926169368 | T173: 0.3744232157 | U173: 0.2941445614 | V173: 0.3929830318
A174: 173 | B174: 455 | C174: 600178 | D174: Tibi Qaisarani | E174: 1.283415259 | F174: 2.151537046 | G174: -1.408438948 | H174: 0.5275717285 | I174: 0.7334710972 | K174: =RealityLayer!K174 + F174*errorX -> 1.030544223 | L174: =RealityLayer!L174 + G174*errorX -> -0.6243095738 | M174: =RealityLayer!M174 + H174*errorX -> 0.2272708643 | N174: =RealityLayer!N174 + I174*errorX -> 0.8879269486 | O174: 0.8486226981 | P174: 0.2662121488 | Q174: 0.5898934364 | R174: 0.8127099762 | S174: 0.7201604837 | T174: 0.07086890819 | U174: 0.3479742663 | V174: 0.6604975053
A175: 174 | B175: 388 | C175: 600723 | D175: Rojhan Sharqi (tower Chowk)uc | E175: -0.4985145097 | F175: -0.4023877409 | G175: -1.191788215 | H175: -1.148109732 | I175: 0.6446089174 | K175: =RealityLayer!K175 + F175*errorX -> 1.61120613 | L175: =RealityLayer!L175 + G175*errorX -> 1.118433893 | M175: =RealityLayer!M175 + H175*errorX -> 0.1614792341 | N175: =RealityLayer!N175 + I175*errorX -> 0.9132709587 | O175: 0.9464325989 | P175: 0.8683091371 | Q175: 0.5641420173 | R175: 0.8194499739 | S175: 0.8957346642 | T175: 0.7539607576 | U175: 0.3182562156 | V175: 0.6714982597
A176: 175 | B176: 479 | C176: 600720 | D176: Wang | E176: 0.2485944606 | F176: 0.0950399226 | G176: 0.9081850294 | H176: -0.628494945 | I176: 0.8622282621 | K176: =RealityLayer!K176 + F176*errorX -> 1.805170961 | L176: =RealityLayer!L176 + G176*errorX -> 1.313499515 | M176: =RealityLayer!M176 + H176*errorX -> 1.435073528 | N176: =RealityLayer!N176 + I176*errorX -> 1.544472131 | O176: 0.9644760332 | P176: 0.9054926578 | Q176: 0.9243669269 | R176: 0.9387630012 | S176: 0.9302140187 | T176: 0.8199169534 | U176: 0.8544542155 | V176: 0.8812759724
A177: 176 | B177: 189 | C177: 600186 | D177: Jaiwain | E177: 0.8744973456 | F177: 0.2899241736 | G177: -0.9339055396 | H177: 0.838942924 | I177: 0.8318943401 | K177: =RealityLayer!K177 + F177*errorX -> -0.6170144132 | L177: =RealityLayer!L177 + G177*errorX -> -0.9968221698 | M177: =RealityLayer!M177 + H177*errorX -> -0.246176238 | N177: =RealityLayer!N177 + I177*errorX -> 0.25204127 | O177: 0.2686126095 | P177: 0.1594254176 | Q177: 0.4027729045 | R177: 0.5994954178 | S177: 0.07215273397 | T177: 0.02541646377 | U177: 0.1622260126 | V177: 0.359394756
A178: 177 | B178: 59 | C178: 600674 | D178: Bhong | E178: -0.4808339327 | F178: -0.366801487 | G178: 0.1207399691 | H178: -0.7785729395 | I178: -0.2420506462 | K178: =RealityLayer!K178 + F178*errorX -> 0.5692304565 | L178: =RealityLayer!L178 + G178*errorX -> 1.497968985 | M178: =RealityLayer!M178 + H178*errorX -> 0.7612925303 | N178: =RealityLayer!N178 + I178*errorX -> 0.8477527769 | O178: 0.7154001228 | P178: 0.9329293456 | Q178: 0.7767588194 | R178: 0.8017121663 | S178: 0.5117973357 | T178: 0.8703571638 | U178: 0.6033542635 | V178: 0.6427423977
A179: 178 | B179: 53 | C179: 600696 | D179: Basti Rindan | E179: 1.951248123 | F179: -0.7626158549 | G179: -1.507601155 | H179: 1.172402335 | I179: 0.2278966349 | K179: =RealityLayer!K179 + F179*errorX -> 0.1499403725 | L179: =RealityLayer!L179 + G179*errorX -> 0.3212364225 | M179: =RealityLayer!M179 + H179*errorX -> 2.250101168 | N179: =RealityLayer!N179 + I179*errorX -> 1.331100317 | O179: 0.5595941705 | P179: 0.6259843838 | Q179: 0.987778738 | R179: 0.9084219977 | S179: 0.3131456356 | T179: 0.3918564487 | U179: 0.9757068353 | V179: 0.825230526
A180: 179 | B180: 169 | C180: 600544 | D180: Gul Wala | E180: 1.824632818 | F180: 1.459329724 | G180: -0.1606076694 | H180: -0.6915638551 | I180: 0.7476614883 | K180: =RealityLayer!K180 + F180*errorX -> 1.036480062 | L180: =RealityLayer!L180 + G180*errorX -> 0.2693871653 | M180: =RealityLayer!M180 + H180*errorX -> 0.5615710725 | N180: =RealityLayer!N180 + I180*errorX -> -0.1386399559 | O180: 0.8500108818 | P180: 0.6061841191 | Q180: 0.7127958529 | R180: 0.444867334 | S180: 0.7225184992 | T180: 0.3674591862 | U180: 0.508077928 | V180: 0.1979069449
A181: 180 | B181: 337 | C181: 600687 | D181: Nawazabad | E181: 1.810271897 | F181: 0.3867580745 | G181: 0.08206029634 | H181: -0.2784554454 | I181: 0.9935456546 | K181: =RealityLayer!K181 + F181*errorX -> 1.046270237 | L181: =RealityLayer!L181 + G181*errorX -> 1.123012148 | M181: =RealityLayer!M181 + H181*errorX -> -0.4534254227 | N181: =RealityLayer!N181 + I181*errorX -> 0.5812991273 | O181: 0.8522818587 | P181: 0.8692838325 | Q181: 0.3251212168 | R181: 0.7194805657 | S181: 0.7263843666 | T181: 0.7556543814 | U181: 0.1057038056 | V181: 0.5176522844
A182: 181 | B182: 316 | C182: 600553 | D182: Muradabad | E182: -0.4666276254 | F182: -0.8278993846 | G182: 0.3621426004 | H182: -0.3238449153 | I182: 0.3089667189 | K182: =RealityLayer!K182 + F182*errorX -> -0.1465536923 | L182: =RealityLayer!L182 + G182*errorX -> 1.2251563 | M182: =RealityLayer!M182 + H182*errorX -> 0.6007610423 | N182: =RealityLayer!N182 + I182*errorX -> 0.4327858594 | O182: 0.4417421535 | P182: 0.889741832 | Q182: 0.7260004224 | R182: 0.6674148264 | S182: 0.1951361302 | T182: 0.7916405277 | U182: 0.5270766133 | V182: 0.4454425505
A183: 182 | B183: 103 | C183: 600333 | D183: Chapri | E183: -0.4685898602 | F183: -1.432351837 | G183: -0.8091842574 | H183: -0.7280755199 | I183: -0.002715978553 | K183: =RealityLayer!K183 + F183*errorX -> -0.8290161186 | L183: =RealityLayer!L183 + G183*errorX -> -0.3837624287 | M183: =RealityLayer!M183 + H183*errorX -> -0.1304060599 | N183: =RealityLayer!N183 + I183*errorX -> -0.6666073893 | O183: 0.2035476432 | P183: 0.3505772686 | Q183: 0.4481225862 | R183: 0.252511474 | S183: 0.04143164307 | T183: 0.1229044213 | U183: 0.2008138523 | V183: 0.06376204448
A184: 183 | B184: 296 | C184: 600217 | D184: Mari Shah Sakhira | E184: -0.3538229976 | F184: -0.600224439 | G184: -1.315445388 | H184: -0.5765753031 | I184: -0.4815206012 | K184: =RealityLayer!K184 + F184*errorX -> -1.36706122 | L184: =RealityLayer!L184 + G184*errorX -> -0.8795267941 | M184: =RealityLayer!M184 + H184*errorX -> -0.3191861515 | N184: =RealityLayer!N184 + I184*errorX -> -0.9177253006 | O184: 0.08580305872 | P184: 0.1895578559 | Q184: 0.3747926788 | R184: 0.1793813492 | S184: 0.007362164886 | T184: 0.03593218073 | U184: 0.1404695521 | V184: 0.03217766845
A185: 184 | B185: 427 | C185: 600718 | D185: Shikar Pur | E185: -0.5118113222 | F185: 1.525722837 | G185: -1.05307663 | H185: 2.103734005 | I185: -0.7390895007 | K185: =RealityLayer!K185 + F185*errorX -> 1.715205418 | L185: =RealityLayer!L185 + G185*errorX -> 0.7263476848 | M185: =RealityLayer!M185 + H185*errorX -> 1.094408402 | N185: =RealityLayer!N185 + I185*errorX -> -0.7155813504 | O185: 0.9568462141 | P185: 0.7661871732 | Q185: 0.8631120498 | R185: 0.2371249463 | S185: 0.9155546774 | T185: 0.5870427843 | U185: 0.7449624105 | V185: 0.05622824017
A186: 185 | B186: 253 | C186: 600322 | D186: Kot Sultan | E186: -0.6331629265 | F186: -0.8386155059 | G186: 0.4540402188 | H186: 0.5018080174 | I186: 1.410917321 | K186: =RealityLayer!K186 + F186*errorX -> -0.983790453 | L186: =RealityLayer!L186 + G186*errorX -> -0.003257490622 | M186: =RealityLayer!M186 + H186*errorX -> 0.3186985087 | N186: =RealityLayer!N186 + I186*errorX -> 0.6039752604 | O186: 0.1626092772 | P186: 0.4987004516 | Q186: 0.6250224272 | R186: 0.7270699548 | S186: 0.02644177703 | T186: 0.2487021404 | U186: 0.3906530345 | V186: 0.5286307192
A187: 186 | B187: 258 | C187: 600711 | D187: Kotla Isan | E187: -1.292532943 | F187: -0.3372565516 | G187: -0.05706056072 | H187: 1.415901352 | I187: -0.8947472452 | K187: =RealityLayer!K187 + F187*errorX -> 1.009981724 | L187: =RealityLayer!L187 + G187*errorX -> 0.4230639196 | M187: =RealityLayer!M187 + H187*errorX -> -0.8443213241 | N187: =RealityLayer!N187 + I187*errorX -> -1.451345623 | O187: 0.843747977 | P187: 0.6638756871 | Q187: 0.1992449366 | R187: 0.07334182167 | S187: 0.7119106486 | T187: 0.4407309279 | U187: 0.03969854477 | V187: 0.005379022805
A188: 187 | B188: 237 | C188: 600505 | D188: Kot Addu 01 | E188: -0.3518687208 | F188: -1.046439593 | G188: 0.4586240721 | H188: -0.1639409675 | I188: 0.3215086508 | K188: =RealityLayer!K188 + F188*errorX -> -1.547369796 | L188: =RealityLayer!L188 + G188*errorX -> -0.412042364 | M188: =RealityLayer!M188 + H188*errorX -> 0.9270695163 | N188: =RealityLayer!N188 + I188*errorX -> 0.6580015254 | O188: 0.06088705004 | P188: 0.3401541862 | Q188: 0.8230547789 | R188: 0.7447314245 | S188: 0.003707232863 | T188: 0.1157048704 | U188: 0.677419169 | V188: 0.5546248947
A189: 188 | B189: 20 | C189: 600371 | D189: Allu Wali | E189: 0.3886555078 | F189: -0.5455945029 | G189: -0.9222549124 | H189: 0.5552078619 | I189: -0.8765164239 | K189: =RealityLayer!K189 + F189*errorX -> -0.8081150515 | L189: =RealityLayer!L189 + G189*errorX -> -1.400588656 | M189: =RealityLayer!M189 + H189*errorX -> 0.200604731 | N189: =RealityLayer!N189 + I189*errorX -> -0.5063042119 | O189: 0.2095121769 | P189: 0.08066855754 | Q189: 0.5794961707 | R189: 0.3063215533 | S189: 0.04389535225 | T189: 0.006507416176 | U189: 0.3358158119 | V189: 0.09383289403
A190: 189 | B190: 138 | C190: 600501 | D190: Ehsanpur | E190: -1.352887011 | F190: -0.9131645129 | G190: 0.4046285085 | H190: -1.113885446 | I190: 2.261258487 | K190: =RealityLayer!K190 + F190*errorX -> -1.122147356 | L190: =RealityLayer!L190 + G190*errorX -> 0.07787515424 | M190: =RealityLayer!M190 + H190*errorX -> -0.4212961231 | N190: =RealityLayer!N190 + I190*errorX -> 1.473185444 | O190: 0.1308998957 | P190: 0.5310363183 | Q190: 0.3367694304 | R190: 0.9296494805 | S190: 0.01713478271 | T190: 0.2819995713 | U190: 0.1134136493 | V190: 0.8642481566
A191: 190 | B191: 250 | C191: 600683 | D191: Kot Sanjar Khan | E191: -1.386101758 | F191: 0.8182382771 | G191: -0.6959419352 | H191: 1.663588591 | I191: 0.6578477496 | K191: =RealityLayer!K191 + F191*errorX -> 1.462511139 | L191: =RealityLayer!L191 + G191*errorX -> -0.0109308676 | M191: =RealityLayer!M191 + H191*errorX -> 0.9159118957 | N191: =RealityLayer!N191 + I191*errorX -> -0.8990941252 | O191: 0.9281994029 | P191: 0.4956393016 | Q191: 0.8201434465 | R191: 0.1843012635 | S191: 0.8615541315 | T191: 0.2456583173 | U191: 0.6726352728 | V191: 0.03396695574
A192: 191 | B192: 347 | C192: 600361 | D192: Pai Khel | E192: 0.9554196367 | F192: -2.038450475 | G192: -1.34585207 | H192: 0.04687308319 | I192: -0.9814630175 | K192: =RealityLayer!K192 + F192*errorX -> -1.134682638 | L192: =RealityLayer!L192 + G192*errorX -> -1.392741735 | M192: =RealityLayer!M192 + H192*errorX -> 0.0948976416 | N192: =RealityLayer!N192 + I192*errorX -> -0.1752489088 | O192: 0.1282541573 | P192: 0.08184895161 | Q192: 0.5378019351 | R192: 0.4304420276 | S192: 0.01644912887 | T192: 0.00669925088 | U192: 0.2892309214 | V192: 0.1852803392
A193: 192 | B193: 174 | C193: 600206 | D193: Hasnanah | E193: -0.205888 | F193: 0.313543751 | G193: 2.269225661 | H193: 0.7878247743 | I193: 0.615037834 | K193: =RealityLayer!K193 + F193*errorX -> -0.8076161245 | L193: =RealityLayer!L193 + G193*errorX -> -0.03711316964 | M193: =RealityLayer!M193 + H193*errorX -> 0.3151769872 | N193: =RealityLayer!N193 + I193*errorX -> -0.027671283 | O193: 0.2096558007 | P193: 0.4851973857 | Q193: 0.6236863613 | R193: 0.4889621639 | S193: 0.04395555477 | T193: 0.2354165031 | U193: 0.3889846773 | V193: 0.2390839977
A194: 193 | B194: 379 | C194: 600487 | D194: Ram Pur | E194: -0.3740115062 | F194: -0.844393071 | G194: 0.5663969205 | H194: 1.457115104 | I194: 0.7848029782 | K194: =RealityLayer!K194 + F194*errorX -> -0.8927386355 | L194: =RealityLayer!L194 + G194*errorX -> 0.4197165602 | M194: =RealityLayer!M194 + H194*errorX -> -0.1014116479 | N194: =RealityLayer!N194 + I194*errorX -> 0.4179419891 | O194: 0.1859985775 | P194: 0.662653737 | Q194: 0.4596118452 | R194: 0.6620052341 | S194: 0.03459547085 | T194: 0.4391099752 | U194: 0.2112430483 | V194: 0.43825093
A195: 194 | B195: 115 | C195: 600499 | D195: Daira Din Panah | E195: 1.379337391 | F195: -0.3736840881 | G195: -0.7841777006 | H195: 0.1262128535 | I195: 1.525477273 | K195: =RealityLayer!K195 + F195*errorX -> -0.5269479441 | L195: =RealityLayer!L195 + G195*errorX -> 0.3974704497 | M195: =RealityLayer!M195 + H195*errorX -> 0.8669126268 | N195: =RealityLayer!N195 + I195*errorX -> 0.9200310367 | O195: =NORMDIST(K195,0,1,TRUE) -> 0.2991148692 | P195: =NORMDIST(L195,0,1,TRUE) -> 0.6544897133 | Q195: =NORMDIST(M195,0,1,TRUE) -> 0.8070050577 | R195: =NORMDIST(N195,0,1,TRUE) -> 0.8212217297 | S195: =BETADIST(O195,2,1) -> 0.089469705 | T195: =BETADIST(P195,2,1) -> 0.4283567848 | U195: =BETADIST(Q195,2,1) -> 0.6512571632 | V195: =BETADIST(R195,2,1) -> 0.6744051294
A196: 195 | B196: 284 | C196: 600550 | D196: Mahra Sharqi | E196: 0.444476882 | F196: -1.194907782 | G196: -0.418616537 | H196: 2.40495865 | I196: 0.3058380571 | K196: =RealityLayer!K196 + F196*errorX -> 0.0627489092 | L196: =RealityLayer!L196 + G196*errorX -> 0.1611064315 | M196: =RealityLayer!M196 + H196*errorX -> 1.206492925 | N196: =RealityLayer!N196 + I196*errorX -> -0.07092737145 | O196: 0.5250167749 | P196: 0.5639952126 | Q196: 0.8861862573 | R196: 0.4717277795 | S196: 0.2756426139 | T196: 0.3180905998 | U196: 0.7853260826 | V196: 0.2225270979
A197: 196 | B197: 72 | C197: 600137 | D197: Chabri | E197: 0.9088785191 | F197: 1.343209988 | G197: -0.6152231435 | H197: 0.5328547559 | I197: -1.151963716 | K197: =RealityLayer!K197 + F197*errorX -> 0.5924394938 | L197: =RealityLayer!L197 + G197*errorX -> -1.513491572 | M197: =RealityLayer!M197 + H197*errorX -> 0.7474376779 | N197: =RealityLayer!N197 + I197*errorX -> -0.4841582578 | O197: 0.7232218368 | P197: 0.06507742021 | Q197: 0.7726002955 | R197: 0.3141367793 | S197: 0.5230498252 | T197: 0.004235070621 | U197: 0.5969112166 | V197: 0.09868191611
A198: 197 | B198: 319 | C198: 600357 | D198: Musa Khel | E198: -0.1752709977 | F198: -1.399625944 | G198: -1.37499228 | H198: 0.629427177 | I198: 0.5702645467 | K198: =RealityLayer!K198 + F198*errorX -> -0.923133772 | L198: =RealityLayer!L198 + G198*errorX -> -2.07408514 | M198: =RealityLayer!M198 + H198*errorX -> -0.7556584115 | N198: =RealityLayer!N198 + I198*errorX -> -0.1995784267 | O198: 0.1779687485 | P198: 0.0190357022 | Q198: 0.2249270125 | R198: 0.4209051507 | S198: 0.03167287543 | T198: 0.0003623579583 | U198: 0.05059216094 | V198: 0.1771611459
A199: 198 | B199: 308 | C199: 600703 | D199: Mohammad Pur | E199: 0.5762149158 | F199: -1.002608769 | G199: -0.9407904145 | H199: 0.2349679562 | I199: -2.164088073 | K199: =RealityLayer!K199 + F199*errorX -> 1.170423615 | L199: =RealityLayer!L199 + G199*errorX -> 0.4143688928 | M199: =RealityLayer!M199 + H199*errorX -> 0.9413305781 | N199: =RealityLayer!N199 + I199*errorX -> -0.5122559366 | O199: 0.8790847316 | P199: 0.6606980166 | Q199: 0.8267322613 | R199: 0.3042359497 | S199: 0.7727899653 | T199: 0.4365218691 | U199: 0.6834862319 | V199: 0.0925595131
A200: 199 | B200: 470 | C200: 600179 | D200: Veho Wa | E200: 1.927182893 | F200: -1.155535756 | G200: -2.835367923 | H200: 0.4184494173 | I200: -0.1716989573 | K200: =RealityLayer!K200 + F200*errorX -> -2.326633878 | L200: =RealityLayer!L200 + G200*errorX -> -2.300849361 | M200: =RealityLayer!M200 + H200*errorX -> -0.08167579133 | N200: =RealityLayer!N200 + I200*errorX -> -0.6815450786 | O200: 0.009992379918 | P200: 0.01070007362 | Q200: 0.4674522649 | R200: 0.2477633266 | S200: 9.984765642e-05 | T200: 0.0001144915755 | U200: 0.2185116199 | V200: 0.061386666
... 91 more rows

Sheet StatsCollectArea
A1: ItineraryNo | B1: Names1 | C1: Names2 | D1: Names3 | E1: Names4 | F1: Names5 | G1: Names6 | H1: Names7 | I1: SampleSize | J1: MeanDist | K1: MeanIm1 | L1: MeanIm2 | M1: MeanIm3 | N1: MeanIm4 | O1: AtypicCommunities
A2: 1 | B2: Itin01 | C2: Dist01 | D2: Imp1_01 | E2: Imp2_01 | F2: Imp3_01 | G2: Imp4_01 | H2: QoI_01 | I2: =COUNT(INDIRECT(B2)) -> 30 | J2: =SUM(INDIRECT(C2)) / (COUNT(INDIRECT(B2)) - 1) -> 10.49058655 | K2: =AVERAGE(INDIRECT(D2)) -> 0.7091762069 | L2: =AVERAGE(INDIRECT(E2)) -> 0.5790842205 | M2: =AVERAGE(INDIRECT(F2)) -> 0.545705241 | N2: =AVERAGE(INDIRECT(G2)) -> 0.5305343238 | O2: =SUM(INDIRECT(H2)) -> 5
A3: 2 | B3: Itin02 | C3: Dist02 | D3: Imp1_02 | E3: Imp2_02 | F3: Imp3_02 | G3: Imp4_02 | H3: QoI_02 | I3: =COUNT(INDIRECT(B3)) -> 30 | J3: =SUM(INDIRECT(C3)) / (COUNT(INDIRECT(B3)) - 1) -> 12.33663006 | K3: =AVERAGE(INDIRECT(D3)) -> 0.7426154064 | L3: =AVERAGE(INDIRECT(E3)) -> 0.5899945122 | M3: =AVERAGE(INDIRECT(F3)) -> 0.5754971871 | N3: =AVERAGE(INDIRECT(G3)) -> 0.5445917264 | O3: =SUM(INDIRECT(H3)) -> 5
A4: 3 | B4: Itin03 | C4: Dist03 | D4: Imp1_03 | E4: Imp2_03 | F4: Imp3_03 | G4: Imp4_03 | H4: QoI_03 | I4: 30 | J4: 15.24726824 | K4: 0.5711346543 | L4: 0.5071669536 | M4: 0.3616767694 | N4: 0.3833087971 | O4: 6 | Q4: Note:
A5: 4 | B5: Itin04 | C5: Dist04 | D5: Imp1_04 | E5: Imp2_04 | F5: Imp3_04 | G5: Imp4_04 | H5: QoI_04 | I5: 30 | J5: 12.22170964 | K5: 0.7249280212 | L5: 0.6134118307 | M5: 0.6242104264 | N5: 0.5968968245 | O5: 6 | Q5: This table is structured the way it is
A6: 5 | B6: Itin05 | C6: Dist05 | D6: Imp1_05 | E6: Imp2_05 | F6: Imp3_05 | G6: Imp4_05 | H6: QoI_05 | I6: 30 | J6: 10.6373096 | K6: 0.7091762069 | L6: 0.5790842205 | M6: 0.545705241 | N6: 0.5305343238 | O6: 5 | Q6: in order to take advantage of the
A7: 6 | B7: Itin06 | C7: Dist06 | D7: Imp1_06 | E7: Imp2_06 | F7: Imp3_06 | G7: Imp4_06 | H7: QoI_06 | I7: 30 | J7: 13.27720532 | K7: 0.7465581899 | L7: 0.5537761802 | M7: 0.5808165992 | N7: 0.5196025657 | O7: 5 | Q7: named ranges and of the Excel function
A8: 7 | B8: Itin07 | C8: Dist07 | D8: Imp1_07 | E8: Imp2_07 | F8: Imp3_07 | G8: Imp4_07 | H8: QoI_07 | I8: 30 | J8: 11.89230238 | K8: 0.7348902709 | L8: 0.6201501414 | M8: 0.6197121 | N8: 0.6181151716 | O8: 6 | Q8: INDIRECT, to collect stats from 50 runs
A9: 8 | B9: Itin08 | C9: Dist08 | D9: Imp1_08 | E9: Imp2_08 | F9: Imp3_08 | G9: Imp4_08 | H9: QoI_08 | I9: 30 | J9: 11.82218185 | K9: 0.6475774437 | L9: 0.5757290747 | M9: 0.6322170502 | N9: 0.586706905 | O9: 10 | Q9: that subsequently are easy to move to another sheet or to STATA
A10: 9 | B10: Itin09 | C10: Dist09 | D10: Imp1_09 | E10: Imp2_09 | F10: Imp3_09 | G10: Imp4_09 | H10: QoI_09 | I10: 30 | J10: 12.87299635 | K10: 0.7256973883 | L10: 0.5281106187 | M10: 0.6064575031 | N10: 0.5608714656 | O10: 5 | Q10: for analysis.
A11: 10 | B11: Itin10 | C11: Dist10 | D11: Imp1_10 | E11: Imp2_10 | F11: Imp3_10 | G11: Imp4_10 | H11: QoI_10 | I11: 30 | J11: 8.608453066 | K11: 0.522562454 | L11: 0.5575659631 | M11: 0.4611169127 | N11: 0.4305834456 | O11: 8 | Q11: See, e.g., formula in cell R2C9
A12: 11 | B12: Itin11 | C12: Dist11 | D12: Imp1_11 | E12: Imp2_11 | F12: Imp3_11 | G12: Imp4_11 | H12: QoI_11 | I12: 30 | J12: 11.40891215 | K12: 0.6839347146 | L12: 0.6187678193 | M12: 0.6331370572 | N12: 0.5280174888 | O12: 6
A13: 12 | B13: Itin12 | C13: Dist12 | D13: Imp1_12 | E13: Imp2_12 | F13: Imp3_12 | G13: Imp4_12 | H13: QoI_12 | I13: 30 | J13: 11.00688263 | K13: 0.735282202 | L13: 0.6124739053 | M13: 0.6514186845 | N13: 0.5913015515 | O13: 6
A14: 13 | B14: Itin13 | C14: Dist13 | D14: Imp1_13 | E14: Imp2_13 | F14: Imp3_13 | G14: Imp4_13 | H14: QoI_13 | I14: 30 | J14: 13.67104754 | K14: 0.6812159702 | L14: 0.6390054701 | M14: 0.6382481985 | N14: 0.636626307 | O14: 6 | Q14: AtypicCommunities
A15: 14 | B15: Itin14 | C15: Dist14 | D15: Imp1_14 | E15: Imp2_14 | F15: Imp3_14 | G15: Imp4_14 | H15: QoI_14 | I15: 30 | J15: 11.46226042 | K15: 0.7489903961 | L15: 0.5904670514 | M15: 0.6158374294 | N15: 0.5901942622 | O15: 5 | Q15: = Number of communities with atypical needs profile (i.e., with significant health problems)
A16: 15 | B16: Itin15 | C16: Dist15 | D16: Imp1_15 | E16: Imp2_15 | F16: Imp3_15 | G16: Imp4_15 | H16: QoI_15 | I16: 30 | J16: 11.59420459 | K16: 0.5201962048 | L16: 0.4936666505 | M16: 0.3907567308 | N16: 0.3667762188 | O16: 7 | Q16: [= with deviant impact profile]
A17: 16 | B17: Itin16 | C17: Dist16 | D17: Imp1_16 | E17: Imp2_16 | F17: Imp3_16 | G17: Imp4_16 | H17: QoI_16 | I17: 30 | J17: 8.431147247 | K17: 0.5278221674 | L17: 0.5420332039 | M17: 0.4680319338 | N17: 0.4350068163 | O17: 10
A18: 17 | B18: Itin17 | C18: Dist17 | D18: Imp1_17 | E18: Imp2_17 | F18: Imp3_17 | G18: Imp4_17 | H18: QoI_17 | I18: 30 | J18: 10.30962178 | K18: 0.7016204082 | L18: 0.6299539529 | M18: 0.6351414225 | N18: 0.6069127609 | O18: 6
A19: 18 | B19: Itin18 | C19: Dist18 | D19: Imp1_18 | E19: Imp2_18 | F19: Imp3_18 | G19: Imp4_18 | H19: QoI_18 | I19: 30 | J19: 10.69253411 | K19: 0.6947392442 | L19: 0.6472949609 | M19: 0.630217016 | N19: 0.5809392079 | O19: 6
A20: 19 | B20: Itin19 | C20: Dist19 | D20: Imp1_19 | E20: Imp2_19 | F20: Imp3_19 | G20: Imp4_19 | H20: QoI_19 | I20: 30 | J20: 11.66317745 | K20: 0.7428494892 | L20: 0.6161526577 | M20: 0.6044818646 | N20: 0.6130010175 | O20: 5
A21: 20 | B21: Itin20 | C21: Dist20 | D21: Imp1_20 | E21: Imp2_20 | F21: Imp3_20 | G21: Imp4_20 | H21: QoI_20 | I21: 30 | J21: 8.070191207 | K21: 0.5195750258 | L21: 0.5353859189 | M21: 0.4657421384 | N21: 0.436517069 | O21: 10
A22: 21 | B22: Itin21 | C22: Dist21 | D22: Imp1_21 | E22: Imp2_21 | F22: Imp3_21 | G22: Imp4_21 | H22: QoI_21 | I22: 30 | J22: 13.34164933 | K22: 0.6919220301 | L22: 0.6157275888 | M22: 0.6324700762 | N22: 0.5831476018 | O22: 8
A23: 22 | B23: Itin22 | C23: Dist22 | D23: Imp1_22 | E23: Imp2_22 | F23: Imp3_22 | G23: Imp4_22 | H23: QoI_22 | I23: 30 | J23: 11.43899447 | K23: 0.7403383249 | L23: 0.5825381797 | M23: 0.6235701775 | N23: 0.5744943987 | O23: 6
A24: 23 | B24: Itin23 | C24: Dist23 | D24: Imp1_23 | E24: Imp2_23 | F24: Imp3_23 | G24: Imp4_23 | H24: QoI_23 | I24: 30 | J24: 12.19069306 | K24: 0.7426154064 | L24: 0.5899945122 | M24: 0.5754971871 | N24: 0.5445917264 | O24: 5
A25: 24 | B25: Itin24 | C25: Dist24 | D25: Imp1_24 | E25: Imp2_24 | F25: Imp3_24 | G25: Imp4_24 | H25: QoI_24 | I25: 30 | J25: 10.67498477 | K25: 0.664469428 | L25: 0.5428530406 | M25: 0.5457386635 | N25: 0.5599604567 | O25: 7
A26: 25 | B26: Itin25 | C26: Dist25 | D26: Imp1_25 | E26: Imp2_25 | F26: Imp3_25 | G26: Imp4_25 | H26: QoI_25 | I26: 30 | J26: 9.751348895 | K26: 0.7152473884 | L26: 0.5889144965 | M26: 0.548770238 | N26: 0.5739449899 | O26: 6
A27: 26 | B27: Itin26 | C27: Dist26 | D27: Imp1_26 | E27: Imp2_26 | F27: Imp3_26 | G27: Imp4_26 | H27: QoI_26 | I27: 30 | J27: 11.00761474 | K27: 0.6817862272 | L27: 0.6020420508 | M27: 0.6394556457 | N27: 0.5635043552 | O27: 6
A28: 27 | B28: Itin27 | C28: Dist27 | D28: Imp1_27 | E28: Imp2_27 | F28: Imp3_27 | G28: Imp4_27 | H28: QoI_27 | I28: 30 | J28: 11.49369657 | K28: 0.5183918926 | L28: 0.5095683957 | M28: 0.4112850077 | N28: 0.3672092238 | O28: 6
A29: 28 | B29: Itin28 | C29: Dist28 | D29: Imp1_28 | E29: Imp2_28 | F29: Imp3_28 | G29: Imp4_28 | H29: QoI_28 | I29: 30 | J29: 10.60408828 | K29: 0.7016204082 | L29: 0.6299539529 | M29: 0.6351414225 | N29: 0.6069127609 | O29: 6
A30: 29 | B30: Itin29 | C30: Dist29 | D30: Imp1_29 | E30: Imp2_29 | F30: Imp3_29 | G30: Imp4_29 | H30: QoI_29 | I30: 30 | J30: 11.92085855 | K30: 0.6697701026 | L30: 0.5927777173 | M30: 0.6373770358 | N30: 0.5955312374 | O30: 9
A31: 30 | B31: Itin30 | C31: Dist30 | D31: Imp1_30 | E31: Imp2_30 | F31: Imp3_30 | G31: Imp4_30 | H31: QoI_30 | I31: 30 | J31: 10.57103216 | K31: 0.7016204082 | L31: 0.6299539529 | M31: 0.6351414225 | N31: 0.6069127609 | O31: 6
A32: 31 | B32: Itin31 | C32: Dist31 | D32: Imp1_31 | E32: Imp2_31 | F32: Imp3_31 | G32: Imp4_31 | H32: QoI_31 | I32: 30 | J32: 11.16843775 | K32: 0.736232457 | L32: 0.5998867058 | M32: 0.6463886489 | N32: 0.581628233 | O32: 6
A33: 32 | B33: Itin32 | C33: Dist32 | D33: Imp1_32 | E33: Imp2_32 | F33: Imp3_32 | G33: Imp4_32 | H33: QoI_32 | I33: 30 | J33: 10.9207168 | K33: 0.7478256251 | L33: 0.5763776862 | M33: 0.5615854397 | N33: 0.5372545906 | O33: 4
A34: 33 | B34: Itin33 | C34: Dist33 | D34: Imp1_33 | E34: Imp2_33 | F34: Imp3_33 | G34: Imp4_33 | H34: QoI_33 | I34: 30 | J34: 8.975204714 | K34: 0.5513021423 | L34: 0.5281662028 | M34: 0.4585525719 | N34: 0.4254834227 | O34: 7
A35: 34 | B35: Itin34 | C35: Dist34 | D35: Imp1_34 | E35: Imp2_34 | F35: Imp3_34 | G35: Imp4_34 | H35: QoI_34 | I35: 30 | J35: 10.5903605 | K35: 0.7016204082 | L35: 0.6299539529 | M35: 0.6351414225 | N35: 0.6069127609 | O35: 6
A36: 35 | B36: Itin35 | C36: Dist35 | D36: Imp1_35 | E36: Imp2_35 | F36: Imp3_35 | G36: Imp4_35 | H36: QoI_35 | I36: 30 | J36: 12.29464362 | K36: 0.7151444819 | L36: 0.5951425176 | M36: 0.6263714296 | N36: 0.6293669261 | O36: 7
A37: 36 | B37: Itin36 | C37: Dist36 | D37: Imp1_36 | E37: Imp2_36 | F37: Imp3_36 | G37: Imp4_36 | H37: QoI_36 | I37: 30 | J37: 9.759305385 | K37: 0.7339741384 | L37: 0.5945399654 | M37: 0.54696594 | N37: 0.5453896905 | O37: 6
A38: 37 | B38: Itin37 | C38: Dist37 | D38: Imp1_37 | E38: Imp2_37 | F38: Imp3_37 | G38: Imp4_37 | H38: QoI_37 | I38: 30 | J38: 11.44768764 | K38: 0.735282202 | L38: 0.6124739053 | M38: 0.6514186845 | N38: 0.5913015515 | O38: 6
A39: 38 | B39: Itin38 | C39: Dist38 | D39: Imp1_38 | E39: Imp2_38 | F39: Imp3_38 | G39: Imp4_38 | H39: QoI_38 | I39: 30 | J39: 11.49827249 | K39: 0.5201962048 | L39: 0.4936666505 | M39: 0.3907567308 | N39: 0.3667762188 | O39: 7
A40: 39 | B40: Itin39 | C40: Dist39 | D40: Imp1_39 | E40: Imp2_39 | F40: Imp3_39 | G40: Imp4_39 | H40: QoI_39 | I40: 30 | J40: 10.49652637 | K40: 0.664469428 | L40: 0.5428530406 | M40: 0.5457386635 | N40: 0.5599604567 | O40: 7
A41: 40 | B41: Itin40 | C41: Dist40 | D41: Imp1_40 | E41: Imp2_40 | F41: Imp3_40 | G41: Imp4_40 | H41: QoI_40 | I41: 30 | J41: 10.84263927 | K41: 0.7091762069 | L41: 0.5790842205 | M41: 0.545705241 | N41: 0.5305343238 | O41: 5
A42: 41 | B42: Itin41 | C42: Dist41 | D42: Imp1_41 | E42: Imp2_41 | F42: Imp3_41 | G42: Imp4_41 | H42: QoI_41 | I42: 30 | J42: 12.7425546 | K42: 0.7151444819 | L42: 0.5951425176 | M42: 0.6263714296 | N42: 0.6293669261 | O42: 7
A43: 42 | B43: Itin42 | C43: Dist42 | D43: Imp1_42 | E43: Imp2_42 | F43: Imp3_42 | G43: Imp4_42 | H43: QoI_42 | I43: 30 | J43: 10.40941146 | K43: 0.664469428 | L43: 0.5428530406 | M43: 0.5457386635 | N43: 0.5599604567 | O43: 7
A44: 43 | B44: Itin43 | C44: Dist43 | D44: Imp1_43 | E44: Imp2_43 | F44: Imp3_43 | G44: Imp4_43 | H44: QoI_43 | I44: 30 | J44: 12.64769587 | K44: 0.5335916131 | L44: 0.484532626 | M44: 0.3900976802 | N44: 0.3947717167 | O44: 7
A45: 44 | B45: Itin44 | C45: Dist44 | D45: Imp1_44 | E45: Imp2_44 | F45: Imp3_44 | G45: Imp4_44 | H45: QoI_44 | I45: 30 | J45: 7.862335293 | K45: 0.5243773042 | L45: 0.5771103123 | M45: 0.4947182903 | N45: 0.4170030572 | O45: 8
A46: 45 | B46: Itin45 | C46: Dist45 | D46: Imp1_45 | E46: Imp2_45 | F46: Imp3_45 | G46: Imp4_45 | H46: QoI_45 | I46: 30 | J46: 10.69920595 | K46: 0.691461455 | L46: 0.6154340729 | M46: 0.6145826176 | N46: 0.5742136653 | O46: 6
A47: 46 | B47: Itin46 | C47: Dist46 | D47: Imp1_46 | E47: Imp2_46 | F47: Imp3_46 | G47: Imp4_46 | H47: QoI_46 | I47: 30 | J47: 8.246617448 | K47: 0.5217699081 | L47: 0.5391293371 | M47: 0.4601826779 | N47: 0.4464752679 | O47: 10
A48: 47 | B48: Itin47 | C48: Dist47 | D48: Imp1_47 | E48: Imp2_47 | F48: Imp3_47 | G48: Imp4_47 | H48: QoI_47 | I48: 30 | J48: 10.44941914 | K48: 0.7098108101 | L48: 0.6384186993 | M48: 0.6359662956 | N48: 0.584675743 | O48: 6
A49: 48 | B49: Itin48 | C49: Dist48 | D49: Imp1_48 | E49: Imp2_48 | F49: Imp3_48 | G49: Imp4_48 | H49: QoI_48 | I49: 30 | J49: 12.74391371 | K49: 0.7365162736 | L49: 0.5911973356 | M49: 0.626527113 | N49: 0.6008971344 | O49: 7
A50: 49 | B50: Itin49 | C50: Dist49 | D50: Imp1_49 | E50: Imp2_49 | F50: Imp3_49 | G50: Imp4_49 | H50: QoI_49 | I50: 30 | J50: 11.21306233 | K50: 0.7040764432 | L50: 0.64993097 | M50: 0.6346150995 | N50: 0.5895307843 | O50: 6
A51: 50 | B51: Itin50 | C51: Dist50 | D51: Imp1_50 | E51: Imp2_50 | F51: Imp3_50 | G51: Imp4_50 | H51: QoI_50 | I51: 30 | J51: 11.58737263 | K51: 0.7040764432 | L51: 0.64993097 | M51: 0.6346150995 | N51: 0.5895307843 | O51: 6

Sheet SimResults
A1: ModelNo | B1: 1 | C1: 1 | D1: 1 | E1: 1 | F1: 1 | G1: 1 | I1: 2 | J1: 2 | K1: 2 | L1: 2 | M1: 2 | N1: 2 | P1: 3 | Q1: 3 | R1: 3 | S1: 3 | T1: 3 | U1: 3 | W1: 4 | X1: 4 | Y1: 4 | Z1: 4 | AA1: 4 | AB1: 4 | AD1: 5 | AE1: 5 | AF1: 5 | AG1: 5 | AH1: 5 | AI1: 5 | AK1: 6 | AL1: 6 | AM1: 6 | AN1: 6 | AO1: 6 | AP1: 6 | AR1: 7 | AS1: 7 | AT1: 7 | AU1: 7 | AV1: 7 | AW1: 7 | AY1: 8 | AZ1: 8 | BA1: 8 | BB1: 8 | BC1: 8 | BD1: 8 | BF1: 9 | BG1: 9 | BH1: 9 | BI1: 9 | BJ1: 9 | BK1: 9 | BM1: 10 | BN1: 10 | BO1: 10 | BP1: 10 | BQ1: 10 | BR1: 10 | BT1: 11 | BU1: 11 | BV1: 11 | BW1: 11 | BX1: 11 | BY1: 11 | CA1: 12 | CB1: 12 | CC1: 12 | CD1: 12 | CE1: 12 | CF1: 12
A2: DistDecayPara | B2: 0.5 | C2: 0.5 | D2: 0.5 | E2: 0.5 | F2: 0.5 | G2: 0.5 | I2: 0.5 | J2: 0.5 | K2: 0.5 | L2: 0.5 | M2: 0.5 | N2: 0.5 | P2: 0.5 | Q2: 0.5 | R2: 0.5 | S2: 0.5 | T2: 0.5 | U2: 0.5 | W2: 0.5 | X2: 0.5 | Y2: 0.5 | Z2: 0.5 | AA2: 0.5 | AB2: 0.5 | AD2: 0.5 | AE2: 0.5 | AF2: 0.5 | AG2: 0.5 | AH2: 0.5 | AI2: 0.5 | AK2: 0.5 | AL2: 0.5 | AM2: 0.5 | AN2: 0.5 | AO2: 0.5 | AP2: 0.5 | AR2: 1 | AS2: 1 | AT2: 1 | AU2: 1 | AV2: 1 | AW2: 1 | AY2: 1 | AZ2: 1 | BA2: 1 | BB2: 1 | BC2: 1 | BD2: 1 | BF2: 1 | BG2: 1 | BH2: 1 | BI2: 1 | BJ2: 1 | BK2: 1 | BM2: 1 | BN2: 1 | BO2: 1 | BP2: 1 | BQ2: 1 | BR2: 1 | BT2: 1 | BU2: 1 | BV2: 1 | BW2: 1 | BX2: 1 | BY2: 1 | CA2: 1 | CB2: 1 | CC2: 1 | CD2: 1 | CE2: 1 | CF2: 1
A3: SampleSize | B3: 10 | C3: 10 | D3: 10 | E3: 10 | F3: 10 | G3: 10 | I3: 20 | J3: 20 | K3: 20 | L3: 20 | M3: 20 | N3: 20 | P3: 30 | Q3: 30 | R3: 30 | S3: 30 | T3: 30 | U3: 30 | W3: 10 | X3: 10 | Y3: 10 | Z3: 10 | AA3: 10 | AB3: 10 | AD3: 20 | AE3: 20 | AF3: 20 | AG3: 20 | AH3: 20 | AI3: 20 | AK3: 30 | AL3: 30 | AM3: 30 | AN3: 30 | AO3: 30 | AP3: 30 | AR3: 10 | AS3: 10 | AT3: 10 | AU3: 10 | AV3: 10 | AW3: 10 | AY3: 20 | AZ3: 20 | BA3: 20 | BB3: 20 | BC3: 20 | BD3: 20 | BF3: 30 | BG3: 30 | BH3: 30 | BI3: 30 | BJ3: 30 | BK3: 30 | BM3: 10 | BN3: 10 | BO3: 10 | BP3: 10 | BQ3: 10 | BR3: 10 | BT3: 20 | BU3: 20 | BV3: 20 | BW3: 20 | BX3: 20 | BY3: 20 | CA3: 30 | CB3: 30 | CC3: 30 | CD3: 30 | CE3: 30 | CF3: 30
A4: ErrorTerm | B4: 0 | C4: 0 | D4: 0 | E4: 0 | F4: 0 | G4: 0 | I4: 0 | J4: 0 | K4: 0 | L4: 0 | M4: 0 | N4: 0 | P4: 0 | Q4: 0 | R4: 0 | S4: 0 | T4: 0 | U4: 0 | W4: 0.5 | X4: 0.5 | Y4: 0.5 | Z4: 0.5 | AA4: 0.5 | AB4: 0.5 | AD4: 0.5 | AE4: 0.5 | AF4: 0.5 | AG4: 0.5 | AH4: 0.5 | AI4: 0.5 | AK4: 0.5 | AL4: 0.5 | AM4: 0.5 | AN4: 0.5 | AO4: 0.5 | AP4: 0.5 | AR4: 0 | AS4: 0 | AT4: 0 | AU4: 0 | AV4: 0 | AW4: 0 | AY4: 0 | AZ4: 0 | BA4: 0 | BB4: 0 | BC4: 0 | BD4: 0 | BF4: 0 | BG4: 0 | BH4: 0 | BI4: 0 | BJ4: 0 | BK4: 0 | BM4: 0.5 | BN4: 0.5 | BO4: 0.5 | BP4: 0.5 | BQ4: 0.5 | BR4: 0.5 | BT4: 0.5 | BU4: 0.5 | BV4: 0.5 | BW4: 0.5 | BX4: 0.5 | BY4: 0.5 | CA4: 0.5 | CB4: 0.5 | CC4: 0.5 | CD4: 0.5 | CE4: 0.5 | CF4: 0.5
A5: Variable | B5: MeanDist | C5: MeanIm1 | D5: MeanIm2 | E5: MeanIm3 | F5: MeanIm4 | G5: AtypicCommunities | I5: MeanDist | J5: MeanIm1 | K5: MeanIm2 | L5: MeanIm3 | M5: MeanIm4 | N5: AtypicCommunities | P5: MeanDist | Q5: MeanIm1 | R5: MeanIm2 | S5: MeanIm3 | T5: MeanIm4 | U5: AtypicCommunities | W5: MeanDist | X5: MeanIm1 | Y5: MeanIm2 | Z5: MeanIm3 | AA5: MeanIm4 | AB5: AtypicCommunities | AD5: MeanDist | AE5: MeanIm1 | AF5: MeanIm2 | AG5: MeanIm3 | AH5: MeanIm4 | AI5: AtypicCommunities | AK5: MeanDist | AL5: MeanIm1 | AM5: MeanIm2 | AN5: MeanIm3 | AO5: MeanIm4 | AP5: AtypicCommunities | AR5: MeanDist | AS5: MeanIm1 | AT5: MeanIm2 | AU5: MeanIm3 | AV5: MeanIm4 | AW5: AtypicCommunities | AY5: MeanDist | AZ5: MeanIm1 | BA5: MeanIm2 | BB5: MeanIm3 | BC5: MeanIm4 | BD5: AtypicCommunities | BF5: MeanDist | BG5: MeanIm1 | BH5: MeanIm2 | BI5: MeanIm3 | BJ5: MeanIm4 | BK5: AtypicCommunities | BM5: MeanDist | BN5: MeanIm1 | BO5: MeanIm2 | BP5: MeanIm3 | BQ5: MeanIm4 | BR5: AtypicCommunities | BT5: MeanDist | BU5: MeanIm1 | BV5: MeanIm2 | BW5: MeanIm3 | BX5: MeanIm4 | BY5: AtypicCommunities | CA5: MeanDist | CB5: MeanIm1 | CC5: MeanIm2 | CD5: MeanIm3 | CE5: MeanIm4 | CF5: AtypicCommunities
A6: SimulItin01 | B6: 11.04053797 | C6: 0.8268046488 | D6: 0.701186628 | E6: 0.603241285 | F6: 0.6158916372 | G6: 1 | I6: 14.49582656 | J6: 0.8241896995 | K6: 0.7074145159 | L6: 0.5760629749 | M6: 0.6239371123 | N6: 2 | P6: 13.7386811 | Q6: 0.7622045762 | R6: 0.7094753642 | S6: 0.6440476418 | T6: 0.6227173933 | U6: 3 | W6: 11.04053797 | X6: 0.846966324 | Y6: 0.6595151752 | Z6: 0.6021446064 | AA6: 0.6595389759 | AB6: 1 | AD6: 14.49582656 | AE6: 0.8166872218 | AF6: 0.6922362251 | AG6: 0.6183919036 | AH6: 0.6124866584 | AI6: 3 | AK6: 13.7386811 | AL6: 0.7522739305 | AM6: 0.681459235 | AN6: 0.6461859703 | AO6: 0.5829772061 | AP6: 4 | AR6: 10.6505369 | AS6: 0.7886683942 | AT6: 0.6930609397 | AU6: 0.6487607085 | AV6: 0.600347045 | AW6: 1 | AY6: 11.64060831 | AZ6: 0.7832070114 | BA6: 0.6518323506 | BB6: 0.5662610598 | BC6: 0.6086575821 | BD6: 3 | BF6: 10.49058655 | BG6: 0.7485260411 | BH6: 0.6255775777 | BI6: 0.4851389962 | BJ6: 0.5239555556 | BK6: 4 | BM6: 10.6505369 | BN6: 0.8153612585 | BO6: 0.6319783362 | BP6: 0.6372183211 | BQ6: 0.6263387954 | BR6: 2 | BT6: 11.64060831 | BU6: 0.7609283515 | BV6: 0.6086041816 | BW6: 0.5735950938 | BX6: 0.6270157924 | BY6: 5 | CA6: 10.49058655 | CB6: 0.7657329708 | CC6: 0.5874128072 | CD6: 0.4901273492 | CE6: 0.5149200875 | CF6: 5
A7: SimulItin02 | B7: 12.79338321 | C7: 0.6705858135 | D7: 0.7806819879 | E7: 0.4523599952 | F7: 0.4056062629 | G7: 0 | I7: 10.31544636 | J7: 0.655064768 | K7: 0.7360627795 | L7: 0.4748411491 | M7: 0.4603197586 | N7: 1 | P7: 16.99197015 | Q7: 0.6333412081 | R7: 0.6649419987 | S7: 0.43677268 | T7: 0.4254484411 | U7: 2 | W7: 12.79338321 | X7: 0.659964798 | Y7: 0.6043678577 | Z7: 0.508107704 | AA7: 0.4634975743 | AB7: 2 | AD7: 10.31544636 | AE7: 0.6798072595 | AF7: 0.6359635701 | AG7: 0.4991281567 | AH7: 0.4851282458 | AI7: 3 | AK7: 16.99197015 | AL7: 0.6413619204 | AM7: 0.6186587233 | AN7: 0.4531175206 | AO7: 0.4671684232 | AP7: 4 | AR7: 8.641212343 | AS7: 0.6924864722 | AT7: 0.671514377 | AU7: 0.5018684727 | AV7: 0.5357407913 | AW7: 2 | AY7: 10.06221156 | AZ7: 0.7405774332 | BA7: 0.6822876583 | BB7: 0.5753145906 | BC7: 0.5680439182 | BD7: 3 | BF7: 12.33663006 | BG7: 0.7604175824 | BH7: 0.6549718395 | BI7: 0.5440083617 | BJ7: 0.5738531563 | BK7: 4 | BM7: 8.641212343 | BN7: 0.7203488818 | BO7: 0.6939691996 | BP7: 0.5086128679 | BQ7: 0.4922174721 | BR7: 2 | BT7: 10.06221156 | BU7: 0.7692553988 | BV7: 0.6747814724 | BW7: 0.5683149169 | BX7: 0.5110048488 | BY7: 3 | CA7: 12.33663006 | CB7: 0.7554113577 | CC7: 0.6461769864 | CD7: 0.591008736 | CE7: 0.5591639995 | CF7: 5
A8: SimulItin03 | B8: 15.94052737 | C8: 0.7133615745 | D8: 0.668824487 | E8: 0.4448732715 | F8: 0.3890306393 | G8: 1 | I8: 18.68189725 | J8: 0.6668944914 | K8: 0.6862109106 | L8: 0.4132116625 | M8: 0.4135931309 | N8: 2 | P8: 16.39052085 | Q8: 0.6912564677 | R8: 0.7041175469 | S8: 0.5007292463 | T8: 0.4782700005 | U8: 3 | W8: 15.94052737 | X8: 0.7246529406 | Y8: 0.6627312223 | Z8: 0.4056538208 | AA8: 0.4073465768 | AB8: 1 | AD8: 18.68189725 | AE8: 0.6421329357 | AF8: 0.6553939812 | AG8: 0.4045996782 | AH8: 0.3315766839 | AI8: 2 | AK8: 16.39052085 | AL8: 0.6535121467 | AM8: 0.6708918318 | AN8: 0.5097607836 | AO8: 0.4263146259 | AP8: 4 | AR8: 11.34908478 | AS8: 0.5884146393 | AT8: 0.5582753773 | AU8: 0.3668169822 | AV8: 0.3345865879 | AW8: 2 | AY8: 14.04805758 | AZ8: 0.5578828587 | BA8: 0.5433271064 | BB8: 0.3882218686 | BC8: 0.3610783514 | BD8: 2 | BF8: 15.24726824 | BG8: 0.5989198702 | BH8: 0.583226311 | BI8: 0.4179373289 | BJ8: 0.3937399521 | BK8: 3 | BM8: 11.34908478 | BN8: 0.5732895794 | BO8: 0.5824307837 | BP8: 0.3476242376 | BQ8: 0.3130944316 | BR8: 2 | BT8: 14.04805758 | BU8: 0.5812718388 | BV8: 0.5676209571 | BW8: 0.3681814525 | BX8: 0.322592012 | BY8: 2 | CA8: 15.24726824 | CB8: 0.6111602311 | CC8: 0.5768181906 | CD8: 0.3976401265 | CE8: 0.3247953956 | CF8: 3
A9: SimulItin04 | B9: 12.38778359 | C9: 0.8554196498 | D9: 0.7419406921 | E9: 0.6363745099 | F9: 0.7340246675 | G9: 1 | I9: 15.15564313 | J9: 0.7946051592 | K9: 0.7428790737 | L9: 0.6250941161 | M9: 0.6469126333 | N9: 2 | P9: 14.60115667 | Q9: 0.7622045762 | R9: 0.7094753642 | S9: 0.6440476418 | T9: 0.6227173933 | U9: 3 | W9: 12.38778359 | X9: 0.8167369314 | Y9: 0.6652391083 | Z9: 0.6319941348 | AA9: 0.7169033574 | AB9: 2 | AD9: 15.15564313 | AE9: 0.7326578117 | AF9: 0.7032200363 | AG9: 0.6391280058 | AH9: 0.6692046991 | AI9: 4 | AK9: 14.60115667 | AL9: 0.7076082949 | AM9: 0.6435167289 | AN9: 0.6442762615 | AO9: 0.6293901847 | AP9: 6 | AR9: 11.11975384 | AS9: 0.8400418792 | AT9: 0.6548902769 | AU9: 0.6085468674 | AV9: 0.7397910089 | AW9: 2 | AY9: 12.96000877 | AZ9: 0.7943831375 | BA9: 0.6467005708 | BB9: 0.5650783063 | BC9: 0.5929093388 | BD9: 2 | BF9: 12.22170964 | BG9: 0.7453497983 | BH9: 0.6900399031 | BI9: 0.6204595807 | BJ9: 0.6085839287 | BK9: 4 | BM9: 11.11975384 | BN9: 0.7607970065 | BO9: 0.6019365333 | BP9: 0.6099978043 | BQ9: 0.6865376167 | BR9: 2 | BT9: 12.96000877 | BU9: 0.7019780689 | BV9: 0.6020010926 | BW9: 0.5870210965 | BX9: 0.5910920403 | BY9: 3 | CA9: 12.22170964 | CB9: 0.6606161785 | CC9: 0.6286791253 | CD9: 0.62145345 | CE9: 0.598471701 | CF9: 5
A10: SimulItin05 | B10: 11.51331225 | C10: 0.8268046488 | D10: 0.701186628 | E10: 0.603241285 | F10: 0.6158916372 | G10: 1 | I10: 14.71977227 | J10: 0.8241896995 | K10: 0.7074145159 | L10: 0.5760629749 | M10: 0.6239371123 | N10: 2 | P10: 13.88540416 | Q10: 0.7622045762 | R10: 0.7094753642 | S10: 0.6440476418 | T10: 0.6227173933 | U10: 3 | W10: 11.51331225 | X10: 0.7937763456 | Y10: 0.6991466972 | Z10: 0.5120441794 | AA10: 0.6490239197 | AB10: 0 | AD10: 14.71977227 | AE10: 0.7829782038 | AF10: 0.6974076138 | AG10: 0.5527135883 | AH10: 0.6241999392 | AI10: 2 | AK10: 13.88540416 | AL10: 0.7229785895 | AM10: 0.6757836634 | AN10: 0.5996295892 | AO10: 0.6096118326 | AP10: 4 | AR10: 11.12331118 | AS10: 0.7886683942 | AT10: 0.6930609397 | AU10: 0.6487607085 | AV10: 0.600347045 | AW10: 1 | AY10: 11.86455402 | AZ10: 0.7832070114 | BA10: 0.6518323506 | BB10: 0.5662610598 | BC10: 0.6086575821 | BD10: 3 | BF10: 10.6373096 | BG10: 0.7485260411 | BH10: 0.6255775777 | BI10: 0.4851389962 | BJ10: 0.5239555556 | BK10: 4 | BM10: 11.12331118 | BN10: 0.7214413162 | BO10: 0.7303936116 | BP10: 0.5587256777 | BQ10: 0.5762366251 | BR10: 0 | BT10: 11.86455402 | BU10: 0.7177395596 | BV10: 0.6184542432 | BW10: 0.5305524315 | BX10: 0.6196972596 | BY10: 2 | CA10: 10.6373096 | CB10: 0.6907416001 | CC10: 0.6094559445 | CD10: 0.4462714895 | CE10: 0.5642706081 | CF10: 3
A11: SimulItin06 | B11: 11.90870192 | C11: 0.8395804916 | D11: 0.7515943266 | E11: 0.5605358856 | F11: 0.6367696857 | G11: 0 | I11: 13.76626343 | J11: 0.8075750759 | K11: 0.7256878891 | L11: 0.5757247236 | M11: 0.6014316929 | N11: 1 | P11: 13.26069147 | Q11: 0.7511281605 | R11: 0.721657613 | S11: 0.643822141 | T11: 0.6077137803 | U11: 2 | W11: 11.90870192 | X11: 0.7416161856 | Y11: 0.6523841325 | Z11: 0.5707707747 | AA11: 0.7818474257 | AB11: 0 | AD11: 13.76626343 | AE11: 0.761054539 | AF11: 0.7195633032 | AG11: 0.5706008895 | AH11: 0.6905094505 | AI11: 0 | AK11: 13.26069147 | AL11: 0.708833449 | AM11: 0.7029123834 | AN11: 0.6453886644 | AO11: 0.6340586565 | AP11: 1 | AR11: 10.77575792 | AS11: 0.7860572111 | AT11: 0.6794856873 | AU11: 0.5675560045 | AV11: 0.522308276 | AW11: 0 | AY11: 13.34350619 | AZ11: 0.7999032766 | BA11: 0.6297125064 | BB11: 0.5416911683 | BC11: 0.558591356 | BD11: 2 | BF11: 13.27720532 | BG11: 0.7513966962 | BH11: 0.6117701845 | BI11: 0.5324578042 | BJ11: 0.5449095367 | BK11: 5 | BM11: 10.77575792 | BN11: 0.7189311665 | BO11: 0.6929301982 | BP11: 0.5725756913 | BQ11: 0.6311089101 | BR11: 0 | BT11: 13.34350619 | BU11: 0.7362084757 | BV11: 0.6113625824 | BW11: 0.5341169852 | BX11: 0.6564381431 | BY11: 1 | CA11: 13.27720532 | CB11: 0.7024554229 | CC11: 0.5837758924 | CD11: 0.553308073 | CE11: 0.6044615314 | CF11: 4
A12: SimulItin07 | B12: 13.86493334 | C12: 0.6609669551 | D12: 0.8225535944 | E12: 0.5668794387 | F12: 0.5361366526 | G12: 0 | I12: 13.65763085 | J12: 0.708445842 | K12: 0.7550598023 | L12: 0.668528721 | M12: 0.5743722013 | N12: 1 | P12: 13.93886527 | Q12: 0.7557410888 | R12: 0.7318835751 | S12: 0.6266863261 | T12: 0.6101115371 | U12: 2 | W12: 13.86493334 | X12: 0.536095083 | Y12: 0.6335488514 | Z12: 0.6218413503 | AA12: 0.5851115108 | AB12: 2 | AD12: 13.65763085 | AE12: 0.582984939 | AF12: 0.6651474188 | AG12: 0.7204400802 | AH12: 0.5866325084 | AI12: 5 | AK12: 13.93886527 | AL12: 0.6741535886 | AM12: 0.6612840221 | AN12: 0.6424218647 | AO12: 0.600193542 | AP12: 6 | AR12: 11.00509662 | AS12: 0.700277955 | AT12: 0.7546444831 | AU12: 0.7240736883 | AV12: 0.6833189526 | AW12: 2 | AY12: 11.48188381 | AZ12: 0.7251061883 | BA12: 0.7315790743 | BB12: 0.6674993789 | BC12: 0.6496307976 | BD12: 3 | BF12: 11.89230238 | BG12: 0.7594359801 | BH12: 0.6941852363 | BI12: 0.6202236088 | BJ12: 0.6361508635 | BK12: 5 | BM12: 11.00509662 | BN12: 0.5914471253 | BO12: 0.7470847403 | BP12: 0.7775932441 | BQ12: 0.7311408734 | BR12: 4 | BT12: 11.48188381 | BU12: 0.6706937721 | BV12: 0.7148887535 | BW12: 0.7197295707 | BX12: 0.696787097 | BY12: 4 | CA12: 11.89230238 | CB12: 0.7036008933 | CC12: 0.6844770217 | CD12: 0.6650545616 | CE12: 0.6343417535 | CF12: 7
A13: SimulItin08 | B13: 11.1208679 | C13: 0.7348729786 | D13: 0.7889287074 | E13: 0.6437365152 | F13: 0.5549851067 | G13: 0 | I13: 12.46672046 | J13: 0.7248832104 | K13: 0.7583766793 | L13: 0.7028812726 | M13: 0.5949039103 | N13: 1 | P13: 13.04420328 | Q13: 0.7511281605 | R13: 0.721657613 | S13: 0.643822141 | T13: 0.6077137803 | U13: 2 | W13: 11.1208679 | X13: 0.7196265311 | Y13: 0.7517359712 | Z13: 0.5771383473 | AA13: 0.645424763 | AB13: 2 | AD13: 12.46672046 | AE13: 0.7063087136 | AF13: 0.7327228335 | AG13: 0.6246765332 | AH13: 0.6261764598 | AI13: 4 | AK13: 13.04420328 | AL13: 0.6653928109 | AM13: 0.7024622959 | AN13: 0.5804016445 | AO13: 0.6199128377 | AP13: 6 | AR13: 9.122238369 | AS13: 0.6540572988 | AT13: 0.7107963141 | AU13: 0.7070541956 | AV13: 0.623213963 | AW13: 2 | AY13: 9.700227922 | AZ13: 0.5946325099 | BA13: 0.6772941226 | BB13: 0.6798725054 | BC13: 0.6016631867 | BD13: 3 | BF13: 11.82218185 | BG13: 0.666375344 | BH13: 0.6592365347 | BI13: 0.6320294707 | BJ13: 0.6218909071 | BK13: 5 | BM13: 9.122238369 | BN13: 0.5815470757 | BO13: 0.7043410449 | BP13: 0.5931012156 | BQ13: 0.5948240759 | BR13: 3 | BT13: 9.700227922 | BU13: 0.5985191827 | BV13: 0.6679292096 | BW13: 0.6229829686 | BX13: 0.6071687611 | BY13: 6 | CA13: 11.82218185 | CB13: 0.6470151847 | CC13: 0.6412387867 | CD13: 0.5631138574 | CE13: 0.632126248 | CF13: 8
A14: SimulItin09 | B14: 12.61194527 | C14: 0.8615328698 | D14: 0.7374253006 | E14: 0.5970108303 | F14: 0.6746789715 | G14: 0 | I14: 13.90831225 | J14: 0.8075750759 | K14: 0.7256878891 | L14: 0.5757247236 | M14: 0.6014316929 | N14: 1 | P14: 13.35375793 | Q14: 0.7511281605 | R14: 0.721657613 | S14: 0.643822141 | T14: 0.6077137803 | U14: 2 | W14: 12.61194527 | X14: 0.8305695994 | Y14: 0.7485001674 | Z14: 0.6174694769 | AA14: 0.7288861386 | AB14: 2 | AD14: 13.90831225 | AE14: 0.8012882923 | AF14: 0.7366168027 | AG14: 0.5988617271 | AH14: 0.6671348911 | AI14: 2 | AK14: 13.35375793 | AL14: 0.7190413759 | AM14: 0.7471944523 | AN14: 0.6747154057 | AO14: 0.6377870985 | AP14: 5 | AR14: 10.8875343 | AS14: 0.845720191 | AT14: 0.7120670739 | AU14: 0.5736650287 | AV14: 0.6447376046 | AW14: 0 | AY14: 11.43323386 | AZ14: 0.7859661855 | BA14: 0.6545800729 | BB14: 0.5821933742 | BC14: 0.6111577243 | BD14: 3 | BF14: 12.87299635 | BG14: 0.7372588646 | BH14: 0.5999869027 | BI14: 0.5475012094 | BJ14: 0.5810888573 | BK14: 6 | BM14: 10.8875343 | BN14: 0.8093393314 | BO14: 0.7035403942 | BP14: 0.6116993108 | BQ14: 0.6787603472 | BR14: 2 | BT14: 11.43323386 | BU14: 0.7543837483 | BV14: 0.6310829355 | BW14: 0.5990927716 | BX14: 0.6594348934 | BY14: 5 | CA14: 12.87299635 | CB14: 0.7181764742 | CC14: 0.5656908968 | CD14: 0.5453816592 | CE14: 0.6298973643 | CF14: 7
A15: SimulItin10 | B15: 11.06594876 | C15: 0.7248505461 | D15: 0.7717793547 | E15: 0.4595773809 | F15: 0.4813977008 | G15: 0 | I15: 9.25384099 | J15: 0.6660569774 | K15: 0.7352729629 | L15: 0.4604913985 | M15: 0.4665584146 | N15: 0 | P15: 10.7521993 | Q15: 0.6335924118 | R15: 0.6443036715 | S15: 0.4234988015 | T15: 0.4239770463 | U15: 2 | W15: 11.06594876 | X15: 0.7994429095 | Y15: 0.7287339231 | Z15: 0.505245853 | AA15: 0.5576263764 | AB15: 0 | AD15: 9.25384099 | AE15: 0.7458266783 | AF15: 0.706177111 | AG15: 0.4437472104 | AH15: 0.5187619495 | AI15: 0 | AK15: 10.7521993 | AL15: 0.6961097341 | AM15: 0.6632296666 | AN15: 0.4171640091 | AO15: 0.437966023 | AP15: 1 | AR15: 8.055206978 | AS15: 0.6791641005 | AT15: 0.5730680318 | AU15: 0.322894869 | AV15: 0.3545515028 | AW15: 1 | AY15: 9.396771625 | AZ15: 0.6183887119 | BA15: 0.6014789175 | BB15: 0.3589383908 | BC15: 0.4122932789 | BD15: 2 | BF15: 8.608453066 | BG15: 0.5894728359 | BH15: 0.6037064695 | BI15: 0.4102084222 | BJ15: 0.4178260102 | BK15: 2 | BM15: 8.055206978 | BN15: 0.7205803786 | BO15: 0.5721173858 | BP15: 0.3161658567 | BQ15: 0.3907219544 | BR15: 0 | BT15: 9.396771625 | BU15: 0.6460660161 | BV15: 0.6042026255 | BW15: 0.4102468899 | BX15: 0.4577737391 | BY15: 1 | CA15: 8.608453066 | CB15: 0.6621014597 | CC15: 0.6135135594 | CD15: 0.4192636183 | CE15: 0.4608118582 | CF15: 1
A16: SimulItin11 | B16: 13.96622268 | C16: 0.8235521619 | D16: 0.7753499447 | E16: 0.738194786 | F16: 0.6179950366 | G16: 1 | I16: 13.81196386 | J16: 0.838549053 | K16: 0.7490787196 | L16: 0.6789553597 | M16: 0.6859187837 | N16: 2 | P16: 14.64542071 | Q16: 0.7686823201 | R16: 0.7369750334 | S16: 0.646879333 | T16: 0.6326282692 | U16: 2 | W16: 13.96622268 | X16: 0.8586030394 | Y16: 0.8411032322 | Z16: 0.7915679941 | AA16: 0.6078467275 | AB16: 0 | AD16: 13.81196386 | AE16: 0.8938734549 | AF16: 0.7213899567 | AG16: 0.6754363978 | AH16: 0.691444312 | AI16: 2 | AK16: 14.64542071 | AL16: 0.8028820163 | AM16: 0.7168741385 | AN16: 0.6288246395 | AO16: 0.6340560633 | AP16: 4 | AR16: 13.24175984 | AS16: 0.7253024795 | AT16: 0.7300127477 | AU16: 0.5952502392 | AV16: 0.5699071067 | AW16: 0 | AY16: 11.85433082 | AZ16: 0.6592460185 | BA16: 0.6895821383 | BB16: 0.6821207535 | BC16: 0.5977212389 | BD16: 1 | BF16: 11.40891215 | BG16: 0.6770979537 | BH16: 0.6802200642 | BI16: 0.6296687847 | BJ16: 0.5464220537 | BK16: 1 | BM16: 13.24175984 | BN16: 0.7517026393 | BO16: 0.786072244 | BP16: 0.5824762894 | BQ16: 0.5607770561 | BR16: 0 | BT16: 11.85433082 | BU16: 0.6616876174 | BV16: 0.7427634966 | BW16: 0.6646800409 | BX16: 0.591067745 | BY16: 2 | CA16: 11.40891215 | CB16: 0.6639733065 | CC16: 0.7045355123 | CD16: 0.6202623016 | CE16: 0.5482276912 | CF16: 4
A17: SimulItin12 | B17: 13.77631106 | C17: 0.8639852506 | D17: 0.744085373 | E17: 0.6286484891 | F17: 0.7054621654 | G17: 1 | I17: 13.55919333 | J17: 0.8075750759 | K17: 0.7256878891 | L17: 0.5757247236 | M17: 0.6014316929 | N17: 1 | P17: 13.12502485 | Q17: 0.7511281605 | R17: 0.721657613 | S17: 0.643822141 | T17: 0.6077137803 | U17: 2 | W17: 13.77631106 | X17: 0.8655096686 | Y17: 0.7525875607 | Z17: 0.617620517 | AA17: 0.7624477518 | AB17: 0 | AD17: 13.55919333 | AE17: 0.7935344479 | AF17: 0.7024446977 | AG17: 0.5632075889 | AH17: 0.6111054848 | AI17: 1 | AK17: 13.12502485 | AL17: 0.7426665943 | AM17: 0.681152211 | AN17: 0.5895096433 | AO17: 0.6072556405 | AP17: 2 | AR17: 11.63378813 | AS17: 0.854222119 | AT17: 0.7213042158 | AU17: 0.5737009917 | AV17: 0.6285874502 | AW17: 0 | AY17: 11.42430466 | AZ17: 0.7976460045 | BA17: 0.6631127101 | BB17: 0.6353344364 | BC17: 0.6362593773 | BD17: 3 | BF17: 11.00688263 | BG17: 0.7587957957 | BH17: 0.6882552816 | BI17: 0.6338189759 | BJ17: 0.6218566086 | BK17: 4 | BM17: 11.63378813 | BN17: 0.8535262776 | BO17: 0.6914082599 | BP17: 0.5684945777 | BQ17: 0.7448846906 | BR17: 0 | BT17: 11.42430466 | BU17: 0.8204527911 | BV17: 0.6326873194 | BW17: 0.603820801 | BX17: 0.6814930747 | BY17: 0 | CA17: 11.00688263 | CB17: 0.7666480691 | CC17: 0.6620955541 | CD17: 0.6119172956 | CE17: 0.622744215 | CF17: 3
A18: SimulItin13 | B18: 20.4524799 | C18: 0.798792441 | D18: 0.8240724738 | E18: 0.6025532991 | F18: 0.6272527083 | G18: 0 | I18: 16.11588695 | J18: 0.8107814394 | K18: 0.8129524031 | L18: 0.6923526173 | M18: 0.6337415103 | N18: 1 | P18: 15.43503649 | Q18: 0.8083936464 | R18: 0.7580414289 | S18: 0.6368030374 | T18: 0.6336055136 | U18: 2 | W18: 20.4524799 | X18: 0.7754683043 | Y18: 0.7565035368 | Z18: 0.565203142 | AA18: 0.6040218086 | AB18: 0 | AD18: 16.11588695 | AE18: 0.8289327191 | AF18: 0.7836972496 | AG18: 0.6701781439 | AH18: 0.5833509468 | AI18: 0 | AK18: 15.43503649 | AL18: 0.8101463798 | AM18: 0.7292425105 | AN18: 0.6325992535 | AO18: 0.6147993443 | AP18: 2 | AR18: 22.3204062 | AS18: 0.7172297279 | AT18: 0.7652055267 | AU18: 0.5696602708 | AV18: 0.6620379871 | AW18: 0 | AY18: 15.2484938 | AZ18: 0.6422021063 | BA18: 0.7001373237 | BB18: 0.6051473172 | BC18: 0.6089752466 | BD18: 0 | BF18: 13.67104754 | BG18: 0.6479159259 | BH18: 0.7156506981 | BI18: 0.643666349 | BJ18: 0.6278283536 | BK18: 3 | BM18: 22.3204062 | BN18: 0.6670226408 | BO18: 0.7376978255 | BP18: 0.5588183909 | BQ18: 0.6747352474 | BR18: 1 | BT18: 15.2484938 | BU18: 0.6244985813 | BV18: 0.6725767177 | BW18: 0.5854211933 | BX18: 0.6742479834 | BY18: 3 | CA18: 13.67104754 | CB18: 0.6569417949 | CC18: 0.6915164125 | CD18: 0.6048251173 | CE18: 0.6326359904 | CF18: 3
A19: SimulItin14 | B19: 13.95411831 | C19: 0.8212617181 | D19: 0.7550974413 | E19: 0.5715276851 | F19: 0.7082948464 | G19: 1 | I19: 14.48610926 | J19: 0.8021400941 | K19: 0.7193915242 | L19: 0.556138007 | M19: 0.6004332304 | N19: 2 | P19: 14.11055031 | Q19: 0.7535017364 | R19: 0.718673757 | S19: 0.6136602527 | T19: 0.6018636046 | U19: 2 | W19: 13.95411831 | X19: 0.7287130172 | Y19: 0.7727905026 | Z19: 0.5300406971 | AA19: 0.5907658647 | AB19: 0 | AD19: 14.48610926 | AE19: 0.7724813984 | AF19: 0.7393642693 | AG19: 0.4615441724 | AH19: 0.4970200572 | AI19: 1 | AK19: 14.11055031 | AL19: 0.7155489084 | AM19: 0.7106950709 | AN19: 0.5211229458 | AO19: 0.5270593686 | AP19: 2 | AR19: 11.21691732 | AS19: 0.8047846876 | AT19: 0.6972587861 | AU19: 0.5173426306 | AV19: 0.6133576004 | AW19: 1 | AY19: 11.93099342 | AZ19: 0.8025846177 | BA19: 0.6491558091 | BB19: 0.5620651964 | BC19: 0.6170322546 | BD19: 3 | BF19: 11.46226042 | BG19: 0.7530755114 | BH19: 0.6697026441 | BI19: 0.6103948628 | BJ19: 0.619092824 | BK19: 5 | BM19: 11.21691732 | BN19: 0.7038422769 | BO19: 0.7622905981 | BP19: 0.4848165877 | BQ19: 0.5084275625 | BR19: 0 | BT19: 11.93099342 | BU19: 0.727912012 | BV19: 0.6979617995 | BW19: 0.4785282899 | BX19: 0.5224899193 | BY19: 2 | CA19: 11.46226042 | CB19: 0.7139714819 | CC19: 0.6804991301 | CD19: 0.5429965234 | CE19: 0.5316938021 | CF19: 3
A20: SimulItin15 | B20: 8.691599694 | C20: 0.6815670963 | D20: 0.76334181 | E20: 0.5520461307 | F20: 0.4917935759 | G20: 1 | I20: 15.88579214 | J20: 0.6668944914 | K20: 0.6862109106 | L20: 0.4132116625 | M20: 0.4135931309 | N20: 2 | P20: 14.55858992 | Q20: 0.6912564677 | R20: 0.7041175469 | S20: 0.5007292463 | T20: 0.4782700005 | U20: 3 | W20: 8.691599694 | X20: 0.5859636988 | Y20: 0.7917168222 | Z20: 0.4996988118 | AA20: 0.5144411673 | AB20: 1 | AD20: 15.88579214 | AE20: 0.5752829969 | AF20: 0.6813827414 | AG20: 0.4268205742 | AH20: 0.439255977 | AI20: 2 | AK20: 14.55858992 | AL20: 0.6112681632 | AM20: 0.7082512651 | AN20: 0.501904092 | AO20: 0.4827861145 | AP20: 3 | AR20: 8.0054293 | AS20: 0.6334839448 | AT20: 0.744896997 | AU20: 0.5801916969 | AV20: 0.4940106417 | AW20: 2 | AY20: 13.2136518 | AZ20: 0.5596033014 | BA20: 0.5752589069 | BB20: 0.3746434846 | BC20: 0.3708364185 | BD20: 2 | BF20: 11.59420459 | BG20: 0.5442836856 | BH20: 0.5692765373 | BI20: 0.3959096232 | BJ20: 0.3550670812 | BK20: 2 | BM20: 8.0054293 | BN20: 0.4983845169 | BO20: 0.7642514038 | BP20: 0.5651242613 | BQ20: 0.5309182672 | BR20: 2 | BT20: 13.2136518 | BU20: 0.4620950076 | BV20: 0.5994562539 | BW20: 0.3733157674 | BX20: 0.4025183704 | BY20: 2 | CA20: 11.59420459 | CB20: 0.4638267623 | CC20: 0.5709367235 | CD20: 0.3804908394 | CE20: 0.3862342294 | CF20: 4
A21: SimulItin16 | B21: 7.786807109 | C21: 0.6061533171 | D21: 0.6654247586 | E21: 0.437301805 | F21: 0.4505817576 | G21: 0 | I21: 9.892204 | J21: 0.6383695653 | K21: 0.7230533732 | L21: 0.4448309001 | M21: 0.4280940102 | N21: 0 | P21: 10.91272453 | Q21: 0.6845625354 | R21: 0.724651889 | S21: 0.5095599395 | T21: 0.491262062 | U21: 1 | W21: 7.786807109 | X21: 0.5686151031 | Y21: 0.7161270084 | Z21: 0.4904026219 | AA21: 0.514874 | AB21: 2 | AD21: 9.892204 | AE21: 0.5838793864 | AF21: 0.754133825 | AG21: 0.5266594361 | AH21: 0.4878089665 | AI21: 2 | AK21: 10.91272453 | AL21: 0.6236062135 | AM21: 0.7486451196 | AN21: 0.5969965928 | AO21: 0.526622257 | AP21: 4 | AR21: 7.902009326 | AS21: 0.5552301835 | AT21: 0.6557726935 | AU21: 0.4752148977 | AV21: 0.4192879495 | AW21: 1 | AY21: 8.908075077 | AZ21: 0.5469567655 | BA21: 0.6256331147 | BB21: 0.4716073407 | BC21: 0.3948353362 | BD21: 1 | BF21: 8.431147247 | BG21: 0.58285795 | BH21: 0.6281551061 | BI21: 0.4619756306 | BJ21: 0.4230439003 | BK21: 3 | BM21: 7.902009326 | BN21: 0.4931122055 | BO21: 0.671196732 | BP21: 0.4966696221 | BQ21: 0.5016322854 | BR21: 3 | BT21: 8.908075077 | BU21: 0.5449281821 | BV21: 0.6210424365 | BW21: 0.5194957491 | BX21: 0.428478779 | BY21: 4 | CA21: 8.431147247 | CB21: 0.5337105641 | CC21: 0.649113521 | CD21: 0.5169317131 | CE21: 0.4522242426 | CF21: 6
A22: SimulItin17 | B22: 13.30997707 | C22: 0.7984606008 | D22: 0.8193691654 | E22: 0.7024352989 | F22: 0.6370716743 | G22: 1 | I22: 12.85743391 | J22: 0.8299967353 | K22: 0.778397233 | L22: 0.6497230646 | M22: 0.6558753229 | N22: 1 | P22: 13.78441659 | Q22: 0.7809470313 | R22: 0.7055200603 | S22: 0.6425134439 | T22: 0.6221277065 | U22: 2 | W22: 13.30997707 | X22: 0.8166392493 | Y22: 0.7612186602 | Z22: 0.6155376328 | AA22: 0.589921799 | AB22: 0 | AD22: 12.85743391 | AE22: 0.8391258616 | AF22: 0.683218207 | AG22: 0.5860132819 | AH22: 0.5797890455 | AI22: 1 | AK22: 13.78441659 | AL22: 0.7710144839 | AM22: 0.6458979364 | AN22: 0.5854644254 | AO22: 0.571040113 | AP22: 3 | AR22: 9.393742974 | AS22: 0.6203069882 | AT22: 0.6823050669 | AU22: 0.636453289 | AV22: 0.5597759071 | AW22: 0 | AY22: 9.34072905 | AZ22: 0.6164044696 | BA22: 0.7124058751 | BB22: 0.6962188411 | BC22: 0.613870751 | BD22: 3 | BF22: 10.30962178 | BG22: 0.6943680451 | BH22: 0.7095598339 | BI22: 0.6436581315 | BJ22: 0.6170204597 | BK22: 3 | BM22: 9.393742974 | BN22: 0.5991828526 | BO22: 0.6396155084 | BP22: 0.6743267543 | BQ22: 0.4848112489 | BR22: 2 | BT22: 9.34072905 | BU22: 0.6315788821 | BV22: 0.6809299651 | BW22: 0.64971361 | BX22: 0.5846167252 | BY22: 4 | CA22: 10.30962178 | CB22: 0.7132657569 | CC22: 0.6514302943 | CD22: 0.6145978144 | CE22: 0.5922258695 | CF22: 5
A23: SimulItin18 | B23: 15.73436142 | C23: 0.782905914 | D23: 0.813808688 | E23: 0.5322734878 | F23: 0.5647781886 | G23: 0 | I23: 13.58395043 | J23: 0.789030925 | K23: 0.7902293714 | L23: 0.6525812455 | M23: 0.6345357554 | N23: 1 | P23: 14.46369335 | Q23: 0.7921283479 | R23: 0.7513202964 | S23: 0.6027315349 | T23: 0.6255438926 | U23: 2 | W23: 15.73436142 | X23: 0.7383960957 | Y23: 0.7582811083 | Z23: 0.5172248295 | AA23: 0.4431646012 | AB23: 2 | AD23: 13.58395043 | AE23: 0.7850665939 | AF23: 0.6922255277 | AG23: 0.6463622843 | AH23: 0.5752303989 | AI23: 5 | AK23: 14.46369335 | AL23: 0.7856118591 | AM23: 0.6533051884 | AN23: 0.6050157702 | AO23: 0.5799121623 | AP23: 8 | AR23: 12.23617553 | AS23: 0.7117381259 | AT23: 0.7496887853 | AU23: 0.5265815427 | AV23: 0.6255610705 | AW23: 0 | AY23: 10.73168484 | AZ23: 0.6627931952 | BA23: 0.6975162802 | BB23: 0.5911260503 | BC23: 0.5610282269 | BD23: 0 | BF23: 10.69253411 | BG23: 0.6560162917 | BH23: 0.7154543381 | BI23: 0.6349340613 | BJ23: 0.5996532168 | BK23: 3 | BM23: 12.23617553 | BN23: 0.6983979608 | BO23: 0.6915466817 | BP23: 0.5285286222 | BQ23: 0.5753076961 | BR23: 2 | BT23: 10.73168484 | BU23: 0.6956164706 | BV23: 0.6535340963 | BW23: 0.5570271085 | BX23: 0.5028719461 | BY23: 3 | CA23: 10.69253411 | CB23: 0.6977924766 | CC23: 0.6431995372 | CD23: 0.5785500474 | CE23: 0.5567707884 | CF23: 5
A24: SimulItin19 | B24: 12.14500996 | C24: 0.8173874057 | D24: 0.7994309664 | E24: 0.7233465743 | F24: 0.6041464796 | G24: 1 | I24: 13.37037876 | J24: 0.833859494 | K24: 0.7424810437 | L24: 0.6331740554 | M24: 0.6428683442 | N24: 2 | P24: 13.81378991 | Q24: 0.7686823201 | R24: 0.7369750334 | S24: 0.646879333 | T24: 0.6326282692 | U24: 2 | W24: 12.14500996 | X24: 0.8341187959 | Y24: 0.8194100964 | Z24: 0.6670719321 | AA24: 0.6444496723 | AB24: 1 | AD24: 13.37037876 | AE24: 0.8105730339 | AF24: 0.7773277295 | AG24: 0.6189983495 | AH24: 0.6161064081 | AI24: 2 | AK24: 13.81378991 | AL24: 0.7784210173 | AM24: 0.7147936665 | AN24: 0.6336318497 | AO24: 0.6247981425 | AP24: 4 | AR24: 9.291507573 | AS24: 0.64728312 | AT24: 0.7767185678 | AU24: 0.7312221297 | AV24: 0.6399331084 | AW24: 2 | AY24: 10.56577211 | AZ24: 0.7327323642 | BA24: 0.7280239229 | BB24: 0.6341668247 | BC24: 0.6352104482 | BD24: 3 | BF24: 11.66317745 | BG24: 0.7475470241 | BH24: 0.6938858709 | BI24: 0.6170570851 | BJ24: 0.6235044059 | BK24: 5 | BM24: 9.291507573 | BN24: 0.6890229281 | BO24: 0.8121810191 | BP24: 0.6458298105 | BQ24: 0.6051987835 | BR24: 1 | BT24: 10.56577211 | BU24: 0.7456587257 | BV24: 0.7784772563 | BW24: 0.5937985755 | BX24: 0.6101712544 | BY24: 2 | CA24: 11.66317745 | CB24: 0.7654676624 | CC24: 0.7323114192 | CD24: 0.580010392 | CE24: 0.5998930965 | CF24: 3
A25: SimulItin20 | B25: 12.17001545 | C25: 0.6596298851 | D25: 0.7950400373 | E25: 0.4711885117 | F25: 0.4427303741 | G25: 0 | I25: 11.35357598 | J25: 0.6629783491 | K25: 0.7401472221 | L25: 0.4441739395 | M25: 0.4259365182 | N25: 0 | P25: 11.64445048 | Q25: 0.6853926412 | R25: 0.7418957759 | S25: 0.5163621709 | T25: 0.485033377 | U25: 1 | W25: 12.17001545 | X25: 0.6798818745 | Y25: 0.7542971308 | Z25: 0.4034995133 | AA25: 0.3969232725 | AB25: 2 | AD25: 11.35357598 | AE25: 0.6502210836 | AF25: 0.7073575278 | AG25: 0.3650082599 | AH25: 0.3325651899 | AI25: 2 | AK25: 11.64445048 | AL25: 0.6750698954 | AM25: 0.7125733593 | AN25: 0.4788324586 | AO25: 0.4211392658 | AP25: 3 | AR25: 7.432890353 | AS25: 0.6334839448 | AT25: 0.744896997 | AU25: 0.5801916969 | AV25: 0.4940106417 | AW25: 2 | AY25: 8.606020284 | AZ25: 0.5436092251 | BA25: 0.623186785 | BB25: 0.5056047846 | BC25: 0.4123629949 | BD25: 3 | BF25: 8.070191207 | BG25: 0.5809484866 | BH25: 0.6279430176 | BI25: 0.490243223 | BJ25: 0.4238336331 | BK25: 4 | BM25: 7.432890353 | BN25: 0.615663624 | BO25: 0.7286652584 | BP25: 0.481620884 | BQ25: 0.460195207 | BR25: 3 | BT25: 8.606020284 | BU25: 0.5273506738 | BV25: 0.630610214 | BW25: 0.4255608115 | BX25: 0.36629912 | BY25: 4 | CA25: 8.070191207 | CB25: 0.5615550046 | CC25: 0.6133604108 | CD25: 0.4278348814 | CE25: 0.3828216111 | CF25: 5
A26: SimulItin21 | B26: 11.74701719 | C26: 0.6803953862 | D26: 0.7718308741 | E26: 0.6080572964 | F26: 0.5447363099 | G26: 0 | I26: 12.46776754 | J26: 0.7248832104 | K26: 0.7583766793 | L26: 0.7028812726 | M26: 0.5949039103 | N26: 1 | P26: 13.04488929 | Q26: 0.7511281605 | R26: 0.721657613 | S26: 0.643822141 | T26: 0.6077137803 | U26: 2 | W26: 11.74701719 | X26: 0.7223365482 | Y26: 0.7211795871 | Z26: 0.7130924334 | AA26: 0.5735437553 | AB26: 1 | AD26: 12.46776754 | AE26: 0.7252301565 | AF26: 0.7023234378 | AG26: 0.7132906417 | AH26: 0.6016929647 | AI26: 3 | AK26: 13.04488929 | AL26: 0.7264106432 | AM26: 0.6600918893 | AN26: 0.6419236482 | AO26: 0.5947170174 | AP26: 5 | AR26: 10.40716036 | AS26: 0.6495834576 | AT26: 0.7445287162 | AU26: 0.6014855696 | AV26: 0.5003365039 | AW26: 0 | AY26: 10.71334733 | AZ26: 0.6238211819 | BA26: 0.6877472793 | BB26: 0.6370966694 | BC26: 0.5534877262 | BD26: 1 | BF26: 13.34164933 | BG26: 0.7053650259 | BH26: 0.674085849 | BI26: 0.6394347768 | BJ26: 0.6063982318 | BK26: 3 | BM26: 10.40716036 | BN26: 0.6635800386 | BO26: 0.7342174217 | BP26: 0.6485684819 | BQ26: 0.4880780556 | BR26: 1 | BT26: 10.71334733 | BU26: 0.6373852099 | BV26: 0.6613190054 | BW26: 0.6594874867 | BX26: 0.5776555095 | BY26: 5 | CA26: 13.34164933 | CB26: 0.692981712 | CC26: 0.6474710027 | CD26: 0.6452265364 | CE26: 0.6106264595 | CF26: 8
A27: SimulItin22 | B27: 13.10265122 | C27: 0.8620825146 | D27: 0.7122029142 | E27: 0.5163892548 | F27: 0.6206906297 | G27: 0 | I27: 14.08278274 | J27: 0.8225504923 | K27: 0.6979442607 | L27: 0.5285687919 | M27: 0.556631122 | N27: 1 | P27: 13.8463019 | Q27: 0.7671086686 | R27: 0.7043755813 | S27: 0.595280776 | T27: 0.5726621991 | U27: 1 | W27: 13.10265122 | X27: 0.7830827681 | Y27: 0.7282110283 | Z27: 0.5444232499 | AA27: 0.6536324666 | AB27: 0 | AD27: 14.08278274 | AE27: 0.7829860013 | AF27: 0.7365154754 | AG27: 0.5055833496 | AH27: 0.6398747319 | AI27: 0 | AK27: 13.8463019 | AL27: 0.7627651866 | AM27: 0.7204729873 | AN27: 0.5750720418 | AO27: 0.6588978801 | AP27: 2 | AR27: 11.78240232 | AS27: 0.8470931615 | AT27: 0.6697647494 | AU27: 0.4891374456 | AV27: 0.558270323 | AW27: 0 | AY27: 12.59057504 | AZ27: 0.8257128496 | BA27: 0.6358676829 | BB27: 0.5665466277 | BC27: 0.5878642874 | BD27: 2 | BF27: 11.43899447 | BG27: 0.7647321232 | BH27: 0.6581544611 | BI27: 0.5984075914 | BJ27: 0.5966455667 | BK27: 4 | BM27: 11.78240232 | BN27: 0.7646551581 | BO27: 0.6534810305 | BP27: 0.4813812612 | BQ27: 0.6279030539 | BR27: 0 | BT27: 12.59057504 | BU27: 0.8068517693 | BV27: 0.6657783658 | BW27: 0.5570463752 | BX27: 0.6435565257 | BY27: 1 | CA27: 11.43899447 | CB27: 0.7445335998 | CC27: 0.6534664976 | CD27: 0.5501137554 | CE27: 0.653163095 | CF27: 3
A28: SimulItin23 | B28: 12.32314177 | C28: 0.6705858135 | D28: 0.7806819879 | E28: 0.4523599952 | F28: 0.4056062629 | G28: 0 | I28: 10.09270041 | J28: 0.655064768 | K28: 0.7360627795 | L28: 0.4748411491 | M28: 0.4603197586 | N28: 1 | P28: 16.84603315 | Q28: 0.6333412081 | R28: 0.6649419987 | S28: 0.43677268 | T28: 0.4254484411 | U28: 2 | W28: 12.32314177 | X28: 0.6675086114 | Y28: 0.6682263318 | Z28: 0.433345583 | AA28: 0.4823762861 | AB28: 0 | AD28: 10.09270041 | AE28: 0.6478983046 | AF28: 0.6373983213 | AG28: 0.4283189268 | AH28: 0.5229612061 | AI28: 2 | AK28: 16.84603315 | AL28: 0.6012342287 | AM28: 0.5596658299 | AN28: 0.4140317365 | AO28: 0.4586855751 | AP28: 3 | AR28: 8.1709709 | AS28: 0.6924864722 | AT28: 0.671514377 | AU28: 0.5018684727 | AV28: 0.5357407913 | AW28: 2 | AY28: 9.839465616 | AZ28: 0.7405774332 | BA28: 0.6822876583 | BB28: 0.5753145906 | BC28: 0.5680439182 | BD28: 3 | BF28: 12.19069306 | BG28: 0.7604175824 | BH28: 0.6549718395 | BI28: 0.5440083617 | BJ28: 0.5738531563 | BK28: 4 | BM28: 8.1709709 | BN28: 0.6694481183 | BO28: 0.6003326452 | BP28: 0.5751502744 | BQ28: 0.6174078052 | BR28: 2 | BT28: 9.839465616 | BU28: 0.732488293 | BV28: 0.6017323952 | BW28: 0.5781967013 | BX28: 0.645745967 | BY28: 3 | CA28: 12.19069306 | CB28: 0.7602299946 | CC28: 0.5777513722 | CD28: 0.5373222969 | CE28: 0.6021733443 | CF28: 4
A29: SimulItin24 | B29: 12.61513237 | C29: 0.8615328698 | D29: 0.7374253006 | E29: 0.5970108303 | F29: 0.6746789715 | G29: 0 | I29: 14.51853784 | J29: 0.8241896995 | K29: 0.7074145159 | L29: 0.5760629749 | M29: 0.6239371123 | N29: 2 | P29: 13.75356091 | Q29: 0.7622045762 | R29: 0.7094753642 | S29: 0.6440476418 | T29: 0.6227173933 | U29: 3 | W29: 12.61513237 | X29: 0.8500544277 | Y29: 0.7224431037 | Z29: 0.6362946785 | AA29: 0.650002685 | AB29: 0 | AD29: 14.51853784 | AE29: 0.8268484934 | AF29: 0.7358539022 | AG29: 0.6446541963 | AH29: 0.6037703362 | AI29: 1 | AK29: 13.75356091 | AL29: 0.7790784619 | AM29: 0.7129764887 | AN29: 0.6957868351 | AO29: 0.590342343 | AP29: 4 | AR29: 13.54704027 | AS29: 0.8622879578 | AT29: 0.6708440101 | AU29: 0.6292627801 | AV29: 0.6983706859 | AW29: 2 | AY29: 11.98634532 | AZ29: 0.8030148375 | BA29: 0.6822704157 | BB29: 0.5735431548 | BC29: 0.6062821097 | BD29: 3 | BF29: 10.67498477 | BG29: 0.7435154413 | BH29: 0.6075639449 | BI29: 0.5067988173 | BJ29: 0.5611282475 | BK29: 5 | BM29: 13.54704027 | BN29: 0.8444966973 | BO29: 0.6894589656 | BP29: 0.6900678889 | BQ29: 0.6377068328 | BR29: 1 | BT29: 11.98634532 | BU29: 0.8070743903 | BV29: 0.677192424 | BW29: 0.562939227 | BX29: 0.5541018744 | BY29: 1 | CA29: 10.67498477 | CB29: 0.7004511776 | CC29: 0.6043182359 | CD29: 0.5118213165 | CE29: 0.5178313983 | CF29: 3
A30: SimulItin25 | B30: 15.57107755 | C30: 0.7322373282 | D30: 0.8065558678 | E30: 0.4375101037 | F30: 0.4448353673 | G30: 1 | I30: 13.65898257 | J30: 0.7795209885 | K30: 0.7538712479 | L30: 0.5203756944 | M30: 0.5303635022 | N30: 2 | P30: 15.0198804 | Q30: 0.7935389091 | R30: 0.7404616332 | S30: 0.5298786845 | T30: 0.5642365306 | U30: 3 | W30: 15.57107755 | X30: 0.6519462952 | Y30: 0.7238873748 | Z30: 0.502044372 | AA30: 0.4225643611 | AB30: 1 | AD30: 13.65898257 | AE30: 0.729081528 | AF30: 0.7029905142 | AG30: 0.5088161877 | AH30: 0.4654636841 | AI30: 2 | AK30: 15.0198804 | AL30: 0.7386592496 | AM30: 0.7087404967 | AN30: 0.5357239619 | AO30: 0.5226807574 | AP30: 4 | AR30: 6.644391226 | AS30: 0.6149624116 | AT30: 0.6606215877 | AU30: 0.4252959092 | AV30: 0.4731811684 | AW30: 1 | AY30: 8.476064417 | AZ30: 0.6896306814 | BA30: 0.6663014257 | BB30: 0.5489649993 | BC30: 0.5802909267 | BD30: 3 | BF30: 9.751348895 | BG30: 0.7250075469 | BH30: 0.6510164636 | BI30: 0.5388570382 | BJ30: 0.589350101 | BK30: 5 | BM30: 6.644391226 | BN30: 0.4700985672 | BO30: 0.6258621205 | BP30: 0.4122028742 | BQ30: 0.50373121 | BR30: 2 | BT30: 8.476064417 | BU30: 0.5764993266 | BV30: 0.6554474667 | BW30: 0.5282250445 | BX30: 0.5831094266 | BY30: 5 | CA30: 9.751348895 | CB30: 0.6486531369 | CC30: 0.6415181327 | CD30: 0.5321394117 | CE30: 0.5629546193 | CF30: 6
A31: SimulItin26 | B31: 10.98798277 | C31: 0.7348729786 | D31: 0.7889287074 | E31: 0.6437365152 | F31: 0.5549851067 | G31: 0 | I31: 12.40377488 | J31: 0.7248832104 | K31: 0.7583766793 | L31: 0.7028812726 | M31: 0.5949039103 | N31: 1 | P31: 13.00296307 | Q31: 0.7511281605 | R31: 0.721657613 | S31: 0.643822141 | T31: 0.6077137803 | U31: 2 | W31: 10.98798277 | X31: 0.7557898524 | Y31: 0.7608166063 | Z31: 0.6832860883 | AA31: 0.4940712337 | AB31: 0 | AD31: 12.40377488 | AE31: 0.7265726724 | AF31: 0.6885591864 | AG31: 0.753439034 | AH31: 0.5483627992 | AI31: 2 | AK31: 13.00296307 | AL31: 0.7246734803 | AM31: 0.6975863877 | AN31: 0.6678183742 | AO31: 0.5816611277 | AP31: 3 | AR31: 8.806994634 | AS31: 0.7495946179 | AT31: 0.7151581962 | AU31: 0.648531154 | AV31: 0.5655283016 | AW31: 0 | AY31: 11.00874149 | AZ31: 0.6029472736 | BA31: 0.693895357 | BB31: 0.6987409661 | BC31: 0.5809430715 | BD31: 2 | BF31: 11.00761474 | BG31: 0.6702264116 | BH31: 0.6950165 | BI31: 0.6382748543 | BJ31: 0.5917479145 | BK31: 3 | BM31: 8.806994634 | BN31: 0.7475948159 | BO31: 0.6708444466 | BP31: 0.7283846819 | BQ31: 0.5264658905 | BR31: 1 | BT31: 11.00874149 | BU31: 0.6066924017 | BV31: 0.6501192001 | BW31: 0.7386953495 | BX31: 0.5346425886 | BY31: 4 | CA31: 11.00761474 | CB31: 0.6584814222 | CC31: 0.6302931915 | CD31: 0.6557100608 | CE31: 0.5667104132 | CF31: 5
A32: SimulItin27 | B32: 14.8541699 | C32: 0.759689793 | D32: 0.8230159807 | E32: 0.5306993322 | F32: 0.5415294996 | G32: 1 | I32: 12.8180669 | J32: 0.783745968 | K32: 0.7526178481 | L32: 0.5177636324 | M32: 0.5488242675 | N32: 2 | P32: 14.49808566 | Q32: 0.8010686236 | R32: 0.7447730053 | S32: 0.5474119986 | T32: 0.5809107943 | U32: 3 | W32: 14.8541699 | X32: 0.8196092461 | Y32: 0.7285502173 | Z32: 0.5311857903 | AA32: 0.4379558511 | AB32: 0 | AD32: 12.8180669 | AE32: 0.8018716742 | AF32: 0.6769067147 | AG32: 0.5495253815 | AH32: 0.4602618553 | AI32: 1 | AK32: 14.49808566 | AL32: 0.7698232207 | AM32: 0.6727393276 | AN32: 0.5613954514 | AO32: 0.5070217391 | AP32: 3 | AR32: 7.239402596 | AS32: 0.5367624137 | AT32: 0.574030159 | AU32: 0.3804926842 | AV32: 0.3648690482 | AW32: 0 | AY32: 7.828233275 | AZ32: 0.5851231792 | BA32: 0.659463578 | BB32: 0.4803421906 | BC32: 0.429439845 | BD32: 2 | BF32: 11.49369657 | BG32: 0.5500183362 | BH32: 0.5687489493 | BI32: 0.3984855505 | BJ32: 0.3830693234 | BK32: 3 | BM32: 7.239402596 | BN32: 0.4620744991 | BO32: 0.5640081457 | BP32: 0.3607870742 | BQ32: 0.3492698807 | BR32: 0 | BT32: 7.828233275 | BU32: 0.4500417047 | BV32: 0.6196017045 | BW32: 0.4429795798 | BX32: 0.403502837 | BY32: 2 | CA32: 11.49369657 | CB32: 0.4666745881 | CC32: 0.5340903541 | CD32: 0.3685363309 | CE32: 0.3530636304 | CF32: 3
A33: SimulItin28 | B33: 14.25881358 | C33: 0.7984606008 | D33: 0.8193691654 | E33: 0.7024352989 | F33: 0.6370716743 | G33: 1 | I33: 13.30688278 | J33: 0.8299967353 | K33: 0.778397233 | L33: 0.6497230646 | M33: 0.6558753229 | N33: 1 | P33: 14.0788831 | Q33: 0.7809470313 | R33: 0.7055200603 | S33: 0.6425134439 | T33: 0.6221277065 | U33: 2 | W33: 14.25881358 | X33: 0.8129614538 | Y33: 0.751847737 | Z33: 0.7235096457 | AA33: 0.6748799142 | AB33: 2 | AD33: 13.30688278 | AE33: 0.8126433881 | AF33: 0.7769409222 | AG33: 0.6677320985 | AH33: 0.6186877176 | AI33: 2 | AK33: 14.0788831 | AL33: 0.7652607096 | AM33: 0.6949053848 | AN33: 0.6509332115 | AO33: 0.5980858497 | AP33: 4 | AR33: 10.34257948 | AS33: 0.6203069882 | AT33: 0.6823050669 | AU33: 0.636453289 | AV33: 0.5597759071 | AW33: 0 | AY33: 9.790177922 | AZ33: 0.6164044696 | BA33: 0.7124058751 | BB33: 0.6962188411 | BC33: 0.613870751 | BD33: 3 | BF33: 10.60408828 | BG33: 0.6943680451 | BH33: 0.7095598339 | BI33: 0.6436581315 | BJ33: 0.6170204597 | BK33: 3 | BM33: 10.34257948 | BN33: 0.6220719508 | BO33: 0.7085601021 | BP33: 0.6528605283 | BQ33: 0.5926219924 | BR33: 1 | BT33: 9.790177922 | BU33: 0.5916991742 | BV33: 0.6737320401 | BW33: 0.6892914334 | BX33: 0.6390744415 | BY33: 6 | CA33: 10.60408828 | CB33: 0.6552120533 | CC33: 0.692157634 | CD33: 0.6430344194 | CE33: 0.6250967282 | CF33: 6
A34: SimulItin29 | B34: 11.9635754 | C34: 0.6883793084 | D34: 0.8213765548 | E34: 0.6330510188 | F34: 0.5767128098 | G34: 0 | I34: 12.76400451 | J34: 0.7248832104 | K34: 0.7583766793 | L34: 0.7028812726 | M34: 0.5949039103 | N34: 1 | P34: 13.23897559 | Q34: 0.7511281605 | R34: 0.721657613 | S34: 0.643822141 | T34: 0.6077137803 | U34: 2 | W34: 11.9635754 | X34: 0.6933931713 | Y34: 0.7519671336 | Z34: 0.6036001733 | AA34: 0.5545030812 | AB34: 0 | AD34: 12.76400451 | AE34: 0.6949794943 | AF34: 0.7065298654 | AG34: 0.6499030879 | AH34: 0.6280355369 | AI34: 3 | AK34: 13.23897559 | AL34: 0.7367940564 | AM34: 0.7068286184 | AN34: 0.5937232506 | AO34: 0.6386279747 | AP34: 5 | AR34: 8.422525132 | AS34: 0.719718236 | AT34: 0.6991639409 | AU34: 0.6929744716 | AV34: 0.6182601463 | AW34: 1 | AY34: 10.16187933 | AZ34: 0.6304422373 | BA34: 0.6724417643 | BB34: 0.6951893876 | BC34: 0.6103792831 | BD34: 2 | BF34: 11.92085855 | BG34: 0.6886664175 | BH34: 0.6577063454 | BI34: 0.6352407908 | BJ34: 0.6247621784 | BK34: 4 | BM34: 8.422525132 | BN34: 0.6788022653 | BO34: 0.6808839793 | BP34: 0.6319540809 | BQ34: 0.6301941456 | BR34: 2 | BT34: 10.16187933 | BU34: 0.6304283658 | BV34: 0.6291183623 | BW34: 0.6620185039 | BX34: 0.6458602919 | BY34: 5 | CA34: 11.92085855 | CB34: 0.6878890461 | CC34: 0.6302929935 | CD34: 0.6135976171 | CE34: 0.6463317735 | CF34: 7
A35: SimulItin30 | B35: 12.15248773 | C35: 0.7785053978 | D35: 0.8248515638 | E35: 0.7619172103 | F35: 0.6924026458 | G35: 1 | I35: 12.88057584 | J35: 0.8090429447 | K35: 0.7882229452 | L35: 0.6612265479 | M35: 0.6645861658 | N35: 1 | P35: 14.15991011 | Q35: 0.7823569988 | R35: 0.7202336269 | S35: 0.6450801597 | T35: 0.6368728282 | U35: 2 | W35: 12.15248773 | X35: 0.7745804035 | Y35: 0.812297873 | Z35: 0.742203407 | AA35: 0.5806972351 | AB35: 2 | AD35: 12.88057584 | AE35: 0.7404007012 | AF35: 0.7626828849 | AG35: 0.6272645385 | AH35: 0.6104621626 | AI35: 3 | AK35: 14.15991011 | AL35: 0.7095783543 | AM35: 0.709767715 | AN35: 0.6086610183 | AO35: 0.5820553253 | AP35: 5 | AR35: 10.23606533 | AS35: 0.6203069882 | AT35: 0.6823050669 | AU35: 0.636453289 | AV35: 0.5597759071 | AW35: 0 | AY35: 9.739723851 | AZ35: 0.6164044696 | BA35: 0.7124058751 | BB35: 0.6962188411 | BC35: 0.613870751 | BD35: 3 | BF35: 10.57103216 | BG35: 0.6943680451 | BH35: 0.7095598339 | BI35: 0.6436581315 | BJ35: 0.6170204597 | BK35: 3 | BM35: 10.23606533 | BN35: 0.6878677755 | BO35: 0.729351048 | BP35: 0.6725198816 | BQ35: 0.4982507395 | BR35: 2 | BT35: 9.739723851 | BU35: 0.6032553908 | BV35: 0.7273244693 | BW35: 0.6917595524 | BX35: 0.5671281096 | BY35: 7 | CA35: 10.57103216 | CB35: 0.6478605069 | CC35: 0.7135319159 | CD35: 0.6298647337 | CE35: 0.5890851149 | CF35: 8
A36: SimulItin31 | B36: 13.21355637 | C36: 0.8661078749 | D36: 0.7292259783 | E36: 0.5618825139 | F36: 0.6532612442 | G36: 0 | I36: 13.95616737 | J36: 0.8196742305 | K36: 0.7018625496 | L36: 0.5433215897 | M36: 0.580413865 | N36: 1 | P36: 13.37912446 | Q36: 0.7689533701 | R36: 0.7096772061 | S36: 0.6200908668 | T36: 0.591519307 | U36: 1 | W36: 13.21355637 | X36: 0.8065812006 | Y36: 0.7860853331 | Z36: 0.502365246 | AA36: 0.6192451382 | AB36: 0 | AD36: 13.95616737 | AE36: 0.7928491416 | AF36: 0.6571342745 | AG36: 0.4569661844 | AH36: 0.5588784874 | AI36: 2 | AK36: 13.37912446 | AL36: 0.7429503982 | AM36: 0.6578464588 | AN36: 0.560649609 | AO36: 0.5775579639 | AP36: 4 | AR36: 11.4891454 | AS36: 0.8502951962 | AT36: 0.7038677516 | AU36: 0.5385367123 | AV36: 0.6233198772 | AW36: 0 | AY36: 11.87751473 | AZ36: 0.824383819 | BA36: 0.6451420998 | BB36: 0.5997375251 | BC36: 0.6119676674 | BD36: 2 | BF36: 11.16843775 | BG36: 0.7566988326 | BH36: 0.6739002207 | BI36: 0.6234526739 | BJ36: 0.6197584658 | BK36: 4 | BM36: 11.4891454 | BN36: 0.769083482 | BO36: 0.7555364248 | BP36: 0.4293966621 | BQ36: 0.5741811633 | BR36: 0 | BT36: 11.87751473 | BU36: 0.7617451331 | BV36: 0.6090529768 | BW36: 0.535184092 | BX36: 0.5780677613 | BY36: 4 | CA36: 11.16843775 | CB36: 0.722303432 | CC36: 0.6444323971 | CD36: 0.5445850543 | CE36: 0.5947999859 | CF36: 6
A37: SimulItin32 | B37: 13.2069006 | C37: 0.7142591378 | D37: 0.7801560354 | E37: 0.4497939193 | F37: 0.4527281106 | G37: 0 | I37: 10.26797607 | J37: 0.6607612732 | K37: 0.7394613033 | L37: 0.4555996677 | M37: 0.4522236195 | N37: 0 | P37: 11.41663263 | Q37: 0.6300619423 | R37: 0.6470958984 | S37: 0.4202376476 | T37: 0.4144205162 | U37: 2 | W37: 13.2069006 | X37: 0.7488879616 | Y37: 0.6990450358 | Z37: 0.4190871489 | AA37: 0.3791500995 | AB37: 0 | AD37: 10.26797607 | AE37: 0.6605688004 | AF37: 0.6450556945 | AG37: 0.418866047 | AH37: 0.4117718199 | AI37: 1 | AK37: 11.41663263 | AL37: 0.6242680583 | AM37: 0.5980318522 | AN37: 0.4076508905 | AO37: 0.3666451388 | AP37: 2 | AR37: 6.997438579 | AS37: 0.7168352247 | AT37: 0.6042081776 | AU37: 0.3427251073 | AV37: 0.3745839334 | AW37: 0 | AY37: 8.525681939 | AZ37: 0.7400914144 | BA37: 0.6488033272 | BB37: 0.5047121945 | BC37: 0.5056161001 | BD37: 2 | BF37: 10.9207168 | BG37: 0.7650940968 | BH37: 0.6329933742 | BI37: 0.5346771438 | BJ37: 0.5584628556 | BK37: 4 | BM37: 6.997438579 | BN37: 0.6798449129 | BO37: 0.4633030564 | BP37: 0.338746386 | BQ37: 0.3094895019 | BR37: 0 | BT37: 8.525681939 | BU37: 0.7045591213 | BV37: 0.538767189 | BW37: 0.4631789738 | BX37: 0.4425567328 | BY37: 2 | CA37: 10.9207168 | CB37: 0.7245270563 | CC37: 0.5732316646 | CD37: 0.5029845995 | CE37: 0.5253179114 | CF37: 3
A38: SimulItin33 | B38: 10.93888343 | C38: 0.7769484756 | D38: 0.7278489206 | E38: 0.6390180184 | F38: 0.6175981654 | G38: 1 | I38: 14.71701648 | J38: 0.8145134076 | K38: 0.7089276446 | L38: 0.5897784422 | M38: 0.6298686236 | N38: 3 | P38: 14.26183436 | Q38: 0.7617506121 | R38: 0.7116978373 | S38: 0.6360872095 | T38: 0.6214872002 | U38: 3 | W38: 10.93888343 | X38: 0.767445209 | Y38: 0.6607716332 | Z38: 0.7186404617 | AA38: 0.5870942843 | AB38: 1 | AD38: 14.71701648 | AE38: 0.8082547372 | AF38: 0.6341499694 | AG38: 0.6498586255 | AH38: 0.5996565028 | AI38: 2 | AK38: 14.26183436 | AL38: 0.7335589491 | AM38: 0.6418024527 | AN38: 0.676859335 | AO38: 0.6065126354 | AP38: 7 | AR38: 7.937250963 | AS38: 0.7089720454 | AT38: 0.6613922963 | AU38: 0.394555652 | AV38: 0.4277912593 | AW38: 1 | AY38: 9.662808852 | AZ38: 0.6520869507 | BA38: 0.6030926883 | BB38: 0.3806826142 | BC38: 0.4475207667 | BD38: 3 | BF38: 8.975204714 | BG38: 0.6112045982 | BH38: 0.5791831904 | BI38: 0.3994465298 | BJ38: 0.4146969808 | BK38: 3 | BM38: 7.937250963 | BN38: 0.6012544301 | BO38: 0.6015997195 | BP38: 0.4018602608 | BQ38: 0.3912279607 | BR38: 1 | BT38: 9.662808852 | BU38: 0.6070568546 | BV38: 0.5849025371 | BW38: 0.4120645072 | BX38: 0.4115725434 | BY38: 2 | CA38: 8.975204714 | CB38: 0.5751231699 | CC38: 0.587637974 | CD38: 0.4675190528 | CE38: 0.3933406669 | CF38: 2
A39: SimulItin34 | B39: 14.91603317 | C39: 0.7984606008 | D39: 0.8193691654 | E39: 0.7024352989 | F39: 0.6370716743 | G39: 1 | I39: 13.61819733 | J39: 0.8299967353 | K39: 0.778397233 | L39: 0.6497230646 | M39: 0.6558753229 | N39: 1 | P39: 14.2828478 | Q39: 0.7809470313 | R39: 0.7055200603 | S39: 0.6425134439 | T39: 0.6221277065 | U39: 2 | W39: 14.91603317 | X39: 0.7234395145 | Y39: 0.7200225781 | Z39: 0.7193217065 | AA39: 0.5220293162 | AB39: 2 | AD39: 13.61819733 | AE39: 0.7598674747 | AF39: 0.747085249 | AG39: 0.6232406711 | AH39: 0.5631855701 | AI39: 2 | AK39: 14.2828478 | AL39: 0.7638722721 | AM39: 0.6961881187 | AN39: 0.6088419711 | AO39: 0.5637884412 | AP39: 4 | AR39: 10.29834552 | AS39: 0.6203069882 | AT39: 0.6823050669 | AU39: 0.636453289 | AV39: 0.5597759071 | AW39: 0 | AY39: 9.769224991 | AZ39: 0.6164044696 | BA39: 0.7124058751 | BB39: 0.6962188411 | BC39: 0.613870751 | BD39: 3 | BF39: 10.5903605 | BG39: 0.6943680451 | BH39: 0.7095598339 | BI39: 0.6436581315 | BJ39: 0.6170204597 | BK39: 3 | BM39: 10.29834552 | BN39: 0.6534447906 | BO39: 0.7218452839 | BP39: 0.6850795902 | BQ39: 0.4495267145 | BR39: 1 | BT39: 9.769224991 | BU39: 0.6044965232 | BV39: 0.6922653451 | BW39: 0.7265276579 | BX39: 0.512104896 | BY39: 5 | CA39: 10.5903605 | CB39: 0.6579154839 | CC39: 0.6999249745 | CD39: 0.654016258 | CE39: 0.5221622161 | CF39: 5
A40: SimulItin35 | B40: 11.91188903 | C40: 0.8395804916 | D40: 0.7515943266 | E40: 0.5605358856 | F40: 0.6367696857 | G40: 0 | I40: 14.13679017 | J40: 0.825428591 | K40: 0.703567889 | L40: 0.5451513853 | M40: 0.6088704603 | N40: 2 | P40: 13.49746354 | Q40: 0.7727896104 | R40: 0.710814099 | S40: 0.6213107305 | T40: 0.6104903706 | U40: 2 | W40: 11.91188903 | X40: 0.7685135895 | Y40: 0.7039216503 | Z40: 0.5264642764 | AA40: 0.6023265141 | AB40: 0 | AD40: 14.13679017 | AE40: 0.7496294378 | AF40: 0.7218365672 | AG40: 0.5528699139 | AH40: 0.5978922756 | AI40: 0 | AK40: 13.49746354 | AL40: 0.7264019242 | AM40: 0.7507160094 | AN40: 0.6233788411 | AO40: 0.6245447837 | AP40: 0 | AR40: 14.40344986 | AS40: 0.8098610124 | AT40: 0.6231213591 | AU40: 0.5363434014 | AV40: 0.6623463478 | AW40: 2 | AY40: 12.5168664 | AZ40: 0.7285720662 | BA40: 0.6999199634 | BB40: 0.6337827656 | BC40: 0.6511397281 | BD40: 4 | BF40: 12.29464362 | BG40: 0.7412063215 | BH40: 0.6963676354 | BI40: 0.6335079164 | BJ40: 0.6465780331 | BK40: 6 | BM40: 14.40344986 | BN40: 0.7814153888 | BO40: 0.666689413 | BP40: 0.532250893 | BQ40: 0.6569186558 | BR40: 0 | BT40: 12.5168664 | BU40: 0.7273896638 | BV40: 0.7448748813 | BW40: 0.6341532165 | BX40: 0.7044918312 | BY40: 3 | CA40: 12.29464362 | CB40: 0.743091231 | CC40: 0.7122256294 | CD40: 0.6098142499 | CE40: 0.7010745802 | CF40: 4
A41: SimulItin36 | B41: 14.13338412 | C41: 0.759689793 | D41: 0.8230159807 | E41: 0.5306993322 | F41: 0.5415294996 | G41: 1 | I41: 12.47664206 | J41: 0.783745968 | K41: 0.7526178481 | L41: 0.5177636324 | M41: 0.5488242675 | N41: 2 | P41: 14.27439353 | Q41: 0.8010686236 | R41: 0.7447730053 | S41: 0.5474119986 | T41: 0.5809107943 | U41: 3 | W41: 14.13338412 | X41: 0.818040814 | Y41: 0.7812870198 | Z41: 0.5174827082 | AA41: 0.5441477956 | AB41: 2 | AD41: 12.47664206 | AE41: 0.8243103972 | AF41: 0.7419014008 | AG41: 0.5264642917 | AH41: 0.5722954282 | AI41: 3 | AK41: 14.27439353 | AL41: 0.8246108082 | AM41: 0.7510498591 | AN41: 0.5498950824 | AO41: 0.5658590747 | AP41: 5 | AR41: 6.94544507 | AS41: 0.6809938932 | AT41: 0.6630247202 | AU41: 0.4773682496 | AV41: 0.4590631533 | AW41: 1 | AY41: 8.482105976 | AZ41: 0.7160427241 | BA41: 0.6739673866 | BB41: 0.5571561277 | BC41: 0.5499904441 | BD41: 3 | BF41: 9.759305385 | BG41: 0.7402315926 | BH41: 0.6530584693 | BI41: 0.5530701926 | BJ41: 0.5695377973 | BK41: 5 | BM41: 6.94544507 | BN41: 0.7518704546 | BO41: 0.6133483096 | BP41: 0.4164698303 | BQ41: 0.48084358 | BR41: 1 | BT41: 8.482105976 | BU41: 0.7942403293 | BV41: 0.6327117535 | BW41: 0.5275164186 | BX41: 0.5467589249 | BY41: 3 | CA41: 9.759305385 | CB41: 0.8008561744 | CC41: 0.6248201239 | CD41: 0.5405979948 | CE41: 0.545398127 | CF41: 5
A42: SimulItin37 | B42: 12.89651956 | C42: 0.8614691969 | D42: 0.7445177616 | E42: 0.6047728141 | F42: 0.6870913193 | G42: 0 | I42: 15.31431418 | J42: 0.7946051592 | K42: 0.7428790737 | L42: 0.6250941161 | M42: 0.6469126333 | N42: 2 | P42: 14.70511357 | Q42: 0.7622045762 | R42: 0.7094753642 | S42: 0.6440476418 | T42: 0.6227173933 | U42: 3 | W42: 12.89651956 | X42: 0.8449624966 | Y42: 0.7515597188 | Z42: 0.5142186339 | AA42: 0.7537727256 | AB42: 0 | AD42: 15.31431418 | AE42: 0.7828559687 | AF42: 0.7634127695 | AG42: 0.5575980907 | AH42: 0.7097406728 | AI42: 0 | AK42: 14.70511357 | AL42: 0.7237238638 | AM42: 0.721838752 | AN42: 0.6196018773 | AO42: 0.6559107715 | AP42: 3 | AR42: 11.17210859 | AS42: 0.8456565182 | AT42: 0.7191595349 | AU42: 0.5814270124 | AV42: 0.6571499523 | AW42: 0 | AY42: 12.0971123 | AZ42: 0.7976460045 | BA42: 0.6631127101 | BB42: 0.6353344364 | BC42: 0.6362593773 | BD42: 3 | BF42: 11.44768764 | BG42: 0.7587957957 | BH42: 0.6882552816 | BI42: 0.6338189759 | BJ42: 0.6218566086 | BK42: 4 | BM42: 11.17210859 | BN42: 0.8135005024 | BO42: 0.7695896214 | BP42: 0.4968470485 | BQ42: 0.7289674373 | BR42: 0 | BT42: 12.0971123 | BU42: 0.7302842736 | BV42: 0.6906015494 | BW42: 0.5880247136 | BX42: 0.6510882295 | BY42: 1 | CA42: 11.44768764 | CB42: 0.7023995091 | CC42: 0.7173165115 | CD42: 0.5988020681 | CE42: 0.6443891422 | CF42: 2
A43: SimulItin38 | B43: 8.626493908 | C43: 0.6815670963 | D43: 0.76334181 | E43: 0.5520461307 | F43: 0.4917935759 | G43: 1 | I43: 15.85495256 | J43: 0.6668944914 | K43: 0.6862109106 | L43: 0.4132116625 | M43: 0.4135931309 | N43: 2 | P43: 14.53838467 | Q43: 0.6912564677 | R43: 0.7041175469 | S43: 0.5007292463 | T43: 0.4782700005 | U43: 3 | W43: 8.626493908 | X43: 0.6565747788 | Y43: 0.6715269941 | Z43: 0.5271272243 | AA43: 0.4498717017 | AB43: 1 | AD43: 15.85495256 | AE43: 0.6410601677 | AF43: 0.6336856747 | AG43: 0.3814324458 | AH43: 0.3945029252 | AI43: 2 | AK43: 14.53838467 | AL43: 0.6703473762 | AM43: 0.6635678679 | AN43: 0.4376380055 | AO43: 0.4386726599 | AP43: 3 | AR43: 7.696314742 | AS43: 0.6334839448 | AT43: 0.744896997 | AU43: 0.5801916969 | AV43: 0.4940106417 | AW43: 2 | AY43: 13.06722912 | AZ43: 0.5596033014 | BA43: 0.5752589069 | BB43: 0.3746434846 | BC43: 0.3708364185 | BD43: 2 | BF43: 11.49827249 | BG43: 0.5442836856 | BH43: 0.5692765373 | BI43: 0.3959096232 | BJ43: 0.3550670812 | BK43: 2 | BM43: 7.696314742 | BN43: 0.6034223802 | BO43: 0.5995129467 | BP43: 0.5587892298 | BQ43: 0.4699864251 | BR43: 2 | BT43: 13.06722912 | BU43: 0.5617083815 | BV43: 0.5279253609 | BW43: 0.360051385 | BX43: 0.3786373239 | BY43: 2 | CA43: 11.49827249 | CB43: 0.5430854289 | CC43: 0.5616645138 | CD43: 0.3664403485 | CE43: 0.3324962421 | CF43: 2
A44: SimulItin39 | B44: 13.69273115 | C44: 0.8671948681 | D44: 0.7317528896 | E44: 0.6982639497 | F44: 0.7460990727 | G44: 1 | I44: 12.20721545 | J44: 0.8002042625 | K44: 0.7181538178 | L44: 0.5522994061 | M44: 0.6261136739 | N44: 2 | P44: 11.8342196 | Q44: 0.7613967958 | R44: 0.7040555067 | S44: 0.5302603798 | T44: 0.562730394 | U44: 2 | W44: 13.69273115 | X44: 0.8618892112 | Y44: 0.7017935802 | Z44: 0.5210132471 | AA44: 0.6984219531 | AB44: 0 | AD44: 12.20721545 | AE44: 0.807612916 | AF44: 0.6914329168 | AG44: 0.4659457149 | AH44: 0.6329336113 | AI44: 1 | AK44: 11.8342196 | AL44: 0.7420941504 | AM44: 0.6902490805 | AN44: 0.4666319858 | AO44: 0.5659867784 | AP44: 1 | AR44: 11.56759167 | AS44: 0.8622878607 | AT44: 0.6870804549 | AU44: 0.7444598757 | AV44: 0.7755653194 | AW44: 2 | AY44: 11.71396145 | AZ44: 0.8030148375 | BA44: 0.6822704157 | BB44: 0.5735431548 | BC44: 0.6062821097 | BD44: 3 | BF44: 10.49652637 | BG44: 0.7435154413 | BH44: 0.6075639449 | BI44: 0.5067988173 | BJ44: 0.5611282475 | BK44: 5 | BM44: 11.56759167 | BN44: 0.8639196514 | BO44: 0.7032029727 | BP44: 0.5908318906 | BQ44: 0.7263048356 | BR44: 1 | BT44: 11.71396145 | BU44: 0.8225751879 | BV44: 0.6396527193 | BW44: 0.4824289536 | BX44: 0.6211269899 | BY44: 2 | CA44: 10.49652637 | CB44: 0.7400594286 | CC44: 0.5767890797 | CD44: 0.4292230292 | CE44: 0.5505803454 | CF44: 2
A45: SimulItin40 | B45: 12.16425034 | C45: 0.8257154801 | D45: 0.6829454466 | E45: 0.5061063248 | F45: 0.5509602695 | G45: 1 | I45: 13.60602358 | J45: 0.8029501284 | K45: 0.6559108134 | L45: 0.5566479329 | M45: 0.6089368279 | N45: 3 | P45: 12.71264056 | Q45: 0.7769169343 | R45: 0.6945336605 | S45: 0.5242910822 | T45: 0.5664237855 | U45: 3 | W45: 12.16425034 | X45: 0.8193074693 | Y45: 0.72924858 | Z45: 0.5626979583 | AA45: 0.557021463 | AB45: 0 | AD45: 13.60602358 | AE45: 0.8126174226 | AF45: 0.6468495281 | AG45: 0.5828186153 | AH45: 0.5826854852 | AI45: 2 | AK45: 12.71264056 | AL45: 0.7770296935 | AM45: 0.6647415407 | AN45: 0.5253294914 | AO45: 0.5406481576 | AP45: 2 | AR45: 11.13058356 | AS45: 0.7947133765 | AT45: 0.6390441958 | AU45: 0.6455549863 | AV45: 0.5971720032 | AW45: 2 | AY45: 12.17795193 | AZ45: 0.7832070114 | BA45: 0.6518323506 | BB45: 0.5662610598 | BC45: 0.6086575821 | BD45: 3 | BF45: 10.84263927 | BG45: 0.7485260411 | BH45: 0.6255775777 | BI45: 0.4851389962 | BJ45: 0.5239555556 | BK45: 4 | BM45: 11.13058356 | BN45: 0.7783247331 | BO45: 0.7181584466 | BP45: 0.6079291741 | BQ45: 0.6191268692 | BR45: 2 | BT45: 12.17795193 | BU45: 0.773979109 | BV45: 0.6471126138 | BW45: 0.6137932597 | BX45: 0.5884822927 | BY45: 3 | CA45: 10.84263927 | CB45: 0.717461781 | CC45: 0.6251670893 | CD45: 0.5089570354 | CE45: 0.5274491767 | CF45: 3
A46: SimulItin41 | B46: 11.42995871 | C46: 0.8210789777 | D46: 0.7139515 | E46: 0.5097501494 | F46: 0.5568838838 | G46: 0 | I46: 15.68565438 | J46: 0.8241896995 | K46: 0.7074145159 | L46: 0.5760629749 | M46: 0.6239371123 | N46: 2 | P46: 14.51822347 | Q46: 0.7622045762 | R46: 0.7094753642 | S46: 0.6440476418 | T46: 0.6227173933 | U46: 3 | W46: 11.42995871 | X46: 0.8368943264 | Y46: 0.6646624458 | Z46: 0.5878555699 | AA46: 0.5758796233 | AB46: 1 | AD46: 15.68565438 | AE46: 0.8050732501 | AF46: 0.6630096852 | AG46: 0.582341023 | AH46: 0.5816450736 | AI46: 3 | AK46: 14.51822347 | AL46: 0.7357562884 | AM46: 0.6638747523 | AN46: 0.6716497513 | AO46: 0.5949938326 | AP46: 6 | AR46: 15.84671856 | AS46: 0.8098610124 | AT46: 0.6231213591 | AU46: 0.5363434014 | AV46: 0.6623463478 | AW46: 2 | AY46: 13.20052 | AZ46: 0.7285720662 | BA46: 0.6999199634 | BB46: 0.6337827656 | BC46: 0.6511397281 | BD46: 4 | BF46: 12.7425546 | BG46: 0.7412063215 | BH46: 0.6963676354 | BI46: 0.6335079164 | BJ46: 0.6465780331 | BK46: 6 | BM46: 15.84671856 | BN46: 0.7650961526 | BO46: 0.628855245 | BP46: 0.5513393447 | BQ46: 0.6136029226 | BR46: 3 | BT46: 13.20052 | BU46: 0.6559763532 | BV46: 0.6826355347 | BW46: 0.6299114382 | BX46: 0.6229769186 | BY46: 6 | CA46: 12.7425546 | CB46: 0.6747135697 | CC46: 0.6634170884 | CD46: 0.6591412726 | CE46: 0.6312325273 | CF46: 8
A47: SimulItin42 | B47: 13.96351069 | C47: 0.8757722323 | D47: 0.744702397 | E47: 0.6458839363 | F47: 0.7016165355 | G47: 1 | I47: 12.00636229 | J47: 0.8005209632 | K47: 0.716719257 | L47: 0.5385769988 | M47: 0.5982036297 | N47: 2 | P47: 11.69700938 | Q47: 0.7585825811 | R47: 0.7002285823 | S47: 0.5195794845 | T47: 0.5620662177 | U47: 2 | W47: 13.96351069 | X47: 0.8747401013 | Y47: 0.792442123 | Z47: 0.6099388897 | AA47: 0.7264338393 | AB47: 2 | AD47: 12.00636229 | AE47: 0.7800617554 | AF47: 0.7380782596 | AG47: 0.5394921721 | AH47: 0.6309855935 | AI47: 3 | AK47: 11.69700938 | AL47: 0.7325356794 | AM47: 0.734058706 | AN47: 0.4947882453 | AO47: 0.5988624261 | AP47: 4 | AR47: 12.69130404 | AS47: 0.8622879578 | AT47: 0.6708440101 | AU47: 0.6292627801 | AV47: 0.6983706859 | AW47: 2 | AY47: 11.58099658 | AZ47: 0.8030148375 | BA47: 0.6822704157 | BB47: 0.5735431548 | BC47: 0.6062821097 | BD47: 3 | BF47: 10.40941146 | BG47: 0.7435154413 | BH47: 0.6075639449 | BI47: 0.5067988173 | BJ47: 0.5611282475 | BK47: 5 | BM47: 12.69130404 | BN47: 0.8754445781 | BO47: 0.7345214551 | BP47: 0.5952997505 | BQ47: 0.720114922 | BR47: 3 | BT47: 11.58099658 | BU47: 0.7837865967 | BV47: 0.7072464829 | BW47: 0.5795878506 | BX47: 0.6348934606 | BY47: 4 | CA47: 10.40941146 | CB47: 0.7163857654 | CC47: 0.6529067717 | CD47: 0.5015325888 | CE47: 0.574562618 | CF47: 6
A48: SimulItin43 | B48: 14.66952724 | C48: 0.7166357044 | D48: 0.8117670281 | E48: 0.4773448077 | F48: 0.5123474863 | G48: 1 | I48: 13.23193242 | J48: 0.7717201766 | K48: 0.7564768281 | L48: 0.5402930463 | M48: 0.5641195617 | N48: 2 | P48: 14.74008893 | Q48: 0.7883383678 | R48: 0.7421986866 | S48: 0.5431569191 | T48: 0.5867405703 | U48: 3 | W48: 14.66952724 | X48: 0.6893452519 | Y48: 0.7471957126 | Z48: 0.5263616949 | AA48: 0.4931982257 | AB48: 1 | AD48: 13.23193242 | AE48: 0.737524761 | AF48: 0.716091606 | AG48: 0.5817370976 | AH48: 0.5580557045 | AI48: 2 | AK48: 14.74008893 | AL48: 0.7342432186 | AM48: 0.6868204031 | AN48: 0.5738190624 | AO48: 0.5768488617 | AP48: 3 | AR48: 6.765921076 | AS48: 0.5487098007 | AT48: 0.6051458118 | AU48: 0.4929960295 | AV48: 0.4334913791 | AW48: 0 | AY48: 8.662980772 | AZ48: 0.577172966 | BA48: 0.602977149 | BB48: 0.462549896 | BC48: 0.4117812627 | BD48: 2 | BF48: 12.64769587 | BG48: 0.5758427582 | BH48: 0.5703984485 | BI48: 0.4163464288 | BJ48: 0.3883695669 | BK48: 2 | BM48: 6.765921076 | BN48: 0.4705038089 | BO48: 0.585880207 | BP48: 0.5737789606 | BQ48: 0.5189900265 | BR48: 3 | BT48: 8.662980772 | BU48: 0.5398380332 | BV48: 0.5971570178 | BW48: 0.5579190242 | BX48: 0.438870011 | BY48: 4 | CA48: 12.64769587 | CB48: 0.5592573728 | CC48: 0.5478948322 | CD48: 0.4662470227 | CE48: 0.4079416693 | CF48: 5
A49: SimulItin44 | B49: 10.18453706 | C49: 0.7002760363 | D49: 0.7442300737 | E49: 0.4847883192 | F49: 0.4792230708 | G49: 0 | I49: 9.079677132 | J49: 0.6699098794 | K49: 0.7178368224 | L49: 0.4910553111 | M49: 0.4971281626 | N49: 1 | P49: 16.18232824 | Q49: 0.643237949 | R49: 0.6527913607 | S49: 0.4475821213 | T49: 0.4499873771 | U49: 2 | W49: 10.18453706 | X49: 0.687092089 | Y49: 0.7493005714 | Z49: 0.5092295194 | AA49: 0.4772679714 | AB49: 1 | AD49: 9.079677132 | AE49: 0.651432715 | AF49: 0.7105394356 | AG49: 0.532771571 | AH49: 0.514858085 | AI49: 3 | AK49: 16.18232824 | AL49: 0.6640108488 | AM49: 0.6436874606 | AN49: 0.481904048 | AO49: 0.480500486 | AP49: 4 | AR49: 8.046564751 | AS49: 0.6996086783 | AT49: 0.5891219671 | AU49: 0.3541472927 | AV49: 0.3282010169 | AW49: 0 | AY49: 8.381531336 | AZ49: 0.5880975747 | BA49: 0.5688553945 | BB49: 0.44136021 | BC49: 0.4089903683 | BD49: 2 | BF49: 7.862335293 | BG49: 0.5941161555 | BH49: 0.6010451825 | BI49: 0.4400074083 | BJ49: 0.4228541647 | BK49: 2 | BM49: 8.046564751 | BN49: 0.624499138 | BO49: 0.6312540461 | BP49: 0.3426956667 | BQ49: 0.3718884064 | BR49: 1 | BT49: 8.381531336 | BU49: 0.5339426788 | BV49: 0.5870552926 | BW49: 0.4347193204 | BX49: 0.4555441491 | BY49: 5 | CA49: 7.862335293 | CB49: 0.5451291459 | CC49: 0.6055747049 | CD49: 0.4502059937 | CE49: 0.4721104718 | CF49: 7
A50: SimulItin45 | B50: 15.25996855 | C50: 0.816202178 | D50: 0.7996270454 | E50: 0.5788678938 | F50: 0.5482165403 | G50: 0 | I50: 13.56969738 | J50: 0.804249695 | K50: 0.7836820264 | L50: 0.648263357 | M50: 0.6217476268 | N50: 1 | P50: 14.56673976 | Q50: 0.8014510657 | R50: 0.7445462023 | S50: 0.6181926074 | T50: 0.6244834004 | U50: 2 | W50: 15.25996855 | X50: 0.8303037303 | Y50: 0.7616067962 | Z50: 0.500011259 | AA50: 0.4807186667 | AB50: 0 | AD50: 13.56969738 | AE50: 0.8071249436 | AF50: 0.7642315956 | AG50: 0.5802229913 | AH50: 0.580612674 | AI50: 1 | AK50: 14.56673976 | AL50: 0.8048972696 | AM50: 0.7476804325 | AN50: 0.595973705 | AO50: 0.5948754193 | AP50: 1 | AR50: 12.63996857 | AS50: 0.6940799855 | AT50: 0.7079139269 | AU50: 0.5305184892 | AV50: 0.5971094068 | AW50: 0 | AY50: 10.43699272 | AZ50: 0.6715762049 | BA50: 0.6675660237 | BB50: 0.5920353081 | BC50: 0.5459096248 | BD50: 0 | BF50: 10.69920595 | BG50: 0.6573152445 | BH50: 0.6940583422 | BI50: 0.6254075791 | BJ50: 0.595164811 | BK50: 3 | BM50: 12.63996857 | BN50: 0.6945581066 | BO50: 0.6971866542 | BP50: 0.5217700881 | BQ50: 0.5040004179 | BR50: 0 | BT50: 10.43699272 | BU50: 0.6099795018 | BV50: 0.6687619895 | BW50: 0.5328985318 | BX50: 0.4842969806 | BY50: 1 | CA50: 10.69920595 | CB50: 0.6003303809 | CC50: 0.7254149637 | CD50: 0.5845376851 | CE50: 0.5376264418 | CF50: 4
A51: SimulItin46 | B51: 10.7118389 | C51: 0.6596298851 | D51: 0.7950400373 | E51: 0.4711885117 | F51: 0.4427303741 | G51: 0 | I51: 10.66286078 | J51: 0.6629783491 | K51: 0.7401472221 | L51: 0.4441739395 | M51: 0.4259365182 | N51: 0 | P51: 11.19191293 | Q51: 0.6853926412 | R51: 0.7418957759 | S51: 0.5163621709 | T51: 0.485033377 | U51: 1 | W51: 10.7118389 | X51: 0.5830308767 | Y51: 0.8013464611 | Z51: 0.4332244553 | AA51: 0.3509954661 | AB51: 0 | AD51: 10.66286078 | AE51: 0.6138011042 | AF51: 0.7564162083 | AG51: 0.4300483789 | AH51: 0.3828321384 | AI51: 1 | AK51: 11.19191293 | AL51: 0.6203874662 | AM51: 0.7597853127 | AN51: 0.5058276507 | AO51: 0.4293256432 | AP51: 3 | AR51: 8.695032627 | AS51: 0.6802785954 | AT51: 0.7401516307 | AU51: 0.5951692208 | AV51: 0.4971278963 | AW51: 2 | AY51: 7.989551747 | AZ51: 0.5383057337 | BA51: 0.6181329911 | BB51: 0.509349731 | BC51: 0.4264892702 | BD51: 3 | BF51: 8.246617448 | BG51: 0.5858684536 | BH51: 0.6330969008 | BI51: 0.4986892372 | BJ51: 0.4373472313 | BK51: 4 | BM51: 8.695032627 | BN51: 0.5844658468 | BO51: 0.7715577056 | BP51: 0.5492771107 | BQ51: 0.4286705205 | BR51: 1 | BT51: 7.989551747 | BU51: 0.462312521 | BV51: 0.6332545237 | BW51: 0.5358193141 | BX51: 0.3424768834 | BY51: 3 | CA51: 8.246617448 | CB51: 0.5481728721 | CC51: 0.6511938476 | CD51: 0.5025761469 | CE51: 0.3915994252 | CF51: 3
A52: SimulItin47 | B52: 14.47325662 | C52: 0.816202178 | D52: 0.7996270454 | E52: 0.5788678938 | F52: 0.5482165403 | G52: 0 | I52: 13.19704436 | J52: 0.804249695 | K52: 0.7836820264 | L52: 0.648263357 | M52: 0.6217476268 | N52: 1 | P52: 14.32258778 | Q52: 0.8014510657 | R52: 0.7445462023 | S52: 0.6181926074 | T52: 0.6244834004 | U52: 2 | W52: 14.47325662 | X52: 0.7630870057 | Y52: 0.7651744072 | Z52: 0.470024083 | AA52: 0.4864253649 | AB52: 2 | AD52: 13.19704436 | AE52: 0.7680455619 | AF52: 0.749151395 | AG52: 0.6192992677 | AH52: 0.6112041978 | AI52: 6 | AK52: 14.32258778 | AL52: 0.7767602891 | AM52: 0.6927399758 | AN52: 0.5995823965 | AO52: 0.5890546005 | AP52: 7 | AR52: 11.97866251 | AS52: 0.6774877957 | AT52: 0.7542966788 | AU52: 0.5405865734 | AV52: 0.5279881542 | AW52: 0 | AY52: 10.02566007 | AZ52: 0.6662179622 | BA52: 0.69494644 | BB52: 0.6251976226 | BC52: 0.5544952363 | BD52: 1 | BF52: 10.44941914 | BG52: 0.6752863625 | BH52: 0.7158619393 | BI52: 0.6476805787 | BJ52: 0.6023493353 | BK52: 3 | BM52: 11.97866251 | BN52: 0.6008082253 | BO52: 0.7331299483 | BP52: 0.4216194369 | BQ52: 0.545343459 | BR52: 2 | BT52: 10.02566007 | BU52: 0.6695681637 | BV52: 0.6363628082 | BW52: 0.566448599 | BX52: 0.5424124683 | BY52: 6 | CA52: 10.44941914 | CB52: 0.6584188393 | CC52: 0.6619453721 | CD52: 0.611515656 | CE52: 0.6008343616 | CF52: 8
A53: SimulItin48 | B53: 11.82916047 | C53: 0.8181391089 | D53: 0.695218172 | E53: 0.5878822497 | F53: 0.5744074764 | G53: 1 | I53: 15.20055747 | J53: 0.8332445558 | K53: 0.6893075619 | L53: 0.5404158782 | M53: 0.5923040408 | N53: 2 | P53: 14.19441453 | Q53: 0.7780002537 | R53: 0.7013072143 | S53: 0.6181537258 | T53: 0.5994460909 | U53: 2 | W53: 11.82916047 | X53: 0.8516979773 | Y53: 0.6688191881 | Z53: 0.5266135429 | AA53: 0.6010653028 | AB53: 1 | AD53: 15.20055747 | AE53: 0.8212045589 | AF53: 0.6633210345 | AG53: 0.5219677829 | AH53: 0.5984965063 | AI53: 2 | AK53: 14.19441453 | AL53: 0.788593092 | AM53: 0.706940066 | AN53: 0.6102439935 | AO53: 0.612275447 | AP53: 2 | AR53: 9.96273217 | AS53: 0.7665305689 | AT53: 0.707852965 | AU53: 0.6878838602 | AV53: 0.6588702047 | AW53: 2 | AY53: 11.1748504 | AZ53: 0.7842157731 | BA53: 0.6443861258 | BB53: 0.6098270596 | BC53: 0.6371532866 | BD53: 4 | BF53: 12.74391371 | BG53: 0.7675824235 | BH53: 0.6634842843 | BI53: 0.6201478517 | BJ53: 0.6142342888 | BK53: 5 | BM53: 9.96273217 | BN53: 0.7720844497 | BO53: 0.7377792796 | BP53: 0.6581008494 | BQ53: 0.6753912991 | BR53: 1 | BT53: 11.1748504 | BU53: 0.8010351725 | BV53: 0.6212051363 | BW53: 0.5957223646 | BX53: 0.6306643925 | BY53: 3 | CA53: 12.74391371 | CB53: 0.767352432 | CC53: 0.6712585134 | CD53: 0.6262900526 | CE53: 0.5932774382 | CF53: 4
A54: SimulItin49 | B54: 15.8981741 | C54: 0.798792441 | D54: 0.8240724738 | E54: 0.6025532991 | F54: 0.6272527083 | G54: 0 | I54: 13.9585842 | J54: 0.8107814394 | K54: 0.8129524031 | L54: 0.6923526173 | M54: 0.6337415103 | N54: 1 | P54: 14.02163125 | Q54: 0.8083936464 | R54: 0.7580414289 | S54: 0.6368030374 | T54: 0.6336055136 | U54: 2 | W54: 15.8981741 | X54: 0.6950979387 | Y54: 0.8911402746 | Z54: 0.7014571462 | AA54: 0.5529924574 | AB54: 1 | AD54: 13.9585842 | AE54: 0.7754350208 | AF54: 0.824016361 | AG54: 0.778769903 | AH54: 0.5701948449 | AI54: 2 | AK54: 14.02163125 | AL54: 0.7746346029 | AM54: 0.776082375 | AN54: 0.6840553925 | AO54: 0.6204283751 | AP54: 3 | AR54: 13.91343312 | AS54: 0.7740345598 | AT54: 0.7802663902 | AU54: 0.5901825331 | AV54: 0.6249250966 | AW54: 0 | AY54: 11.52617527 | AZ54: 0.6939414122 | BA54: 0.7128050827 | BB54: 0.6229265455 | BC54: 0.5607102399 | BD54: 0 | BF54: 11.21306233 | BG54: 0.6767817697 | BH54: 0.725646873 | BI54: 0.6561343915 | BJ54: 0.5994412255 | BK54: 3 | BM54: 13.91343312 | BN54: 0.6650357198 | BO54: 0.8450328371 | BP54: 0.6471086525 | BQ54: 0.6207633474 | BR54: 1 | BT54: 11.52617527 | BU54: 0.6318995487 | BV54: 0.7295856978 | BW54: 0.6800523887 | BX54: 0.5658947957 | BY54: 4 | CA54: 11.21306233 | CB54: 0.657312631 | CC54: 0.6999902582 | CD54: 0.7093582997 | CE54: 0.5850865736 | CF54: 7
A55: SimulItin50 | B55: 17.10428509 | C55: 0.798792441 | D55: 0.8240724738 | E55: 0.6025532991 | F55: 0.6272527083 | G55: 0 | I55: 14.52989993 | J55: 0.8107814394 | K55: 0.8129524031 | L55: 0.6923526173 | M55: 0.6337415103 | N55: 1 | P55: 14.39594155 | Q55: 0.8083936464 | R55: 0.7580414289 | S55: 0.6368030374 | T55: 0.6336055136 | U55: 2 | W55: 17.10428509 | X55: 0.7734330584 | Y55: 0.7598845881 | Z55: 0.5958383957 | AA55: 0.7026080205 | AB55: 1 | AD55: 14.52989993 | AE55: 0.8165516803 | AF55: 0.7696095007 | AG55: 0.6861342018 | AH55: 0.6601456896 | AI55: 2 | AK55: 14.39594155 | AL55: 0.8048126288 | AM55: 0.7054328883 | AN55: 0.6355189867 | AO55: 0.6412081767 | AP55: 3 | AR55: 15.1195441 | AS55: 0.7740345598 | AT55: 0.7802663902 | AU55: 0.5901825331 | AV55: 0.6249250966 | AW55: 0 | AY55: 12.097491 | AZ55: 0.6939414122 | BA55: 0.7128050827 | BB55: 0.6229265455 | BC55: 0.5607102399 | BD55: 0 | BF55: 11.58737263 | BG55: 0.6767817697 | BH55: 0.725646873 | BI55: 0.6561343915 | BJ55: 0.5994412255 | BK55: 3 | BM55: 15.1195441 | BN55: 0.7823281099 | BO55: 0.7130373689 | BP55: 0.5966486453 | BQ55: 0.6287088725 | BR55: 1 | BT55: 12.097491 | BU55: 0.6958346583 | BV55: 0.663532678 | BW55: 0.6013756632 | BX55: 0.5686251081 | BY55: 4 | CA55: 11.58737263 | CB55: 0.7040764432 | CC55: 0.64993097 | CD55: 0.6346150995 | CE55: 0.5895307843 | CF55: 6
A56: Averages | B56: =AVERAGE(B5:B55) -> 12.94071506 | C56: 0.7749546431 | D56: 0.7682687569 | E56: 0.5751149574 | F56: 0.5764163797 | G56: =AVERAGE(G5:G55) -> 0.46 | I56: =AVERAGE(I5:I55) -> 13.35218968 | J56: 0.7685963318 | K56: 0.7389303545 | L56: 0.5737419192 | M56: 0.5747862933 | N56: =AVERAGE(N5:N55) -> 1.38 | P56: =AVERAGE(P5:P55) -> 13.85348326 | Q56: 0.749106937 | R56: 0.715761214 | S56: 0.5853908449 | T56: 0.5756232116 | U56: =AVERAGE(U5:U55) -> 2.2 | W56: =AVERAGE(W5:W55) -> 12.94071506 | X56: 0.7570596775 | Y56: 0.734124009 | Z56: 0.5670447306 | AA56: 0.5709791216 | AB56: =AVERAGE(AB5:AB55) -> 0.84 | AD56: =AVERAGE(AD5:AD55) -> 13.35218968 | AE56: 0.749781836 | AF56: 0.7110140196 | AG56: 0.5665977739 | AH56: 0.5647526911 | AI56: =AVERAGE(AI5:AI55) -> 2.04 | AK56: =AVERAGE(AK5:AK55) -> 13.85348326 | AL56: 0.7267453568 | AM56: 0.6917146592 | AN56: 0.5772374647 | AO56: 0.5642424833 | AP56: =AVERAGE(AP5:AP55) -> 3.62 | AR56: =AVERAGE(AR5:AR55) -> 10.52602895 | AS56: 0.7198008827 | AT56: 0.6885248288 | AU56: 0.5624530134 | AV56: 0.5612730941 | AW56: =AVERAGE(AW5:AW55) -> 0.9 | AY56: =AVERAGE(AY5:AY55) -> 10.89713761 | AZ56: 0.6889443909 | BA56: 0.662003898 | BB56: 0.5726622809 | BC56: 0.5546218078 | BD56: =AVERAGE(BD5:BD55) -> 2.32 | BF56: =AVERAGE(BF5:BF55) -> 11.14613932 | BG56: 0.690869837 | BH56: 0.6540334488 | BI56: 0.559071763 | BJ56: 0.5519848543 | BK56: =AVERAGE(BK5:BK55) -> 3.76 | BM56: =AVERAGE(BM5:BM55) -> 10.52602895 | BN56: 0.6864907158 | BO56: 0.6858733721 | BP56: 0.5497947305 | BQ56: 0.5574709218 | BR56: =AVERAGE(BR5:BR55) -> 1.34 | BT56: =AVERAGE(BT5:BT55) -> 10.89713761 | BU56: 0.6658689437 | BV56: 0.6481399426 | BW56: 0.562664261 | BX56: 0.5525835954 | BY56: =AVERAGE(BY5:BY55) -> 3.28 | CA56: =AVERAGE(CA5:CA55) -> 11.14613932 | CB56: 0.6695020807 | CC56: 0.6382773267 | CD56: 0.5485473167 | CE56: 0.5455315873 | CF56: =AVERAGE(CF5:CF55) -> 4.68

Sheet ModelSummaries
A1: SortOrder | B1: ModelNo | C1: DistDecayPara | D1: SampleSize | E1: ErrorMultiplier | F1: Variables | G1: Averages
A2: 1 | B2: 1 | C2: 0.5 | D2: 10 | E2: 0 | F2: MeanDist | G2: 12.94071506 | I2: Mean of mean distances for 50 itineraries
A3: 2 | B3: 1 | C3: 0.5 | D3: 10 | E3: 0 | F3: MeanIm1 | G3: 0.7749546431 | I3: Grand mean of indicator 1 on-site estimates | N3: Fraction crops destroyed
A4: 3 | B4: 1 | C4: 0.5 | D4: 10 | E4: 0 | F4: MeanIm2 | G4: 0.7682687569 | I4: Grand mean of indicator 2 on-site estimates | N4: Fraction houses destroyed
A5: 4 | B5: 1 | C5: 0.5 | D5: 10 | E5: 0 | F5: MeanIm3 | G5: 0.5751149574 | I5: Grand mean of indicator 3 on-site estimates | N5: Fraction children malnurished
A6: 5 | B6: 1 | C6: 0.5 | D6: 10 | E6: 0 | F6: MeanIm4 | G6: 0.5764163797 | I6: Grand mean of indicator 4 on-site estimates | N6: Fraction persons with d.
A7: 6 | B7: 1 | C7: 0.5 | D7: 10 | E7: 0 | F7: AtypicCommunities | G7: 0.46 | I7: Mean of number of communities with deviant impact profile met per itinerary
A8: 7 | B8: 2 | C8: 0.5 | D8: 20 | E8: 0 | F8: MeanDist | G8: 13.35218968
A9: 8 | B9: 2 | C9: 0.5 | D9: 20 | E9: 0 | F9: MeanIm1 | G9: 0.7685963318
A10: 9 | B10: 2 | C10: 0.5 | D10: 20 | E10: 0 | F10: MeanIm2 | G10: 0.7389303545
A11: 10 | B11: 2 | C11: 0.5 | D11: 20 | E11: 0 | F11: MeanIm3 | G11: 0.5737419192
A12: 11 | B12: 2 | C12: 0.5 | D12: 20 | E12: 0 | F12: MeanIm4 | G12: 0.5747862933
A13: 12 | B13: 2 | C13: 0.5 | D13: 20 | E13: 0 | F13: AtypicCommunities | G13: 1.38
A14: 13 | B14: 3 | C14: 0.5 | D14: 30 | E14: 0 | F14: MeanDist | G14: 13.85348326
A15: 14 | B15: 3 | C15: 0.5 | D15: 30 | E15: 0 | F15: MeanIm1 | G15: 0.749106937
A16: 15 | B16: 3 | C16: 0.5 | D16: 30 | E16: 0 | F16: MeanIm2 | G16: 0.715761214
A17: 16 | B17: 3 | C17: 0.5 | D17: 30 | E17: 0 | F17: MeanIm3 | G17: 0.5853908449
A18: 17 | B18: 3 | C18: 0.5 | D18: 30 | E18: 0 | F18: MeanIm4 | G18: 0.5756232116
A19: 18 | B19: 3 | C19: 0.5 | D19: 30 | E19: 0 | F19: AtypicCommunities | G19: 2.2
A20: 19 | B20: 4 | C20: 0.5 | D20: 10 | E20: 0.5 | F20: MeanDist | G20: 12.94071506
A21: 20 | B21: 4 | C21: 0.5 | D21: 10 | E21: 0.5 | F21: MeanIm1 | G21: 0.7570596775
A22: 21 | B22: 4 | C22: 0.5 | D22: 10 | E22: 0.5 | F22: MeanIm2 | G22: 0.734124009
A23: 22 | B23: 4 | C23: 0.5 | D23: 10 | E23: 0.5 | F23: MeanIm3 | G23: 0.5670447306
A24: 23 | B24: 4 | C24: 0.5 | D24: 10 | E24: 0.5 | F24: MeanIm4 | G24: 0.5709791216
A25: 24 | B25: 4 | C25: 0.5 | D25: 10 | E25: 0.5 | F25: AtypicCommunities | G25: 0.84
A26: 25 | B26: 5 | C26: 0.5 | D26: 20 | E26: 0.5 | F26: MeanDist | G26: 13.35218968
A27: 26 | B27: 5 | C27: 0.5 | D27: 20 | E27: 0.5 | F27: MeanIm1 | G27: 0.749781836
A28: 27 | B28: 5 | C28: 0.5 | D28: 20 | E28: 0.5 | F28: MeanIm2 | G28: 0.7110140196
A29: 28 | B29: 5 | C29: 0.5 | D29: 20 | E29: 0.5 | F29: MeanIm3 | G29: 0.5665977739
A30: 29 | B30: 5 | C30: 0.5 | D30: 20 | E30: 0.5 | F30: MeanIm4 | G30: 0.5647526911
A31: 30 | B31: 5 | C31: 0.5 | D31: 20 | E31: 0.5 | F31: AtypicCommunities | G31: 2.04
A32: 31 | B32: 6 | C32: 0.5 | D32: 30 | E32: 0.5 | F32: MeanDist | G32: 13.85348326
A33: 32 | B33: 6 | C33: 0.5 | D33: 30 | E33: 0.5 | F33: MeanIm1 | G33: 0.7267453568
A34: 33 | B34: 6 | C34: 0.5 | D34: 30 | E34: 0.5 | F34: MeanIm2 | G34: 0.6917146592
A35: 34 | B35: 6 | C35: 0.5 | D35: 30 | E35: 0.5 | F35: MeanIm3 | G35: 0.5772374647
A36: 35 | B36: 6 | C36: 0.5 | D36: 30 | E36: 0.5 | F36: MeanIm4 | G36: 0.5642424833
A37: 36 | B37: 6 | C37: 0.5 | D37: 30 | E37: 0.5 | F37: AtypicCommunities | G37: 3.62
A38: 37 | B38: 7 | C38: 1 | D38: 10 | E38: 0 | F38: MeanDist | G38: 10.52602895
A39: 38 | B39: 7 | C39: 1 | D39: 10 | E39: 0 | F39: MeanIm1 | G39: 0.7198008827
A40: 39 | B40: 7 | C40: 1 | D40: 10 | E40: 0 | F40: MeanIm2 | G40: 0.6885248288
A41: 40 | B41: 7 | C41: 1 | D41: 10 | E41: 0 | F41: MeanIm3 | G41: 0.5624530134
A42: 41 | B42: 7 | C42: 1 | D42: 10 | E42: 0 | F42: MeanIm4 | G42: 0.5612730941
A43: 42 | B43: 7 | C43: 1 | D43: 10 | E43: 0 | F43: AtypicCommunities | G43: 0.9
A44: 43 | B44: 8 | C44: 1 | D44: 20 | E44: 0 | F44: MeanDist | G44: 10.89713761
A45: 44 | B45: 8 | C45: 1 | D45: 20 | E45: 0 | F45: MeanIm1 | G45: 0.6889443909
A46: 45 | B46: 8 | C46: 1 | D46: 20 | E46: 0 | F46: MeanIm2 | G46: 0.662003898
A47: 46 | B47: 8 | C47: 1 | D47: 20 | E47: 0 | F47: MeanIm3 | G47: 0.5726622809
A48: 47 | B48: 8 | C48: 1 | D48: 20 | E48: 0 | F48: MeanIm4 | G48: 0.5546218078
A49: 48 | B49: 8 | C49: 1 | D49: 20 | E49: 0 | F49: AtypicCommunities | G49: 2.32
A50: 49 | B50: 9 | C50: 1 | D50: 30 | E50: 0 | F50: MeanDist | G50: 11.14613932
A51: 50 | B51: 9 | C51: 1 | D51: 30 | E51: 0 | F51: MeanIm1 | G51: 0.690869837
A52: 51 | B52: 9 | C52: 1 | D52: 30 | E52: 0 | F52: MeanIm2 | G52: 0.6540334488
A53: 52 | B53: 9 | C53: 1 | D53: 30 | E53: 0 | F53: MeanIm3 | G53: 0.559071763
A54: 53 | B54: 9 | C54: 1 | D54: 30 | E54: 0 | F54: MeanIm4 | G54: 0.5519848543
A55: 54 | B55: 9 | C55: 1 | D55: 30 | E55: 0 | F55: AtypicCommunities | G55: 3.76
A56: 55 | B56: 10 | C56: 1 | D56: 10 | E56: 0.5 | F56: MeanDist | G56: 10.52602895
A57: 56 | B57: 10 | C57: 1 | D57: 10 | E57: 0.5 | F57: MeanIm1 | G57: 0.6864907158
A58: 57 | B58: 10 | C58: 1 | D58: 10 | E58: 0.5 | F58: MeanIm2 | G58: 0.6858733721
A59: 58 | B59: 10 | C59: 1 | D59: 10 | E59: 0.5 | F59: MeanIm3 | G59: 0.5497947305
A60: 59 | B60: 10 | C60: 1 | D60: 10 | E60: 0.5 | F60: MeanIm4 | G60: 0.5574709218
A61: 60 | B61: 10 | C61: 1 | D61: 10 | E61: 0.5 | F61: AtypicCommunities | G61: 1.34
A62: 61 | B62: 11 | C62: 1 | D62: 20 | E62: 0.5 | F62: MeanDist | G62: 10.89713761
A63: 62 | B63: 11 | C63: 1 | D63: 20 | E63: 0.5 | F63: MeanIm1 | G63: 0.6658689437
A64: 63 | B64: 11 | C64: 1 | D64: 20 | E64: 0.5 | F64: MeanIm2 | G64: 0.6481399426
A65: 64 | B65: 11 | C65: 1 | D65: 20 | E65: 0.5 | F65: MeanIm3 | G65: 0.562664261
A66: 65 | B66: 11 | C66: 1 | D66: 20 | E66: 0.5 | F66: MeanIm4 | G66: 0.5525835954
A67: 66 | B67: 11 | C67: 1 | D67: 20 | E67: 0.5 | F67: AtypicCommunities | G67: 3.28
A68: 67 | B68: 12 | C68: 1 | D68: 30 | E68: 0.5 | F68: MeanDist | G68: 11.14613932
A69: 68 | B69: 12 | C69: 1 | D69: 30 | E69: 0.5 | F69: MeanIm1 | G69: 0.6695020807
A70: 69 | B70: 12 | C70: 1 | D70: 30 | E70: 0.5 | F70: MeanIm2 | G70: 0.6382773267
A71: 70 | B71: 12 | C71: 1 | D71: 30 | E71: 0.5 | F71: MeanIm3 | G71: 0.5485473167
A72: 71 | B72: 12 | C72: 1 | D72: 30 | E72: 0.5 | F72: MeanIm4 | G72: 0.5455315873
A73: 72 | B73: 12 | C73: 1 | D73: 30 | E73: 0.5 | F73: AtypicCommunities | G73: 4.68

Sheet SampleItineraries
A1: Model No. | B1: 1
A2: SampleSize | B2: 10
A3: ErrorTerm | B3: 0
A4: ItinNo. | B4: 1
A5: ID | B5: RecNo | C5: Itin01 | D5: Dist01 | G5: Use ID to link to attribute table in GIS
A6: 259 | B6: 93 | C6: 1 | D6: 0
A7: 309 | B7: 269 | C7: 2 | D7: 7.981860289
A8: 364 | B8: 35 | C8: 3 | D8: 8.569474737
A9: 429 | B9: 15 | C9: 4 | D9: 8.174930213
A10: 400 | B10: 117 | C10: 5 | D10: 10.60684893
A11: 427 | B11: 184 | C11: 6 | D11: 10.99394322
A12: 258 | B12: 186 | C12: 7 | D12: 9.346420102
A13: 378 | B13: 40 | C13: 8 | D13: 16.17572778
A14: 255 | B14: 206 | C14: 9 | D14: 12.74450961
A15: 116 | B15: 258 | C15: 10 | D15: 14.77112684
A16: 411 | B16: 1
A17: 208 | B17: 2
A18: 414 | B18: 3
A19: 183 | B19: 4
A20: 177 | B20: 5
A21: 468 | B21: 6
A22: 482 | B22: 7
A23: 163 | B23: 8
A24: 270 | B24: 9
A25: 277 | B25: 10
A26: 392 | B26: 11
A27: 471 | B27: 12
A28: 187 | B28: 13
A29: 252 | B29: 14
A30: 218 | B30: 16
A31: 430 | B31: 17
A32: 212 | B32: 18
A33: 384 | B33: 19
A34: 19 | B34: 20
A35: 268 | B35: 21
A36: 41 | B36: 22
A37: 147 | B37: 23
A38: 492 | B38: 24
A39: 368 | B39: 25
A40: 221 | B40: 26
A41: 299 | B41: 27
A42: 54 | B42: 28
A43: 241 | B43: 29
A44: 426 | B44: 30
A45: 150 | B45: 31
A46: 315 | B46: 32
A47: 155 | B47: 33
A48: 416 | B48: 34
A49: 104 | B49: 36
A50: 304 | B50: 37
A51: 466 | B51: 38
A52: 63 | B52: 39
A53: 56 | B53: 41
A54: 124 | B54: 42
A55: 68 | B55: 43
A56: 412 | B56: 44
A57: 257 | B57: 45
A58: 437 | B58: 46
A59: 134 | B59: 47
A60: 390 | B60: 48
A61: 170 | B61: 49
A62: 108 | B62: 50
A63: 209 | B63: 51
A64: 182 | B64: 52
A65: 139 | B65: 53
A66: 421 | B66: 54
A67: 126 | B67: 55
A68: 3 | B68: 56
A69: 440 | B69: 57
A70: 166 | B70: 58
A71: 238 | B71: 59
A72: 123 | B72: 60
A73: 222 | B73: 61
A74: 393 | B74: 62
A75: 286 | B75: 63
A76: 245 | B76: 64
A77: 486 | B77: 65
A78: 283 | B78: 66
A79: 224 | B79: 67
A80: 311 | B80: 68
A81: 477 | B81: 69
A82: 353 | B82: 70
A83: 48 | B83: 71
A84: 244 | B84: 72
A85: 290 | B85: 73
A86: 415 | B86: 74
A87: 448 | B87: 75
A88: 269 | B88: 76
A89: 293 | B89: 77
A90: 408 | B90: 78
A91: 291 | B91: 79
A92: 480 | B92: 80
A93: 133 | B93: 81
A94: 248 | B94: 82
A95: 232 | B95: 83
A96: 380 | B96: 84
A97: 490 | B97: 85
A98: 216 | B98: 86
A99: 314 | B99: 87
A100: 361 | B100: 88
A101: 428 | B101: 89
A102: 7 | B102: 90
A103: 105 | B103: 91
A104: 207 | B104: 92
A105: 359 | B105: 94
A106: 457 | B106: 95
A107: 355 | B107: 96
A108: 487 | B108: 97
A109: 476 | B109: 98
A110: 488 | B110: 99
A111: 203 | B111: 100
A112: 141 | B112: 101
A113: 66 | B113: 102
A114: 445 | B114: 103
A115: 287 | B115: 104
A116: 52 | B116: 105
A117: 73 | B117: 106
A118: 132 | B118: 107
A119: 406 | B119: 108
A120: 438 | B120: 109
A121: 327 | B121: 110
A122: 67 | B122: 111
A123: 243 | B123: 112
A124: 47 | B124: 113
A125: 246 | B125: 114
A126: 285 | B126: 115
A127: 282 | B127: 116
A128: 491 | B128: 118
A129: 149 | B129: 119
A130: 278 | B130: 120
A131: 171 | B131: 121
A132: 70 | B132: 122
A133: 485 | B133: 123
A134: 156 | B134: 124
A135: 423 | B135: 125
A136: 443 | B136: 126
A137: 198 | B137: 127
A138: 137 | B138: 128
A139: 469 | B139: 129
A140: 220 | B140: 130
A141: 294 | B141: 131
A142: 306 | B142: 132
A143: 43 | B143: 133
A144: 302 | B144: 134
A145: 260 | B145: 135
A146: 317 | B146: 136
A147: 64 | B147: 137
A148: 192 | B148: 138
A149: 385 | B149: 139
A150: 493 | B150: 140
A151: 206 | B151: 141
A152: 181 | B152: 142
A153: 36 | B153: 143
A154: 398 | B154: 144
A155: 46 | B155: 145
A156: 354 | B156: 146
A157: 352 | B157: 147
A158: 184 | B158: 148
A159: 431 | B159: 149
A160: 454 | B160: 150
A161: 38 | B161: 151
A162: 178 | B162: 152
A163: 130 | B163: 153
A164: 113 | B164: 154
A165: 92 | B165: 155
A166: 136 | B166: 156
A167: 217 | B167: 157
A168: 424 | B168: 158
A169: 441 | B169: 159
A170: 129 | B170: 160
A171: 251 | B171: 161
A172: 213 | B172: 162
A173: 57 | B173: 163
A174: 37 | B174: 164
A175: 111 | B175: 165
A176: 292 | B176: 166
A177: 391 | B177: 167
A178: 397 | B178: 168
A179: 240 | B179: 169
A180: 157 | B180: 170
A181: 236 | B181: 171
A182: 328 | B182: 172
A183: 455 | B183: 173
A184: 388 | B184: 174
A185: 479 | B185: 175
A186: 189 | B186: 176
A187: 59 | B187: 177
A188: 53 | B188: 178
A189: 169 | B189: 179
A190: 337 | B190: 180
A191: 316 | B191: 181
A192: 103 | B192: 182
A193: 296 | B193: 183
A194: 253 | B194: 185
A195: 237 | B195: 187
A196: 20 | B196: 188
A197: 138 | B197: 189
A198: 250 | B198: 190
A199: 347 | B199: 191
A200: 174 | B200: 192
... 95 more rows

Sheet RandomStartComm
A1: Uniforms | B1: FromAllComm_RecNo | C1: From50MostImpacted_RecNo | D1: SortOrder | G1: Note:
A2: 0.1011078219 | B2: =ROUNDUP(A2*290,0) -> 30 | C2: 93 | D2: 1 | G2: Using data analysis tool pak
A3: 0.2349620045 | B3: 69 | C3: 288 | D3: 2 | G3: Application.Run "ATPVBAEN.XLAM!Random", ActiveSheet.Range("$A$2:$A$51"), 1 _
A4: 0.4549089022 | B4: 132 | C4: 285 | D4: 3 | G4: , 50, 1, 1003, 0, 1
A5: 0.6314889981 | B5: 184 | C5: 206 | D5: 4 | G5: End Sub
A6: 0.990417188 | B6: 288 | C6: 269 | D6: 5
A7: 0.5538193915 | B7: 161 | C7: 184 | D7: 6 | G7: i.e., seed = 1003
A8: 0.5247047334 | B8: 153 | C8: 13 | D8: 7
A9: 0.3839533677 | B9: 112 | C9: 175 | D9: 8
A10: 0.7243568224 | B10: 211 | C10: 117 | D10: 9 | G10: How were the fifty most impacted communities selected and allocated?
